Workbook

Sheet Tracking
A1: Layout Macro Fields | B1: Value | D1: Formatting Codes
A2: Site Name | B2: Nevada Environmental Response Trust Site | C2: Henderson, Nevada
A3: Left Header | C3: Usually blank for publication
A4: Center Header | C4: Usually blank
A5: Right Header | C5: Doc Status: Draft; Interim Final | D5: &b = bold ; &i = italics; &u=underline
A6: Left Footer | C6: Report Date and location | D6: &6 = 6 pt font; &Z=filepath; &F=filename
A7: Center Footer | B7: Page &p of &n | C7: Page Numbering | D7: &p = page number; &n = total number of pages
A8: Right Footer | B8: Ramboll Environ | C8: Ramboll Environ
A10: Creation Date | B10: Database Date | C10: Version | D10: Description | E10: Owner
A11: 2011-10-20 | C11: 1 | D11: Preliminary RBTC calculations | E11: KZ

Sheet TOC
A1: Table Number | B1: Table Title
A2: TABLE 5-7A | B2: Soil EPCs and EPCs of Airborne Particulates and Vapors for Parcel H_0-2 feet bgs
A3: TABLE Q-1-1A | B3: Estimated Cancer Risks and Non-Cancer Hazard Indices for Indoor Commercial/Industrial Workers Exposed to Soil (0-2 feet bgs) in Parcel H
A4: TABLE Q-1-2A | B4: Estimated Cancer Risks and Non-Cancer Hazard Indices for Outdoor Commercial/Industrial Workers Exposed to Soil (0-2 feet bgs) in Parcel H

Sheet NOTES
A3: NOTES:
A4: 1. Before reviewing the risk results for each receptor, first please go to the [Scen] Tab , and then go to DATA --> What If Analysis --> Scenario Manager to set the exposure scenario you are interested in.
A5: Remember to hit CTRL+ALT+F9 to make sure the workbook refreshes the calculations
A7: 2. Always keep the chemical list starting from Row 11
A8: 3. Some formula are set up using array. After enter the formula, press CTRL+SHIFT+ENTER.

Sheet Tab 5-7a Soil & Air EPCs
A1: =TOC!A2&". "&TOC!B2 -> TABLE 5-7A. Soil EPCs and EPCs of Airborne Particulates and Vapors for Parcel H_0-2 feet bgs
A2: =Tracking!sitename_text -> Nevada Environmental Response Trust Site
A3: =Tracking!C2 -> Henderson, Nevada
A5: Parcel | B5: Chemical Group | C5: COPC | D5: CAS | E5: Soil EPC [1] (mg/kg) | F5: Airborne Particulate EPC [1] (µg/m3) | H5: Vapor EPC [1] (µg/m3)
F6: Indoor and Outdoor Commercial/ Industrial Worker | G6: Construction Worker | H6: Indoor and Outdoor Commercial/ Industrial Worker | I6: Construction Worker
A7: H | B7: Metal | C7: Palladium | D7: 7440-05-3 | E7: 0.47 | F7: =E7/'Tab 5-8 PEF Calculation'!$C$17*1000 -> 4.92253066e-07 | G7: =E7/'Tab 5-8 PEF Calculation'!$C$51*1000 -> 0.0001105154717 | H7: =IF('Tab 5-12C Soil to Air TF'!F11="--","--",E7*'Tab 5-12C Soil to Air TF'!F11*1000) -> -- | I7: =IF('Tab 5-12C Soil to Air TF'!G11="--","--",E7*'Tab 5-12C Soil to Air TF'!G11*1000) -> --
C8: Zirconium | D8: 7440-67-7 | E8: 24.9 | F8: =E8/'Tab 5-8 PEF Calculation'!$C$17*1000 -> 2.607893903e-05 | G8: =E8/'Tab 5-8 PEF Calculation'!$C$51*1000 -> 0.00585496861 | H8: =IF('Tab 5-12C Soil to Air TF'!F12="--","--",E8*'Tab 5-12C Soil to Air TF'!F12*1000) -> -- | I8: =IF('Tab 5-12C Soil to Air TF'!G12="--","--",E8*'Tab 5-12C Soil to Air TF'!G12*1000) -> --
B9: Pesticides - OCP | C9: Hexachlorobenzene | D9: 118-74-1 | E9: 0.21 | F9: =E9/'Tab 5-8 PEF Calculation'!$C$17*1000 -> 2.199428593e-07 | G9: =E9/'Tab 5-8 PEF Calculation'!$C$51*1000 -> 4.937925333e-05 | H9: =IF('Tab 5-12C Soil to Air TF'!F13="--","--",E9*'Tab 5-12C Soil to Air TF'!F13*1000) -> 0.009239308443 | I9: =IF('Tab 5-12C Soil to Air TF'!G13="--","--",E9*'Tab 5-12C Soil to Air TF'!G13*1000) -> 0.05949771834
A11: Notes:
A12: -- = Not applicable
A13: bgs = below ground surface
A14: mg/kg = milligram per kilogram
A15: µg/m3 = microgram per cubic meter
A16: BaPEq = Benzo[a]pyrene equivalent
A17: COPC = Constituent of potential concern
A18: EPC = Exposure point concentration
A19: OCP = Organochlorine pesticide
A20: [1] The maximum detected concentration over 0-2 feet bgs was used as EPC.

Sheet Tab 5-8 PEF Calculation (hidden)
A1: =TOC!#REF!&". "&TOC!#REF! -> 
A2: =Tracking!B2 -> Nevada Environmental Response Trust Site
A3: =Tracking!C2 -> Henderson, Nevada
A5: Parameter | B5: Symbol | C5: Value | D5: Unit | E5: Reference
C6: Parcel H
A7: Indoor and Outdoor Commercial/Industrial Worker
A8: Fraction of vegetative cover | B8: V | C8: 0.5 | D8: unitless | E8: USEPA 2002
A9: Mean annual wind speed | B9: Um | C9: 4.1 | D9: m/s | E9: [1]
A10: Equivalent threshold value of wind speed | B10: Ut | C10: 11.32 | D10: m/s | E10: USEPA 2002
A11: Function dependent on U/Ut | B11: F(x) | C11: 0.194 | D11: unitless | E11: USEPA 2002
A12: Air dispersion factor for area source (calculated) | B12: Q/Cwind | C12: 44.24162672 | D12: g/m2-s per kg/m3 | E12: USEPA 2002
A13: Dispersion factor for area source - Constant A (Las Vegas, NV) | B13: A | C13: 13.3093 | D13: unitless | E13: USEPA 2002
A14: Dispersion factor for area source - Constant B (Las Vegas, NV) | B14: B | C14: 19.8387 | D14: unitless | E14: USEPA 2002
A15: Dispersion factor for area source - Constant C (Las Vegas, NV) | B15: C | C15: 230.1652 | D15: unitless | E15: USEPA 2002
A16: Areal extent of site surface contamination | B16: Asurf | C16: 25.7505 | D16: acre | E16: Area of parcel
A17: Particulate emission factor (calculated) | B17: PEF | C17: 954793443.6 | D17: m3/kg | E17: Neptune 2015
A18: Construction Worker
A19: Fraction of vegetative cover | B19: V | C19: 0 | D19: unitless | E19: USEPA 2002
A20: Mean annual wind speed | B20: Um | C20: 4.1 | D20: m/s | E20: [1]
A21: Equivalent threshold value of wind speed | B21: Ut | C21: 11.32 | D21: m/s | E21: USEPA 2002
A22: Function dependent on U/Ut | B22: F(x) | C22: 0.194 | D22: unitless | E22: USEPA 2002
A23: Areal extent of site surface contamination | B23: Asurf | C23: 24.8078 | D23: acre | E23: Area of parcel
A24: Wet soil bulk density | B24: rsoil | C24: 1.87 | D24: g/cm3 | E24: [2]
A25: Percent of soil moisture content | B25: M | C25: 14.8 | D25: % | E25: [2]
A26: Areal extent of site excavation | B26: Aexcav | C26: =(C16/5)*4047 -> 20842.4547 | D26: m2 | E26: [3]
A27: Depth of site excavation | B27: dexcav | C27: 1 | D27: m | E27: USEPA 2002
A28: Number of times soil is dumped | B28: NA | C28: 2 | D28: unitless | E28: USEPA 2002
A29: Percent of soil silt content | B29: s | C29: 10 | D29: % | E29: [4]
A30: Average dozing speed | B30: Sdoz | C30: 11.4 | D30: km/hr | E30: USEPA 2002
A31: Number of times area is dozed | B31: Ndoze | C31: 3 | D31: unitless | E31: USEPA 2002
A32: Length of dozer blade | B32: Bd | C32: 2.44 | D32: m | E32: USEPA 2002
A33: Average grading speed | B33: Sgrade | C33: 11.4 | D33: km/hr | E33: USEPA 2002
A34: Number of times area is graded | B34: Ngrade | C34: 3 | D34: unitless | E34: USEPA 2002
A35: Length of dozer blade | B35: Bg | C35: 2.44 | D35: m | E35: USEPA 2002
A36: Areal extent of site tilling | B36: Atill | C36: =C16/5 -> 5.1501 | D36: acre | E36: [3]
A37: Number of times soil is tilled | B37: NA | C37: 2 | D37: unitless | E37: USEPA 2002
A38: Subchronic dispersion factor for area source-Constant A | B38: A | C38: 2.4538 | D38: unitless | E38: USEPA 2002
A39: Subchronic dispersion factor for area source-Constant B | B39: B | C39: 17.566 | D39: unitless | E39: USEPA 2002
A40: Subchronic dispersion factor for area source-Constant C | B40: C | C40: 189.0426 | D40: unitless | E40: USEPA 2002
A41: Length of road segment | B41: LR | C41: =SQRT(C16*4047) -> 322.8192583 | D41: m | E41: [5]
A42: Width of road segment | B42: WR | C42: 6.096 | D42: m | E42: USEPA 2002
A43: Mean vehicle weight | B43: W | C43: 8 | D43: ton | E43: USEPA 2002
A44: Percent of moisture in dry road surface | B44: Mdry | C44: 0.2 | D44: % | E44: USEPA 2002
A45: Number of days/year with at least 0.01 inches of precipitation | B45: p | C45: 27 | D45: day | E45: Neptune 2015
A46: Number of vehicles for duration of construction | B46: NV | C46: 30 | D46: unitless | E46: USEPA 2002
A47: Length of road traveled per day | B47: LD | C47: =SQRT(C16*4047) -> 322.8192583 | D47: m/day | E47: [5]
A48: Subchronic dispersion factor for road segment-Constant A | B48: A | C48: 12.9351 | D48: unitless | E48: USEPA 2002
A49: Subchronic dispersion factor for road segment-Constant B | B49: B | C49: 5.7383 | D49: unitless | E49: USEPA 2002
A50: Subchronic dispersion factor for road segment-Constant C | B50: C | C50: 71.7711 | D50: unitless | E50: USEPA 2002
A51: Particulate emission factor (calculated) | B51: PEF | C51: 4252798.206 | D51: m3/kg | E51: Neptune 2015
A53: Notes:
A54: g/cm3 = gram per cubic centimeter
A55: g/m2-s per kg/m3 = (gram per square meter per second) per (koligram per cubic meter)
A56: km/hr = kilometer per hour
A57: m = meter
A58: m/day = meter per day
A59: m/s = meter per second
A60: m2 = square meter
A61: m3/kg = cubic meter per kilogram
A62: USEPA = United States Environmental Protection Agency
A63: WRCC = Western Regional Climate Center
A65: [1] Average wind speeds for Las Vegas derived from WRCC (2010).
A66: [2] Average value of top 10-foot samples reported in (Northgate 2010).
A67: [3] Assumed one fifth of the parcel area based upon USEPA (2002).
A68: [4] Soil silt content varied from 5% to 10% among soil boring logs from multiple investigations at the Site. The value of 10% was selected to be conservative.
A69: [5] Assumed the square root of the parcel area, based upon USEPA (2002).
A71: Sources:
A72: Neptune. 2015. Technical Guidance for the Calculation of Asbestos Related Risk in Soils for the Basic Management Incorporated (BMI) Complex and Common Areas. February.
A73: Northgate. 2010. Site-Wide Soil Gas Human Health Risk Assessment, Tronox LLC, Henderson, Nevada. November.
A74: USEPA. 2002. Supplemental Guidance for Developing Soil Screening Levels for Superfund Sites.
A75: WRCC (2010). Desert Research Institute: http://www.wrcc.dri.edu/htmlfiles/westwind.final.html#NEVADA.

Sheet Tab 5-12C Soil to Air TF (hidden)
B1: =TOC!#REF!&". "&TOC!#REF! -> 
B2: =Tracking!B2 -> Nevada Environmental Response Trust Site
B3: =Tracking!C2 -> Henderson, Nevada
A7: Volatile COPC | B7: Chemical Group | D7: Chemical | E7: CASRN | F7: TF for Soil Migrating to Outdoor Air (µg/m3 per µg/kg) | G7: TF for Soil Migrating to Trench Air (µg/m3 per µg/kg)
C10: Sort Name
A11: ='Tab 5-16 Tox'!Y11:Y280 -> 0 | B11: ='Tab 5-16 Tox'!B11:E280 -> Metal | C11: 0 | D11: Palladium | E11: 7440-05-3 | F11: -- | G11: --
A12: 0 | B12: Metal | C12: 0 | D12: Zirconium | E12: 7440-67-7 | F12: -- | G12: --
A13: X | B13: Pesticide - OCP | C13: 0 | D13: Hexachlorobenzene | E13: 118-74-1 | F13: 4.399670687e-05 | G13: 0.0002833224683
A14: 0 | B14: 0 | C14: 0 | D14: 0 | E14: 0
A15: 0 | B15: 0 | C15: 0 | D15: 0 | E15: 0
A16: 0 | B16: 0 | C16: 0 | D16: 0 | E16: 0
A17: 0 | B17: 0 | C17: 0 | D17: 0 | E17: 0
A18: 0 | B18: 0 | C18: 0 | D18: 0 | E18: 0
A19: 0 | B19: 0 | C19: 0 | D19: 0 | E19: 0
A20: 0 | B20: 0 | C20: 0 | D20: 0 | E20: 0
A21: 0 | B21: 0 | C21: 0 | D21: 0 | E21: 0
A22: 0 | B22: 0 | C22: 0 | D22: 0 | E22: 0
A23: 0 | B23: 0 | C23: 0 | D23: 0 | E23: 0
A24: 0 | B24: 0 | C24: 0 | D24: 0 | E24: 0
A25: 0 | B25: 0 | C25: 0 | D25: 0 | E25: 0
A26: 0 | B26: 0 | C26: 0 | D26: 0 | E26: 0
A27: 0 | B27: 0 | C27: 0 | D27: 0 | E27: 0
A28: 0 | B28: 0 | C28: 0 | D28: 0 | E28: 0
A29: 0 | B29: 0 | C29: 0 | D29: 0 | E29: 0
A30: 0 | B30: 0 | C30: 0 | D30: 0 | E30: 0
A31: 0 | B31: 0 | C31: 0 | D31: 0 | E31: 0
A32: 0 | B32: 0 | C32: 0 | D32: 0 | E32: 0
A33: 0 | B33: 0 | C33: 0 | D33: 0 | E33: 0
A34: 0 | B34: 0 | C34: 0 | D34: 0 | E34: 0
A35: 0 | B35: 0 | C35: 0 | D35: 0 | E35: 0
A36: 0 | B36: 0 | C36: 0 | D36: 0 | E36: 0
A37: 0 | B37: 0 | C37: 0 | D37: 0 | E37: 0
A38: 0 | B38: 0 | C38: 0 | D38: 0 | E38: 0
A39: 0 | B39: 0 | C39: 0 | D39: 0 | E39: 0
A40: 0 | B40: 0 | C40: 0 | D40: 0 | E40: 0
A41: 0 | B41: 0 | C41: 0 | D41: 0 | E41: 0
A42: 0 | B42: 0 | C42: 0 | D42: 0 | E42: 0
A43: 0 | B43: 0 | C43: 0 | D43: 0 | E43: 0
A44: 0 | B44: 0 | C44: 0 | D44: 0 | E44: 0
A45: 0 | B45: 0 | C45: 0 | D45: 0 | E45: 0
A46: 0 | B46: 0 | C46: 0 | D46: 0 | E46: 0
A47: 0 | B47: 0 | C47: 0 | D47: 0 | E47: 0
A48: 0 | B48: 0 | C48: 0 | D48: 0 | E48: 0
A49: 0 | B49: 0 | C49: 0 | D49: 0 | E49: 0
A50: 0 | B50: 0 | C50: 0 | D50: 0 | E50: 0
A51: 0 | B51: 0 | C51: 0 | D51: 0 | E51: 0
A52: 0 | B52: 0 | C52: 0 | D52: 0 | E52: 0
A53: 0 | B53: 0 | C53: 0 | D53: 0 | E53: 0
A54: 0 | B54: 0 | C54: 0 | D54: 0 | E54: 0
A55: 0 | B55: 0 | C55: 0 | D55: 0 | E55: 0
A56: 0 | B56: 0 | C56: 0 | D56: 0 | E56: 0
A57: 0 | B57: 0 | C57: 0 | D57: 0 | E57: 0
A58: 0 | B58: 0 | C58: 0 | D58: 0 | E58: 0
A59: 0 | B59: 0 | C59: 0 | D59: 0 | E59: 0
A60: 0 | B60: 0 | C60: 0 | D60: 0 | E60: 0
A61: 0 | B61: 0 | C61: 0 | D61: 0 | E61: 0
A62: 0 | B62: 0 | C62: 0 | D62: 0 | E62: 0
A63: 0 | B63: 0 | C63: 0 | D63: 0 | E63: 0
A64: 0 | B64: 0 | C64: 0 | D64: 0 | E64: 0
A65: 0 | B65: 0 | C65: 0 | D65: 0 | E65: 0
A66: 0 | B66: 0 | C66: 0 | D66: 0 | E66: 0
A67: 0 | B67: 0 | C67: 0 | D67: 0 | E67: 0
A68: 0 | B68: 0 | C68: 0 | D68: 0 | E68: 0
A69: 0 | B69: 0 | C69: 0 | D69: 0 | E69: 0
A70: 0 | B70: 0 | C70: 0 | D70: 0 | E70: 0
A71: 0 | B71: 0 | C71: 0 | D71: 0 | E71: 0
A72: 0 | B72: 0 | C72: 0 | D72: 0 | E72: 0
A73: 0 | B73: 0 | C73: 0 | D73: 0 | E73: 0
A74: 0 | B74: 0 | C74: 0 | D74: 0 | E74: 0
A75: 0 | B75: 0 | C75: 0 | D75: 0 | E75: 0
A76: 0 | B76: 0 | C76: 0 | D76: 0 | E76: 0
A77: 0 | B77: 0 | C77: 0 | D77: 0 | E77: 0
A78: 0 | B78: 0 | C78: 0 | D78: 0 | E78: 0
A79: 0 | B79: 0 | C79: 0 | D79: 0 | E79: 0
A80: 0 | B80: 0 | C80: 0 | D80: 0 | E80: 0
A81: 0 | B81: 0 | C81: 0 | D81: 0 | E81: 0
A82: 0 | B82: 0 | C82: 0 | D82: 0 | E82: 0
A83: 0 | B83: 0 | C83: 0 | D83: 0 | E83: 0
A84: 0 | B84: 0 | C84: 0 | D84: 0 | E84: 0
A85: 0 | B85: 0 | C85: 0 | D85: 0 | E85: 0
A86: 0 | B86: 0 | C86: 0 | D86: 0 | E86: 0
A87: 0 | B87: 0 | C87: 0 | D87: 0 | E87: 0
A88: 0 | B88: 0 | C88: 0 | D88: 0 | E88: 0
A89: 0 | B89: 0 | C89: 0 | D89: 0 | E89: 0
A90: 0 | B90: 0 | C90: 0 | D90: 0 | E90: 0
A91: 0 | B91: 0 | C91: 0 | D91: 0 | E91: 0
A92: 0 | B92: 0 | C92: 0 | D92: 0 | E92: 0
A93: 0 | B93: 0 | C93: 0 | D93: 0 | E93: 0
A94: 0 | B94: 0 | C94: 0 | D94: 0 | E94: 0
A95: 0 | B95: 0 | C95: 0 | D95: 0 | E95: 0
A96: 0 | B96: 0 | C96: 0 | D96: 0 | E96: 0
A97: 0 | B97: 0 | C97: 0 | D97: 0 | E97: 0
A98: 0 | B98: 0 | C98: 0 | D98: 0 | E98: 0
A99: 0 | B99: 0 | C99: 0 | D99: 0 | E99: 0
A100: 0 | B100: 0 | C100: 0 | D100: 0 | E100: 0
A101: 0 | B101: 0 | C101: 0 | D101: 0 | E101: 0
A102: 0 | B102: 0 | C102: 0 | D102: 0 | E102: 0
A103: 0 | B103: 0 | C103: 0 | D103: 0 | E103: 0
A104: 0 | B104: 0 | C104: 0 | D104: 0 | E104: 0
A105: 0 | B105: 0 | C105: 0 | D105: 0 | E105: 0
A106: 0 | B106: 0 | C106: 0 | D106: 0 | E106: 0
A107: 0 | B107: 0 | C107: 0 | D107: 0 | E107: 0
A108: 0 | B108: 0 | C108: 0 | D108: 0 | E108: 0
A109: 0 | B109: 0 | C109: 0 | D109: 0 | E109: 0
A110: 0 | B110: 0 | C110: 0 | D110: 0 | E110: 0
A111: 0 | B111: 0 | C111: 0 | D111: 0 | E111: 0
A112: 0 | B112: 0 | C112: 0 | D112: 0 | E112: 0
A113: 0 | B113: 0 | C113: 0 | D113: 0 | E113: 0
A114: 0 | B114: 0 | C114: 0 | D114: 0 | E114: 0
A115: 0 | B115: 0 | C115: 0 | D115: 0 | E115: 0
A116: 0 | B116: 0 | C116: 0 | D116: 0 | E116: 0
A117: 0 | B117: 0 | C117: 0 | D117: 0 | E117: 0
A118: 0 | B118: 0 | C118: 0 | D118: 0 | E118: 0
A119: 0 | B119: 0 | C119: 0 | D119: 0 | E119: 0
A120: 0 | B120: 0 | C120: 0 | D120: 0 | E120: 0
A121: 0 | B121: 0 | C121: 0 | D121: 0 | E121: 0
A122: 0 | B122: 0 | C122: 0 | D122: 0 | E122: 0
A123: 0 | B123: 0 | C123: 0 | D123: 0 | E123: 0
A124: 0 | B124: 0 | C124: 0 | D124: 0 | E124: 0
A125: 0 | B125: 0 | C125: 0 | D125: 0 | E125: 0
A126: 0 | B126: 0 | C126: 0 | D126: 0 | E126: 0
A127: 0 | B127: 0 | C127: 0 | D127: 0 | E127: 0
A128: 0 | B128: 0 | C128: 0 | D128: 0 | E128: 0
A129: 0 | B129: 0 | C129: 0 | D129: 0 | E129: 0
A130: 0 | B130: 0 | C130: 0 | D130: 0 | E130: 0
A131: 0 | B131: 0 | C131: 0 | D131: 0 | E131: 0
A132: 0 | B132: 0 | C132: 0 | D132: 0 | E132: 0
A133: 0 | B133: 0 | C133: 0 | D133: 0 | E133: 0
A134: 0 | B134: 0 | C134: 0 | D134: 0 | E134: 0
A135: 0 | B135: 0 | C135: 0 | D135: 0 | E135: 0
A136: 0 | B136: 0 | C136: 0 | D136: 0 | E136: 0
A137: 0 | B137: 0 | C137: 0 | D137: 0 | E137: 0
A138: 0 | B138: 0 | C138: 0 | D138: 0 | E138: 0
A139: 0 | B139: 0 | C139: 0 | D139: 0 | E139: 0
A140: 0 | B140: 0 | C140: 0 | D140: 0 | E140: 0
A141: 0 | B141: 0 | C141: 0 | D141: 0 | E141: 0
A142: 0 | B142: 0 | C142: 0 | D142: 0 | E142: 0
A143: 0 | B143: 0 | C143: 0 | D143: 0 | E143: 0
A144: 0 | B144: 0 | C144: 0 | D144: 0 | E144: 0
A145: 0 | B145: 0 | C145: 0 | D145: 0 | E145: 0
A146: 0 | B146: 0 | C146: 0 | D146: 0 | E146: 0
A147: 0 | B147: 0 | C147: 0 | D147: 0 | E147: 0
A148: 0 | B148: 0 | C148: 0 | D148: 0 | E148: 0
A149: 0 | B149: 0 | C149: 0 | D149: 0 | E149: 0
A150: 0 | B150: 0 | C150: 0 | D150: 0 | E150: 0
A151: 0 | B151: 0 | C151: 0 | D151: 0 | E151: 0
A152: 0 | B152: 0 | C152: 0 | D152: 0 | E152: 0
A153: 0 | B153: 0 | C153: 0 | D153: 0 | E153: 0
A154: 0 | B154: 0 | C154: 0 | D154: 0 | E154: 0
A155: 0 | B155: 0 | C155: 0 | D155: 0 | E155: 0
A156: 0 | B156: 0 | C156: 0 | D156: 0 | E156: 0
A157: 0 | B157: 0 | C157: 0 | D157: 0 | E157: 0
A158: 0 | B158: 0 | C158: 0 | D158: 0 | E158: 0
A159: 0 | B159: 0 | C159: 0 | D159: 0 | E159: 0
A160: 0 | B160: 0 | C160: 0 | D160: 0 | E160: 0
A161: 0 | B161: 0 | C161: 0 | D161: 0 | E161: 0
A162: 0 | B162: 0 | C162: 0 | D162: 0 | E162: 0
A163: 0 | B163: 0 | C163: 0 | D163: 0 | E163: 0
A164: 0 | B164: 0 | C164: 0 | D164: 0 | E164: 0
A165: 0 | B165: 0 | C165: 0 | D165: 0 | E165: 0
A166: 0 | B166: 0 | C166: 0 | D166: 0 | E166: 0
A167: 0 | B167: 0 | C167: 0 | D167: 0 | E167: 0
A168: 0 | B168: 0 | C168: 0 | D168: 0 | E168: 0
A169: 0 | B169: 0 | C169: 0 | D169: 0 | E169: 0
A170: 0 | B170: 0 | C170: 0 | D170: 0 | E170: 0
A171: 0 | B171: 0 | C171: 0 | D171: 0 | E171: 0
A172: 0 | B172: 0 | C172: 0 | D172: 0 | E172: 0
A173: 0 | B173: 0 | C173: 0 | D173: 0 | E173: 0
A174: 0 | B174: 0 | C174: 0 | D174: 0 | E174: 0
A175: 0 | B175: 0 | C175: 0 | D175: 0 | E175: 0
A176: 0 | B176: 0 | C176: 0 | D176: 0 | E176: 0
A177: 0 | B177: 0 | C177: 0 | D177: 0 | E177: 0
A178: 0 | B178: 0 | C178: 0 | D178: 0 | E178: 0
A179: 0 | B179: 0 | C179: 0 | D179: 0 | E179: 0
A180: 0 | B180: 0 | C180: 0 | D180: 0 | E180: 0
A181: 0 | B181: 0 | C181: 0 | D181: 0 | E181: 0
A182: 0 | B182: 0 | C182: 0 | D182: 0 | E182: 0
A183: 0 | B183: 0 | C183: 0 | D183: 0 | E183: 0
A184: 0 | B184: 0 | C184: 0 | D184: 0 | E184: 0
A185: 0 | B185: 0 | C185: 0 | D185: 0 | E185: 0
A186: 0 | B186: 0 | C186: 0 | D186: 0 | E186: 0
A187: 0 | B187: 0 | C187: 0 | D187: 0 | E187: 0
A188: 0 | B188: 0 | C188: 0 | D188: 0 | E188: 0
A189: 0 | B189: 0 | C189: 0 | D189: 0 | E189: 0
A190: 0 | B190: 0 | C190: 0 | D190: 0 | E190: 0
A191: 0 | B191: 0 | C191: 0 | D191: 0 | E191: 0
A192: 0 | B192: 0 | C192: 0 | D192: 0 | E192: 0
A193: 0 | B193: 0 | C193: 0 | D193: 0 | E193: 0
A194: 0 | B194: 0 | C194: 0 | D194: 0 | E194: 0
A195: 0 | B195: 0 | C195: 0 | D195: 0 | E195: 0
A196: 0 | B196: 0 | C196: 0 | D196: 0 | E196: 0
A197: 0 | B197: 0 | C197: 0 | D197: 0 | E197: 0
A198: 0 | B198: 0 | C198: 0 | D198: 0 | E198: 0
A199: 0 | B199: 0 | C199: 0 | D199: 0 | E199: 0
A200: 0 | B200: 0 | C200: 0 | D200: 0 | E200: 0
A201: 0 | B201: 0 | C201: 0 | D201: 0 | E201: 0
A202: 0 | B202: 0 | C202: 0 | D202: 0 | E202: 0
A203: 0 | B203: 0 | C203: 0 | D203: 0 | E203: 0
A204: 0 | B204: 0 | C204: 0 | D204: 0 | E204: 0
A205: 0 | B205: 0 | C205: 0 | D205: 0 | E205: 0
... 81 more rows

Sheet Tab 5-15 Exposure Assumption (hidden)
A1: =TOC!#REF!&". "&TOC!#REF! -> 
A2: =Tracking!B2 -> Nevada Environmental Response Trust Site
A3: =Tracking!C2 -> Henderson, Nevada
A5: Exposure Factors | B5: Units | C5: Symbol | D5: Indoor Commercial/ Industrial Worker | F5: Outdoor Commercial/ Industrial Worker | H5: Construction Worker
D7: Value | E7: Source | F7: Value | G7: Source | H7: Value | I7: Source
A8: Population-Specific Exposure Assumptions
A9: Exposure Time | B9: hours/day | C9: ET | D9: 8 | E9: NDEP 2017a | F9: 8 | G9: NDEP 2017a | H9: 8 | I9: USEPA 2017
A10: Exposure Time_Trench | B10: hours/day | C10: ET | D10: -- | E10: -- | F10: -- | G10: -- | H10: 4 | I10: VDEQ 2016
A11: Exposure Frequency | B11: days/year | C11: EF | D11: 250 | E11: NDEP 2017a | F11: 225 | G11: NDEP 2017a | H11: 250 | I11: USEPA 2017
A12: Exposure Frequency_Trench | B12: days/year | C12: EF | D12: -- | E12: -- | F12: -- | G12: -- | H12: 30 | I12: [1]
A13: Exposure Duration | B13: years | C13: ED | D13: 25 | E13: NDEP 2017a | F13: 25 | G13: NDEP 2017a | H13: 1 | I13: USEPA 2017
A14: Body Weight | B14: kgBW | C14: BW | D14: 80 | E14: NDEP 2017a | F14: 80 | G14: NDEP 2017a | H14: 80 | I14: USEPA 2017
A15: Averaging Time for Cancinogens | B15: days | C15: ATc | D15: 25550 | E15: NDEP 2017a | F15: 25550 | G15: NDEP 2017a | H15: 25550 | I15: USEPA 2017
A16: Averaging Time for Noncarcinogens | B16: days | C16: ATnc | D16: =D13*365 -> 9125 | E16: NDEP 2017a | F16: =F13*365 -> 9125 | G16: NDEP 2017a | H16: =H13*365 -> 365 | I16: USEPA 2017
A17: Soil Ingestion
A18: Soil Ingestion Rate | B18: mgsoil/day | C18: IRs | D18: 50 | E18: NDEP 2017a | F18: 100 | G18: NDEP 2017a | H18: 330 | I18: USEPA 2017
A19: Conversion Factor | B19: kgsoil/mgsoil | C19: CF | D19: 1e-06 | E19: -- | F19: 1e-06 | G19: -- | H19: 1e-06 | I19: --
A20: Intake Factor for Soil Ingestion, cancer | B20: kgsoil/kgBW/day | C20: IFsoil.ing_c | D20: =D18*D11*D13*D19/D14/D15 -> 1.528864971e-07 | E20: USEPA 1989 | F20: =F18*F11*F13*F19/F14/F15 -> 2.751956947e-07 | G20: USEPA 1989 | H20: =H18*H11*H13*H19/H14/H15 -> 4.036203523e-08 | I20: USEPA 1989
A21: Intake Factor for Soil Ingestion, noncancer | B21: kgsoil/kgBW/day | C21: IFsoil.ing_nc | D21: =D18*D11*D13*D19/D14/D16 -> 4.280821918e-07 | E21: USEPA 1989 | F21: =F18*F11*F13*F19/F14/F16 -> 7.705479452e-07 | G21: USEPA 1989 | H21: =H18*H11*H13*H19/H14/H16 -> 2.825342466e-06 | I21: USEPA 1989
A22: Soil Dermal Contact
A23: Skin Surface Area for Soil Contact | B23: cm2/day | C23: SAs | D23: -- | E23: -- | F23: 3527 | G23: USEPA 2017 | H23: 3527 | I23: USEPA 2017
A24: Adherence Factor | B24: mgsoil/cm2 | C24: AF | D24: -- | E24: -- | F24: 0.12 | G24: NDEP 2017a | H24: 0.3 | I24: USEPA 2017
A25: Conversion Factor | B25: kgsoil/mgsoil | C25: CF | D25: -- | E25: -- | F25: 1e-06 | G25: -- | H25: 1e-06 | I25: --
A26: Intake Factor for Soil Dermal Contact, cancer | B26: kgsoil/kgBW/day | C26: IFsoil.derm_c | D26: -- | E26: -- | F26: =F24*F23*F11*F13*F25/F14/F15 -> 1.164738258e-06 | G26: USEPA 2004 | H26: =H24*H23*H11*H13*H25/H14/H15 -> 1.29415362e-07 | I26: USEPA 2004
A27: Intake Factor for Soil Dermal Contact, noncancer | B27: kgsoil/kgBW/day | C27: IFsoil.derm_nc | D27: -- | E27: -- | F27: =F24*F23*F11*F13*F25/F14/F16 -> 3.261267123e-06 | G27: USEPA 2004 | H27: =H24*H23*H11*H13*H25/H14/H16 -> 9.059075342e-06 | I27: USEPA 2004
A28: Inhalation of Airborne Particulates
A29: Conversion Factor | B29: hour/day | C29: CF | D29: 24 | E29: -- | F29: 24 | G29: -- | H29: 24 | I29: --
A30: Intake Factor for Particulate Inhalation, cancer | B30: unitless | C30: IFpart.inh_c | D30: =D11*D13*D9/D15/D29 -> 0.0815394651 | E30: USEPA 2009 | F30: =F11*F13*F9/F15/F29 -> 0.07338551859 | G30: USEPA 2009 | H30: =H11*H13*H9/H15/H29 -> 0.003261578604 | I30: USEPA 2009
A31: Intake Factor for Particulate Inhalation, noncancer | B31: unitless | C31: IFpart.inh_nc | D31: =D11*D13*D9/D16/D29 -> 0.2283105023 | E31: USEPA 2009 | F31: =F11*F13*F9/F16/F29 -> 0.2054794521 | G31: USEPA 2009 | H31: =H11*H13*H9/H16/H29 -> 0.2283105023 | I31: USEPA 2009
A32: Inhalation of Vapor Migrating from Soil, Soil Gas, or Groundwater to Air
A33: Conversion Factor | B33: hour/day | C33: CF | D33: 24 | E33: -- | F33: 24 | G33: -- | H33: 24 | I33: --
A34: Intake Factor for Vapor Inhalation, cancer | B34: unitless | C34: IFvapor.inh_c | D34: 0.0815394651 | E34: USEPA 2009 | F34: 0.07338551859 | G34: USEPA 2009 | H34: 0.0001956947162 | I34: USEPA 2009
A35: Intake Factor for Vapor Inhalation, noncancer | B35: unitless | C35: IFvapor.inh_nc | D35: 0.2283105023 | E35: USEPA 2009 | F35: 0.2054794521 | G35: USEPA 2009 | H35: 0.01369863014 | I35: USEPA 2009
A37: Notes:
A38: -- = Not applicable | D38: mgsoil/cm2 = milligram of soil per square centimeter
A39: cm2/day = square centimeter per day | D39: mgsoil/day = milligram of soil per day
A40: kgBW = kilogram of body weight | D40: NDEP = Nevada Divisoin of Environmental Protection
A41: kgsoil/kgBW/day = kilogram of soil per kilogram of body weight per day | D41: USEPA = United States Environmental Protection Agency
A42: kgsoil/mgsoil = kilogram of soil per milligram of soil | D42: VDEQ = Virginia Department of Environmental Quality
A43: [1]. Recommended exposure frequency in NDEP's January 12, 2017 comment letter (NDEP 2017b).
A45: Sources:
A46: NDEP. 2017a. User's Guide and Background Technical Docuentation for the Nevada Divisoin of Environmental Protection (NDEP) Basic Comparison Levels (BCLs) for Human Health and for the BMI Complex and Common Areas. Las Vegas, NV. July.
A47: NDEP. 2017b. Response to: Soil Gas Investigation and Health Risk Assessment for Parcels C, D, F, G, and H, Revision 1. January 12.
A48: VDEQ. 2016. Virginia Unified Risk Assessment Model - VURAM User's Guide. Appendix 3.
A49: USEPA. 1989. Risk Assessment Guidance for Superfund, Volume I: Human Health Evaluation Manual (Part A). Interim Final. EPA/540/1-89/002. Office of Emergency and Remedial Response. Washington, D.C. December.
A50: USEPA. 2004. Risk Assessment Guidance for Superfund Volume I: Human Health Evaluation Manual (Part E, Supplemental Guidance for Dermal Risk Assessment), Final. July.
A51: USEPA. 2009. Risk Assessment Guidance for Superfund. Vol. 1: Part F, Supplemental Guidance for Inhalation Risk Assessment. Final. January.
A52: USEPA 2017. User’s Guide for Regional Screening Levels for Chemical Contaminants at Superfund Sites. June.

Sheet Tab 5-16 Tox (hidden)
B1: =TOC!#REF!&". "&TOC!#REF! -> 
B2: =Tracking!B2 -> Nevada Environmental Response Trust Site
B3: =Tracking!C2 -> Henderson, Nevada
B9: Chemical Group | D9: Chemical | E9: CASRN | F9: Oral Cancer Slope Factor (mg/kg-day)-1 | H9: Inhalation Unit Risk (µg/m3)-1 | J9: USEPA Weight-of-Evidence Carcinogen Classification | K9: Oral Chronic RfD (mg/kg-day) | M9: Inhalation Chronic RfC (µg/m3) | O9: Oral Subchronic RfD (mg/kg-day) | Q9: Inhalation Subchronic RfC (µg/m3) | S9: Soil Dermal Absorption Factor ABSsoil | U9: ADAF | W9: Inhalation Relative Absorption Factor
A10: COPC at Site | C10: Sort Name | U10: Child Resident | V10: Adult Resident | X10: Parcel H COPC | Y10: VOC
A11: X | B11: Metal | D11: Palladium | E11: 7440-05-3 | F11: -- | G11: -- | H11: -- | I11: -- | J11: -- | K11: -- | L11: -- | M11: -- | N11: -- | O11: -- | P11: -- | Q11: -- | R11: -- | S11: -- | T11: -- | W11: 1 | X11: X
A12: X | B12: Metal | D12: Zirconium | E12: 7440-67-7 | F12: -- | G12: -- | H12: -- | I12: -- | J12: -- | K12: 8e-05 | L12: PPRTV Appendix | M12: -- | N12: -- | O12: 8e-05 | P12: PPRTV Appendix [1] | Q12: -- | R12: -- | S12: -- | T12: -- | W12: 1 | X12: X
A13: X | B13: Pesticide - OCP | D13: Hexachlorobenzene | E13: 118-74-1 | F13: 1.6 | G13: IRIS | H13: 0.00046 | I13: IRIS | J13: B2 | K13: 0.0008 | L13: IRIS | M13: -- | N13: -- | O13: 1e-05 | P13: PPRTV | Q13: -- | R13: -- | S13: -- | T13: -- | W13: 1 | X13: X | Y13: X
W18: 1
W19: 1
W20: 1
W21: 1
W22: 1
W23: 1
W24: 1
W25: 1
W26: 1
W27: 1
W28: 1
W29: 1
W30: 1
W31: 1
W32: 1
W33: 1
W34: 1
W35: 1
W36: 1
W37: 1
W38: 1
W39: 1
W40: 1
W41: 1
W42: 1
W43: 1
W44: 1
W45: 1
W46: 1
W47: 1
W48: 1
A149: 0
A150: 0
A151: 0
A152: 0
A153: 0
A154: 0
A155: 0
A156: 0
A157: 0
A158: 0
A159: 0 | S159: --
A160: 0 | S160: --
A161: 0 | S161: --
A162: 0 | S162: --
A163: 0 | S163: --
A164: 0 | S164: --
A165: 0 | S165: --
A166: 0 | S166: --
A167: 0 | S167: --
A168: 0 | S168: --
A169: 0 | S169: --
A170: 0 | S170: --
A171: 0 | S171: --
A172: 0 | S172: --
A173: 0 | S173: --
A174: 0 | S174: --
A175: 0 | S175: --
A176: 0 | S176: --
A177: 0 | S177: --
A178: 0 | S178: --
A179: 0 | S179: --
A180: 0 | S180: --
A181: 0 | S181: --
A182: 0 | S182: --
A183: 0 | S183: --
A184: 0 | S184: --
A185: 0 | S185: --
A186: 0 | S186: --
A187: 0 | S187: --
A188: 0 | S188: --
A189: 0 | S189: --
A190: 0 | S190: --
A191: 0 | S191: --
A192: 0 | S192: --
A193: 0 | S193: --
A194: 0 | S194: --
A195: 0 | S195: --
A196: 0 | S196: --
A197: 0 | S197: --
A198: 0 | S198: --
A199: 0 | S199: --
A200: 0 | S200: --
A201: 0 | S201: --
A202: 0 | S202: --
A203: 0 | S203: --
A204: 0 | S204: --
A205: 0 | S205: --
A206: 0 | S206: --
A207: 0 | S207: --
A208: 0 | S208: --
A209: 0 | S209: --
A210: 0 | S210: --
A211: 0 | S211: --
A212: 0 | S212: --
A213: 0 | S213: --
A214: 0 | S214: --
A215: 0 | S215: --
A216: 0 | S216: --
A217: 0 | S217: --
A218: 0 | S218: --
A219: 0 | S219: --
A220: 0 | S220: --
A221: 0 | S221: --
A222: 0 | S222: --
A223: 0 | S223: --
A224: 0 | S224: --
A225: 0 | S225: --
A226: 0 | S226: --
A227: 0 | S227: --
A228: 0 | S228: --
A229: 0 | S229: --
A230: 0 | S230: --
A231: 0 | S231: --
A232: 0 | S232: --
A233: 0 | S233: --
A234: 0 | S234: --
A235: 0 | S235: --
A236: 0 | S236: --
A237: 0 | S237: --
A238: 0 | S238: --
A239: 0 | S239: --
A240: 0 | S240: --
A241: 0 | S241: --
A242: 0 | S242: --
A243: 0 | S243: --
A244: 0 | S244: --
A245: 0 | S245: --
A246: 0 | S246: --
A247: 0 | S247: --
A248: 0 | S248: --
A249: 0 | S249: --
A250: 0 | S250: --
A251: 0 | S251: --
A252: 0 | S252: --
A253: 0 | S253: --
A254: 0 | S254: --
A255: 0 | S255: --
A256: 0 | S256: --
A257: 0 | S257: --
A258: 0 | S258: --
A259: 0 | S259: --
A260: 0 | S260: --
A261: 0 | S261: --
A262: 0 | S262: --
A263: 0 | S263: --
A264: 0 | S264: --
A265: 0 | S265: --
A266: 0 | S266: --
A267: 0 | S267: --
A268: 0 | S268: --
A269: 0 | S269: --
A270: 0 | S270: --
A271: 0 | S271: --
A272: 0 | S272: --
A273: 0 | S273: --
A274: 0 | S274: --
A275: 0 | S275: --
A276: 0 | S276: --
A277: 0
A278: 0 | S278: --
A279: 0 | S279: --
A280: 0 | B280: EOR | D280: End of Record | S280: --
A281: x
A282: x | B282: Notes:
A283: x | B283: -- = Not available
A284: x | B284: mg/kg-day = milligram per kilogram per day | J284: OCP = Organochlorine pesticide
A285: x | B285: µg/m3 = microgram per cubic meter | J285: PPRTV = Provisional Peer Reviewed Toxicity Values for Superfund (USEPA 2017b)
A286: x | B286: ABSsoil = Soil dermal absorption factor | J286: RfD = Reference dose
A287: x | B287: B2 = Probable carcinogen, sufficient evidence in animals (USEPA 2014) | J287: RfC = Reference concentration
A288: x | B288: COPC = Chemical of potential concern | J288: USEPA = United States Environmental Protection Agency
A289: x | B289: IRIS = Integrated Risk Information System (USEPA 2017a) | J289: [1] Use chronic value as surrogate
A290: x
A291: x | B291: Sources:
A292: x | B292: USEPA. 2014. Prioritized Chronic Dose-Response Values. May.
A293: x | B293: USEPA. 2017a. Integreated Risk Information System (IRIS). Available online at https://www.epa.gov/iris. Accessed on August 29, 2017.
A294: x | B294: USEPA. 2017b. Provisional Peer Reviewed Toxicity Values for Superfund (PPRTV). Available online at https://hhpprtv.ornl.gov/. Accessed on August 29, 2017.

Sheet Tab Q-1a Indoor Worker Parcel H
B1: =TOC!A3&". "&TOC!B3 -> TABLE Q-1-1A. Estimated Cancer Risks and Non-Cancer Hazard Indices for Indoor Commercial/Industrial Workers Exposed to Soil (0-2 feet bgs) in Parcel H
B2: =Tracking!B2 -> Nevada Environmental Response Trust Site
B3: =Tracking!C2 -> Henderson, Nevada
A7: Parcel C COPC | B7: Chemical Group | D7: Chemical | E7: CASRN | I7: Soil Ingestion | N7: Vapor Inhalation | Q7: Airborne Particulate Inhalation | S7: Cancer Risk_All Pathways | T7: Non-Cancer HQ_All Pathways
I8: Cancer IF | J8: Noncancer IF | N8: Cancer IF | O8: Noncancer IF | Q8: Cancer IF | R8: Noncancer IF
I9: ='Tab 5-15 Exposure Assumption'!D20 -> 1.528864971e-07 | J9: ='Tab 5-15 Exposure Assumption'!D21 -> 4.280821918e-07 | N9: ='Tab 5-15 Exposure Assumption'!D34 -> 0.0815394651 | O9: ='Tab 5-15 Exposure Assumption'!D35 -> 0.2283105023 | Q9: ='Tab 5-15 Exposure Assumption'!D30 -> 0.0815394651 | R9: ='Tab 5-15 Exposure Assumption'!D31 -> 0.2283105023
C10: Sort Name | F10: SForal (mg/kg/d)-1 | G10: RfDoral (mg/kg/d) | H10: Soil EPC (mg/kg) | I10: Cancer Risk | J10: Non-Cancer HQ | K10: IUR (ug/m3)-1 | L10: RfC (ug/m3) | M10: Vapor EPC (ug/m3) | N10: Cancer Risk | O10: Non-Cancer HQ | P10: Airborne Particulate EPC (ug/m3) | Q10: Cancer Risk | R10: Non-Cancer HQ
A11: ='Tab 5-16 Tox'!X11:X280 -> X | B11: ='Tab 5-16 Tox'!B11:E280 -> Metal | C11: 0 | D11: Palladium | E11: 7440-05-3 | F11: =IF(ISNUMBER('Tab 5-16 Tox'!$F11:$F280),'Tab 5-16 Tox'!$F11:$F280,"--") -> -- | G11: =IF(ISNUMBER('Tab 5-16 Tox'!$K11:$K280),'Tab 5-16 Tox'!$K11:$K280,"--") -> -- | H11: =IF(ISNUMBER(VLOOKUP(E11,'Tab 5-7a Soil & Air EPCs'!$D$7:$E$9,2,FALSE)),VLOOKUP(E11,'Tab 5-7a Soil & Air EPCs'!$D$7:$E$9,2,FALSE),"--") -> 0.47 | I11: =IF(F11:F280<>"--",IF(H11:H280<>"--",H11:H280*I9*F11:F280,"--"),"--") -> -- | J11: =IF(G11:G280<>"--",IF(H11:H280<>"--",H11:H280*J9/G11:G280,"--"),"--") -> -- | K11: =IF(ISNUMBER('Tab 5-16 Tox'!$H11:$H280),'Tab 5-16 Tox'!$H11:$H280,"--") -> -- | L11: =IF(ISNUMBER('Tab 5-16 Tox'!$M11:$M280),'Tab 5-16 Tox'!$M11:$M280,"--") -> -- | M11: =IF(ISNUMBER(VLOOKUP(E11,'Tab 5-7a Soil & Air EPCs'!$D$7:$H$9,5,FALSE)),VLOOKUP(E11,'Tab 5-7a Soil & Air EPCs'!$D$7:$H$9,5,FALSE),"--") -> -- | N11: =IF(K11:K280<>"--",IF(M11:M280<>"--",M11:M280*N9*K11:K280,"--"),"--") -> -- | O11: =IF(L11:L280<>"--",IF(M11:M280<>"--",M11:M280*O9/L11:L280,"--"),"--") -> -- | P11: =IF(ISNUMBER(VLOOKUP(E11,'Tab 5-7a Soil & Air EPCs'!$D$7:$F$9,3,FALSE)),VLOOKUP(E11,'Tab 5-7a Soil & Air EPCs'!$D$7:$F$9,3,FALSE),"--") -> 4.92253066e-07 | Q11: =IF(K11:K280<>"--",IF(P11:P280<>"--",P11:P280*Q9*K11:K280,"--"),"--") -> -- | R11: =IF(L11:L280<>"--",IF(P11:P280<>"--",P11:P280*R9/L11:L280,"--"),"--") -> -- | S11: =IF(SUM(I11,N11,Q11)>0,SUM(I11,N11,Q11),"--") -> -- | T11: =IF(SUM(J11,O11,R11)>0,SUM(J11,O11,R11),"--") -> --
A12: X | B12: Metal | C12: 0 | D12: Zirconium | E12: 7440-67-7 | F12: -- | G12: 8e-05 | H12: =IF(ISNUMBER(VLOOKUP(E12,'Tab 5-7a Soil & Air EPCs'!$D$7:$E$9,2,FALSE)),VLOOKUP(E12,'Tab 5-7a Soil & Air EPCs'!$D$7:$E$9,2,FALSE),"--") -> 24.9 | I12: -- | J12: 0.1332405822 | K12: -- | L12: -- | M12: =IF(ISNUMBER(VLOOKUP(E12,'Tab 5-7a Soil & Air EPCs'!$D$7:$H$9,5,FALSE)),VLOOKUP(E12,'Tab 5-7a Soil & Air EPCs'!$D$7:$H$9,5,FALSE),"--") -> -- | N12: -- | O12: -- | P12: =IF(ISNUMBER(VLOOKUP(E12,'Tab 5-7a Soil & Air EPCs'!$D$7:$F$9,3,FALSE)),VLOOKUP(E12,'Tab 5-7a Soil & Air EPCs'!$D$7:$F$9,3,FALSE),"--") -> 2.607893903e-05 | Q12: -- | R12: -- | S12: =IF(SUM(I12,N12,Q12)>0,SUM(I12,N12,Q12),"--") -> -- | T12: =IF(SUM(J12,O12,R12)>0,SUM(J12,O12,R12),"--") -> 0.1332405822
A13: X | B13: Pesticide - OCP | C13: 0 | D13: Hexachlorobenzene | E13: 118-74-1 | F13: 1.6 | G13: 0.0008 | H13: =IF(ISNUMBER(VLOOKUP(E13,'Tab 5-7a Soil & Air EPCs'!$D$7:$E$9,2,FALSE)),VLOOKUP(E13,'Tab 5-7a Soil & Air EPCs'!$D$7:$E$9,2,FALSE),"--") -> 0.21 | I13: 5.136986301e-08 | J13: 0.0001123715753 | K13: 0.00046 | L13: -- | M13: =IF(ISNUMBER(VLOOKUP(E13,'Tab 5-7a Soil & Air EPCs'!$D$7:$H$9,5,FALSE)),VLOOKUP(E13,'Tab 5-7a Soil & Air EPCs'!$D$7:$H$9,5,FALSE),"--") -> 0.009239308443 | N13: 3.465494034e-07 | O13: -- | P13: =IF(ISNUMBER(VLOOKUP(E13,'Tab 5-7a Soil & Air EPCs'!$D$7:$F$9,3,FALSE)),VLOOKUP(E13,'Tab 5-7a Soil & Air EPCs'!$D$7:$F$9,3,FALSE),"--") -> 2.199428593e-07 | Q13: 8.249650625e-12 | R13: -- | S13: 3.979275161e-07 | T13: 0.0001123715753
A14: 0 | B14: 0 | C14: 0 | D14: 0 | E14: 0 | F14: -- | G14: -- | H14: =IF(ISNUMBER(VLOOKUP(E14,'Tab 5-7a Soil & Air EPCs'!$D$7:$E$9,2,FALSE)),VLOOKUP(E14,'Tab 5-7a Soil & Air EPCs'!$D$7:$E$9,2,FALSE),"--") -> -- | I14: -- | J14: -- | K14: -- | L14: -- | M14: =IF(ISNUMBER(VLOOKUP(E14,'Tab 5-7a Soil & Air EPCs'!$D$7:$H$9,5,FALSE)),VLOOKUP(E14,'Tab 5-7a Soil & Air EPCs'!$D$7:$H$9,5,FALSE),"--") -> -- | N14: -- | O14: -- | P14: =IF(ISNUMBER(VLOOKUP(E14,'Tab 5-7a Soil & Air EPCs'!$D$7:$F$9,3,FALSE)),VLOOKUP(E14,'Tab 5-7a Soil & Air EPCs'!$D$7:$F$9,3,FALSE),"--") -> -- | Q14: -- | R14: -- | S14: -- | T14: --
A15: 0 | B15: 0 | C15: 0 | D15: 0 | E15: 0 | F15: -- | G15: -- | H15: =IF(ISNUMBER(VLOOKUP(E15,'Tab 5-7a Soil & Air EPCs'!$D$7:$E$9,2,FALSE)),VLOOKUP(E15,'Tab 5-7a Soil & Air EPCs'!$D$7:$E$9,2,FALSE),"--") -> -- | I15: -- | J15: -- | K15: -- | L15: -- | M15: =IF(ISNUMBER(VLOOKUP(E15,'Tab 5-7a Soil & Air EPCs'!$D$7:$H$9,5,FALSE)),VLOOKUP(E15,'Tab 5-7a Soil & Air EPCs'!$D$7:$H$9,5,FALSE),"--") -> -- | N15: -- | O15: -- | P15: =IF(ISNUMBER(VLOOKUP(E15,'Tab 5-7a Soil & Air EPCs'!$D$7:$F$9,3,FALSE)),VLOOKUP(E15,'Tab 5-7a Soil & Air EPCs'!$D$7:$F$9,3,FALSE),"--") -> -- | Q15: -- | R15: -- | S15: -- | T15: --
A16: 0 | B16: 0 | C16: 0 | D16: 0 | E16: 0 | F16: -- | G16: -- | H16: =IF(ISNUMBER(VLOOKUP(E16,'Tab 5-7a Soil & Air EPCs'!$D$7:$E$9,2,FALSE)),VLOOKUP(E16,'Tab 5-7a Soil & Air EPCs'!$D$7:$E$9,2,FALSE),"--") -> -- | I16: -- | J16: -- | K16: -- | L16: -- | M16: =IF(ISNUMBER(VLOOKUP(E16,'Tab 5-7a Soil & Air EPCs'!$D$7:$H$9,5,FALSE)),VLOOKUP(E16,'Tab 5-7a Soil & Air EPCs'!$D$7:$H$9,5,FALSE),"--") -> -- | N16: -- | O16: -- | P16: =IF(ISNUMBER(VLOOKUP(E16,'Tab 5-7a Soil & Air EPCs'!$D$7:$F$9,3,FALSE)),VLOOKUP(E16,'Tab 5-7a Soil & Air EPCs'!$D$7:$F$9,3,FALSE),"--") -> -- | Q16: -- | R16: -- | S16: -- | T16: --
A17: 0 | B17: 0 | C17: 0 | D17: 0 | E17: 0 | F17: -- | G17: -- | H17: =IF(ISNUMBER(VLOOKUP(E17,'Tab 5-7a Soil & Air EPCs'!$D$7:$E$9,2,FALSE)),VLOOKUP(E17,'Tab 5-7a Soil & Air EPCs'!$D$7:$E$9,2,FALSE),"--") -> -- | I17: -- | J17: -- | K17: -- | L17: -- | M17: =IF(ISNUMBER(VLOOKUP(E17,'Tab 5-7a Soil & Air EPCs'!$D$7:$H$9,5,FALSE)),VLOOKUP(E17,'Tab 5-7a Soil & Air EPCs'!$D$7:$H$9,5,FALSE),"--") -> -- | N17: -- | O17: -- | P17: =IF(ISNUMBER(VLOOKUP(E17,'Tab 5-7a Soil & Air EPCs'!$D$7:$F$9,3,FALSE)),VLOOKUP(E17,'Tab 5-7a Soil & Air EPCs'!$D$7:$F$9,3,FALSE),"--") -> -- | Q17: -- | R17: -- | S17: -- | T17: --
A18: 0 | B18: 0 | C18: 0 | D18: 0 | E18: 0 | F18: -- | G18: -- | H18: =IF(ISNUMBER(VLOOKUP(E18,'Tab 5-7a Soil & Air EPCs'!$D$7:$E$9,2,FALSE)),VLOOKUP(E18,'Tab 5-7a Soil & Air EPCs'!$D$7:$E$9,2,FALSE),"--") -> -- | I18: -- | J18: -- | K18: -- | L18: -- | M18: =IF(ISNUMBER(VLOOKUP(E18,'Tab 5-7a Soil & Air EPCs'!$D$7:$H$9,5,FALSE)),VLOOKUP(E18,'Tab 5-7a Soil & Air EPCs'!$D$7:$H$9,5,FALSE),"--") -> -- | N18: -- | O18: -- | P18: =IF(ISNUMBER(VLOOKUP(E18,'Tab 5-7a Soil & Air EPCs'!$D$7:$F$9,3,FALSE)),VLOOKUP(E18,'Tab 5-7a Soil & Air EPCs'!$D$7:$F$9,3,FALSE),"--") -> -- | Q18: -- | R18: -- | S18: -- | T18: --
A19: 0 | B19: 0 | C19: 0 | D19: 0 | E19: 0 | F19: -- | G19: -- | H19: =IF(ISNUMBER(VLOOKUP(E19,'Tab 5-7a Soil & Air EPCs'!$D$7:$E$9,2,FALSE)),VLOOKUP(E19,'Tab 5-7a Soil & Air EPCs'!$D$7:$E$9,2,FALSE),"--") -> -- | I19: -- | J19: -- | K19: -- | L19: -- | M19: =IF(ISNUMBER(VLOOKUP(E19,'Tab 5-7a Soil & Air EPCs'!$D$7:$H$9,5,FALSE)),VLOOKUP(E19,'Tab 5-7a Soil & Air EPCs'!$D$7:$H$9,5,FALSE),"--") -> -- | N19: -- | O19: -- | P19: =IF(ISNUMBER(VLOOKUP(E19,'Tab 5-7a Soil & Air EPCs'!$D$7:$F$9,3,FALSE)),VLOOKUP(E19,'Tab 5-7a Soil & Air EPCs'!$D$7:$F$9,3,FALSE),"--") -> -- | Q19: -- | R19: -- | S19: -- | T19: --
A20: 0 | B20: 0 | C20: 0 | D20: 0 | E20: 0 | F20: -- | G20: -- | H20: =IF(ISNUMBER(VLOOKUP(E20,'Tab 5-7a Soil & Air EPCs'!$D$7:$E$9,2,FALSE)),VLOOKUP(E20,'Tab 5-7a Soil & Air EPCs'!$D$7:$E$9,2,FALSE),"--") -> -- | I20: -- | J20: -- | K20: -- | L20: -- | M20: =IF(ISNUMBER(VLOOKUP(E20,'Tab 5-7a Soil & Air EPCs'!$D$7:$H$9,5,FALSE)),VLOOKUP(E20,'Tab 5-7a Soil & Air EPCs'!$D$7:$H$9,5,FALSE),"--") -> -- | N20: -- | O20: -- | P20: =IF(ISNUMBER(VLOOKUP(E20,'Tab 5-7a Soil & Air EPCs'!$D$7:$F$9,3,FALSE)),VLOOKUP(E20,'Tab 5-7a Soil & Air EPCs'!$D$7:$F$9,3,FALSE),"--") -> -- | Q20: -- | R20: -- | S20: -- | T20: --
A21: 0 | B21: 0 | C21: 0 | D21: 0 | E21: 0 | F21: -- | G21: -- | H21: =IF(ISNUMBER(VLOOKUP(E21,'Tab 5-7a Soil & Air EPCs'!$D$7:$E$9,2,FALSE)),VLOOKUP(E21,'Tab 5-7a Soil & Air EPCs'!$D$7:$E$9,2,FALSE),"--") -> -- | I21: -- | J21: -- | K21: -- | L21: -- | M21: =IF(ISNUMBER(VLOOKUP(E21,'Tab 5-7a Soil & Air EPCs'!$D$7:$H$9,5,FALSE)),VLOOKUP(E21,'Tab 5-7a Soil & Air EPCs'!$D$7:$H$9,5,FALSE),"--") -> -- | N21: -- | O21: -- | P21: =IF(ISNUMBER(VLOOKUP(E21,'Tab 5-7a Soil & Air EPCs'!$D$7:$F$9,3,FALSE)),VLOOKUP(E21,'Tab 5-7a Soil & Air EPCs'!$D$7:$F$9,3,FALSE),"--") -> -- | Q21: -- | R21: -- | S21: -- | T21: --
A22: 0 | B22: 0 | C22: 0 | D22: 0 | E22: 0 | F22: -- | G22: -- | H22: =IF(ISNUMBER(VLOOKUP(E22,'Tab 5-7a Soil & Air EPCs'!$D$7:$E$9,2,FALSE)),VLOOKUP(E22,'Tab 5-7a Soil & Air EPCs'!$D$7:$E$9,2,FALSE),"--") -> -- | I22: -- | J22: -- | K22: -- | L22: -- | M22: =IF(ISNUMBER(VLOOKUP(E22,'Tab 5-7a Soil & Air EPCs'!$D$7:$H$9,5,FALSE)),VLOOKUP(E22,'Tab 5-7a Soil & Air EPCs'!$D$7:$H$9,5,FALSE),"--") -> -- | N22: -- | O22: -- | P22: =IF(ISNUMBER(VLOOKUP(E22,'Tab 5-7a Soil & Air EPCs'!$D$7:$F$9,3,FALSE)),VLOOKUP(E22,'Tab 5-7a Soil & Air EPCs'!$D$7:$F$9,3,FALSE),"--") -> -- | Q22: -- | R22: -- | S22: -- | T22: --
A23: 0 | B23: 0 | C23: 0 | D23: 0 | E23: 0 | F23: -- | G23: -- | H23: =IF(ISNUMBER(VLOOKUP(E23,'Tab 5-7a Soil & Air EPCs'!$D$7:$E$9,2,FALSE)),VLOOKUP(E23,'Tab 5-7a Soil & Air EPCs'!$D$7:$E$9,2,FALSE),"--") -> -- | I23: -- | J23: -- | K23: -- | L23: -- | M23: =IF(ISNUMBER(VLOOKUP(E23,'Tab 5-7a Soil & Air EPCs'!$D$7:$H$9,5,FALSE)),VLOOKUP(E23,'Tab 5-7a Soil & Air EPCs'!$D$7:$H$9,5,FALSE),"--") -> -- | N23: -- | O23: -- | P23: =IF(ISNUMBER(VLOOKUP(E23,'Tab 5-7a Soil & Air EPCs'!$D$7:$F$9,3,FALSE)),VLOOKUP(E23,'Tab 5-7a Soil & Air EPCs'!$D$7:$F$9,3,FALSE),"--") -> -- | Q23: -- | R23: -- | S23: -- | T23: --
A24: 0 | B24: 0 | C24: 0 | D24: 0 | E24: 0 | F24: -- | G24: -- | H24: =IF(ISNUMBER(VLOOKUP(E24,'Tab 5-7a Soil & Air EPCs'!$D$7:$E$9,2,FALSE)),VLOOKUP(E24,'Tab 5-7a Soil & Air EPCs'!$D$7:$E$9,2,FALSE),"--") -> -- | I24: -- | J24: -- | K24: -- | L24: -- | M24: =IF(ISNUMBER(VLOOKUP(E24,'Tab 5-7a Soil & Air EPCs'!$D$7:$H$9,5,FALSE)),VLOOKUP(E24,'Tab 5-7a Soil & Air EPCs'!$D$7:$H$9,5,FALSE),"--") -> -- | N24: -- | O24: -- | P24: =IF(ISNUMBER(VLOOKUP(E24,'Tab 5-7a Soil & Air EPCs'!$D$7:$F$9,3,FALSE)),VLOOKUP(E24,'Tab 5-7a Soil & Air EPCs'!$D$7:$F$9,3,FALSE),"--") -> -- | Q24: -- | R24: -- | S24: -- | T24: --
A25: 0 | B25: 0 | C25: 0 | D25: 0 | E25: 0 | F25: -- | G25: -- | H25: =IF(ISNUMBER(VLOOKUP(E25,'Tab 5-7a Soil & Air EPCs'!$D$7:$E$9,2,FALSE)),VLOOKUP(E25,'Tab 5-7a Soil & Air EPCs'!$D$7:$E$9,2,FALSE),"--") -> -- | I25: -- | J25: -- | K25: -- | L25: -- | M25: =IF(ISNUMBER(VLOOKUP(E25,'Tab 5-7a Soil & Air EPCs'!$D$7:$H$9,5,FALSE)),VLOOKUP(E25,'Tab 5-7a Soil & Air EPCs'!$D$7:$H$9,5,FALSE),"--") -> -- | N25: -- | O25: -- | P25: =IF(ISNUMBER(VLOOKUP(E25,'Tab 5-7a Soil & Air EPCs'!$D$7:$F$9,3,FALSE)),VLOOKUP(E25,'Tab 5-7a Soil & Air EPCs'!$D$7:$F$9,3,FALSE),"--") -> -- | Q25: -- | R25: -- | S25: -- | T25: --
A26: 0 | B26: 0 | C26: 0 | D26: 0 | E26: 0 | F26: -- | G26: -- | H26: =IF(ISNUMBER(VLOOKUP(E26,'Tab 5-7a Soil & Air EPCs'!$D$7:$E$9,2,FALSE)),VLOOKUP(E26,'Tab 5-7a Soil & Air EPCs'!$D$7:$E$9,2,FALSE),"--") -> -- | I26: -- | J26: -- | K26: -- | L26: -- | M26: =IF(ISNUMBER(VLOOKUP(E26,'Tab 5-7a Soil & Air EPCs'!$D$7:$H$9,5,FALSE)),VLOOKUP(E26,'Tab 5-7a Soil & Air EPCs'!$D$7:$H$9,5,FALSE),"--") -> -- | N26: -- | O26: -- | P26: =IF(ISNUMBER(VLOOKUP(E26,'Tab 5-7a Soil & Air EPCs'!$D$7:$F$9,3,FALSE)),VLOOKUP(E26,'Tab 5-7a Soil & Air EPCs'!$D$7:$F$9,3,FALSE),"--") -> -- | Q26: -- | R26: -- | S26: -- | T26: --
A27: 0 | B27: 0 | C27: 0 | D27: 0 | E27: 0 | F27: -- | G27: -- | H27: =IF(ISNUMBER(VLOOKUP(E27,'Tab 5-7a Soil & Air EPCs'!$D$7:$E$9,2,FALSE)),VLOOKUP(E27,'Tab 5-7a Soil & Air EPCs'!$D$7:$E$9,2,FALSE),"--") -> -- | I27: -- | J27: -- | K27: -- | L27: -- | M27: =IF(ISNUMBER(VLOOKUP(E27,'Tab 5-7a Soil & Air EPCs'!$D$7:$H$9,5,FALSE)),VLOOKUP(E27,'Tab 5-7a Soil & Air EPCs'!$D$7:$H$9,5,FALSE),"--") -> -- | N27: -- | O27: -- | P27: =IF(ISNUMBER(VLOOKUP(E27,'Tab 5-7a Soil & Air EPCs'!$D$7:$F$9,3,FALSE)),VLOOKUP(E27,'Tab 5-7a Soil & Air EPCs'!$D$7:$F$9,3,FALSE),"--") -> -- | Q27: -- | R27: -- | S27: -- | T27: --
A28: 0 | B28: 0 | C28: 0 | D28: 0 | E28: 0 | F28: -- | G28: -- | H28: =IF(ISNUMBER(VLOOKUP(E28,'Tab 5-7a Soil & Air EPCs'!$D$7:$E$9,2,FALSE)),VLOOKUP(E28,'Tab 5-7a Soil & Air EPCs'!$D$7:$E$9,2,FALSE),"--") -> -- | I28: -- | J28: -- | K28: -- | L28: -- | M28: =IF(ISNUMBER(VLOOKUP(E28,'Tab 5-7a Soil & Air EPCs'!$D$7:$H$9,5,FALSE)),VLOOKUP(E28,'Tab 5-7a Soil & Air EPCs'!$D$7:$H$9,5,FALSE),"--") -> -- | N28: -- | O28: -- | P28: =IF(ISNUMBER(VLOOKUP(E28,'Tab 5-7a Soil & Air EPCs'!$D$7:$F$9,3,FALSE)),VLOOKUP(E28,'Tab 5-7a Soil & Air EPCs'!$D$7:$F$9,3,FALSE),"--") -> -- | Q28: -- | R28: -- | S28: -- | T28: --
A29: 0 | B29: 0 | C29: 0 | D29: 0 | E29: 0 | F29: -- | G29: -- | H29: =IF(ISNUMBER(VLOOKUP(E29,'Tab 5-7a Soil & Air EPCs'!$D$7:$E$9,2,FALSE)),VLOOKUP(E29,'Tab 5-7a Soil & Air EPCs'!$D$7:$E$9,2,FALSE),"--") -> -- | I29: -- | J29: -- | K29: -- | L29: -- | M29: =IF(ISNUMBER(VLOOKUP(E29,'Tab 5-7a Soil & Air EPCs'!$D$7:$H$9,5,FALSE)),VLOOKUP(E29,'Tab 5-7a Soil & Air EPCs'!$D$7:$H$9,5,FALSE),"--") -> -- | N29: -- | O29: -- | P29: =IF(ISNUMBER(VLOOKUP(E29,'Tab 5-7a Soil & Air EPCs'!$D$7:$F$9,3,FALSE)),VLOOKUP(E29,'Tab 5-7a Soil & Air EPCs'!$D$7:$F$9,3,FALSE),"--") -> -- | Q29: -- | R29: -- | S29: -- | T29: --
A30: 0 | B30: 0 | C30: 0 | D30: 0 | E30: 0 | F30: -- | G30: -- | H30: =IF(ISNUMBER(VLOOKUP(E30,'Tab 5-7a Soil & Air EPCs'!$D$7:$E$9,2,FALSE)),VLOOKUP(E30,'Tab 5-7a Soil & Air EPCs'!$D$7:$E$9,2,FALSE),"--") -> -- | I30: -- | J30: -- | K30: -- | L30: -- | M30: =IF(ISNUMBER(VLOOKUP(E30,'Tab 5-7a Soil & Air EPCs'!$D$7:$H$9,5,FALSE)),VLOOKUP(E30,'Tab 5-7a Soil & Air EPCs'!$D$7:$H$9,5,FALSE),"--") -> -- | N30: -- | O30: -- | P30: =IF(ISNUMBER(VLOOKUP(E30,'Tab 5-7a Soil & Air EPCs'!$D$7:$F$9,3,FALSE)),VLOOKUP(E30,'Tab 5-7a Soil & Air EPCs'!$D$7:$F$9,3,FALSE),"--") -> -- | Q30: -- | R30: -- | S30: -- | T30: --
A31: 0 | B31: 0 | C31: 0 | D31: 0 | E31: 0 | F31: -- | G31: -- | H31: =IF(ISNUMBER(VLOOKUP(E31,'Tab 5-7a Soil & Air EPCs'!$D$7:$E$9,2,FALSE)),VLOOKUP(E31,'Tab 5-7a Soil & Air EPCs'!$D$7:$E$9,2,FALSE),"--") -> -- | I31: -- | J31: -- | K31: -- | L31: -- | M31: =IF(ISNUMBER(VLOOKUP(E31,'Tab 5-7a Soil & Air EPCs'!$D$7:$H$9,5,FALSE)),VLOOKUP(E31,'Tab 5-7a Soil & Air EPCs'!$D$7:$H$9,5,FALSE),"--") -> -- | N31: -- | O31: -- | P31: =IF(ISNUMBER(VLOOKUP(E31,'Tab 5-7a Soil & Air EPCs'!$D$7:$F$9,3,FALSE)),VLOOKUP(E31,'Tab 5-7a Soil & Air EPCs'!$D$7:$F$9,3,FALSE),"--") -> -- | Q31: -- | R31: -- | S31: -- | T31: --
A32: 0 | B32: 0 | C32: 0 | D32: 0 | E32: 0 | F32: -- | G32: -- | H32: =IF(ISNUMBER(VLOOKUP(E32,'Tab 5-7a Soil & Air EPCs'!$D$7:$E$9,2,FALSE)),VLOOKUP(E32,'Tab 5-7a Soil & Air EPCs'!$D$7:$E$9,2,FALSE),"--") -> -- | I32: -- | J32: -- | K32: -- | L32: -- | M32: =IF(ISNUMBER(VLOOKUP(E32,'Tab 5-7a Soil & Air EPCs'!$D$7:$H$9,5,FALSE)),VLOOKUP(E32,'Tab 5-7a Soil & Air EPCs'!$D$7:$H$9,5,FALSE),"--") -> -- | N32: -- | O32: -- | P32: =IF(ISNUMBER(VLOOKUP(E32,'Tab 5-7a Soil & Air EPCs'!$D$7:$F$9,3,FALSE)),VLOOKUP(E32,'Tab 5-7a Soil & Air EPCs'!$D$7:$F$9,3,FALSE),"--") -> -- | Q32: -- | R32: -- | S32: -- | T32: --
A33: 0 | B33: 0 | C33: 0 | D33: 0 | E33: 0 | F33: -- | G33: -- | H33: =IF(ISNUMBER(VLOOKUP(E33,'Tab 5-7a Soil & Air EPCs'!$D$7:$E$9,2,FALSE)),VLOOKUP(E33,'Tab 5-7a Soil & Air EPCs'!$D$7:$E$9,2,FALSE),"--") -> -- | I33: -- | J33: -- | K33: -- | L33: -- | M33: =IF(ISNUMBER(VLOOKUP(E33,'Tab 5-7a Soil & Air EPCs'!$D$7:$H$9,5,FALSE)),VLOOKUP(E33,'Tab 5-7a Soil & Air EPCs'!$D$7:$H$9,5,FALSE),"--") -> -- | N33: -- | O33: -- | P33: =IF(ISNUMBER(VLOOKUP(E33,'Tab 5-7a Soil & Air EPCs'!$D$7:$F$9,3,FALSE)),VLOOKUP(E33,'Tab 5-7a Soil & Air EPCs'!$D$7:$F$9,3,FALSE),"--") -> -- | Q33: -- | R33: -- | S33: -- | T33: --
A34: 0 | B34: 0 | C34: 0 | D34: 0 | E34: 0 | F34: -- | G34: -- | H34: =IF(ISNUMBER(VLOOKUP(E34,'Tab 5-7a Soil & Air EPCs'!$D$7:$E$9,2,FALSE)),VLOOKUP(E34,'Tab 5-7a Soil & Air EPCs'!$D$7:$E$9,2,FALSE),"--") -> -- | I34: -- | J34: -- | K34: -- | L34: -- | M34: =IF(ISNUMBER(VLOOKUP(E34,'Tab 5-7a Soil & Air EPCs'!$D$7:$H$9,5,FALSE)),VLOOKUP(E34,'Tab 5-7a Soil & Air EPCs'!$D$7:$H$9,5,FALSE),"--") -> -- | N34: -- | O34: -- | P34: =IF(ISNUMBER(VLOOKUP(E34,'Tab 5-7a Soil & Air EPCs'!$D$7:$F$9,3,FALSE)),VLOOKUP(E34,'Tab 5-7a Soil & Air EPCs'!$D$7:$F$9,3,FALSE),"--") -> -- | Q34: -- | R34: -- | S34: -- | T34: --
A35: 0 | B35: 0 | C35: 0 | D35: 0 | E35: 0 | F35: -- | G35: -- | H35: =IF(ISNUMBER(VLOOKUP(E35,'Tab 5-7a Soil & Air EPCs'!$D$7:$E$9,2,FALSE)),VLOOKUP(E35,'Tab 5-7a Soil & Air EPCs'!$D$7:$E$9,2,FALSE),"--") -> -- | I35: -- | J35: -- | K35: -- | L35: -- | M35: =IF(ISNUMBER(VLOOKUP(E35,'Tab 5-7a Soil & Air EPCs'!$D$7:$H$9,5,FALSE)),VLOOKUP(E35,'Tab 5-7a Soil & Air EPCs'!$D$7:$H$9,5,FALSE),"--") -> -- | N35: -- | O35: -- | P35: =IF(ISNUMBER(VLOOKUP(E35,'Tab 5-7a Soil & Air EPCs'!$D$7:$F$9,3,FALSE)),VLOOKUP(E35,'Tab 5-7a Soil & Air EPCs'!$D$7:$F$9,3,FALSE),"--") -> -- | Q35: -- | R35: -- | S35: -- | T35: --
A36: 0 | B36: 0 | C36: 0 | D36: 0 | E36: 0 | F36: -- | G36: -- | H36: =IF(ISNUMBER(VLOOKUP(E36,'Tab 5-7a Soil & Air EPCs'!$D$7:$E$9,2,FALSE)),VLOOKUP(E36,'Tab 5-7a Soil & Air EPCs'!$D$7:$E$9,2,FALSE),"--") -> -- | I36: -- | J36: -- | K36: -- | L36: -- | M36: =IF(ISNUMBER(VLOOKUP(E36,'Tab 5-7a Soil & Air EPCs'!$D$7:$H$9,5,FALSE)),VLOOKUP(E36,'Tab 5-7a Soil & Air EPCs'!$D$7:$H$9,5,FALSE),"--") -> -- | N36: -- | O36: -- | P36: =IF(ISNUMBER(VLOOKUP(E36,'Tab 5-7a Soil & Air EPCs'!$D$7:$F$9,3,FALSE)),VLOOKUP(E36,'Tab 5-7a Soil & Air EPCs'!$D$7:$F$9,3,FALSE),"--") -> -- | Q36: -- | R36: -- | S36: -- | T36: --
A37: 0 | B37: 0 | C37: 0 | D37: 0 | E37: 0 | F37: -- | G37: -- | H37: =IF(ISNUMBER(VLOOKUP(E37,'Tab 5-7a Soil & Air EPCs'!$D$7:$E$9,2,FALSE)),VLOOKUP(E37,'Tab 5-7a Soil & Air EPCs'!$D$7:$E$9,2,FALSE),"--") -> -- | I37: -- | J37: -- | K37: -- | L37: -- | M37: =IF(ISNUMBER(VLOOKUP(E37,'Tab 5-7a Soil & Air EPCs'!$D$7:$H$9,5,FALSE)),VLOOKUP(E37,'Tab 5-7a Soil & Air EPCs'!$D$7:$H$9,5,FALSE),"--") -> -- | N37: -- | O37: -- | P37: =IF(ISNUMBER(VLOOKUP(E37,'Tab 5-7a Soil & Air EPCs'!$D$7:$F$9,3,FALSE)),VLOOKUP(E37,'Tab 5-7a Soil & Air EPCs'!$D$7:$F$9,3,FALSE),"--") -> -- | Q37: -- | R37: -- | S37: -- | T37: --
A38: 0 | B38: 0 | C38: 0 | D38: 0 | E38: 0 | F38: -- | G38: -- | H38: =IF(ISNUMBER(VLOOKUP(E38,'Tab 5-7a Soil & Air EPCs'!$D$7:$E$9,2,FALSE)),VLOOKUP(E38,'Tab 5-7a Soil & Air EPCs'!$D$7:$E$9,2,FALSE),"--") -> -- | I38: -- | J38: -- | K38: -- | L38: -- | M38: =IF(ISNUMBER(VLOOKUP(E38,'Tab 5-7a Soil & Air EPCs'!$D$7:$H$9,5,FALSE)),VLOOKUP(E38,'Tab 5-7a Soil & Air EPCs'!$D$7:$H$9,5,FALSE),"--") -> -- | N38: -- | O38: -- | P38: =IF(ISNUMBER(VLOOKUP(E38,'Tab 5-7a Soil & Air EPCs'!$D$7:$F$9,3,FALSE)),VLOOKUP(E38,'Tab 5-7a Soil & Air EPCs'!$D$7:$F$9,3,FALSE),"--") -> -- | Q38: -- | R38: -- | S38: -- | T38: --
A39: 0 | B39: 0 | C39: 0 | D39: 0 | E39: 0 | F39: -- | G39: -- | H39: =IF(ISNUMBER(VLOOKUP(E39,'Tab 5-7a Soil & Air EPCs'!$D$7:$E$9,2,FALSE)),VLOOKUP(E39,'Tab 5-7a Soil & Air EPCs'!$D$7:$E$9,2,FALSE),"--") -> -- | I39: -- | J39: -- | K39: -- | L39: -- | M39: =IF(ISNUMBER(VLOOKUP(E39,'Tab 5-7a Soil & Air EPCs'!$D$7:$H$9,5,FALSE)),VLOOKUP(E39,'Tab 5-7a Soil & Air EPCs'!$D$7:$H$9,5,FALSE),"--") -> -- | N39: -- | O39: -- | P39: =IF(ISNUMBER(VLOOKUP(E39,'Tab 5-7a Soil & Air EPCs'!$D$7:$F$9,3,FALSE)),VLOOKUP(E39,'Tab 5-7a Soil & Air EPCs'!$D$7:$F$9,3,FALSE),"--") -> -- | Q39: -- | R39: -- | S39: -- | T39: --
A40: 0 | B40: 0 | C40: 0 | D40: 0 | E40: 0 | F40: -- | G40: -- | H40: =IF(ISNUMBER(VLOOKUP(E40,'Tab 5-7a Soil & Air EPCs'!$D$7:$E$9,2,FALSE)),VLOOKUP(E40,'Tab 5-7a Soil & Air EPCs'!$D$7:$E$9,2,FALSE),"--") -> -- | I40: -- | J40: -- | K40: -- | L40: -- | M40: =IF(ISNUMBER(VLOOKUP(E40,'Tab 5-7a Soil & Air EPCs'!$D$7:$H$9,5,FALSE)),VLOOKUP(E40,'Tab 5-7a Soil & Air EPCs'!$D$7:$H$9,5,FALSE),"--") -> -- | N40: -- | O40: -- | P40: =IF(ISNUMBER(VLOOKUP(E40,'Tab 5-7a Soil & Air EPCs'!$D$7:$F$9,3,FALSE)),VLOOKUP(E40,'Tab 5-7a Soil & Air EPCs'!$D$7:$F$9,3,FALSE),"--") -> -- | Q40: -- | R40: -- | S40: -- | T40: --
A41: 0 | B41: 0 | C41: 0 | D41: 0 | E41: 0 | F41: -- | G41: -- | H41: =IF(ISNUMBER(VLOOKUP(E41,'Tab 5-7a Soil & Air EPCs'!$D$7:$E$9,2,FALSE)),VLOOKUP(E41,'Tab 5-7a Soil & Air EPCs'!$D$7:$E$9,2,FALSE),"--") -> -- | I41: -- | J41: -- | K41: -- | L41: -- | M41: =IF(ISNUMBER(VLOOKUP(E41,'Tab 5-7a Soil & Air EPCs'!$D$7:$H$9,5,FALSE)),VLOOKUP(E41,'Tab 5-7a Soil & Air EPCs'!$D$7:$H$9,5,FALSE),"--") -> -- | N41: -- | O41: -- | P41: =IF(ISNUMBER(VLOOKUP(E41,'Tab 5-7a Soil & Air EPCs'!$D$7:$F$9,3,FALSE)),VLOOKUP(E41,'Tab 5-7a Soil & Air EPCs'!$D$7:$F$9,3,FALSE),"--") -> -- | Q41: -- | R41: -- | S41: -- | T41: --
A42: 0 | B42: 0 | C42: 0 | D42: 0 | E42: 0 | F42: -- | G42: -- | H42: =IF(ISNUMBER(VLOOKUP(E42,'Tab 5-7a Soil & Air EPCs'!$D$7:$E$9,2,FALSE)),VLOOKUP(E42,'Tab 5-7a Soil & Air EPCs'!$D$7:$E$9,2,FALSE),"--") -> -- | I42: -- | J42: -- | K42: -- | L42: -- | M42: =IF(ISNUMBER(VLOOKUP(E42,'Tab 5-7a Soil & Air EPCs'!$D$7:$H$9,5,FALSE)),VLOOKUP(E42,'Tab 5-7a Soil & Air EPCs'!$D$7:$H$9,5,FALSE),"--") -> -- | N42: -- | O42: -- | P42: =IF(ISNUMBER(VLOOKUP(E42,'Tab 5-7a Soil & Air EPCs'!$D$7:$F$9,3,FALSE)),VLOOKUP(E42,'Tab 5-7a Soil & Air EPCs'!$D$7:$F$9,3,FALSE),"--") -> -- | Q42: -- | R42: -- | S42: -- | T42: --
A43: 0 | B43: 0 | C43: 0 | D43: 0 | E43: 0 | F43: -- | G43: -- | H43: =IF(ISNUMBER(VLOOKUP(E43,'Tab 5-7a Soil & Air EPCs'!$D$7:$E$9,2,FALSE)),VLOOKUP(E43,'Tab 5-7a Soil & Air EPCs'!$D$7:$E$9,2,FALSE),"--") -> -- | I43: -- | J43: -- | K43: -- | L43: -- | M43: =IF(ISNUMBER(VLOOKUP(E43,'Tab 5-7a Soil & Air EPCs'!$D$7:$H$9,5,FALSE)),VLOOKUP(E43,'Tab 5-7a Soil & Air EPCs'!$D$7:$H$9,5,FALSE),"--") -> -- | N43: -- | O43: -- | P43: =IF(ISNUMBER(VLOOKUP(E43,'Tab 5-7a Soil & Air EPCs'!$D$7:$F$9,3,FALSE)),VLOOKUP(E43,'Tab 5-7a Soil & Air EPCs'!$D$7:$F$9,3,FALSE),"--") -> -- | Q43: -- | R43: -- | S43: -- | T43: --
A44: 0 | B44: 0 | C44: 0 | D44: 0 | E44: 0 | F44: -- | G44: -- | H44: =IF(ISNUMBER(VLOOKUP(E44,'Tab 5-7a Soil & Air EPCs'!$D$7:$E$9,2,FALSE)),VLOOKUP(E44,'Tab 5-7a Soil & Air EPCs'!$D$7:$E$9,2,FALSE),"--") -> -- | I44: -- | J44: -- | K44: -- | L44: -- | M44: =IF(ISNUMBER(VLOOKUP(E44,'Tab 5-7a Soil & Air EPCs'!$D$7:$H$9,5,FALSE)),VLOOKUP(E44,'Tab 5-7a Soil & Air EPCs'!$D$7:$H$9,5,FALSE),"--") -> -- | N44: -- | O44: -- | P44: =IF(ISNUMBER(VLOOKUP(E44,'Tab 5-7a Soil & Air EPCs'!$D$7:$F$9,3,FALSE)),VLOOKUP(E44,'Tab 5-7a Soil & Air EPCs'!$D$7:$F$9,3,FALSE),"--") -> -- | Q44: -- | R44: -- | S44: -- | T44: --
A45: 0 | B45: 0 | C45: 0 | D45: 0 | E45: 0 | F45: -- | G45: -- | H45: =IF(ISNUMBER(VLOOKUP(E45,'Tab 5-7a Soil & Air EPCs'!$D$7:$E$9,2,FALSE)),VLOOKUP(E45,'Tab 5-7a Soil & Air EPCs'!$D$7:$E$9,2,FALSE),"--") -> -- | I45: -- | J45: -- | K45: -- | L45: -- | M45: =IF(ISNUMBER(VLOOKUP(E45,'Tab 5-7a Soil & Air EPCs'!$D$7:$H$9,5,FALSE)),VLOOKUP(E45,'Tab 5-7a Soil & Air EPCs'!$D$7:$H$9,5,FALSE),"--") -> -- | N45: -- | O45: -- | P45: =IF(ISNUMBER(VLOOKUP(E45,'Tab 5-7a Soil & Air EPCs'!$D$7:$F$9,3,FALSE)),VLOOKUP(E45,'Tab 5-7a Soil & Air EPCs'!$D$7:$F$9,3,FALSE),"--") -> -- | Q45: -- | R45: -- | S45: -- | T45: --
A46: 0 | B46: 0 | C46: 0 | D46: 0 | E46: 0 | F46: -- | G46: -- | H46: =IF(ISNUMBER(VLOOKUP(E46,'Tab 5-7a Soil & Air EPCs'!$D$7:$E$9,2,FALSE)),VLOOKUP(E46,'Tab 5-7a Soil & Air EPCs'!$D$7:$E$9,2,FALSE),"--") -> -- | I46: -- | J46: -- | K46: -- | L46: -- | M46: =IF(ISNUMBER(VLOOKUP(E46,'Tab 5-7a Soil & Air EPCs'!$D$7:$H$9,5,FALSE)),VLOOKUP(E46,'Tab 5-7a Soil & Air EPCs'!$D$7:$H$9,5,FALSE),"--") -> -- | N46: -- | O46: -- | P46: =IF(ISNUMBER(VLOOKUP(E46,'Tab 5-7a Soil & Air EPCs'!$D$7:$F$9,3,FALSE)),VLOOKUP(E46,'Tab 5-7a Soil & Air EPCs'!$D$7:$F$9,3,FALSE),"--") -> -- | Q46: -- | R46: -- | S46: -- | T46: --
A47: 0 | B47: 0 | C47: 0 | D47: 0 | E47: 0 | F47: -- | G47: -- | H47: =IF(ISNUMBER(VLOOKUP(E47,'Tab 5-7a Soil & Air EPCs'!$D$7:$E$9,2,FALSE)),VLOOKUP(E47,'Tab 5-7a Soil & Air EPCs'!$D$7:$E$9,2,FALSE),"--") -> -- | I47: -- | J47: -- | K47: -- | L47: -- | M47: =IF(ISNUMBER(VLOOKUP(E47,'Tab 5-7a Soil & Air EPCs'!$D$7:$H$9,5,FALSE)),VLOOKUP(E47,'Tab 5-7a Soil & Air EPCs'!$D$7:$H$9,5,FALSE),"--") -> -- | N47: -- | O47: -- | P47: =IF(ISNUMBER(VLOOKUP(E47,'Tab 5-7a Soil & Air EPCs'!$D$7:$F$9,3,FALSE)),VLOOKUP(E47,'Tab 5-7a Soil & Air EPCs'!$D$7:$F$9,3,FALSE),"--") -> -- | Q47: -- | R47: -- | S47: -- | T47: --
A48: 0 | B48: 0 | C48: 0 | D48: 0 | E48: 0 | F48: -- | G48: -- | H48: =IF(ISNUMBER(VLOOKUP(E48,'Tab 5-7a Soil & Air EPCs'!$D$7:$E$9,2,FALSE)),VLOOKUP(E48,'Tab 5-7a Soil & Air EPCs'!$D$7:$E$9,2,FALSE),"--") -> -- | I48: -- | J48: -- | K48: -- | L48: -- | M48: =IF(ISNUMBER(VLOOKUP(E48,'Tab 5-7a Soil & Air EPCs'!$D$7:$H$9,5,FALSE)),VLOOKUP(E48,'Tab 5-7a Soil & Air EPCs'!$D$7:$H$9,5,FALSE),"--") -> -- | N48: -- | O48: -- | P48: =IF(ISNUMBER(VLOOKUP(E48,'Tab 5-7a Soil & Air EPCs'!$D$7:$F$9,3,FALSE)),VLOOKUP(E48,'Tab 5-7a Soil & Air EPCs'!$D$7:$F$9,3,FALSE),"--") -> -- | Q48: -- | R48: -- | S48: -- | T48: --
A49: 0 | B49: 0 | C49: 0 | D49: 0 | E49: 0 | F49: -- | G49: -- | H49: =IF(ISNUMBER(VLOOKUP(E49,'Tab 5-7a Soil & Air EPCs'!$D$7:$E$9,2,FALSE)),VLOOKUP(E49,'Tab 5-7a Soil & Air EPCs'!$D$7:$E$9,2,FALSE),"--") -> -- | I49: -- | J49: -- | K49: -- | L49: -- | M49: =IF(ISNUMBER(VLOOKUP(E49,'Tab 5-7a Soil & Air EPCs'!$D$7:$H$9,5,FALSE)),VLOOKUP(E49,'Tab 5-7a Soil & Air EPCs'!$D$7:$H$9,5,FALSE),"--") -> -- | N49: -- | O49: -- | P49: =IF(ISNUMBER(VLOOKUP(E49,'Tab 5-7a Soil & Air EPCs'!$D$7:$F$9,3,FALSE)),VLOOKUP(E49,'Tab 5-7a Soil & Air EPCs'!$D$7:$F$9,3,FALSE),"--") -> -- | Q49: -- | R49: -- | S49: -- | T49: --
A50: 0 | B50: 0 | C50: 0 | D50: 0 | E50: 0 | F50: -- | G50: -- | H50: =IF(ISNUMBER(VLOOKUP(E50,'Tab 5-7a Soil & Air EPCs'!$D$7:$E$9,2,FALSE)),VLOOKUP(E50,'Tab 5-7a Soil & Air EPCs'!$D$7:$E$9,2,FALSE),"--") -> -- | I50: -- | J50: -- | K50: -- | L50: -- | M50: =IF(ISNUMBER(VLOOKUP(E50,'Tab 5-7a Soil & Air EPCs'!$D$7:$H$9,5,FALSE)),VLOOKUP(E50,'Tab 5-7a Soil & Air EPCs'!$D$7:$H$9,5,FALSE),"--") -> -- | N50: -- | O50: -- | P50: =IF(ISNUMBER(VLOOKUP(E50,'Tab 5-7a Soil & Air EPCs'!$D$7:$F$9,3,FALSE)),VLOOKUP(E50,'Tab 5-7a Soil & Air EPCs'!$D$7:$F$9,3,FALSE),"--") -> -- | Q50: -- | R50: -- | S50: -- | T50: --
A51: 0 | B51: 0 | C51: 0 | D51: 0 | E51: 0 | F51: -- | G51: -- | H51: =IF(ISNUMBER(VLOOKUP(E51,'Tab 5-7a Soil & Air EPCs'!$D$7:$E$9,2,FALSE)),VLOOKUP(E51,'Tab 5-7a Soil & Air EPCs'!$D$7:$E$9,2,FALSE),"--") -> -- | I51: -- | J51: -- | K51: -- | L51: -- | M51: =IF(ISNUMBER(VLOOKUP(E51,'Tab 5-7a Soil & Air EPCs'!$D$7:$H$9,5,FALSE)),VLOOKUP(E51,'Tab 5-7a Soil & Air EPCs'!$D$7:$H$9,5,FALSE),"--") -> -- | N51: -- | O51: -- | P51: =IF(ISNUMBER(VLOOKUP(E51,'Tab 5-7a Soil & Air EPCs'!$D$7:$F$9,3,FALSE)),VLOOKUP(E51,'Tab 5-7a Soil & Air EPCs'!$D$7:$F$9,3,FALSE),"--") -> -- | Q51: -- | R51: -- | S51: -- | T51: --
A52: 0 | B52: 0 | C52: 0 | D52: 0 | E52: 0 | F52: -- | G52: -- | H52: =IF(ISNUMBER(VLOOKUP(E52,'Tab 5-7a Soil & Air EPCs'!$D$7:$E$9,2,FALSE)),VLOOKUP(E52,'Tab 5-7a Soil & Air EPCs'!$D$7:$E$9,2,FALSE),"--") -> -- | I52: -- | J52: -- | K52: -- | L52: -- | M52: =IF(ISNUMBER(VLOOKUP(E52,'Tab 5-7a Soil & Air EPCs'!$D$7:$H$9,5,FALSE)),VLOOKUP(E52,'Tab 5-7a Soil & Air EPCs'!$D$7:$H$9,5,FALSE),"--") -> -- | N52: -- | O52: -- | P52: =IF(ISNUMBER(VLOOKUP(E52,'Tab 5-7a Soil & Air EPCs'!$D$7:$F$9,3,FALSE)),VLOOKUP(E52,'Tab 5-7a Soil & Air EPCs'!$D$7:$F$9,3,FALSE),"--") -> -- | Q52: -- | R52: -- | S52: -- | T52: --
A53: 0 | B53: 0 | C53: 0 | D53: 0 | E53: 0 | F53: -- | G53: -- | H53: =IF(ISNUMBER(VLOOKUP(E53,'Tab 5-7a Soil & Air EPCs'!$D$7:$E$9,2,FALSE)),VLOOKUP(E53,'Tab 5-7a Soil & Air EPCs'!$D$7:$E$9,2,FALSE),"--") -> -- | I53: -- | J53: -- | K53: -- | L53: -- | M53: =IF(ISNUMBER(VLOOKUP(E53,'Tab 5-7a Soil & Air EPCs'!$D$7:$H$9,5,FALSE)),VLOOKUP(E53,'Tab 5-7a Soil & Air EPCs'!$D$7:$H$9,5,FALSE),"--") -> -- | N53: -- | O53: -- | P53: =IF(ISNUMBER(VLOOKUP(E53,'Tab 5-7a Soil & Air EPCs'!$D$7:$F$9,3,FALSE)),VLOOKUP(E53,'Tab 5-7a Soil & Air EPCs'!$D$7:$F$9,3,FALSE),"--") -> -- | Q53: -- | R53: -- | S53: -- | T53: --
A54: 0 | B54: 0 | C54: 0 | D54: 0 | E54: 0 | F54: -- | G54: -- | H54: =IF(ISNUMBER(VLOOKUP(E54,'Tab 5-7a Soil & Air EPCs'!$D$7:$E$9,2,FALSE)),VLOOKUP(E54,'Tab 5-7a Soil & Air EPCs'!$D$7:$E$9,2,FALSE),"--") -> -- | I54: -- | J54: -- | K54: -- | L54: -- | M54: =IF(ISNUMBER(VLOOKUP(E54,'Tab 5-7a Soil & Air EPCs'!$D$7:$H$9,5,FALSE)),VLOOKUP(E54,'Tab 5-7a Soil & Air EPCs'!$D$7:$H$9,5,FALSE),"--") -> -- | N54: -- | O54: -- | P54: =IF(ISNUMBER(VLOOKUP(E54,'Tab 5-7a Soil & Air EPCs'!$D$7:$F$9,3,FALSE)),VLOOKUP(E54,'Tab 5-7a Soil & Air EPCs'!$D$7:$F$9,3,FALSE),"--") -> -- | Q54: -- | R54: -- | S54: -- | T54: --
A55: 0 | B55: 0 | C55: 0 | D55: 0 | E55: 0 | F55: -- | G55: -- | H55: =IF(ISNUMBER(VLOOKUP(E55,'Tab 5-7a Soil & Air EPCs'!$D$7:$E$9,2,FALSE)),VLOOKUP(E55,'Tab 5-7a Soil & Air EPCs'!$D$7:$E$9,2,FALSE),"--") -> -- | I55: -- | J55: -- | K55: -- | L55: -- | M55: =IF(ISNUMBER(VLOOKUP(E55,'Tab 5-7a Soil & Air EPCs'!$D$7:$H$9,5,FALSE)),VLOOKUP(E55,'Tab 5-7a Soil & Air EPCs'!$D$7:$H$9,5,FALSE),"--") -> -- | N55: -- | O55: -- | P55: =IF(ISNUMBER(VLOOKUP(E55,'Tab 5-7a Soil & Air EPCs'!$D$7:$F$9,3,FALSE)),VLOOKUP(E55,'Tab 5-7a Soil & Air EPCs'!$D$7:$F$9,3,FALSE),"--") -> -- | Q55: -- | R55: -- | S55: -- | T55: --
A56: 0 | B56: 0 | C56: 0 | D56: 0 | E56: 0 | F56: -- | G56: -- | H56: =IF(ISNUMBER(VLOOKUP(E56,'Tab 5-7a Soil & Air EPCs'!$D$7:$E$9,2,FALSE)),VLOOKUP(E56,'Tab 5-7a Soil & Air EPCs'!$D$7:$E$9,2,FALSE),"--") -> -- | I56: -- | J56: -- | K56: -- | L56: -- | M56: =IF(ISNUMBER(VLOOKUP(E56,'Tab 5-7a Soil & Air EPCs'!$D$7:$H$9,5,FALSE)),VLOOKUP(E56,'Tab 5-7a Soil & Air EPCs'!$D$7:$H$9,5,FALSE),"--") -> -- | N56: -- | O56: -- | P56: =IF(ISNUMBER(VLOOKUP(E56,'Tab 5-7a Soil & Air EPCs'!$D$7:$F$9,3,FALSE)),VLOOKUP(E56,'Tab 5-7a Soil & Air EPCs'!$D$7:$F$9,3,FALSE),"--") -> -- | Q56: -- | R56: -- | S56: -- | T56: --
A57: 0 | B57: 0 | C57: 0 | D57: 0 | E57: 0 | F57: -- | G57: -- | H57: =IF(ISNUMBER(VLOOKUP(E57,'Tab 5-7a Soil & Air EPCs'!$D$7:$E$9,2,FALSE)),VLOOKUP(E57,'Tab 5-7a Soil & Air EPCs'!$D$7:$E$9,2,FALSE),"--") -> -- | I57: -- | J57: -- | K57: -- | L57: -- | M57: =IF(ISNUMBER(VLOOKUP(E57,'Tab 5-7a Soil & Air EPCs'!$D$7:$H$9,5,FALSE)),VLOOKUP(E57,'Tab 5-7a Soil & Air EPCs'!$D$7:$H$9,5,FALSE),"--") -> -- | N57: -- | O57: -- | P57: =IF(ISNUMBER(VLOOKUP(E57,'Tab 5-7a Soil & Air EPCs'!$D$7:$F$9,3,FALSE)),VLOOKUP(E57,'Tab 5-7a Soil & Air EPCs'!$D$7:$F$9,3,FALSE),"--") -> -- | Q57: -- | R57: -- | S57: -- | T57: --
A58: 0 | B58: 0 | C58: 0 | D58: 0 | E58: 0 | F58: -- | G58: -- | H58: =IF(ISNUMBER(VLOOKUP(E58,'Tab 5-7a Soil & Air EPCs'!$D$7:$E$9,2,FALSE)),VLOOKUP(E58,'Tab 5-7a Soil & Air EPCs'!$D$7:$E$9,2,FALSE),"--") -> -- | I58: -- | J58: -- | K58: -- | L58: -- | M58: =IF(ISNUMBER(VLOOKUP(E58,'Tab 5-7a Soil & Air EPCs'!$D$7:$H$9,5,FALSE)),VLOOKUP(E58,'Tab 5-7a Soil & Air EPCs'!$D$7:$H$9,5,FALSE),"--") -> -- | N58: -- | O58: -- | P58: =IF(ISNUMBER(VLOOKUP(E58,'Tab 5-7a Soil & Air EPCs'!$D$7:$F$9,3,FALSE)),VLOOKUP(E58,'Tab 5-7a Soil & Air EPCs'!$D$7:$F$9,3,FALSE),"--") -> -- | Q58: -- | R58: -- | S58: -- | T58: --
A59: 0 | B59: 0 | C59: 0 | D59: 0 | E59: 0 | F59: -- | G59: -- | H59: =IF(ISNUMBER(VLOOKUP(E59,'Tab 5-7a Soil & Air EPCs'!$D$7:$E$9,2,FALSE)),VLOOKUP(E59,'Tab 5-7a Soil & Air EPCs'!$D$7:$E$9,2,FALSE),"--") -> -- | I59: -- | J59: -- | K59: -- | L59: -- | M59: =IF(ISNUMBER(VLOOKUP(E59,'Tab 5-7a Soil & Air EPCs'!$D$7:$H$9,5,FALSE)),VLOOKUP(E59,'Tab 5-7a Soil & Air EPCs'!$D$7:$H$9,5,FALSE),"--") -> -- | N59: -- | O59: -- | P59: =IF(ISNUMBER(VLOOKUP(E59,'Tab 5-7a Soil & Air EPCs'!$D$7:$F$9,3,FALSE)),VLOOKUP(E59,'Tab 5-7a Soil & Air EPCs'!$D$7:$F$9,3,FALSE),"--") -> -- | Q59: -- | R59: -- | S59: -- | T59: --
A60: 0 | B60: 0 | C60: 0 | D60: 0 | E60: 0 | F60: -- | G60: -- | H60: =IF(ISNUMBER(VLOOKUP(E60,'Tab 5-7a Soil & Air EPCs'!$D$7:$E$9,2,FALSE)),VLOOKUP(E60,'Tab 5-7a Soil & Air EPCs'!$D$7:$E$9,2,FALSE),"--") -> -- | I60: -- | J60: -- | K60: -- | L60: -- | M60: =IF(ISNUMBER(VLOOKUP(E60,'Tab 5-7a Soil & Air EPCs'!$D$7:$H$9,5,FALSE)),VLOOKUP(E60,'Tab 5-7a Soil & Air EPCs'!$D$7:$H$9,5,FALSE),"--") -> -- | N60: -- | O60: -- | P60: =IF(ISNUMBER(VLOOKUP(E60,'Tab 5-7a Soil & Air EPCs'!$D$7:$F$9,3,FALSE)),VLOOKUP(E60,'Tab 5-7a Soil & Air EPCs'!$D$7:$F$9,3,FALSE),"--") -> -- | Q60: -- | R60: -- | S60: -- | T60: --
A61: 0 | B61: 0 | C61: 0 | D61: 0 | E61: 0 | F61: -- | G61: -- | H61: =IF(ISNUMBER(VLOOKUP(E61,'Tab 5-7a Soil & Air EPCs'!$D$7:$E$9,2,FALSE)),VLOOKUP(E61,'Tab 5-7a Soil & Air EPCs'!$D$7:$E$9,2,FALSE),"--") -> -- | I61: -- | J61: -- | K61: -- | L61: -- | M61: =IF(ISNUMBER(VLOOKUP(E61,'Tab 5-7a Soil & Air EPCs'!$D$7:$H$9,5,FALSE)),VLOOKUP(E61,'Tab 5-7a Soil & Air EPCs'!$D$7:$H$9,5,FALSE),"--") -> -- | N61: -- | O61: -- | P61: =IF(ISNUMBER(VLOOKUP(E61,'Tab 5-7a Soil & Air EPCs'!$D$7:$F$9,3,FALSE)),VLOOKUP(E61,'Tab 5-7a Soil & Air EPCs'!$D$7:$F$9,3,FALSE),"--") -> -- | Q61: -- | R61: -- | S61: -- | T61: --
A62: 0 | B62: 0 | C62: 0 | D62: 0 | E62: 0 | F62: -- | G62: -- | H62: =IF(ISNUMBER(VLOOKUP(E62,'Tab 5-7a Soil & Air EPCs'!$D$7:$E$9,2,FALSE)),VLOOKUP(E62,'Tab 5-7a Soil & Air EPCs'!$D$7:$E$9,2,FALSE),"--") -> -- | I62: -- | J62: -- | K62: -- | L62: -- | M62: =IF(ISNUMBER(VLOOKUP(E62,'Tab 5-7a Soil & Air EPCs'!$D$7:$H$9,5,FALSE)),VLOOKUP(E62,'Tab 5-7a Soil & Air EPCs'!$D$7:$H$9,5,FALSE),"--") -> -- | N62: -- | O62: -- | P62: =IF(ISNUMBER(VLOOKUP(E62,'Tab 5-7a Soil & Air EPCs'!$D$7:$F$9,3,FALSE)),VLOOKUP(E62,'Tab 5-7a Soil & Air EPCs'!$D$7:$F$9,3,FALSE),"--") -> -- | Q62: -- | R62: -- | S62: -- | T62: --
A63: 0 | B63: 0 | C63: 0 | D63: 0 | E63: 0 | F63: -- | G63: -- | H63: =IF(ISNUMBER(VLOOKUP(E63,'Tab 5-7a Soil & Air EPCs'!$D$7:$E$9,2,FALSE)),VLOOKUP(E63,'Tab 5-7a Soil & Air EPCs'!$D$7:$E$9,2,FALSE),"--") -> -- | I63: -- | J63: -- | K63: -- | L63: -- | M63: =IF(ISNUMBER(VLOOKUP(E63,'Tab 5-7a Soil & Air EPCs'!$D$7:$H$9,5,FALSE)),VLOOKUP(E63,'Tab 5-7a Soil & Air EPCs'!$D$7:$H$9,5,FALSE),"--") -> -- | N63: -- | O63: -- | P63: =IF(ISNUMBER(VLOOKUP(E63,'Tab 5-7a Soil & Air EPCs'!$D$7:$F$9,3,FALSE)),VLOOKUP(E63,'Tab 5-7a Soil & Air EPCs'!$D$7:$F$9,3,FALSE),"--") -> -- | Q63: -- | R63: -- | S63: -- | T63: --
A64: 0 | B64: 0 | C64: 0 | D64: 0 | E64: 0 | F64: -- | G64: -- | H64: =IF(ISNUMBER(VLOOKUP(E64,'Tab 5-7a Soil & Air EPCs'!$D$7:$E$9,2,FALSE)),VLOOKUP(E64,'Tab 5-7a Soil & Air EPCs'!$D$7:$E$9,2,FALSE),"--") -> -- | I64: -- | J64: -- | K64: -- | L64: -- | M64: =IF(ISNUMBER(VLOOKUP(E64,'Tab 5-7a Soil & Air EPCs'!$D$7:$H$9,5,FALSE)),VLOOKUP(E64,'Tab 5-7a Soil & Air EPCs'!$D$7:$H$9,5,FALSE),"--") -> -- | N64: -- | O64: -- | P64: =IF(ISNUMBER(VLOOKUP(E64,'Tab 5-7a Soil & Air EPCs'!$D$7:$F$9,3,FALSE)),VLOOKUP(E64,'Tab 5-7a Soil & Air EPCs'!$D$7:$F$9,3,FALSE),"--") -> -- | Q64: -- | R64: -- | S64: -- | T64: --
A65: 0 | B65: 0 | C65: 0 | D65: 0 | E65: 0 | F65: -- | G65: -- | H65: =IF(ISNUMBER(VLOOKUP(E65,'Tab 5-7a Soil & Air EPCs'!$D$7:$E$9,2,FALSE)),VLOOKUP(E65,'Tab 5-7a Soil & Air EPCs'!$D$7:$E$9,2,FALSE),"--") -> -- | I65: -- | J65: -- | K65: -- | L65: -- | M65: =IF(ISNUMBER(VLOOKUP(E65,'Tab 5-7a Soil & Air EPCs'!$D$7:$H$9,5,FALSE)),VLOOKUP(E65,'Tab 5-7a Soil & Air EPCs'!$D$7:$H$9,5,FALSE),"--") -> -- | N65: -- | O65: -- | P65: =IF(ISNUMBER(VLOOKUP(E65,'Tab 5-7a Soil & Air EPCs'!$D$7:$F$9,3,FALSE)),VLOOKUP(E65,'Tab 5-7a Soil & Air EPCs'!$D$7:$F$9,3,FALSE),"--") -> -- | Q65: -- | R65: -- | S65: -- | T65: --
A66: 0 | B66: 0 | C66: 0 | D66: 0 | E66: 0 | F66: -- | G66: -- | H66: =IF(ISNUMBER(VLOOKUP(E66,'Tab 5-7a Soil & Air EPCs'!$D$7:$E$9,2,FALSE)),VLOOKUP(E66,'Tab 5-7a Soil & Air EPCs'!$D$7:$E$9,2,FALSE),"--") -> -- | I66: -- | J66: -- | K66: -- | L66: -- | M66: =IF(ISNUMBER(VLOOKUP(E66,'Tab 5-7a Soil & Air EPCs'!$D$7:$H$9,5,FALSE)),VLOOKUP(E66,'Tab 5-7a Soil & Air EPCs'!$D$7:$H$9,5,FALSE),"--") -> -- | N66: -- | O66: -- | P66: =IF(ISNUMBER(VLOOKUP(E66,'Tab 5-7a Soil & Air EPCs'!$D$7:$F$9,3,FALSE)),VLOOKUP(E66,'Tab 5-7a Soil & Air EPCs'!$D$7:$F$9,3,FALSE),"--") -> -- | Q66: -- | R66: -- | S66: -- | T66: --
A67: 0 | B67: 0 | C67: 0 | D67: 0 | E67: 0 | F67: -- | G67: -- | H67: =IF(ISNUMBER(VLOOKUP(E67,'Tab 5-7a Soil & Air EPCs'!$D$7:$E$9,2,FALSE)),VLOOKUP(E67,'Tab 5-7a Soil & Air EPCs'!$D$7:$E$9,2,FALSE),"--") -> -- | I67: -- | J67: -- | K67: -- | L67: -- | M67: =IF(ISNUMBER(VLOOKUP(E67,'Tab 5-7a Soil & Air EPCs'!$D$7:$H$9,5,FALSE)),VLOOKUP(E67,'Tab 5-7a Soil & Air EPCs'!$D$7:$H$9,5,FALSE),"--") -> -- | N67: -- | O67: -- | P67: =IF(ISNUMBER(VLOOKUP(E67,'Tab 5-7a Soil & Air EPCs'!$D$7:$F$9,3,FALSE)),VLOOKUP(E67,'Tab 5-7a Soil & Air EPCs'!$D$7:$F$9,3,FALSE),"--") -> -- | Q67: -- | R67: -- | S67: -- | T67: --
A68: 0 | B68: 0 | C68: 0 | D68: 0 | E68: 0 | F68: -- | G68: -- | H68: =IF(ISNUMBER(VLOOKUP(E68,'Tab 5-7a Soil & Air EPCs'!$D$7:$E$9,2,FALSE)),VLOOKUP(E68,'Tab 5-7a Soil & Air EPCs'!$D$7:$E$9,2,FALSE),"--") -> -- | I68: -- | J68: -- | K68: -- | L68: -- | M68: =IF(ISNUMBER(VLOOKUP(E68,'Tab 5-7a Soil & Air EPCs'!$D$7:$H$9,5,FALSE)),VLOOKUP(E68,'Tab 5-7a Soil & Air EPCs'!$D$7:$H$9,5,FALSE),"--") -> -- | N68: -- | O68: -- | P68: =IF(ISNUMBER(VLOOKUP(E68,'Tab 5-7a Soil & Air EPCs'!$D$7:$F$9,3,FALSE)),VLOOKUP(E68,'Tab 5-7a Soil & Air EPCs'!$D$7:$F$9,3,FALSE),"--") -> -- | Q68: -- | R68: -- | S68: -- | T68: --
A69: 0 | B69: 0 | C69: 0 | D69: 0 | E69: 0 | F69: -- | G69: -- | H69: =IF(ISNUMBER(VLOOKUP(E69,'Tab 5-7a Soil & Air EPCs'!$D$7:$E$9,2,FALSE)),VLOOKUP(E69,'Tab 5-7a Soil & Air EPCs'!$D$7:$E$9,2,FALSE),"--") -> -- | I69: -- | J69: -- | K69: -- | L69: -- | M69: =IF(ISNUMBER(VLOOKUP(E69,'Tab 5-7a Soil & Air EPCs'!$D$7:$H$9,5,FALSE)),VLOOKUP(E69,'Tab 5-7a Soil & Air EPCs'!$D$7:$H$9,5,FALSE),"--") -> -- | N69: -- | O69: -- | P69: =IF(ISNUMBER(VLOOKUP(E69,'Tab 5-7a Soil & Air EPCs'!$D$7:$F$9,3,FALSE)),VLOOKUP(E69,'Tab 5-7a Soil & Air EPCs'!$D$7:$F$9,3,FALSE),"--") -> -- | Q69: -- | R69: -- | S69: -- | T69: --
A70: 0 | B70: 0 | C70: 0 | D70: 0 | E70: 0 | F70: -- | G70: -- | H70: =IF(ISNUMBER(VLOOKUP(E70,'Tab 5-7a Soil & Air EPCs'!$D$7:$E$9,2,FALSE)),VLOOKUP(E70,'Tab 5-7a Soil & Air EPCs'!$D$7:$E$9,2,FALSE),"--") -> -- | I70: -- | J70: -- | K70: -- | L70: -- | M70: =IF(ISNUMBER(VLOOKUP(E70,'Tab 5-7a Soil & Air EPCs'!$D$7:$H$9,5,FALSE)),VLOOKUP(E70,'Tab 5-7a Soil & Air EPCs'!$D$7:$H$9,5,FALSE),"--") -> -- | N70: -- | O70: -- | P70: =IF(ISNUMBER(VLOOKUP(E70,'Tab 5-7a Soil & Air EPCs'!$D$7:$F$9,3,FALSE)),VLOOKUP(E70,'Tab 5-7a Soil & Air EPCs'!$D$7:$F$9,3,FALSE),"--") -> -- | Q70: -- | R70: -- | S70: -- | T70: --
A71: 0 | B71: 0 | C71: 0 | D71: 0 | E71: 0 | F71: -- | G71: -- | H71: =IF(ISNUMBER(VLOOKUP(E71,'Tab 5-7a Soil & Air EPCs'!$D$7:$E$9,2,FALSE)),VLOOKUP(E71,'Tab 5-7a Soil & Air EPCs'!$D$7:$E$9,2,FALSE),"--") -> -- | I71: -- | J71: -- | K71: -- | L71: -- | M71: =IF(ISNUMBER(VLOOKUP(E71,'Tab 5-7a Soil & Air EPCs'!$D$7:$H$9,5,FALSE)),VLOOKUP(E71,'Tab 5-7a Soil & Air EPCs'!$D$7:$H$9,5,FALSE),"--") -> -- | N71: -- | O71: -- | P71: =IF(ISNUMBER(VLOOKUP(E71,'Tab 5-7a Soil & Air EPCs'!$D$7:$F$9,3,FALSE)),VLOOKUP(E71,'Tab 5-7a Soil & Air EPCs'!$D$7:$F$9,3,FALSE),"--") -> -- | Q71: -- | R71: -- | S71: -- | T71: --
A72: 0 | B72: 0 | C72: 0 | D72: 0 | E72: 0 | F72: -- | G72: -- | H72: =IF(ISNUMBER(VLOOKUP(E72,'Tab 5-7a Soil & Air EPCs'!$D$7:$E$9,2,FALSE)),VLOOKUP(E72,'Tab 5-7a Soil & Air EPCs'!$D$7:$E$9,2,FALSE),"--") -> -- | I72: -- | J72: -- | K72: -- | L72: -- | M72: =IF(ISNUMBER(VLOOKUP(E72,'Tab 5-7a Soil & Air EPCs'!$D$7:$H$9,5,FALSE)),VLOOKUP(E72,'Tab 5-7a Soil & Air EPCs'!$D$7:$H$9,5,FALSE),"--") -> -- | N72: -- | O72: -- | P72: =IF(ISNUMBER(VLOOKUP(E72,'Tab 5-7a Soil & Air EPCs'!$D$7:$F$9,3,FALSE)),VLOOKUP(E72,'Tab 5-7a Soil & Air EPCs'!$D$7:$F$9,3,FALSE),"--") -> -- | Q72: -- | R72: -- | S72: -- | T72: --
A73: 0 | B73: 0 | C73: 0 | D73: 0 | E73: 0 | F73: -- | G73: -- | H73: =IF(ISNUMBER(VLOOKUP(E73,'Tab 5-7a Soil & Air EPCs'!$D$7:$E$9,2,FALSE)),VLOOKUP(E73,'Tab 5-7a Soil & Air EPCs'!$D$7:$E$9,2,FALSE),"--") -> -- | I73: -- | J73: -- | K73: -- | L73: -- | M73: =IF(ISNUMBER(VLOOKUP(E73,'Tab 5-7a Soil & Air EPCs'!$D$7:$H$9,5,FALSE)),VLOOKUP(E73,'Tab 5-7a Soil & Air EPCs'!$D$7:$H$9,5,FALSE),"--") -> -- | N73: -- | O73: -- | P73: =IF(ISNUMBER(VLOOKUP(E73,'Tab 5-7a Soil & Air EPCs'!$D$7:$F$9,3,FALSE)),VLOOKUP(E73,'Tab 5-7a Soil & Air EPCs'!$D$7:$F$9,3,FALSE),"--") -> -- | Q73: -- | R73: -- | S73: -- | T73: --
A74: 0 | B74: 0 | C74: 0 | D74: 0 | E74: 0 | F74: -- | G74: -- | H74: =IF(ISNUMBER(VLOOKUP(E74,'Tab 5-7a Soil & Air EPCs'!$D$7:$E$9,2,FALSE)),VLOOKUP(E74,'Tab 5-7a Soil & Air EPCs'!$D$7:$E$9,2,FALSE),"--") -> -- | I74: -- | J74: -- | K74: -- | L74: -- | M74: =IF(ISNUMBER(VLOOKUP(E74,'Tab 5-7a Soil & Air EPCs'!$D$7:$H$9,5,FALSE)),VLOOKUP(E74,'Tab 5-7a Soil & Air EPCs'!$D$7:$H$9,5,FALSE),"--") -> -- | N74: -- | O74: -- | P74: =IF(ISNUMBER(VLOOKUP(E74,'Tab 5-7a Soil & Air EPCs'!$D$7:$F$9,3,FALSE)),VLOOKUP(E74,'Tab 5-7a Soil & Air EPCs'!$D$7:$F$9,3,FALSE),"--") -> -- | Q74: -- | R74: -- | S74: -- | T74: --
A75: 0 | B75: 0 | C75: 0 | D75: 0 | E75: 0 | F75: -- | G75: -- | H75: =IF(ISNUMBER(VLOOKUP(E75,'Tab 5-7a Soil & Air EPCs'!$D$7:$E$9,2,FALSE)),VLOOKUP(E75,'Tab 5-7a Soil & Air EPCs'!$D$7:$E$9,2,FALSE),"--") -> -- | I75: -- | J75: -- | K75: -- | L75: -- | M75: =IF(ISNUMBER(VLOOKUP(E75,'Tab 5-7a Soil & Air EPCs'!$D$7:$H$9,5,FALSE)),VLOOKUP(E75,'Tab 5-7a Soil & Air EPCs'!$D$7:$H$9,5,FALSE),"--") -> -- | N75: -- | O75: -- | P75: =IF(ISNUMBER(VLOOKUP(E75,'Tab 5-7a Soil & Air EPCs'!$D$7:$F$9,3,FALSE)),VLOOKUP(E75,'Tab 5-7a Soil & Air EPCs'!$D$7:$F$9,3,FALSE),"--") -> -- | Q75: -- | R75: -- | S75: -- | T75: --
A76: 0 | B76: 0 | C76: 0 | D76: 0 | E76: 0 | F76: -- | G76: -- | H76: =IF(ISNUMBER(VLOOKUP(E76,'Tab 5-7a Soil & Air EPCs'!$D$7:$E$9,2,FALSE)),VLOOKUP(E76,'Tab 5-7a Soil & Air EPCs'!$D$7:$E$9,2,FALSE),"--") -> -- | I76: -- | J76: -- | K76: -- | L76: -- | M76: =IF(ISNUMBER(VLOOKUP(E76,'Tab 5-7a Soil & Air EPCs'!$D$7:$H$9,5,FALSE)),VLOOKUP(E76,'Tab 5-7a Soil & Air EPCs'!$D$7:$H$9,5,FALSE),"--") -> -- | N76: -- | O76: -- | P76: =IF(ISNUMBER(VLOOKUP(E76,'Tab 5-7a Soil & Air EPCs'!$D$7:$F$9,3,FALSE)),VLOOKUP(E76,'Tab 5-7a Soil & Air EPCs'!$D$7:$F$9,3,FALSE),"--") -> -- | Q76: -- | R76: -- | S76: =IF(SUM(I76,N76,Q76)>0,SUM(I76,N76,Q76),"--") -> -- | T76: =IF(SUM(J76,O76,R76)>0,SUM(J76,O76,R76),"--") -> --
A77: 0 | B77: 0 | C77: 0 | D77: 0 | E77: 0 | F77: -- | G77: -- | H77: =IF(ISNUMBER(VLOOKUP(E77,'Tab 5-7a Soil & Air EPCs'!$D$7:$E$9,2,FALSE)),VLOOKUP(E77,'Tab 5-7a Soil & Air EPCs'!$D$7:$E$9,2,FALSE),"--") -> -- | I77: -- | J77: -- | K77: -- | L77: -- | M77: =IF(ISNUMBER(VLOOKUP(E77,'Tab 5-7a Soil & Air EPCs'!$D$7:$H$9,5,FALSE)),VLOOKUP(E77,'Tab 5-7a Soil & Air EPCs'!$D$7:$H$9,5,FALSE),"--") -> -- | N77: -- | O77: -- | P77: =IF(ISNUMBER(VLOOKUP(E77,'Tab 5-7a Soil & Air EPCs'!$D$7:$F$9,3,FALSE)),VLOOKUP(E77,'Tab 5-7a Soil & Air EPCs'!$D$7:$F$9,3,FALSE),"--") -> -- | Q77: -- | R77: -- | S77: -- | T77: --
A78: 0 | B78: 0 | C78: 0 | D78: 0 | E78: 0 | F78: -- | G78: -- | H78: =IF(ISNUMBER(VLOOKUP(E78,'Tab 5-7a Soil & Air EPCs'!$D$7:$E$9,2,FALSE)),VLOOKUP(E78,'Tab 5-7a Soil & Air EPCs'!$D$7:$E$9,2,FALSE),"--") -> -- | I78: -- | J78: -- | K78: -- | L78: -- | M78: =IF(ISNUMBER(VLOOKUP(E78,'Tab 5-7a Soil & Air EPCs'!$D$7:$H$9,5,FALSE)),VLOOKUP(E78,'Tab 5-7a Soil & Air EPCs'!$D$7:$H$9,5,FALSE),"--") -> -- | N78: -- | O78: -- | P78: =IF(ISNUMBER(VLOOKUP(E78,'Tab 5-7a Soil & Air EPCs'!$D$7:$F$9,3,FALSE)),VLOOKUP(E78,'Tab 5-7a Soil & Air EPCs'!$D$7:$F$9,3,FALSE),"--") -> -- | Q78: -- | R78: -- | S78: -- | T78: --
A79: 0 | B79: 0 | C79: 0 | D79: 0 | E79: 0 | F79: -- | G79: -- | H79: =IF(ISNUMBER(VLOOKUP(E79,'Tab 5-7a Soil & Air EPCs'!$D$7:$E$9,2,FALSE)),VLOOKUP(E79,'Tab 5-7a Soil & Air EPCs'!$D$7:$E$9,2,FALSE),"--") -> -- | I79: -- | J79: -- | K79: -- | L79: -- | M79: =IF(ISNUMBER(VLOOKUP(E79,'Tab 5-7a Soil & Air EPCs'!$D$7:$H$9,5,FALSE)),VLOOKUP(E79,'Tab 5-7a Soil & Air EPCs'!$D$7:$H$9,5,FALSE),"--") -> -- | N79: -- | O79: -- | P79: =IF(ISNUMBER(VLOOKUP(E79,'Tab 5-7a Soil & Air EPCs'!$D$7:$F$9,3,FALSE)),VLOOKUP(E79,'Tab 5-7a Soil & Air EPCs'!$D$7:$F$9,3,FALSE),"--") -> -- | Q79: -- | R79: -- | S79: -- | T79: --
A80: 0 | B80: 0 | C80: 0 | D80: 0 | E80: 0 | F80: -- | G80: -- | H80: =IF(ISNUMBER(VLOOKUP(E80,'Tab 5-7a Soil & Air EPCs'!$D$7:$E$9,2,FALSE)),VLOOKUP(E80,'Tab 5-7a Soil & Air EPCs'!$D$7:$E$9,2,FALSE),"--") -> -- | I80: -- | J80: -- | K80: -- | L80: -- | M80: =IF(ISNUMBER(VLOOKUP(E80,'Tab 5-7a Soil & Air EPCs'!$D$7:$H$9,5,FALSE)),VLOOKUP(E80,'Tab 5-7a Soil & Air EPCs'!$D$7:$H$9,5,FALSE),"--") -> -- | N80: -- | O80: -- | P80: =IF(ISNUMBER(VLOOKUP(E80,'Tab 5-7a Soil & Air EPCs'!$D$7:$F$9,3,FALSE)),VLOOKUP(E80,'Tab 5-7a Soil & Air EPCs'!$D$7:$F$9,3,FALSE),"--") -> -- | Q80: -- | R80: -- | S80: -- | T80: --
A81: 0 | B81: 0 | C81: 0 | D81: 0 | E81: 0 | F81: -- | G81: -- | H81: =IF(ISNUMBER(VLOOKUP(E81,'Tab 5-7a Soil & Air EPCs'!$D$7:$E$9,2,FALSE)),VLOOKUP(E81,'Tab 5-7a Soil & Air EPCs'!$D$7:$E$9,2,FALSE),"--") -> -- | I81: -- | J81: -- | K81: -- | L81: -- | M81: =IF(ISNUMBER(VLOOKUP(E81,'Tab 5-7a Soil & Air EPCs'!$D$7:$H$9,5,FALSE)),VLOOKUP(E81,'Tab 5-7a Soil & Air EPCs'!$D$7:$H$9,5,FALSE),"--") -> -- | N81: -- | O81: -- | P81: =IF(ISNUMBER(VLOOKUP(E81,'Tab 5-7a Soil & Air EPCs'!$D$7:$F$9,3,FALSE)),VLOOKUP(E81,'Tab 5-7a Soil & Air EPCs'!$D$7:$F$9,3,FALSE),"--") -> -- | Q81: -- | R81: -- | S81: -- | T81: --
A82: 0 | B82: 0 | C82: 0 | D82: 0 | E82: 0 | F82: -- | G82: -- | H82: =IF(ISNUMBER(VLOOKUP(E82,'Tab 5-7a Soil & Air EPCs'!$D$7:$E$9,2,FALSE)),VLOOKUP(E82,'Tab 5-7a Soil & Air EPCs'!$D$7:$E$9,2,FALSE),"--") -> -- | I82: -- | J82: -- | K82: -- | L82: -- | M82: =IF(ISNUMBER(VLOOKUP(E82,'Tab 5-7a Soil & Air EPCs'!$D$7:$H$9,5,FALSE)),VLOOKUP(E82,'Tab 5-7a Soil & Air EPCs'!$D$7:$H$9,5,FALSE),"--") -> -- | N82: -- | O82: -- | P82: =IF(ISNUMBER(VLOOKUP(E82,'Tab 5-7a Soil & Air EPCs'!$D$7:$F$9,3,FALSE)),VLOOKUP(E82,'Tab 5-7a Soil & Air EPCs'!$D$7:$F$9,3,FALSE),"--") -> -- | Q82: -- | R82: -- | S82: -- | T82: --
A83: 0 | B83: 0 | C83: 0 | D83: 0 | E83: 0 | F83: -- | G83: -- | H83: =IF(ISNUMBER(VLOOKUP(E83,'Tab 5-7a Soil & Air EPCs'!$D$7:$E$9,2,FALSE)),VLOOKUP(E83,'Tab 5-7a Soil & Air EPCs'!$D$7:$E$9,2,FALSE),"--") -> -- | I83: -- | J83: -- | K83: -- | L83: -- | M83: =IF(ISNUMBER(VLOOKUP(E83,'Tab 5-7a Soil & Air EPCs'!$D$7:$H$9,5,FALSE)),VLOOKUP(E83,'Tab 5-7a Soil & Air EPCs'!$D$7:$H$9,5,FALSE),"--") -> -- | N83: -- | O83: -- | P83: =IF(ISNUMBER(VLOOKUP(E83,'Tab 5-7a Soil & Air EPCs'!$D$7:$F$9,3,FALSE)),VLOOKUP(E83,'Tab 5-7a Soil & Air EPCs'!$D$7:$F$9,3,FALSE),"--") -> -- | Q83: -- | R83: -- | S83: -- | T83: --
A84: 0 | B84: 0 | C84: 0 | D84: 0 | E84: 0 | F84: -- | G84: -- | H84: =IF(ISNUMBER(VLOOKUP(E84,'Tab 5-7a Soil & Air EPCs'!$D$7:$E$9,2,FALSE)),VLOOKUP(E84,'Tab 5-7a Soil & Air EPCs'!$D$7:$E$9,2,FALSE),"--") -> -- | I84: -- | J84: -- | K84: -- | L84: -- | M84: =IF(ISNUMBER(VLOOKUP(E84,'Tab 5-7a Soil & Air EPCs'!$D$7:$H$9,5,FALSE)),VLOOKUP(E84,'Tab 5-7a Soil & Air EPCs'!$D$7:$H$9,5,FALSE),"--") -> -- | N84: -- | O84: -- | P84: =IF(ISNUMBER(VLOOKUP(E84,'Tab 5-7a Soil & Air EPCs'!$D$7:$F$9,3,FALSE)),VLOOKUP(E84,'Tab 5-7a Soil & Air EPCs'!$D$7:$F$9,3,FALSE),"--") -> -- | Q84: -- | R84: -- | S84: -- | T84: --
A85: 0 | B85: 0 | C85: 0 | D85: 0 | E85: 0 | F85: -- | G85: -- | H85: =IF(ISNUMBER(VLOOKUP(E85,'Tab 5-7a Soil & Air EPCs'!$D$7:$E$9,2,FALSE)),VLOOKUP(E85,'Tab 5-7a Soil & Air EPCs'!$D$7:$E$9,2,FALSE),"--") -> -- | I85: -- | J85: -- | K85: -- | L85: -- | M85: =IF(ISNUMBER(VLOOKUP(E85,'Tab 5-7a Soil & Air EPCs'!$D$7:$H$9,5,FALSE)),VLOOKUP(E85,'Tab 5-7a Soil & Air EPCs'!$D$7:$H$9,5,FALSE),"--") -> -- | N85: -- | O85: -- | P85: =IF(ISNUMBER(VLOOKUP(E85,'Tab 5-7a Soil & Air EPCs'!$D$7:$F$9,3,FALSE)),VLOOKUP(E85,'Tab 5-7a Soil & Air EPCs'!$D$7:$F$9,3,FALSE),"--") -> -- | Q85: -- | R85: -- | S85: -- | T85: --
A86: 0 | B86: 0 | C86: 0 | D86: 0 | E86: 0 | F86: -- | G86: -- | H86: =IF(ISNUMBER(VLOOKUP(E86,'Tab 5-7a Soil & Air EPCs'!$D$7:$E$9,2,FALSE)),VLOOKUP(E86,'Tab 5-7a Soil & Air EPCs'!$D$7:$E$9,2,FALSE),"--") -> -- | I86: -- | J86: -- | K86: -- | L86: -- | M86: =IF(ISNUMBER(VLOOKUP(E86,'Tab 5-7a Soil & Air EPCs'!$D$7:$H$9,5,FALSE)),VLOOKUP(E86,'Tab 5-7a Soil & Air EPCs'!$D$7:$H$9,5,FALSE),"--") -> -- | N86: -- | O86: -- | P86: =IF(ISNUMBER(VLOOKUP(E86,'Tab 5-7a Soil & Air EPCs'!$D$7:$F$9,3,FALSE)),VLOOKUP(E86,'Tab 5-7a Soil & Air EPCs'!$D$7:$F$9,3,FALSE),"--") -> -- | Q86: -- | R86: -- | S86: -- | T86: --
A87: 0 | B87: 0 | C87: 0 | D87: 0 | E87: 0 | F87: -- | G87: -- | H87: =IF(ISNUMBER(VLOOKUP(E87,'Tab 5-7a Soil & Air EPCs'!$D$7:$E$9,2,FALSE)),VLOOKUP(E87,'Tab 5-7a Soil & Air EPCs'!$D$7:$E$9,2,FALSE),"--") -> -- | I87: -- | J87: -- | K87: -- | L87: -- | M87: =IF(ISNUMBER(VLOOKUP(E87,'Tab 5-7a Soil & Air EPCs'!$D$7:$H$9,5,FALSE)),VLOOKUP(E87,'Tab 5-7a Soil & Air EPCs'!$D$7:$H$9,5,FALSE),"--") -> -- | N87: -- | O87: -- | P87: =IF(ISNUMBER(VLOOKUP(E87,'Tab 5-7a Soil & Air EPCs'!$D$7:$F$9,3,FALSE)),VLOOKUP(E87,'Tab 5-7a Soil & Air EPCs'!$D$7:$F$9,3,FALSE),"--") -> -- | Q87: -- | R87: -- | S87: -- | T87: --
A88: 0 | B88: 0 | C88: 0 | D88: 0 | E88: 0 | F88: -- | G88: -- | H88: =IF(ISNUMBER(VLOOKUP(E88,'Tab 5-7a Soil & Air EPCs'!$D$7:$E$9,2,FALSE)),VLOOKUP(E88,'Tab 5-7a Soil & Air EPCs'!$D$7:$E$9,2,FALSE),"--") -> -- | I88: -- | J88: -- | K88: -- | L88: -- | M88: =IF(ISNUMBER(VLOOKUP(E88,'Tab 5-7a Soil & Air EPCs'!$D$7:$H$9,5,FALSE)),VLOOKUP(E88,'Tab 5-7a Soil & Air EPCs'!$D$7:$H$9,5,FALSE),"--") -> -- | N88: -- | O88: -- | P88: =IF(ISNUMBER(VLOOKUP(E88,'Tab 5-7a Soil & Air EPCs'!$D$7:$F$9,3,FALSE)),VLOOKUP(E88,'Tab 5-7a Soil & Air EPCs'!$D$7:$F$9,3,FALSE),"--") -> -- | Q88: -- | R88: -- | S88: -- | T88: --
A89: 0 | B89: 0 | C89: 0 | D89: 0 | E89: 0 | F89: -- | G89: -- | H89: =IF(ISNUMBER(VLOOKUP(E89,'Tab 5-7a Soil & Air EPCs'!$D$7:$E$9,2,FALSE)),VLOOKUP(E89,'Tab 5-7a Soil & Air EPCs'!$D$7:$E$9,2,FALSE),"--") -> -- | I89: -- | J89: -- | K89: -- | L89: -- | M89: =IF(ISNUMBER(VLOOKUP(E89,'Tab 5-7a Soil & Air EPCs'!$D$7:$H$9,5,FALSE)),VLOOKUP(E89,'Tab 5-7a Soil & Air EPCs'!$D$7:$H$9,5,FALSE),"--") -> -- | N89: -- | O89: -- | P89: =IF(ISNUMBER(VLOOKUP(E89,'Tab 5-7a Soil & Air EPCs'!$D$7:$F$9,3,FALSE)),VLOOKUP(E89,'Tab 5-7a Soil & Air EPCs'!$D$7:$F$9,3,FALSE),"--") -> -- | Q89: -- | R89: -- | S89: -- | T89: --
A90: 0 | B90: 0 | C90: 0 | D90: 0 | E90: 0 | F90: -- | G90: -- | H90: =IF(ISNUMBER(VLOOKUP(E90,'Tab 5-7a Soil & Air EPCs'!$D$7:$E$9,2,FALSE)),VLOOKUP(E90,'Tab 5-7a Soil & Air EPCs'!$D$7:$E$9,2,FALSE),"--") -> -- | I90: -- | J90: -- | K90: -- | L90: -- | M90: =IF(ISNUMBER(VLOOKUP(E90,'Tab 5-7a Soil & Air EPCs'!$D$7:$H$9,5,FALSE)),VLOOKUP(E90,'Tab 5-7a Soil & Air EPCs'!$D$7:$H$9,5,FALSE),"--") -> -- | N90: -- | O90: -- | P90: =IF(ISNUMBER(VLOOKUP(E90,'Tab 5-7a Soil & Air EPCs'!$D$7:$F$9,3,FALSE)),VLOOKUP(E90,'Tab 5-7a Soil & Air EPCs'!$D$7:$F$9,3,FALSE),"--") -> -- | Q90: -- | R90: -- | S90: -- | T90: --
A91: 0 | B91: 0 | C91: 0 | D91: 0 | E91: 0 | F91: -- | G91: -- | H91: =IF(ISNUMBER(VLOOKUP(E91,'Tab 5-7a Soil & Air EPCs'!$D$7:$E$9,2,FALSE)),VLOOKUP(E91,'Tab 5-7a Soil & Air EPCs'!$D$7:$E$9,2,FALSE),"--") -> -- | I91: -- | J91: -- | K91: -- | L91: -- | M91: =IF(ISNUMBER(VLOOKUP(E91,'Tab 5-7a Soil & Air EPCs'!$D$7:$H$9,5,FALSE)),VLOOKUP(E91,'Tab 5-7a Soil & Air EPCs'!$D$7:$H$9,5,FALSE),"--") -> -- | N91: -- | O91: -- | P91: =IF(ISNUMBER(VLOOKUP(E91,'Tab 5-7a Soil & Air EPCs'!$D$7:$F$9,3,FALSE)),VLOOKUP(E91,'Tab 5-7a Soil & Air EPCs'!$D$7:$F$9,3,FALSE),"--") -> -- | Q91: -- | R91: -- | S91: -- | T91: --
A92: 0 | B92: 0 | C92: 0 | D92: 0 | E92: 0 | F92: -- | G92: -- | H92: =IF(ISNUMBER(VLOOKUP(E92,'Tab 5-7a Soil & Air EPCs'!$D$7:$E$9,2,FALSE)),VLOOKUP(E92,'Tab 5-7a Soil & Air EPCs'!$D$7:$E$9,2,FALSE),"--") -> -- | I92: -- | J92: -- | K92: -- | L92: -- | M92: =IF(ISNUMBER(VLOOKUP(E92,'Tab 5-7a Soil & Air EPCs'!$D$7:$H$9,5,FALSE)),VLOOKUP(E92,'Tab 5-7a Soil & Air EPCs'!$D$7:$H$9,5,FALSE),"--") -> -- | N92: -- | O92: -- | P92: =IF(ISNUMBER(VLOOKUP(E92,'Tab 5-7a Soil & Air EPCs'!$D$7:$F$9,3,FALSE)),VLOOKUP(E92,'Tab 5-7a Soil & Air EPCs'!$D$7:$F$9,3,FALSE),"--") -> -- | Q92: -- | R92: -- | S92: -- | T92: --
A93: 0 | B93: 0 | C93: 0 | D93: 0 | E93: 0 | F93: -- | G93: -- | H93: =IF(ISNUMBER(VLOOKUP(E93,'Tab 5-7a Soil & Air EPCs'!$D$7:$E$9,2,FALSE)),VLOOKUP(E93,'Tab 5-7a Soil & Air EPCs'!$D$7:$E$9,2,FALSE),"--") -> -- | I93: -- | J93: -- | K93: -- | L93: -- | M93: =IF(ISNUMBER(VLOOKUP(E93,'Tab 5-7a Soil & Air EPCs'!$D$7:$H$9,5,FALSE)),VLOOKUP(E93,'Tab 5-7a Soil & Air EPCs'!$D$7:$H$9,5,FALSE),"--") -> -- | N93: -- | O93: -- | P93: =IF(ISNUMBER(VLOOKUP(E93,'Tab 5-7a Soil & Air EPCs'!$D$7:$F$9,3,FALSE)),VLOOKUP(E93,'Tab 5-7a Soil & Air EPCs'!$D$7:$F$9,3,FALSE),"--") -> -- | Q93: -- | R93: -- | S93: -- | T93: --
A94: 0 | B94: 0 | C94: 0 | D94: 0 | E94: 0 | F94: -- | G94: -- | H94: =IF(ISNUMBER(VLOOKUP(E94,'Tab 5-7a Soil & Air EPCs'!$D$7:$E$9,2,FALSE)),VLOOKUP(E94,'Tab 5-7a Soil & Air EPCs'!$D$7:$E$9,2,FALSE),"--") -> -- | I94: -- | J94: -- | K94: -- | L94: -- | M94: =IF(ISNUMBER(VLOOKUP(E94,'Tab 5-7a Soil & Air EPCs'!$D$7:$H$9,5,FALSE)),VLOOKUP(E94,'Tab 5-7a Soil & Air EPCs'!$D$7:$H$9,5,FALSE),"--") -> -- | N94: -- | O94: -- | P94: =IF(ISNUMBER(VLOOKUP(E94,'Tab 5-7a Soil & Air EPCs'!$D$7:$F$9,3,FALSE)),VLOOKUP(E94,'Tab 5-7a Soil & Air EPCs'!$D$7:$F$9,3,FALSE),"--") -> -- | Q94: -- | R94: -- | S94: -- | T94: --
A95: 0 | B95: 0 | C95: 0 | D95: 0 | E95: 0 | F95: -- | G95: -- | H95: =IF(ISNUMBER(VLOOKUP(E95,'Tab 5-7a Soil & Air EPCs'!$D$7:$E$9,2,FALSE)),VLOOKUP(E95,'Tab 5-7a Soil & Air EPCs'!$D$7:$E$9,2,FALSE),"--") -> -- | I95: -- | J95: -- | K95: -- | L95: -- | M95: =IF(ISNUMBER(VLOOKUP(E95,'Tab 5-7a Soil & Air EPCs'!$D$7:$H$9,5,FALSE)),VLOOKUP(E95,'Tab 5-7a Soil & Air EPCs'!$D$7:$H$9,5,FALSE),"--") -> -- | N95: -- | O95: -- | P95: =IF(ISNUMBER(VLOOKUP(E95,'Tab 5-7a Soil & Air EPCs'!$D$7:$F$9,3,FALSE)),VLOOKUP(E95,'Tab 5-7a Soil & Air EPCs'!$D$7:$F$9,3,FALSE),"--") -> -- | Q95: -- | R95: -- | S95: -- | T95: --
A96: 0 | B96: 0 | C96: 0 | D96: 0 | E96: 0 | F96: -- | G96: -- | H96: =IF(ISNUMBER(VLOOKUP(E96,'Tab 5-7a Soil & Air EPCs'!$D$7:$E$9,2,FALSE)),VLOOKUP(E96,'Tab 5-7a Soil & Air EPCs'!$D$7:$E$9,2,FALSE),"--") -> -- | I96: -- | J96: -- | K96: -- | L96: -- | M96: =IF(ISNUMBER(VLOOKUP(E96,'Tab 5-7a Soil & Air EPCs'!$D$7:$H$9,5,FALSE)),VLOOKUP(E96,'Tab 5-7a Soil & Air EPCs'!$D$7:$H$9,5,FALSE),"--") -> -- | N96: -- | O96: -- | P96: =IF(ISNUMBER(VLOOKUP(E96,'Tab 5-7a Soil & Air EPCs'!$D$7:$F$9,3,FALSE)),VLOOKUP(E96,'Tab 5-7a Soil & Air EPCs'!$D$7:$F$9,3,FALSE),"--") -> -- | Q96: -- | R96: -- | S96: -- | T96: --
A97: 0 | B97: 0 | C97: 0 | D97: 0 | E97: 0 | F97: -- | G97: -- | H97: =IF(ISNUMBER(VLOOKUP(E97,'Tab 5-7a Soil & Air EPCs'!$D$7:$E$9,2,FALSE)),VLOOKUP(E97,'Tab 5-7a Soil & Air EPCs'!$D$7:$E$9,2,FALSE),"--") -> -- | I97: -- | J97: -- | K97: -- | L97: -- | M97: =IF(ISNUMBER(VLOOKUP(E97,'Tab 5-7a Soil & Air EPCs'!$D$7:$H$9,5,FALSE)),VLOOKUP(E97,'Tab 5-7a Soil & Air EPCs'!$D$7:$H$9,5,FALSE),"--") -> -- | N97: -- | O97: -- | P97: =IF(ISNUMBER(VLOOKUP(E97,'Tab 5-7a Soil & Air EPCs'!$D$7:$F$9,3,FALSE)),VLOOKUP(E97,'Tab 5-7a Soil & Air EPCs'!$D$7:$F$9,3,FALSE),"--") -> -- | Q97: -- | R97: -- | S97: -- | T97: --
A98: 0 | B98: 0 | C98: 0 | D98: 0 | E98: 0 | F98: -- | G98: -- | H98: =IF(ISNUMBER(VLOOKUP(E98,'Tab 5-7a Soil & Air EPCs'!$D$7:$E$9,2,FALSE)),VLOOKUP(E98,'Tab 5-7a Soil & Air EPCs'!$D$7:$E$9,2,FALSE),"--") -> -- | I98: -- | J98: -- | K98: -- | L98: -- | M98: =IF(ISNUMBER(VLOOKUP(E98,'Tab 5-7a Soil & Air EPCs'!$D$7:$H$9,5,FALSE)),VLOOKUP(E98,'Tab 5-7a Soil & Air EPCs'!$D$7:$H$9,5,FALSE),"--") -> -- | N98: -- | O98: -- | P98: =IF(ISNUMBER(VLOOKUP(E98,'Tab 5-7a Soil & Air EPCs'!$D$7:$F$9,3,FALSE)),VLOOKUP(E98,'Tab 5-7a Soil & Air EPCs'!$D$7:$F$9,3,FALSE),"--") -> -- | Q98: -- | R98: -- | S98: -- | T98: --
A99: 0 | B99: 0 | C99: 0 | D99: 0 | E99: 0 | F99: -- | G99: -- | H99: =IF(ISNUMBER(VLOOKUP(E99,'Tab 5-7a Soil & Air EPCs'!$D$7:$E$9,2,FALSE)),VLOOKUP(E99,'Tab 5-7a Soil & Air EPCs'!$D$7:$E$9,2,FALSE),"--") -> -- | I99: -- | J99: -- | K99: -- | L99: -- | M99: =IF(ISNUMBER(VLOOKUP(E99,'Tab 5-7a Soil & Air EPCs'!$D$7:$H$9,5,FALSE)),VLOOKUP(E99,'Tab 5-7a Soil & Air EPCs'!$D$7:$H$9,5,FALSE),"--") -> -- | N99: -- | O99: -- | P99: =IF(ISNUMBER(VLOOKUP(E99,'Tab 5-7a Soil & Air EPCs'!$D$7:$F$9,3,FALSE)),VLOOKUP(E99,'Tab 5-7a Soil & Air EPCs'!$D$7:$F$9,3,FALSE),"--") -> -- | Q99: -- | R99: -- | S99: -- | T99: --
A100: 0 | B100: 0 | C100: 0 | D100: 0 | E100: 0 | F100: -- | G100: -- | H100: =IF(ISNUMBER(VLOOKUP(E100,'Tab 5-7a Soil & Air EPCs'!$D$7:$E$9,2,FALSE)),VLOOKUP(E100,'Tab 5-7a Soil & Air EPCs'!$D$7:$E$9,2,FALSE),"--") -> -- | I100: -- | J100: -- | K100: -- | L100: -- | M100: =IF(ISNUMBER(VLOOKUP(E100,'Tab 5-7a Soil & Air EPCs'!$D$7:$H$9,5,FALSE)),VLOOKUP(E100,'Tab 5-7a Soil & Air EPCs'!$D$7:$H$9,5,FALSE),"--") -> -- | N100: -- | O100: -- | P100: =IF(ISNUMBER(VLOOKUP(E100,'Tab 5-7a Soil & Air EPCs'!$D$7:$F$9,3,FALSE)),VLOOKUP(E100,'Tab 5-7a Soil & Air EPCs'!$D$7:$F$9,3,FALSE),"--") -> -- | Q100: -- | R100: -- | S100: -- | T100: --
A101: 0 | B101: 0 | C101: 0 | D101: 0 | E101: 0 | F101: -- | G101: -- | H101: =IF(ISNUMBER(VLOOKUP(E101,'Tab 5-7a Soil & Air EPCs'!$D$7:$E$9,2,FALSE)),VLOOKUP(E101,'Tab 5-7a Soil & Air EPCs'!$D$7:$E$9,2,FALSE),"--") -> -- | I101: -- | J101: -- | K101: -- | L101: -- | M101: =IF(ISNUMBER(VLOOKUP(E101,'Tab 5-7a Soil & Air EPCs'!$D$7:$H$9,5,FALSE)),VLOOKUP(E101,'Tab 5-7a Soil & Air EPCs'!$D$7:$H$9,5,FALSE),"--") -> -- | N101: -- | O101: -- | P101: =IF(ISNUMBER(VLOOKUP(E101,'Tab 5-7a Soil & Air EPCs'!$D$7:$F$9,3,FALSE)),VLOOKUP(E101,'Tab 5-7a Soil & Air EPCs'!$D$7:$F$9,3,FALSE),"--") -> -- | Q101: -- | R101: -- | S101: -- | T101: --
A102: 0 | B102: 0 | C102: 0 | D102: 0 | E102: 0 | F102: -- | G102: -- | H102: =IF(ISNUMBER(VLOOKUP(E102,'Tab 5-7a Soil & Air EPCs'!$D$7:$E$9,2,FALSE)),VLOOKUP(E102,'Tab 5-7a Soil & Air EPCs'!$D$7:$E$9,2,FALSE),"--") -> -- | I102: -- | J102: -- | K102: -- | L102: -- | M102: =IF(ISNUMBER(VLOOKUP(E102,'Tab 5-7a Soil & Air EPCs'!$D$7:$H$9,5,FALSE)),VLOOKUP(E102,'Tab 5-7a Soil & Air EPCs'!$D$7:$H$9,5,FALSE),"--") -> -- | N102: -- | O102: -- | P102: =IF(ISNUMBER(VLOOKUP(E102,'Tab 5-7a Soil & Air EPCs'!$D$7:$F$9,3,FALSE)),VLOOKUP(E102,'Tab 5-7a Soil & Air EPCs'!$D$7:$F$9,3,FALSE),"--") -> -- | Q102: -- | R102: -- | S102: -- | T102: --
A103: 0 | B103: 0 | C103: 0 | D103: 0 | E103: 0 | F103: -- | G103: -- | H103: =IF(ISNUMBER(VLOOKUP(E103,'Tab 5-7a Soil & Air EPCs'!$D$7:$E$9,2,FALSE)),VLOOKUP(E103,'Tab 5-7a Soil & Air EPCs'!$D$7:$E$9,2,FALSE),"--") -> -- | I103: -- | J103: -- | K103: -- | L103: -- | M103: =IF(ISNUMBER(VLOOKUP(E103,'Tab 5-7a Soil & Air EPCs'!$D$7:$H$9,5,FALSE)),VLOOKUP(E103,'Tab 5-7a Soil & Air EPCs'!$D$7:$H$9,5,FALSE),"--") -> -- | N103: -- | O103: -- | P103: =IF(ISNUMBER(VLOOKUP(E103,'Tab 5-7a Soil & Air EPCs'!$D$7:$F$9,3,FALSE)),VLOOKUP(E103,'Tab 5-7a Soil & Air EPCs'!$D$7:$F$9,3,FALSE),"--") -> -- | Q103: -- | R103: -- | S103: -- | T103: --
A104: 0 | B104: 0 | C104: 0 | D104: 0 | E104: 0 | F104: -- | G104: -- | H104: =IF(ISNUMBER(VLOOKUP(E104,'Tab 5-7a Soil & Air EPCs'!$D$7:$E$9,2,FALSE)),VLOOKUP(E104,'Tab 5-7a Soil & Air EPCs'!$D$7:$E$9,2,FALSE),"--") -> -- | I104: -- | J104: -- | K104: -- | L104: -- | M104: =IF(ISNUMBER(VLOOKUP(E104,'Tab 5-7a Soil & Air EPCs'!$D$7:$H$9,5,FALSE)),VLOOKUP(E104,'Tab 5-7a Soil & Air EPCs'!$D$7:$H$9,5,FALSE),"--") -> -- | N104: -- | O104: -- | P104: =IF(ISNUMBER(VLOOKUP(E104,'Tab 5-7a Soil & Air EPCs'!$D$7:$F$9,3,FALSE)),VLOOKUP(E104,'Tab 5-7a Soil & Air EPCs'!$D$7:$F$9,3,FALSE),"--") -> -- | Q104: -- | R104: -- | S104: -- | T104: --
A105: 0 | B105: 0 | C105: 0 | D105: 0 | E105: 0 | F105: -- | G105: -- | H105: =IF(ISNUMBER(VLOOKUP(E105,'Tab 5-7a Soil & Air EPCs'!$D$7:$E$9,2,FALSE)),VLOOKUP(E105,'Tab 5-7a Soil & Air EPCs'!$D$7:$E$9,2,FALSE),"--") -> -- | I105: -- | J105: -- | K105: -- | L105: -- | M105: =IF(ISNUMBER(VLOOKUP(E105,'Tab 5-7a Soil & Air EPCs'!$D$7:$H$9,5,FALSE)),VLOOKUP(E105,'Tab 5-7a Soil & Air EPCs'!$D$7:$H$9,5,FALSE),"--") -> -- | N105: -- | O105: -- | P105: =IF(ISNUMBER(VLOOKUP(E105,'Tab 5-7a Soil & Air EPCs'!$D$7:$F$9,3,FALSE)),VLOOKUP(E105,'Tab 5-7a Soil & Air EPCs'!$D$7:$F$9,3,FALSE),"--") -> -- | Q105: -- | R105: -- | S105: -- | T105: --
A106: 0 | B106: 0 | C106: 0 | D106: 0 | E106: 0 | F106: -- | G106: -- | H106: =IF(ISNUMBER(VLOOKUP(E106,'Tab 5-7a Soil & Air EPCs'!$D$7:$E$9,2,FALSE)),VLOOKUP(E106,'Tab 5-7a Soil & Air EPCs'!$D$7:$E$9,2,FALSE),"--") -> -- | I106: -- | J106: -- | K106: -- | L106: -- | M106: =IF(ISNUMBER(VLOOKUP(E106,'Tab 5-7a Soil & Air EPCs'!$D$7:$H$9,5,FALSE)),VLOOKUP(E106,'Tab 5-7a Soil & Air EPCs'!$D$7:$H$9,5,FALSE),"--") -> -- | N106: -- | O106: -- | P106: =IF(ISNUMBER(VLOOKUP(E106,'Tab 5-7a Soil & Air EPCs'!$D$7:$F$9,3,FALSE)),VLOOKUP(E106,'Tab 5-7a Soil & Air EPCs'!$D$7:$F$9,3,FALSE),"--") -> -- | Q106: -- | R106: -- | S106: -- | T106: --
A107: 0 | B107: 0 | C107: 0 | D107: 0 | E107: 0 | F107: -- | G107: -- | H107: =IF(ISNUMBER(VLOOKUP(E107,'Tab 5-7a Soil & Air EPCs'!$D$7:$E$9,2,FALSE)),VLOOKUP(E107,'Tab 5-7a Soil & Air EPCs'!$D$7:$E$9,2,FALSE),"--") -> -- | I107: -- | J107: -- | K107: -- | L107: -- | M107: =IF(ISNUMBER(VLOOKUP(E107,'Tab 5-7a Soil & Air EPCs'!$D$7:$H$9,5,FALSE)),VLOOKUP(E107,'Tab 5-7a Soil & Air EPCs'!$D$7:$H$9,5,FALSE),"--") -> -- | N107: -- | O107: -- | P107: =IF(ISNUMBER(VLOOKUP(E107,'Tab 5-7a Soil & Air EPCs'!$D$7:$F$9,3,FALSE)),VLOOKUP(E107,'Tab 5-7a Soil & Air EPCs'!$D$7:$F$9,3,FALSE),"--") -> -- | Q107: -- | R107: -- | S107: -- | T107: --
A108: 0 | B108: 0 | C108: 0 | D108: 0 | E108: 0 | F108: -- | G108: -- | H108: =IF(ISNUMBER(VLOOKUP(E108,'Tab 5-7a Soil & Air EPCs'!$D$7:$E$9,2,FALSE)),VLOOKUP(E108,'Tab 5-7a Soil & Air EPCs'!$D$7:$E$9,2,FALSE),"--") -> -- | I108: -- | J108: -- | K108: -- | L108: -- | M108: =IF(ISNUMBER(VLOOKUP(E108,'Tab 5-7a Soil & Air EPCs'!$D$7:$H$9,5,FALSE)),VLOOKUP(E108,'Tab 5-7a Soil & Air EPCs'!$D$7:$H$9,5,FALSE),"--") -> -- | N108: -- | O108: -- | P108: =IF(ISNUMBER(VLOOKUP(E108,'Tab 5-7a Soil & Air EPCs'!$D$7:$F$9,3,FALSE)),VLOOKUP(E108,'Tab 5-7a Soil & Air EPCs'!$D$7:$F$9,3,FALSE),"--") -> -- | Q108: -- | R108: -- | S108: -- | T108: --
A109: 0 | B109: 0 | C109: 0 | D109: 0 | E109: 0 | F109: -- | G109: -- | H109: =IF(ISNUMBER(VLOOKUP(E109,'Tab 5-7a Soil & Air EPCs'!$D$7:$E$9,2,FALSE)),VLOOKUP(E109,'Tab 5-7a Soil & Air EPCs'!$D$7:$E$9,2,FALSE),"--") -> -- | I109: -- | J109: -- | K109: -- | L109: -- | M109: =IF(ISNUMBER(VLOOKUP(E109,'Tab 5-7a Soil & Air EPCs'!$D$7:$H$9,5,FALSE)),VLOOKUP(E109,'Tab 5-7a Soil & Air EPCs'!$D$7:$H$9,5,FALSE),"--") -> -- | N109: -- | O109: -- | P109: =IF(ISNUMBER(VLOOKUP(E109,'Tab 5-7a Soil & Air EPCs'!$D$7:$F$9,3,FALSE)),VLOOKUP(E109,'Tab 5-7a Soil & Air EPCs'!$D$7:$F$9,3,FALSE),"--") -> -- | Q109: -- | R109: -- | S109: -- | T109: --
A110: 0 | B110: 0 | C110: 0 | D110: 0 | E110: 0 | F110: -- | G110: -- | H110: =IF(ISNUMBER(VLOOKUP(E110,'Tab 5-7a Soil & Air EPCs'!$D$7:$E$9,2,FALSE)),VLOOKUP(E110,'Tab 5-7a Soil & Air EPCs'!$D$7:$E$9,2,FALSE),"--") -> -- | I110: -- | J110: -- | K110: -- | L110: -- | M110: =IF(ISNUMBER(VLOOKUP(E110,'Tab 5-7a Soil & Air EPCs'!$D$7:$H$9,5,FALSE)),VLOOKUP(E110,'Tab 5-7a Soil & Air EPCs'!$D$7:$H$9,5,FALSE),"--") -> -- | N110: -- | O110: -- | P110: =IF(ISNUMBER(VLOOKUP(E110,'Tab 5-7a Soil & Air EPCs'!$D$7:$F$9,3,FALSE)),VLOOKUP(E110,'Tab 5-7a Soil & Air EPCs'!$D$7:$F$9,3,FALSE),"--") -> -- | Q110: -- | R110: -- | S110: -- | T110: --
A111: 0 | B111: 0 | C111: 0 | D111: 0 | E111: 0 | F111: -- | G111: -- | H111: =IF(ISNUMBER(VLOOKUP(E111,'Tab 5-7a Soil & Air EPCs'!$D$7:$E$9,2,FALSE)),VLOOKUP(E111,'Tab 5-7a Soil & Air EPCs'!$D$7:$E$9,2,FALSE),"--") -> -- | I111: -- | J111: -- | K111: -- | L111: -- | M111: =IF(ISNUMBER(VLOOKUP(E111,'Tab 5-7a Soil & Air EPCs'!$D$7:$H$9,5,FALSE)),VLOOKUP(E111,'Tab 5-7a Soil & Air EPCs'!$D$7:$H$9,5,FALSE),"--") -> -- | N111: -- | O111: -- | P111: =IF(ISNUMBER(VLOOKUP(E111,'Tab 5-7a Soil & Air EPCs'!$D$7:$F$9,3,FALSE)),VLOOKUP(E111,'Tab 5-7a Soil & Air EPCs'!$D$7:$F$9,3,FALSE),"--") -> -- | Q111: -- | R111: -- | S111: -- | T111: --
A112: 0 | B112: 0 | C112: 0 | D112: 0 | E112: 0 | F112: -- | G112: -- | H112: =IF(ISNUMBER(VLOOKUP(E112,'Tab 5-7a Soil & Air EPCs'!$D$7:$E$9,2,FALSE)),VLOOKUP(E112,'Tab 5-7a Soil & Air EPCs'!$D$7:$E$9,2,FALSE),"--") -> -- | I112: -- | J112: -- | K112: -- | L112: -- | M112: =IF(ISNUMBER(VLOOKUP(E112,'Tab 5-7a Soil & Air EPCs'!$D$7:$H$9,5,FALSE)),VLOOKUP(E112,'Tab 5-7a Soil & Air EPCs'!$D$7:$H$9,5,FALSE),"--") -> -- | N112: -- | O112: -- | P112: =IF(ISNUMBER(VLOOKUP(E112,'Tab 5-7a Soil & Air EPCs'!$D$7:$F$9,3,FALSE)),VLOOKUP(E112,'Tab 5-7a Soil & Air EPCs'!$D$7:$F$9,3,FALSE),"--") -> -- | Q112: -- | R112: -- | S112: -- | T112: --
A113: 0 | B113: 0 | C113: 0 | D113: 0 | E113: 0 | F113: -- | G113: -- | H113: =IF(ISNUMBER(VLOOKUP(E113,'Tab 5-7a Soil & Air EPCs'!$D$7:$E$9,2,FALSE)),VLOOKUP(E113,'Tab 5-7a Soil & Air EPCs'!$D$7:$E$9,2,FALSE),"--") -> -- | I113: -- | J113: -- | K113: -- | L113: -- | M113: =IF(ISNUMBER(VLOOKUP(E113,'Tab 5-7a Soil & Air EPCs'!$D$7:$H$9,5,FALSE)),VLOOKUP(E113,'Tab 5-7a Soil & Air EPCs'!$D$7:$H$9,5,FALSE),"--") -> -- | N113: -- | O113: -- | P113: =IF(ISNUMBER(VLOOKUP(E113,'Tab 5-7a Soil & Air EPCs'!$D$7:$F$9,3,FALSE)),VLOOKUP(E113,'Tab 5-7a Soil & Air EPCs'!$D$7:$F$9,3,FALSE),"--") -> -- | Q113: -- | R113: -- | S113: -- | T113: --
A114: 0 | B114: 0 | C114: 0 | D114: 0 | E114: 0 | F114: -- | G114: -- | H114: =IF(ISNUMBER(VLOOKUP(E114,'Tab 5-7a Soil & Air EPCs'!$D$7:$E$9,2,FALSE)),VLOOKUP(E114,'Tab 5-7a Soil & Air EPCs'!$D$7:$E$9,2,FALSE),"--") -> -- | I114: -- | J114: -- | K114: -- | L114: -- | M114: =IF(ISNUMBER(VLOOKUP(E114,'Tab 5-7a Soil & Air EPCs'!$D$7:$H$9,5,FALSE)),VLOOKUP(E114,'Tab 5-7a Soil & Air EPCs'!$D$7:$H$9,5,FALSE),"--") -> -- | N114: -- | O114: -- | P114: =IF(ISNUMBER(VLOOKUP(E114,'Tab 5-7a Soil & Air EPCs'!$D$7:$F$9,3,FALSE)),VLOOKUP(E114,'Tab 5-7a Soil & Air EPCs'!$D$7:$F$9,3,FALSE),"--") -> -- | Q114: -- | R114: -- | S114: -- | T114: --
A115: 0 | B115: 0 | C115: 0 | D115: 0 | E115: 0 | F115: -- | G115: -- | H115: =IF(ISNUMBER(VLOOKUP(E115,'Tab 5-7a Soil & Air EPCs'!$D$7:$E$9,2,FALSE)),VLOOKUP(E115,'Tab 5-7a Soil & Air EPCs'!$D$7:$E$9,2,FALSE),"--") -> -- | I115: -- | J115: -- | K115: -- | L115: -- | M115: =IF(ISNUMBER(VLOOKUP(E115,'Tab 5-7a Soil & Air EPCs'!$D$7:$H$9,5,FALSE)),VLOOKUP(E115,'Tab 5-7a Soil & Air EPCs'!$D$7:$H$9,5,FALSE),"--") -> -- | N115: -- | O115: -- | P115: =IF(ISNUMBER(VLOOKUP(E115,'Tab 5-7a Soil & Air EPCs'!$D$7:$F$9,3,FALSE)),VLOOKUP(E115,'Tab 5-7a Soil & Air EPCs'!$D$7:$F$9,3,FALSE),"--") -> -- | Q115: -- | R115: -- | S115: -- | T115: --
A116: 0 | B116: 0 | C116: 0 | D116: 0 | E116: 0 | F116: -- | G116: -- | H116: =IF(ISNUMBER(VLOOKUP(E116,'Tab 5-7a Soil & Air EPCs'!$D$7:$E$9,2,FALSE)),VLOOKUP(E116,'Tab 5-7a Soil & Air EPCs'!$D$7:$E$9,2,FALSE),"--") -> -- | I116: -- | J116: -- | K116: -- | L116: -- | M116: =IF(ISNUMBER(VLOOKUP(E116,'Tab 5-7a Soil & Air EPCs'!$D$7:$H$9,5,FALSE)),VLOOKUP(E116,'Tab 5-7a Soil & Air EPCs'!$D$7:$H$9,5,FALSE),"--") -> -- | N116: -- | O116: -- | P116: =IF(ISNUMBER(VLOOKUP(E116,'Tab 5-7a Soil & Air EPCs'!$D$7:$F$9,3,FALSE)),VLOOKUP(E116,'Tab 5-7a Soil & Air EPCs'!$D$7:$F$9,3,FALSE),"--") -> -- | Q116: -- | R116: -- | S116: -- | T116: --
A117: 0 | B117: 0 | C117: 0 | D117: 0 | E117: 0 | F117: -- | G117: -- | H117: =IF(ISNUMBER(VLOOKUP(E117,'Tab 5-7a Soil & Air EPCs'!$D$7:$E$9,2,FALSE)),VLOOKUP(E117,'Tab 5-7a Soil & Air EPCs'!$D$7:$E$9,2,FALSE),"--") -> -- | I117: -- | J117: -- | K117: -- | L117: -- | M117: =IF(ISNUMBER(VLOOKUP(E117,'Tab 5-7a Soil & Air EPCs'!$D$7:$H$9,5,FALSE)),VLOOKUP(E117,'Tab 5-7a Soil & Air EPCs'!$D$7:$H$9,5,FALSE),"--") -> -- | N117: -- | O117: -- | P117: =IF(ISNUMBER(VLOOKUP(E117,'Tab 5-7a Soil & Air EPCs'!$D$7:$F$9,3,FALSE)),VLOOKUP(E117,'Tab 5-7a Soil & Air EPCs'!$D$7:$F$9,3,FALSE),"--") -> -- | Q117: -- | R117: -- | S117: -- | T117: --
A118: 0 | B118: 0 | C118: 0 | D118: 0 | E118: 0 | F118: -- | G118: -- | H118: =IF(ISNUMBER(VLOOKUP(E118,'Tab 5-7a Soil & Air EPCs'!$D$7:$E$9,2,FALSE)),VLOOKUP(E118,'Tab 5-7a Soil & Air EPCs'!$D$7:$E$9,2,FALSE),"--") -> -- | I118: -- | J118: -- | K118: -- | L118: -- | M118: =IF(ISNUMBER(VLOOKUP(E118,'Tab 5-7a Soil & Air EPCs'!$D$7:$H$9,5,FALSE)),VLOOKUP(E118,'Tab 5-7a Soil & Air EPCs'!$D$7:$H$9,5,FALSE),"--") -> -- | N118: -- | O118: -- | P118: =IF(ISNUMBER(VLOOKUP(E118,'Tab 5-7a Soil & Air EPCs'!$D$7:$F$9,3,FALSE)),VLOOKUP(E118,'Tab 5-7a Soil & Air EPCs'!$D$7:$F$9,3,FALSE),"--") -> -- | Q118: -- | R118: -- | S118: -- | T118: --
A119: 0 | B119: 0 | C119: 0 | D119: 0 | E119: 0 | F119: -- | G119: -- | H119: =IF(ISNUMBER(VLOOKUP(E119,'Tab 5-7a Soil & Air EPCs'!$D$7:$E$9,2,FALSE)),VLOOKUP(E119,'Tab 5-7a Soil & Air EPCs'!$D$7:$E$9,2,FALSE),"--") -> -- | I119: -- | J119: -- | K119: -- | L119: -- | M119: =IF(ISNUMBER(VLOOKUP(E119,'Tab 5-7a Soil & Air EPCs'!$D$7:$H$9,5,FALSE)),VLOOKUP(E119,'Tab 5-7a Soil & Air EPCs'!$D$7:$H$9,5,FALSE),"--") -> -- | N119: -- | O119: -- | P119: =IF(ISNUMBER(VLOOKUP(E119,'Tab 5-7a Soil & Air EPCs'!$D$7:$F$9,3,FALSE)),VLOOKUP(E119,'Tab 5-7a Soil & Air EPCs'!$D$7:$F$9,3,FALSE),"--") -> -- | Q119: -- | R119: -- | S119: -- | T119: --
A120: 0 | B120: 0 | C120: 0 | D120: 0 | E120: 0 | F120: -- | G120: -- | H120: =IF(ISNUMBER(VLOOKUP(E120,'Tab 5-7a Soil & Air EPCs'!$D$7:$E$9,2,FALSE)),VLOOKUP(E120,'Tab 5-7a Soil & Air EPCs'!$D$7:$E$9,2,FALSE),"--") -> -- | I120: -- | J120: -- | K120: -- | L120: -- | M120: =IF(ISNUMBER(VLOOKUP(E120,'Tab 5-7a Soil & Air EPCs'!$D$7:$H$9,5,FALSE)),VLOOKUP(E120,'Tab 5-7a Soil & Air EPCs'!$D$7:$H$9,5,FALSE),"--") -> -- | N120: -- | O120: -- | P120: =IF(ISNUMBER(VLOOKUP(E120,'Tab 5-7a Soil & Air EPCs'!$D$7:$F$9,3,FALSE)),VLOOKUP(E120,'Tab 5-7a Soil & Air EPCs'!$D$7:$F$9,3,FALSE),"--") -> -- | Q120: -- | R120: -- | S120: -- | T120: --
A121: 0 | B121: 0 | C121: 0 | D121: 0 | E121: 0 | F121: -- | G121: -- | H121: =IF(ISNUMBER(VLOOKUP(E121,'Tab 5-7a Soil & Air EPCs'!$D$7:$E$9,2,FALSE)),VLOOKUP(E121,'Tab 5-7a Soil & Air EPCs'!$D$7:$E$9,2,FALSE),"--") -> -- | I121: -- | J121: -- | K121: -- | L121: -- | M121: =IF(ISNUMBER(VLOOKUP(E121,'Tab 5-7a Soil & Air EPCs'!$D$7:$H$9,5,FALSE)),VLOOKUP(E121,'Tab 5-7a Soil & Air EPCs'!$D$7:$H$9,5,FALSE),"--") -> -- | N121: -- | O121: -- | P121: =IF(ISNUMBER(VLOOKUP(E121,'Tab 5-7a Soil & Air EPCs'!$D$7:$F$9,3,FALSE)),VLOOKUP(E121,'Tab 5-7a Soil & Air EPCs'!$D$7:$F$9,3,FALSE),"--") -> -- | Q121: -- | R121: -- | S121: -- | T121: --
A122: 0 | B122: 0 | C122: 0 | D122: 0 | E122: 0 | F122: -- | G122: -- | H122: =IF(ISNUMBER(VLOOKUP(E122,'Tab 5-7a Soil & Air EPCs'!$D$7:$E$9,2,FALSE)),VLOOKUP(E122,'Tab 5-7a Soil & Air EPCs'!$D$7:$E$9,2,FALSE),"--") -> -- | I122: -- | J122: -- | K122: -- | L122: -- | M122: =IF(ISNUMBER(VLOOKUP(E122,'Tab 5-7a Soil & Air EPCs'!$D$7:$H$9,5,FALSE)),VLOOKUP(E122,'Tab 5-7a Soil & Air EPCs'!$D$7:$H$9,5,FALSE),"--") -> -- | N122: -- | O122: -- | P122: =IF(ISNUMBER(VLOOKUP(E122,'Tab 5-7a Soil & Air EPCs'!$D$7:$F$9,3,FALSE)),VLOOKUP(E122,'Tab 5-7a Soil & Air EPCs'!$D$7:$F$9,3,FALSE),"--") -> -- | Q122: -- | R122: -- | S122: -- | T122: --
A123: 0 | B123: 0 | C123: 0 | D123: 0 | E123: 0 | F123: -- | G123: -- | H123: =IF(ISNUMBER(VLOOKUP(E123,'Tab 5-7a Soil & Air EPCs'!$D$7:$E$9,2,FALSE)),VLOOKUP(E123,'Tab 5-7a Soil & Air EPCs'!$D$7:$E$9,2,FALSE),"--") -> -- | I123: -- | J123: -- | K123: -- | L123: -- | M123: =IF(ISNUMBER(VLOOKUP(E123,'Tab 5-7a Soil & Air EPCs'!$D$7:$H$9,5,FALSE)),VLOOKUP(E123,'Tab 5-7a Soil & Air EPCs'!$D$7:$H$9,5,FALSE),"--") -> -- | N123: -- | O123: -- | P123: =IF(ISNUMBER(VLOOKUP(E123,'Tab 5-7a Soil & Air EPCs'!$D$7:$F$9,3,FALSE)),VLOOKUP(E123,'Tab 5-7a Soil & Air EPCs'!$D$7:$F$9,3,FALSE),"--") -> -- | Q123: -- | R123: -- | S123: -- | T123: --
A124: 0 | B124: 0 | C124: 0 | D124: 0 | E124: 0 | F124: -- | G124: -- | H124: =IF(ISNUMBER(VLOOKUP(E124,'Tab 5-7a Soil & Air EPCs'!$D$7:$E$9,2,FALSE)),VLOOKUP(E124,'Tab 5-7a Soil & Air EPCs'!$D$7:$E$9,2,FALSE),"--") -> -- | I124: -- | J124: -- | K124: -- | L124: -- | M124: =IF(ISNUMBER(VLOOKUP(E124,'Tab 5-7a Soil & Air EPCs'!$D$7:$H$9,5,FALSE)),VLOOKUP(E124,'Tab 5-7a Soil & Air EPCs'!$D$7:$H$9,5,FALSE),"--") -> -- | N124: -- | O124: -- | P124: =IF(ISNUMBER(VLOOKUP(E124,'Tab 5-7a Soil & Air EPCs'!$D$7:$F$9,3,FALSE)),VLOOKUP(E124,'Tab 5-7a Soil & Air EPCs'!$D$7:$F$9,3,FALSE),"--") -> -- | Q124: -- | R124: -- | S124: -- | T124: --
A125: 0 | B125: 0 | C125: 0 | D125: 0 | E125: 0 | F125: -- | G125: -- | H125: =IF(ISNUMBER(VLOOKUP(E125,'Tab 5-7a Soil & Air EPCs'!$D$7:$E$9,2,FALSE)),VLOOKUP(E125,'Tab 5-7a Soil & Air EPCs'!$D$7:$E$9,2,FALSE),"--") -> -- | I125: -- | J125: -- | K125: -- | L125: -- | M125: =IF(ISNUMBER(VLOOKUP(E125,'Tab 5-7a Soil & Air EPCs'!$D$7:$H$9,5,FALSE)),VLOOKUP(E125,'Tab 5-7a Soil & Air EPCs'!$D$7:$H$9,5,FALSE),"--") -> -- | N125: -- | O125: -- | P125: =IF(ISNUMBER(VLOOKUP(E125,'Tab 5-7a Soil & Air EPCs'!$D$7:$F$9,3,FALSE)),VLOOKUP(E125,'Tab 5-7a Soil & Air EPCs'!$D$7:$F$9,3,FALSE),"--") -> -- | Q125: -- | R125: -- | S125: -- | T125: --
A126: 0 | B126: 0 | C126: 0 | D126: 0 | E126: 0 | F126: -- | G126: -- | H126: =IF(ISNUMBER(VLOOKUP(E126,'Tab 5-7a Soil & Air EPCs'!$D$7:$E$9,2,FALSE)),VLOOKUP(E126,'Tab 5-7a Soil & Air EPCs'!$D$7:$E$9,2,FALSE),"--") -> -- | I126: -- | J126: -- | K126: -- | L126: -- | M126: =IF(ISNUMBER(VLOOKUP(E126,'Tab 5-7a Soil & Air EPCs'!$D$7:$H$9,5,FALSE)),VLOOKUP(E126,'Tab 5-7a Soil & Air EPCs'!$D$7:$H$9,5,FALSE),"--") -> -- | N126: -- | O126: -- | P126: =IF(ISNUMBER(VLOOKUP(E126,'Tab 5-7a Soil & Air EPCs'!$D$7:$F$9,3,FALSE)),VLOOKUP(E126,'Tab 5-7a Soil & Air EPCs'!$D$7:$F$9,3,FALSE),"--") -> -- | Q126: -- | R126: -- | S126: -- | T126: --
A127: 0 | B127: 0 | C127: 0 | D127: 0 | E127: 0 | F127: -- | G127: -- | H127: =IF(ISNUMBER(VLOOKUP(E127,'Tab 5-7a Soil & Air EPCs'!$D$7:$E$9,2,FALSE)),VLOOKUP(E127,'Tab 5-7a Soil & Air EPCs'!$D$7:$E$9,2,FALSE),"--") -> -- | I127: -- | J127: -- | K127: -- | L127: -- | M127: =IF(ISNUMBER(VLOOKUP(E127,'Tab 5-7a Soil & Air EPCs'!$D$7:$H$9,5,FALSE)),VLOOKUP(E127,'Tab 5-7a Soil & Air EPCs'!$D$7:$H$9,5,FALSE),"--") -> -- | N127: -- | O127: -- | P127: =IF(ISNUMBER(VLOOKUP(E127,'Tab 5-7a Soil & Air EPCs'!$D$7:$F$9,3,FALSE)),VLOOKUP(E127,'Tab 5-7a Soil & Air EPCs'!$D$7:$F$9,3,FALSE),"--") -> -- | Q127: -- | R127: -- | S127: -- | T127: --
A128: 0 | B128: 0 | C128: 0 | D128: 0 | E128: 0 | F128: -- | G128: -- | H128: =IF(ISNUMBER(VLOOKUP(E128,'Tab 5-7a Soil & Air EPCs'!$D$7:$E$9,2,FALSE)),VLOOKUP(E128,'Tab 5-7a Soil & Air EPCs'!$D$7:$E$9,2,FALSE),"--") -> -- | I128: -- | J128: -- | K128: -- | L128: -- | M128: =IF(ISNUMBER(VLOOKUP(E128,'Tab 5-7a Soil & Air EPCs'!$D$7:$H$9,5,FALSE)),VLOOKUP(E128,'Tab 5-7a Soil & Air EPCs'!$D$7:$H$9,5,FALSE),"--") -> -- | N128: -- | O128: -- | P128: =IF(ISNUMBER(VLOOKUP(E128,'Tab 5-7a Soil & Air EPCs'!$D$7:$F$9,3,FALSE)),VLOOKUP(E128,'Tab 5-7a Soil & Air EPCs'!$D$7:$F$9,3,FALSE),"--") -> -- | Q128: -- | R128: -- | S128: -- | T128: --
A129: 0 | B129: 0 | C129: 0 | D129: 0 | E129: 0 | F129: -- | G129: -- | H129: =IF(ISNUMBER(VLOOKUP(E129,'Tab 5-7a Soil & Air EPCs'!$D$7:$E$9,2,FALSE)),VLOOKUP(E129,'Tab 5-7a Soil & Air EPCs'!$D$7:$E$9,2,FALSE),"--") -> -- | I129: -- | J129: -- | K129: -- | L129: -- | M129: =IF(ISNUMBER(VLOOKUP(E129,'Tab 5-7a Soil & Air EPCs'!$D$7:$H$9,5,FALSE)),VLOOKUP(E129,'Tab 5-7a Soil & Air EPCs'!$D$7:$H$9,5,FALSE),"--") -> -- | N129: -- | O129: -- | P129: =IF(ISNUMBER(VLOOKUP(E129,'Tab 5-7a Soil & Air EPCs'!$D$7:$F$9,3,FALSE)),VLOOKUP(E129,'Tab 5-7a Soil & Air EPCs'!$D$7:$F$9,3,FALSE),"--") -> -- | Q129: -- | R129: -- | S129: -- | T129: --
A130: 0 | B130: 0 | C130: 0 | D130: 0 | E130: 0 | F130: -- | G130: -- | H130: =IF(ISNUMBER(VLOOKUP(E130,'Tab 5-7a Soil & Air EPCs'!$D$7:$E$9,2,FALSE)),VLOOKUP(E130,'Tab 5-7a Soil & Air EPCs'!$D$7:$E$9,2,FALSE),"--") -> -- | I130: -- | J130: -- | K130: -- | L130: -- | M130: =IF(ISNUMBER(VLOOKUP(E130,'Tab 5-7a Soil & Air EPCs'!$D$7:$H$9,5,FALSE)),VLOOKUP(E130,'Tab 5-7a Soil & Air EPCs'!$D$7:$H$9,5,FALSE),"--") -> -- | N130: -- | O130: -- | P130: =IF(ISNUMBER(VLOOKUP(E130,'Tab 5-7a Soil & Air EPCs'!$D$7:$F$9,3,FALSE)),VLOOKUP(E130,'Tab 5-7a Soil & Air EPCs'!$D$7:$F$9,3,FALSE),"--") -> -- | Q130: -- | R130: -- | S130: -- | T130: --
A131: 0 | B131: 0 | C131: 0 | D131: 0 | E131: 0 | F131: -- | G131: -- | H131: =IF(ISNUMBER(VLOOKUP(E131,'Tab 5-7a Soil & Air EPCs'!$D$7:$E$9,2,FALSE)),VLOOKUP(E131,'Tab 5-7a Soil & Air EPCs'!$D$7:$E$9,2,FALSE),"--") -> -- | I131: -- | J131: -- | K131: -- | L131: -- | M131: =IF(ISNUMBER(VLOOKUP(E131,'Tab 5-7a Soil & Air EPCs'!$D$7:$H$9,5,FALSE)),VLOOKUP(E131,'Tab 5-7a Soil & Air EPCs'!$D$7:$H$9,5,FALSE),"--") -> -- | N131: -- | O131: -- | P131: =IF(ISNUMBER(VLOOKUP(E131,'Tab 5-7a Soil & Air EPCs'!$D$7:$F$9,3,FALSE)),VLOOKUP(E131,'Tab 5-7a Soil & Air EPCs'!$D$7:$F$9,3,FALSE),"--") -> -- | Q131: -- | R131: -- | S131: -- | T131: --
A132: 0 | B132: 0 | C132: 0 | D132: 0 | E132: 0 | F132: -- | G132: -- | H132: =IF(ISNUMBER(VLOOKUP(E132,'Tab 5-7a Soil & Air EPCs'!$D$7:$E$9,2,FALSE)),VLOOKUP(E132,'Tab 5-7a Soil & Air EPCs'!$D$7:$E$9,2,FALSE),"--") -> -- | I132: -- | J132: -- | K132: -- | L132: -- | M132: =IF(ISNUMBER(VLOOKUP(E132,'Tab 5-7a Soil & Air EPCs'!$D$7:$H$9,5,FALSE)),VLOOKUP(E132,'Tab 5-7a Soil & Air EPCs'!$D$7:$H$9,5,FALSE),"--") -> -- | N132: -- | O132: -- | P132: =IF(ISNUMBER(VLOOKUP(E132,'Tab 5-7a Soil & Air EPCs'!$D$7:$F$9,3,FALSE)),VLOOKUP(E132,'Tab 5-7a Soil & Air EPCs'!$D$7:$F$9,3,FALSE),"--") -> -- | Q132: -- | R132: -- | S132: -- | T132: --
A133: 0 | B133: 0 | C133: 0 | D133: 0 | E133: 0 | F133: -- | G133: -- | H133: =IF(ISNUMBER(VLOOKUP(E133,'Tab 5-7a Soil & Air EPCs'!$D$7:$E$9,2,FALSE)),VLOOKUP(E133,'Tab 5-7a Soil & Air EPCs'!$D$7:$E$9,2,FALSE),"--") -> -- | I133: -- | J133: -- | K133: -- | L133: -- | M133: =IF(ISNUMBER(VLOOKUP(E133,'Tab 5-7a Soil & Air EPCs'!$D$7:$H$9,5,FALSE)),VLOOKUP(E133,'Tab 5-7a Soil & Air EPCs'!$D$7:$H$9,5,FALSE),"--") -> -- | N133: -- | O133: -- | P133: =IF(ISNUMBER(VLOOKUP(E133,'Tab 5-7a Soil & Air EPCs'!$D$7:$F$9,3,FALSE)),VLOOKUP(E133,'Tab 5-7a Soil & Air EPCs'!$D$7:$F$9,3,FALSE),"--") -> -- | Q133: -- | R133: -- | S133: -- | T133: --
A134: 0 | B134: 0 | C134: 0 | D134: 0 | E134: 0 | F134: -- | G134: -- | H134: =IF(ISNUMBER(VLOOKUP(E134,'Tab 5-7a Soil & Air EPCs'!$D$7:$E$9,2,FALSE)),VLOOKUP(E134,'Tab 5-7a Soil & Air EPCs'!$D$7:$E$9,2,FALSE),"--") -> -- | I134: -- | J134: -- | K134: -- | L134: -- | M134: =IF(ISNUMBER(VLOOKUP(E134,'Tab 5-7a Soil & Air EPCs'!$D$7:$H$9,5,FALSE)),VLOOKUP(E134,'Tab 5-7a Soil & Air EPCs'!$D$7:$H$9,5,FALSE),"--") -> -- | N134: -- | O134: -- | P134: =IF(ISNUMBER(VLOOKUP(E134,'Tab 5-7a Soil & Air EPCs'!$D$7:$F$9,3,FALSE)),VLOOKUP(E134,'Tab 5-7a Soil & Air EPCs'!$D$7:$F$9,3,FALSE),"--") -> -- | Q134: -- | R134: -- | S134: -- | T134: --
A135: 0 | B135: 0 | C135: 0 | D135: 0 | E135: 0 | F135: -- | G135: -- | H135: =IF(ISNUMBER(VLOOKUP(E135,'Tab 5-7a Soil & Air EPCs'!$D$7:$E$9,2,FALSE)),VLOOKUP(E135,'Tab 5-7a Soil & Air EPCs'!$D$7:$E$9,2,FALSE),"--") -> -- | I135: -- | J135: -- | K135: -- | L135: -- | M135: =IF(ISNUMBER(VLOOKUP(E135,'Tab 5-7a Soil & Air EPCs'!$D$7:$H$9,5,FALSE)),VLOOKUP(E135,'Tab 5-7a Soil & Air EPCs'!$D$7:$H$9,5,FALSE),"--") -> -- | N135: -- | O135: -- | P135: =IF(ISNUMBER(VLOOKUP(E135,'Tab 5-7a Soil & Air EPCs'!$D$7:$F$9,3,FALSE)),VLOOKUP(E135,'Tab 5-7a Soil & Air EPCs'!$D$7:$F$9,3,FALSE),"--") -> -- | Q135: -- | R135: -- | S135: -- | T135: --
A136: 0 | B136: 0 | C136: 0 | D136: 0 | E136: 0 | F136: -- | G136: -- | H136: =IF(ISNUMBER(VLOOKUP(E136,'Tab 5-7a Soil & Air EPCs'!$D$7:$E$9,2,FALSE)),VLOOKUP(E136,'Tab 5-7a Soil & Air EPCs'!$D$7:$E$9,2,FALSE),"--") -> -- | I136: -- | J136: -- | K136: -- | L136: -- | M136: =IF(ISNUMBER(VLOOKUP(E136,'Tab 5-7a Soil & Air EPCs'!$D$7:$H$9,5,FALSE)),VLOOKUP(E136,'Tab 5-7a Soil & Air EPCs'!$D$7:$H$9,5,FALSE),"--") -> -- | N136: -- | O136: -- | P136: =IF(ISNUMBER(VLOOKUP(E136,'Tab 5-7a Soil & Air EPCs'!$D$7:$F$9,3,FALSE)),VLOOKUP(E136,'Tab 5-7a Soil & Air EPCs'!$D$7:$F$9,3,FALSE),"--") -> -- | Q136: -- | R136: -- | S136: -- | T136: --
A137: 0 | B137: 0 | C137: 0 | D137: 0 | E137: 0 | F137: -- | G137: -- | H137: =IF(ISNUMBER(VLOOKUP(E137,'Tab 5-7a Soil & Air EPCs'!$D$7:$E$9,2,FALSE)),VLOOKUP(E137,'Tab 5-7a Soil & Air EPCs'!$D$7:$E$9,2,FALSE),"--") -> -- | I137: -- | J137: -- | K137: -- | L137: -- | M137: =IF(ISNUMBER(VLOOKUP(E137,'Tab 5-7a Soil & Air EPCs'!$D$7:$H$9,5,FALSE)),VLOOKUP(E137,'Tab 5-7a Soil & Air EPCs'!$D$7:$H$9,5,FALSE),"--") -> -- | N137: -- | O137: -- | P137: =IF(ISNUMBER(VLOOKUP(E137,'Tab 5-7a Soil & Air EPCs'!$D$7:$F$9,3,FALSE)),VLOOKUP(E137,'Tab 5-7a Soil & Air EPCs'!$D$7:$F$9,3,FALSE),"--") -> -- | Q137: -- | R137: -- | S137: -- | T137: --
A138: 0 | B138: 0 | C138: 0 | D138: 0 | E138: 0 | F138: -- | G138: -- | H138: =IF(ISNUMBER(VLOOKUP(E138,'Tab 5-7a Soil & Air EPCs'!$D$7:$E$9,2,FALSE)),VLOOKUP(E138,'Tab 5-7a Soil & Air EPCs'!$D$7:$E$9,2,FALSE),"--") -> -- | I138: -- | J138: -- | K138: -- | L138: -- | M138: =IF(ISNUMBER(VLOOKUP(E138,'Tab 5-7a Soil & Air EPCs'!$D$7:$H$9,5,FALSE)),VLOOKUP(E138,'Tab 5-7a Soil & Air EPCs'!$D$7:$H$9,5,FALSE),"--") -> -- | N138: -- | O138: -- | P138: =IF(ISNUMBER(VLOOKUP(E138,'Tab 5-7a Soil & Air EPCs'!$D$7:$F$9,3,FALSE)),VLOOKUP(E138,'Tab 5-7a Soil & Air EPCs'!$D$7:$F$9,3,FALSE),"--") -> -- | Q138: -- | R138: -- | S138: -- | T138: --
A139: 0 | B139: 0 | C139: 0 | D139: 0 | E139: 0 | F139: -- | G139: -- | H139: =IF(ISNUMBER(VLOOKUP(E139,'Tab 5-7a Soil & Air EPCs'!$D$7:$E$9,2,FALSE)),VLOOKUP(E139,'Tab 5-7a Soil & Air EPCs'!$D$7:$E$9,2,FALSE),"--") -> -- | I139: -- | J139: -- | K139: -- | L139: -- | M139: =IF(ISNUMBER(VLOOKUP(E139,'Tab 5-7a Soil & Air EPCs'!$D$7:$H$9,5,FALSE)),VLOOKUP(E139,'Tab 5-7a Soil & Air EPCs'!$D$7:$H$9,5,FALSE),"--") -> -- | N139: -- | O139: -- | P139: =IF(ISNUMBER(VLOOKUP(E139,'Tab 5-7a Soil & Air EPCs'!$D$7:$F$9,3,FALSE)),VLOOKUP(E139,'Tab 5-7a Soil & Air EPCs'!$D$7:$F$9,3,FALSE),"--") -> -- | Q139: -- | R139: -- | S139: -- | T139: --
A140: 0 | B140: 0 | C140: 0 | D140: 0 | E140: 0 | F140: -- | G140: -- | H140: =IF(ISNUMBER(VLOOKUP(E140,'Tab 5-7a Soil & Air EPCs'!$D$7:$E$9,2,FALSE)),VLOOKUP(E140,'Tab 5-7a Soil & Air EPCs'!$D$7:$E$9,2,FALSE),"--") -> -- | I140: -- | J140: -- | K140: -- | L140: -- | M140: =IF(ISNUMBER(VLOOKUP(E140,'Tab 5-7a Soil & Air EPCs'!$D$7:$H$9,5,FALSE)),VLOOKUP(E140,'Tab 5-7a Soil & Air EPCs'!$D$7:$H$9,5,FALSE),"--") -> -- | N140: -- | O140: -- | P140: =IF(ISNUMBER(VLOOKUP(E140,'Tab 5-7a Soil & Air EPCs'!$D$7:$F$9,3,FALSE)),VLOOKUP(E140,'Tab 5-7a Soil & Air EPCs'!$D$7:$F$9,3,FALSE),"--") -> -- | Q140: -- | R140: -- | S140: =IF(SUM(I140,N140,Q140)>0,SUM(I140,N140,Q140),"--") -> -- | T140: =IF(SUM(J140,O140,R140)>0,SUM(J140,O140,R140),"--") -> --
A141: 0 | B141: 0 | C141: 0 | D141: 0 | E141: 0 | F141: -- | G141: -- | H141: =IF(ISNUMBER(VLOOKUP(E141,'Tab 5-7a Soil & Air EPCs'!$D$7:$E$9,2,FALSE)),VLOOKUP(E141,'Tab 5-7a Soil & Air EPCs'!$D$7:$E$9,2,FALSE),"--") -> -- | I141: -- | J141: -- | K141: -- | L141: -- | M141: =IF(ISNUMBER(VLOOKUP(E141,'Tab 5-7a Soil & Air EPCs'!$D$7:$H$9,5,FALSE)),VLOOKUP(E141,'Tab 5-7a Soil & Air EPCs'!$D$7:$H$9,5,FALSE),"--") -> -- | N141: -- | O141: -- | P141: =IF(ISNUMBER(VLOOKUP(E141,'Tab 5-7a Soil & Air EPCs'!$D$7:$F$9,3,FALSE)),VLOOKUP(E141,'Tab 5-7a Soil & Air EPCs'!$D$7:$F$9,3,FALSE),"--") -> -- | Q141: -- | R141: -- | S141: -- | T141: --
A142: 0 | B142: 0 | C142: 0 | D142: 0 | E142: 0 | F142: -- | G142: -- | H142: =IF(ISNUMBER(VLOOKUP(E142,'Tab 5-7a Soil & Air EPCs'!$D$7:$E$9,2,FALSE)),VLOOKUP(E142,'Tab 5-7a Soil & Air EPCs'!$D$7:$E$9,2,FALSE),"--") -> -- | I142: -- | J142: -- | K142: -- | L142: -- | M142: =IF(ISNUMBER(VLOOKUP(E142,'Tab 5-7a Soil & Air EPCs'!$D$7:$H$9,5,FALSE)),VLOOKUP(E142,'Tab 5-7a Soil & Air EPCs'!$D$7:$H$9,5,FALSE),"--") -> -- | N142: -- | O142: -- | P142: =IF(ISNUMBER(VLOOKUP(E142,'Tab 5-7a Soil & Air EPCs'!$D$7:$F$9,3,FALSE)),VLOOKUP(E142,'Tab 5-7a Soil & Air EPCs'!$D$7:$F$9,3,FALSE),"--") -> -- | Q142: -- | R142: -- | S142: -- | T142: --
A143: 0 | B143: 0 | C143: 0 | D143: 0 | E143: 0 | F143: -- | G143: -- | H143: =IF(ISNUMBER(VLOOKUP(E143,'Tab 5-7a Soil & Air EPCs'!$D$7:$E$9,2,FALSE)),VLOOKUP(E143,'Tab 5-7a Soil & Air EPCs'!$D$7:$E$9,2,FALSE),"--") -> -- | I143: -- | J143: -- | K143: -- | L143: -- | M143: =IF(ISNUMBER(VLOOKUP(E143,'Tab 5-7a Soil & Air EPCs'!$D$7:$H$9,5,FALSE)),VLOOKUP(E143,'Tab 5-7a Soil & Air EPCs'!$D$7:$H$9,5,FALSE),"--") -> -- | N143: -- | O143: -- | P143: =IF(ISNUMBER(VLOOKUP(E143,'Tab 5-7a Soil & Air EPCs'!$D$7:$F$9,3,FALSE)),VLOOKUP(E143,'Tab 5-7a Soil & Air EPCs'!$D$7:$F$9,3,FALSE),"--") -> -- | Q143: -- | R143: -- | S143: -- | T143: --
A144: 0 | B144: 0 | C144: 0 | D144: 0 | E144: 0 | F144: -- | G144: -- | H144: =IF(ISNUMBER(VLOOKUP(E144,'Tab 5-7a Soil & Air EPCs'!$D$7:$E$9,2,FALSE)),VLOOKUP(E144,'Tab 5-7a Soil & Air EPCs'!$D$7:$E$9,2,FALSE),"--") -> -- | I144: -- | J144: -- | K144: -- | L144: -- | M144: =IF(ISNUMBER(VLOOKUP(E144,'Tab 5-7a Soil & Air EPCs'!$D$7:$H$9,5,FALSE)),VLOOKUP(E144,'Tab 5-7a Soil & Air EPCs'!$D$7:$H$9,5,FALSE),"--") -> -- | N144: -- | O144: -- | P144: =IF(ISNUMBER(VLOOKUP(E144,'Tab 5-7a Soil & Air EPCs'!$D$7:$F$9,3,FALSE)),VLOOKUP(E144,'Tab 5-7a Soil & Air EPCs'!$D$7:$F$9,3,FALSE),"--") -> -- | Q144: -- | R144: -- | S144: -- | T144: --
A145: 0 | B145: 0 | C145: 0 | D145: 0 | E145: 0 | F145: -- | G145: -- | H145: =IF(ISNUMBER(VLOOKUP(E145,'Tab 5-7a Soil & Air EPCs'!$D$7:$E$9,2,FALSE)),VLOOKUP(E145,'Tab 5-7a Soil & Air EPCs'!$D$7:$E$9,2,FALSE),"--") -> -- | I145: -- | J145: -- | K145: -- | L145: -- | M145: =IF(ISNUMBER(VLOOKUP(E145,'Tab 5-7a Soil & Air EPCs'!$D$7:$H$9,5,FALSE)),VLOOKUP(E145,'Tab 5-7a Soil & Air EPCs'!$D$7:$H$9,5,FALSE),"--") -> -- | N145: -- | O145: -- | P145: =IF(ISNUMBER(VLOOKUP(E145,'Tab 5-7a Soil & Air EPCs'!$D$7:$F$9,3,FALSE)),VLOOKUP(E145,'Tab 5-7a Soil & Air EPCs'!$D$7:$F$9,3,FALSE),"--") -> -- | Q145: -- | R145: -- | S145: -- | T145: --
A146: 0 | B146: 0 | C146: 0 | D146: 0 | E146: 0 | F146: -- | G146: -- | H146: =IF(ISNUMBER(VLOOKUP(E146,'Tab 5-7a Soil & Air EPCs'!$D$7:$E$9,2,FALSE)),VLOOKUP(E146,'Tab 5-7a Soil & Air EPCs'!$D$7:$E$9,2,FALSE),"--") -> -- | I146: -- | J146: -- | K146: -- | L146: -- | M146: =IF(ISNUMBER(VLOOKUP(E146,'Tab 5-7a Soil & Air EPCs'!$D$7:$H$9,5,FALSE)),VLOOKUP(E146,'Tab 5-7a Soil & Air EPCs'!$D$7:$H$9,5,FALSE),"--") -> -- | N146: -- | O146: -- | P146: =IF(ISNUMBER(VLOOKUP(E146,'Tab 5-7a Soil & Air EPCs'!$D$7:$F$9,3,FALSE)),VLOOKUP(E146,'Tab 5-7a Soil & Air EPCs'!$D$7:$F$9,3,FALSE),"--") -> -- | Q146: -- | R146: -- | S146: -- | T146: --
A147: 0 | B147: 0 | C147: 0 | D147: 0 | E147: 0 | F147: -- | G147: -- | H147: =IF(ISNUMBER(VLOOKUP(E147,'Tab 5-7a Soil & Air EPCs'!$D$7:$E$9,2,FALSE)),VLOOKUP(E147,'Tab 5-7a Soil & Air EPCs'!$D$7:$E$9,2,FALSE),"--") -> -- | I147: -- | J147: -- | K147: -- | L147: -- | M147: =IF(ISNUMBER(VLOOKUP(E147,'Tab 5-7a Soil & Air EPCs'!$D$7:$H$9,5,FALSE)),VLOOKUP(E147,'Tab 5-7a Soil & Air EPCs'!$D$7:$H$9,5,FALSE),"--") -> -- | N147: -- | O147: -- | P147: =IF(ISNUMBER(VLOOKUP(E147,'Tab 5-7a Soil & Air EPCs'!$D$7:$F$9,3,FALSE)),VLOOKUP(E147,'Tab 5-7a Soil & Air EPCs'!$D$7:$F$9,3,FALSE),"--") -> -- | Q147: -- | R147: -- | S147: -- | T147: --
A148: 0 | B148: 0 | C148: 0 | D148: 0 | E148: 0 | F148: -- | G148: -- | H148: =IF(ISNUMBER(VLOOKUP(E148,'Tab 5-7a Soil & Air EPCs'!$D$7:$E$9,2,FALSE)),VLOOKUP(E148,'Tab 5-7a Soil & Air EPCs'!$D$7:$E$9,2,FALSE),"--") -> -- | I148: -- | J148: -- | K148: -- | L148: -- | M148: =IF(ISNUMBER(VLOOKUP(E148,'Tab 5-7a Soil & Air EPCs'!$D$7:$H$9,5,FALSE)),VLOOKUP(E148,'Tab 5-7a Soil & Air EPCs'!$D$7:$H$9,5,FALSE),"--") -> -- | N148: -- | O148: -- | P148: =IF(ISNUMBER(VLOOKUP(E148,'Tab 5-7a Soil & Air EPCs'!$D$7:$F$9,3,FALSE)),VLOOKUP(E148,'Tab 5-7a Soil & Air EPCs'!$D$7:$F$9,3,FALSE),"--") -> -- | Q148: -- | R148: -- | S148: -- | T148: --
A149: 0 | B149: 0 | C149: 0 | D149: 0 | E149: 0 | F149: -- | G149: -- | H149: =IF(ISNUMBER(VLOOKUP(E149,'Tab 5-7a Soil & Air EPCs'!$D$7:$E$9,2,FALSE)),VLOOKUP(E149,'Tab 5-7a Soil & Air EPCs'!$D$7:$E$9,2,FALSE),"--") -> -- | I149: -- | J149: -- | K149: -- | L149: -- | M149: =IF(ISNUMBER(VLOOKUP(E149,'Tab 5-7a Soil & Air EPCs'!$D$7:$H$9,5,FALSE)),VLOOKUP(E149,'Tab 5-7a Soil & Air EPCs'!$D$7:$H$9,5,FALSE),"--") -> -- | N149: -- | O149: -- | P149: =IF(ISNUMBER(VLOOKUP(E149,'Tab 5-7a Soil & Air EPCs'!$D$7:$F$9,3,FALSE)),VLOOKUP(E149,'Tab 5-7a Soil & Air EPCs'!$D$7:$F$9,3,FALSE),"--") -> -- | Q149: -- | R149: -- | S149: -- | T149: --
A150: 0 | B150: 0 | C150: 0 | D150: 0 | E150: 0 | F150: -- | G150: -- | H150: =IF(ISNUMBER(VLOOKUP(E150,'Tab 5-7a Soil & Air EPCs'!$D$7:$E$9,2,FALSE)),VLOOKUP(E150,'Tab 5-7a Soil & Air EPCs'!$D$7:$E$9,2,FALSE),"--") -> -- | I150: -- | J150: -- | K150: -- | L150: -- | M150: =IF(ISNUMBER(VLOOKUP(E150,'Tab 5-7a Soil & Air EPCs'!$D$7:$H$9,5,FALSE)),VLOOKUP(E150,'Tab 5-7a Soil & Air EPCs'!$D$7:$H$9,5,FALSE),"--") -> -- | N150: -- | O150: -- | P150: =IF(ISNUMBER(VLOOKUP(E150,'Tab 5-7a Soil & Air EPCs'!$D$7:$F$9,3,FALSE)),VLOOKUP(E150,'Tab 5-7a Soil & Air EPCs'!$D$7:$F$9,3,FALSE),"--") -> -- | Q150: -- | R150: -- | S150: -- | T150: --
A151: 0 | B151: 0 | C151: 0 | D151: 0 | E151: 0 | F151: -- | G151: -- | H151: =IF(ISNUMBER(VLOOKUP(E151,'Tab 5-7a Soil & Air EPCs'!$D$7:$E$9,2,FALSE)),VLOOKUP(E151,'Tab 5-7a Soil & Air EPCs'!$D$7:$E$9,2,FALSE),"--") -> -- | I151: -- | J151: -- | K151: -- | L151: -- | M151: =IF(ISNUMBER(VLOOKUP(E151,'Tab 5-7a Soil & Air EPCs'!$D$7:$H$9,5,FALSE)),VLOOKUP(E151,'Tab 5-7a Soil & Air EPCs'!$D$7:$H$9,5,FALSE),"--") -> -- | N151: -- | O151: -- | P151: =IF(ISNUMBER(VLOOKUP(E151,'Tab 5-7a Soil & Air EPCs'!$D$7:$F$9,3,FALSE)),VLOOKUP(E151,'Tab 5-7a Soil & Air EPCs'!$D$7:$F$9,3,FALSE),"--") -> -- | Q151: -- | R151: -- | S151: -- | T151: --
A152: 0 | B152: 0 | C152: 0 | D152: 0 | E152: 0 | F152: -- | G152: -- | H152: =IF(ISNUMBER(VLOOKUP(E152,'Tab 5-7a Soil & Air EPCs'!$D$7:$E$9,2,FALSE)),VLOOKUP(E152,'Tab 5-7a Soil & Air EPCs'!$D$7:$E$9,2,FALSE),"--") -> -- | I152: -- | J152: -- | K152: -- | L152: -- | M152: =IF(ISNUMBER(VLOOKUP(E152,'Tab 5-7a Soil & Air EPCs'!$D$7:$H$9,5,FALSE)),VLOOKUP(E152,'Tab 5-7a Soil & Air EPCs'!$D$7:$H$9,5,FALSE),"--") -> -- | N152: -- | O152: -- | P152: =IF(ISNUMBER(VLOOKUP(E152,'Tab 5-7a Soil & Air EPCs'!$D$7:$F$9,3,FALSE)),VLOOKUP(E152,'Tab 5-7a Soil & Air EPCs'!$D$7:$F$9,3,FALSE),"--") -> -- | Q152: -- | R152: -- | S152: -- | T152: --
A153: 0 | B153: 0 | C153: 0 | D153: 0 | E153: 0 | F153: -- | G153: -- | H153: =IF(ISNUMBER(VLOOKUP(E153,'Tab 5-7a Soil & Air EPCs'!$D$7:$E$9,2,FALSE)),VLOOKUP(E153,'Tab 5-7a Soil & Air EPCs'!$D$7:$E$9,2,FALSE),"--") -> -- | I153: -- | J153: -- | K153: -- | L153: -- | M153: =IF(ISNUMBER(VLOOKUP(E153,'Tab 5-7a Soil & Air EPCs'!$D$7:$H$9,5,FALSE)),VLOOKUP(E153,'Tab 5-7a Soil & Air EPCs'!$D$7:$H$9,5,FALSE),"--") -> -- | N153: -- | O153: -- | P153: =IF(ISNUMBER(VLOOKUP(E153,'Tab 5-7a Soil & Air EPCs'!$D$7:$F$9,3,FALSE)),VLOOKUP(E153,'Tab 5-7a Soil & Air EPCs'!$D$7:$F$9,3,FALSE),"--") -> -- | Q153: -- | R153: -- | S153: -- | T153: --
A154: 0 | B154: 0 | C154: 0 | D154: 0 | E154: 0 | F154: -- | G154: -- | H154: =IF(ISNUMBER(VLOOKUP(E154,'Tab 5-7a Soil & Air EPCs'!$D$7:$E$9,2,FALSE)),VLOOKUP(E154,'Tab 5-7a Soil & Air EPCs'!$D$7:$E$9,2,FALSE),"--") -> -- | I154: -- | J154: -- | K154: -- | L154: -- | M154: =IF(ISNUMBER(VLOOKUP(E154,'Tab 5-7a Soil & Air EPCs'!$D$7:$H$9,5,FALSE)),VLOOKUP(E154,'Tab 5-7a Soil & Air EPCs'!$D$7:$H$9,5,FALSE),"--") -> -- | N154: -- | O154: -- | P154: =IF(ISNUMBER(VLOOKUP(E154,'Tab 5-7a Soil & Air EPCs'!$D$7:$F$9,3,FALSE)),VLOOKUP(E154,'Tab 5-7a Soil & Air EPCs'!$D$7:$F$9,3,FALSE),"--") -> -- | Q154: -- | R154: -- | S154: -- | T154: --
A155: 0 | B155: 0 | C155: 0 | D155: 0 | E155: 0 | F155: -- | G155: -- | H155: =IF(ISNUMBER(VLOOKUP(E155,'Tab 5-7a Soil & Air EPCs'!$D$7:$E$9,2,FALSE)),VLOOKUP(E155,'Tab 5-7a Soil & Air EPCs'!$D$7:$E$9,2,FALSE),"--") -> -- | I155: -- | J155: -- | K155: -- | L155: -- | M155: =IF(ISNUMBER(VLOOKUP(E155,'Tab 5-7a Soil & Air EPCs'!$D$7:$H$9,5,FALSE)),VLOOKUP(E155,'Tab 5-7a Soil & Air EPCs'!$D$7:$H$9,5,FALSE),"--") -> -- | N155: -- | O155: -- | P155: =IF(ISNUMBER(VLOOKUP(E155,'Tab 5-7a Soil & Air EPCs'!$D$7:$F$9,3,FALSE)),VLOOKUP(E155,'Tab 5-7a Soil & Air EPCs'!$D$7:$F$9,3,FALSE),"--") -> -- | Q155: -- | R155: -- | S155: -- | T155: --
A156: 0 | B156: 0 | C156: 0 | D156: 0 | E156: 0 | F156: -- | G156: -- | H156: =IF(ISNUMBER(VLOOKUP(E156,'Tab 5-7a Soil & Air EPCs'!$D$7:$E$9,2,FALSE)),VLOOKUP(E156,'Tab 5-7a Soil & Air EPCs'!$D$7:$E$9,2,FALSE),"--") -> -- | I156: -- | J156: -- | K156: -- | L156: -- | M156: =IF(ISNUMBER(VLOOKUP(E156,'Tab 5-7a Soil & Air EPCs'!$D$7:$H$9,5,FALSE)),VLOOKUP(E156,'Tab 5-7a Soil & Air EPCs'!$D$7:$H$9,5,FALSE),"--") -> -- | N156: -- | O156: -- | P156: =IF(ISNUMBER(VLOOKUP(E156,'Tab 5-7a Soil & Air EPCs'!$D$7:$F$9,3,FALSE)),VLOOKUP(E156,'Tab 5-7a Soil & Air EPCs'!$D$7:$F$9,3,FALSE),"--") -> -- | Q156: -- | R156: -- | S156: -- | T156: --
A157: 0 | B157: 0 | C157: 0 | D157: 0 | E157: 0 | F157: -- | G157: -- | H157: =IF(ISNUMBER(VLOOKUP(E157,'Tab 5-7a Soil & Air EPCs'!$D$7:$E$9,2,FALSE)),VLOOKUP(E157,'Tab 5-7a Soil & Air EPCs'!$D$7:$E$9,2,FALSE),"--") -> -- | I157: -- | J157: -- | K157: -- | L157: -- | M157: =IF(ISNUMBER(VLOOKUP(E157,'Tab 5-7a Soil & Air EPCs'!$D$7:$H$9,5,FALSE)),VLOOKUP(E157,'Tab 5-7a Soil & Air EPCs'!$D$7:$H$9,5,FALSE),"--") -> -- | N157: -- | O157: -- | P157: =IF(ISNUMBER(VLOOKUP(E157,'Tab 5-7a Soil & Air EPCs'!$D$7:$F$9,3,FALSE)),VLOOKUP(E157,'Tab 5-7a Soil & Air EPCs'!$D$7:$F$9,3,FALSE),"--") -> -- | Q157: -- | R157: -- | S157: -- | T157: --
A158: 0 | B158: 0 | C158: 0 | D158: 0 | E158: 0 | F158: -- | G158: -- | H158: =IF(ISNUMBER(VLOOKUP(E158,'Tab 5-7a Soil & Air EPCs'!$D$7:$E$9,2,FALSE)),VLOOKUP(E158,'Tab 5-7a Soil & Air EPCs'!$D$7:$E$9,2,FALSE),"--") -> -- | I158: -- | J158: -- | K158: -- | L158: -- | M158: =IF(ISNUMBER(VLOOKUP(E158,'Tab 5-7a Soil & Air EPCs'!$D$7:$H$9,5,FALSE)),VLOOKUP(E158,'Tab 5-7a Soil & Air EPCs'!$D$7:$H$9,5,FALSE),"--") -> -- | N158: -- | O158: -- | P158: =IF(ISNUMBER(VLOOKUP(E158,'Tab 5-7a Soil & Air EPCs'!$D$7:$F$9,3,FALSE)),VLOOKUP(E158,'Tab 5-7a Soil & Air EPCs'!$D$7:$F$9,3,FALSE),"--") -> -- | Q158: -- | R158: -- | S158: -- | T158: --
A159: 0 | B159: 0 | C159: 0 | D159: 0 | E159: 0 | F159: -- | G159: -- | H159: =IF(ISNUMBER(VLOOKUP(E159,'Tab 5-7a Soil & Air EPCs'!$D$7:$E$9,2,FALSE)),VLOOKUP(E159,'Tab 5-7a Soil & Air EPCs'!$D$7:$E$9,2,FALSE),"--") -> -- | I159: -- | J159: -- | K159: -- | L159: -- | M159: =IF(ISNUMBER(VLOOKUP(E159,'Tab 5-7a Soil & Air EPCs'!$D$7:$H$9,5,FALSE)),VLOOKUP(E159,'Tab 5-7a Soil & Air EPCs'!$D$7:$H$9,5,FALSE),"--") -> -- | N159: -- | O159: -- | P159: =IF(ISNUMBER(VLOOKUP(E159,'Tab 5-7a Soil & Air EPCs'!$D$7:$F$9,3,FALSE)),VLOOKUP(E159,'Tab 5-7a Soil & Air EPCs'!$D$7:$F$9,3,FALSE),"--") -> -- | Q159: -- | R159: -- | S159: -- | T159: --
A160: 0 | B160: 0 | C160: 0 | D160: 0 | E160: 0 | F160: -- | G160: -- | H160: =IF(ISNUMBER(VLOOKUP(E160,'Tab 5-7a Soil & Air EPCs'!$D$7:$E$9,2,FALSE)),VLOOKUP(E160,'Tab 5-7a Soil & Air EPCs'!$D$7:$E$9,2,FALSE),"--") -> -- | I160: -- | J160: -- | K160: -- | L160: -- | M160: =IF(ISNUMBER(VLOOKUP(E160,'Tab 5-7a Soil & Air EPCs'!$D$7:$H$9,5,FALSE)),VLOOKUP(E160,'Tab 5-7a Soil & Air EPCs'!$D$7:$H$9,5,FALSE),"--") -> -- | N160: -- | O160: -- | P160: =IF(ISNUMBER(VLOOKUP(E160,'Tab 5-7a Soil & Air EPCs'!$D$7:$F$9,3,FALSE)),VLOOKUP(E160,'Tab 5-7a Soil & Air EPCs'!$D$7:$F$9,3,FALSE),"--") -> -- | Q160: -- | R160: -- | S160: -- | T160: --
A161: 0 | B161: 0 | C161: 0 | D161: 0 | E161: 0 | F161: -- | G161: -- | H161: =IF(ISNUMBER(VLOOKUP(E161,'Tab 5-7a Soil & Air EPCs'!$D$7:$E$9,2,FALSE)),VLOOKUP(E161,'Tab 5-7a Soil & Air EPCs'!$D$7:$E$9,2,FALSE),"--") -> -- | I161: -- | J161: -- | K161: -- | L161: -- | M161: =IF(ISNUMBER(VLOOKUP(E161,'Tab 5-7a Soil & Air EPCs'!$D$7:$H$9,5,FALSE)),VLOOKUP(E161,'Tab 5-7a Soil & Air EPCs'!$D$7:$H$9,5,FALSE),"--") -> -- | N161: -- | O161: -- | P161: =IF(ISNUMBER(VLOOKUP(E161,'Tab 5-7a Soil & Air EPCs'!$D$7:$F$9,3,FALSE)),VLOOKUP(E161,'Tab 5-7a Soil & Air EPCs'!$D$7:$F$9,3,FALSE),"--") -> -- | Q161: -- | R161: -- | S161: -- | T161: --
A162: 0 | B162: 0 | C162: 0 | D162: 0 | E162: 0 | F162: -- | G162: -- | H162: =IF(ISNUMBER(VLOOKUP(E162,'Tab 5-7a Soil & Air EPCs'!$D$7:$E$9,2,FALSE)),VLOOKUP(E162,'Tab 5-7a Soil & Air EPCs'!$D$7:$E$9,2,FALSE),"--") -> -- | I162: -- | J162: -- | K162: -- | L162: -- | M162: =IF(ISNUMBER(VLOOKUP(E162,'Tab 5-7a Soil & Air EPCs'!$D$7:$H$9,5,FALSE)),VLOOKUP(E162,'Tab 5-7a Soil & Air EPCs'!$D$7:$H$9,5,FALSE),"--") -> -- | N162: -- | O162: -- | P162: =IF(ISNUMBER(VLOOKUP(E162,'Tab 5-7a Soil & Air EPCs'!$D$7:$F$9,3,FALSE)),VLOOKUP(E162,'Tab 5-7a Soil & Air EPCs'!$D$7:$F$9,3,FALSE),"--") -> -- | Q162: -- | R162: -- | S162: -- | T162: --
A163: 0 | B163: 0 | C163: 0 | D163: 0 | E163: 0 | F163: -- | G163: -- | H163: =IF(ISNUMBER(VLOOKUP(E163,'Tab 5-7a Soil & Air EPCs'!$D$7:$E$9,2,FALSE)),VLOOKUP(E163,'Tab 5-7a Soil & Air EPCs'!$D$7:$E$9,2,FALSE),"--") -> -- | I163: -- | J163: -- | K163: -- | L163: -- | M163: =IF(ISNUMBER(VLOOKUP(E163,'Tab 5-7a Soil & Air EPCs'!$D$7:$H$9,5,FALSE)),VLOOKUP(E163,'Tab 5-7a Soil & Air EPCs'!$D$7:$H$9,5,FALSE),"--") -> -- | N163: -- | O163: -- | P163: =IF(ISNUMBER(VLOOKUP(E163,'Tab 5-7a Soil & Air EPCs'!$D$7:$F$9,3,FALSE)),VLOOKUP(E163,'Tab 5-7a Soil & Air EPCs'!$D$7:$F$9,3,FALSE),"--") -> -- | Q163: -- | R163: -- | S163: -- | T163: --
A164: 0 | B164: 0 | C164: 0 | D164: 0 | E164: 0 | F164: -- | G164: -- | H164: =IF(ISNUMBER(VLOOKUP(E164,'Tab 5-7a Soil & Air EPCs'!$D$7:$E$9,2,FALSE)),VLOOKUP(E164,'Tab 5-7a Soil & Air EPCs'!$D$7:$E$9,2,FALSE),"--") -> -- | I164: -- | J164: -- | K164: -- | L164: -- | M164: =IF(ISNUMBER(VLOOKUP(E164,'Tab 5-7a Soil & Air EPCs'!$D$7:$H$9,5,FALSE)),VLOOKUP(E164,'Tab 5-7a Soil & Air EPCs'!$D$7:$H$9,5,FALSE),"--") -> -- | N164: -- | O164: -- | P164: =IF(ISNUMBER(VLOOKUP(E164,'Tab 5-7a Soil & Air EPCs'!$D$7:$F$9,3,FALSE)),VLOOKUP(E164,'Tab 5-7a Soil & Air EPCs'!$D$7:$F$9,3,FALSE),"--") -> -- | Q164: -- | R164: -- | S164: -- | T164: --
A165: 0 | B165: 0 | C165: 0 | D165: 0 | E165: 0 | F165: -- | G165: -- | H165: =IF(ISNUMBER(VLOOKUP(E165,'Tab 5-7a Soil & Air EPCs'!$D$7:$E$9,2,FALSE)),VLOOKUP(E165,'Tab 5-7a Soil & Air EPCs'!$D$7:$E$9,2,FALSE),"--") -> -- | I165: -- | J165: -- | K165: -- | L165: -- | M165: =IF(ISNUMBER(VLOOKUP(E165,'Tab 5-7a Soil & Air EPCs'!$D$7:$H$9,5,FALSE)),VLOOKUP(E165,'Tab 5-7a Soil & Air EPCs'!$D$7:$H$9,5,FALSE),"--") -> -- | N165: -- | O165: -- | P165: =IF(ISNUMBER(VLOOKUP(E165,'Tab 5-7a Soil & Air EPCs'!$D$7:$F$9,3,FALSE)),VLOOKUP(E165,'Tab 5-7a Soil & Air EPCs'!$D$7:$F$9,3,FALSE),"--") -> -- | Q165: -- | R165: -- | S165: -- | T165: --
A166: 0 | B166: 0 | C166: 0 | D166: 0 | E166: 0 | F166: -- | G166: -- | H166: =IF(ISNUMBER(VLOOKUP(E166,'Tab 5-7a Soil & Air EPCs'!$D$7:$E$9,2,FALSE)),VLOOKUP(E166,'Tab 5-7a Soil & Air EPCs'!$D$7:$E$9,2,FALSE),"--") -> -- | I166: -- | J166: -- | K166: -- | L166: -- | M166: =IF(ISNUMBER(VLOOKUP(E166,'Tab 5-7a Soil & Air EPCs'!$D$7:$H$9,5,FALSE)),VLOOKUP(E166,'Tab 5-7a Soil & Air EPCs'!$D$7:$H$9,5,FALSE),"--") -> -- | N166: -- | O166: -- | P166: =IF(ISNUMBER(VLOOKUP(E166,'Tab 5-7a Soil & Air EPCs'!$D$7:$F$9,3,FALSE)),VLOOKUP(E166,'Tab 5-7a Soil & Air EPCs'!$D$7:$F$9,3,FALSE),"--") -> -- | Q166: -- | R166: -- | S166: -- | T166: --
A167: 0 | B167: 0 | C167: 0 | D167: 0 | E167: 0 | F167: -- | G167: -- | H167: =IF(ISNUMBER(VLOOKUP(E167,'Tab 5-7a Soil & Air EPCs'!$D$7:$E$9,2,FALSE)),VLOOKUP(E167,'Tab 5-7a Soil & Air EPCs'!$D$7:$E$9,2,FALSE),"--") -> -- | I167: -- | J167: -- | K167: -- | L167: -- | M167: =IF(ISNUMBER(VLOOKUP(E167,'Tab 5-7a Soil & Air EPCs'!$D$7:$H$9,5,FALSE)),VLOOKUP(E167,'Tab 5-7a Soil & Air EPCs'!$D$7:$H$9,5,FALSE),"--") -> -- | N167: -- | O167: -- | P167: =IF(ISNUMBER(VLOOKUP(E167,'Tab 5-7a Soil & Air EPCs'!$D$7:$F$9,3,FALSE)),VLOOKUP(E167,'Tab 5-7a Soil & Air EPCs'!$D$7:$F$9,3,FALSE),"--") -> -- | Q167: -- | R167: -- | S167: -- | T167: --
A168: 0 | B168: 0 | C168: 0 | D168: 0 | E168: 0 | F168: -- | G168: -- | H168: =IF(ISNUMBER(VLOOKUP(E168,'Tab 5-7a Soil & Air EPCs'!$D$7:$E$9,2,FALSE)),VLOOKUP(E168,'Tab 5-7a Soil & Air EPCs'!$D$7:$E$9,2,FALSE),"--") -> -- | I168: -- | J168: -- | K168: -- | L168: -- | M168: =IF(ISNUMBER(VLOOKUP(E168,'Tab 5-7a Soil & Air EPCs'!$D$7:$H$9,5,FALSE)),VLOOKUP(E168,'Tab 5-7a Soil & Air EPCs'!$D$7:$H$9,5,FALSE),"--") -> -- | N168: -- | O168: -- | P168: =IF(ISNUMBER(VLOOKUP(E168,'Tab 5-7a Soil & Air EPCs'!$D$7:$F$9,3,FALSE)),VLOOKUP(E168,'Tab 5-7a Soil & Air EPCs'!$D$7:$F$9,3,FALSE),"--") -> -- | Q168: -- | R168: -- | S168: -- | T168: --
A169: 0 | B169: 0 | C169: 0 | D169: 0 | E169: 0 | F169: -- | G169: -- | H169: =IF(ISNUMBER(VLOOKUP(E169,'Tab 5-7a Soil & Air EPCs'!$D$7:$E$9,2,FALSE)),VLOOKUP(E169,'Tab 5-7a Soil & Air EPCs'!$D$7:$E$9,2,FALSE),"--") -> -- | I169: -- | J169: -- | K169: -- | L169: -- | M169: =IF(ISNUMBER(VLOOKUP(E169,'Tab 5-7a Soil & Air EPCs'!$D$7:$H$9,5,FALSE)),VLOOKUP(E169,'Tab 5-7a Soil & Air EPCs'!$D$7:$H$9,5,FALSE),"--") -> -- | N169: -- | O169: -- | P169: =IF(ISNUMBER(VLOOKUP(E169,'Tab 5-7a Soil & Air EPCs'!$D$7:$F$9,3,FALSE)),VLOOKUP(E169,'Tab 5-7a Soil & Air EPCs'!$D$7:$F$9,3,FALSE),"--") -> -- | Q169: -- | R169: -- | S169: -- | T169: --
A170: 0 | B170: 0 | C170: 0 | D170: 0 | E170: 0 | F170: -- | G170: -- | H170: =IF(ISNUMBER(VLOOKUP(E170,'Tab 5-7a Soil & Air EPCs'!$D$7:$E$9,2,FALSE)),VLOOKUP(E170,'Tab 5-7a Soil & Air EPCs'!$D$7:$E$9,2,FALSE),"--") -> -- | I170: -- | J170: -- | K170: -- | L170: -- | M170: =IF(ISNUMBER(VLOOKUP(E170,'Tab 5-7a Soil & Air EPCs'!$D$7:$H$9,5,FALSE)),VLOOKUP(E170,'Tab 5-7a Soil & Air EPCs'!$D$7:$H$9,5,FALSE),"--") -> -- | N170: -- | O170: -- | P170: =IF(ISNUMBER(VLOOKUP(E170,'Tab 5-7a Soil & Air EPCs'!$D$7:$F$9,3,FALSE)),VLOOKUP(E170,'Tab 5-7a Soil & Air EPCs'!$D$7:$F$9,3,FALSE),"--") -> -- | Q170: -- | R170: -- | S170: -- | T170: --
A171: 0 | B171: 0 | C171: 0 | D171: 0 | E171: 0 | F171: -- | G171: -- | H171: =IF(ISNUMBER(VLOOKUP(E171,'Tab 5-7a Soil & Air EPCs'!$D$7:$E$9,2,FALSE)),VLOOKUP(E171,'Tab 5-7a Soil & Air EPCs'!$D$7:$E$9,2,FALSE),"--") -> -- | I171: -- | J171: -- | K171: -- | L171: -- | M171: =IF(ISNUMBER(VLOOKUP(E171,'Tab 5-7a Soil & Air EPCs'!$D$7:$H$9,5,FALSE)),VLOOKUP(E171,'Tab 5-7a Soil & Air EPCs'!$D$7:$H$9,5,FALSE),"--") -> -- | N171: -- | O171: -- | P171: =IF(ISNUMBER(VLOOKUP(E171,'Tab 5-7a Soil & Air EPCs'!$D$7:$F$9,3,FALSE)),VLOOKUP(E171,'Tab 5-7a Soil & Air EPCs'!$D$7:$F$9,3,FALSE),"--") -> -- | Q171: -- | R171: -- | S171: -- | T171: --
A172: 0 | B172: 0 | C172: 0 | D172: 0 | E172: 0 | F172: -- | G172: -- | H172: =IF(ISNUMBER(VLOOKUP(E172,'Tab 5-7a Soil & Air EPCs'!$D$7:$E$9,2,FALSE)),VLOOKUP(E172,'Tab 5-7a Soil & Air EPCs'!$D$7:$E$9,2,FALSE),"--") -> -- | I172: -- | J172: -- | K172: -- | L172: -- | M172: =IF(ISNUMBER(VLOOKUP(E172,'Tab 5-7a Soil & Air EPCs'!$D$7:$H$9,5,FALSE)),VLOOKUP(E172,'Tab 5-7a Soil & Air EPCs'!$D$7:$H$9,5,FALSE),"--") -> -- | N172: -- | O172: -- | P172: =IF(ISNUMBER(VLOOKUP(E172,'Tab 5-7a Soil & Air EPCs'!$D$7:$F$9,3,FALSE)),VLOOKUP(E172,'Tab 5-7a Soil & Air EPCs'!$D$7:$F$9,3,FALSE),"--") -> -- | Q172: -- | R172: -- | S172: -- | T172: --
A173: 0 | B173: 0 | C173: 0 | D173: 0 | E173: 0 | F173: -- | G173: -- | H173: =IF(ISNUMBER(VLOOKUP(E173,'Tab 5-7a Soil & Air EPCs'!$D$7:$E$9,2,FALSE)),VLOOKUP(E173,'Tab 5-7a Soil & Air EPCs'!$D$7:$E$9,2,FALSE),"--") -> -- | I173: -- | J173: -- | K173: -- | L173: -- | M173: =IF(ISNUMBER(VLOOKUP(E173,'Tab 5-7a Soil & Air EPCs'!$D$7:$H$9,5,FALSE)),VLOOKUP(E173,'Tab 5-7a Soil & Air EPCs'!$D$7:$H$9,5,FALSE),"--") -> -- | N173: -- | O173: -- | P173: =IF(ISNUMBER(VLOOKUP(E173,'Tab 5-7a Soil & Air EPCs'!$D$7:$F$9,3,FALSE)),VLOOKUP(E173,'Tab 5-7a Soil & Air EPCs'!$D$7:$F$9,3,FALSE),"--") -> -- | Q173: -- | R173: -- | S173: -- | T173: --
A174: 0 | B174: 0 | C174: 0 | D174: 0 | E174: 0 | F174: -- | G174: -- | H174: =IF(ISNUMBER(VLOOKUP(E174,'Tab 5-7a Soil & Air EPCs'!$D$7:$E$9,2,FALSE)),VLOOKUP(E174,'Tab 5-7a Soil & Air EPCs'!$D$7:$E$9,2,FALSE),"--") -> -- | I174: -- | J174: -- | K174: -- | L174: -- | M174: =IF(ISNUMBER(VLOOKUP(E174,'Tab 5-7a Soil & Air EPCs'!$D$7:$H$9,5,FALSE)),VLOOKUP(E174,'Tab 5-7a Soil & Air EPCs'!$D$7:$H$9,5,FALSE),"--") -> -- | N174: -- | O174: -- | P174: =IF(ISNUMBER(VLOOKUP(E174,'Tab 5-7a Soil & Air EPCs'!$D$7:$F$9,3,FALSE)),VLOOKUP(E174,'Tab 5-7a Soil & Air EPCs'!$D$7:$F$9,3,FALSE),"--") -> -- | Q174: -- | R174: -- | S174: -- | T174: --
A175: 0 | B175: 0 | C175: 0 | D175: 0 | E175: 0 | F175: -- | G175: -- | H175: =IF(ISNUMBER(VLOOKUP(E175,'Tab 5-7a Soil & Air EPCs'!$D$7:$E$9,2,FALSE)),VLOOKUP(E175,'Tab 5-7a Soil & Air EPCs'!$D$7:$E$9,2,FALSE),"--") -> -- | I175: -- | J175: -- | K175: -- | L175: -- | M175: =IF(ISNUMBER(VLOOKUP(E175,'Tab 5-7a Soil & Air EPCs'!$D$7:$H$9,5,FALSE)),VLOOKUP(E175,'Tab 5-7a Soil & Air EPCs'!$D$7:$H$9,5,FALSE),"--") -> -- | N175: -- | O175: -- | P175: =IF(ISNUMBER(VLOOKUP(E175,'Tab 5-7a Soil & Air EPCs'!$D$7:$F$9,3,FALSE)),VLOOKUP(E175,'Tab 5-7a Soil & Air EPCs'!$D$7:$F$9,3,FALSE),"--") -> -- | Q175: -- | R175: -- | S175: -- | T175: --
A176: 0 | B176: 0 | C176: 0 | D176: 0 | E176: 0 | F176: -- | G176: -- | H176: =IF(ISNUMBER(VLOOKUP(E176,'Tab 5-7a Soil & Air EPCs'!$D$7:$E$9,2,FALSE)),VLOOKUP(E176,'Tab 5-7a Soil & Air EPCs'!$D$7:$E$9,2,FALSE),"--") -> -- | I176: -- | J176: -- | K176: -- | L176: -- | M176: =IF(ISNUMBER(VLOOKUP(E176,'Tab 5-7a Soil & Air EPCs'!$D$7:$H$9,5,FALSE)),VLOOKUP(E176,'Tab 5-7a Soil & Air EPCs'!$D$7:$H$9,5,FALSE),"--") -> -- | N176: -- | O176: -- | P176: =IF(ISNUMBER(VLOOKUP(E176,'Tab 5-7a Soil & Air EPCs'!$D$7:$F$9,3,FALSE)),VLOOKUP(E176,'Tab 5-7a Soil & Air EPCs'!$D$7:$F$9,3,FALSE),"--") -> -- | Q176: -- | R176: -- | S176: -- | T176: --
A177: 0 | B177: 0 | C177: 0 | D177: 0 | E177: 0 | F177: -- | G177: -- | H177: =IF(ISNUMBER(VLOOKUP(E177,'Tab 5-7a Soil & Air EPCs'!$D$7:$E$9,2,FALSE)),VLOOKUP(E177,'Tab 5-7a Soil & Air EPCs'!$D$7:$E$9,2,FALSE),"--") -> -- | I177: -- | J177: -- | K177: -- | L177: -- | M177: =IF(ISNUMBER(VLOOKUP(E177,'Tab 5-7a Soil & Air EPCs'!$D$7:$H$9,5,FALSE)),VLOOKUP(E177,'Tab 5-7a Soil & Air EPCs'!$D$7:$H$9,5,FALSE),"--") -> -- | N177: -- | O177: -- | P177: =IF(ISNUMBER(VLOOKUP(E177,'Tab 5-7a Soil & Air EPCs'!$D$7:$F$9,3,FALSE)),VLOOKUP(E177,'Tab 5-7a Soil & Air EPCs'!$D$7:$F$9,3,FALSE),"--") -> -- | Q177: -- | R177: -- | S177: -- | T177: --
A178: 0 | B178: 0 | C178: 0 | D178: 0 | E178: 0 | F178: -- | G178: -- | H178: =IF(ISNUMBER(VLOOKUP(E178,'Tab 5-7a Soil & Air EPCs'!$D$7:$E$9,2,FALSE)),VLOOKUP(E178,'Tab 5-7a Soil & Air EPCs'!$D$7:$E$9,2,FALSE),"--") -> -- | I178: -- | J178: -- | K178: -- | L178: -- | M178: =IF(ISNUMBER(VLOOKUP(E178,'Tab 5-7a Soil & Air EPCs'!$D$7:$H$9,5,FALSE)),VLOOKUP(E178,'Tab 5-7a Soil & Air EPCs'!$D$7:$H$9,5,FALSE),"--") -> -- | N178: -- | O178: -- | P178: =IF(ISNUMBER(VLOOKUP(E178,'Tab 5-7a Soil & Air EPCs'!$D$7:$F$9,3,FALSE)),VLOOKUP(E178,'Tab 5-7a Soil & Air EPCs'!$D$7:$F$9,3,FALSE),"--") -> -- | Q178: -- | R178: -- | S178: -- | T178: --
A179: 0 | B179: 0 | C179: 0 | D179: 0 | E179: 0 | F179: -- | G179: -- | H179: =IF(ISNUMBER(VLOOKUP(E179,'Tab 5-7a Soil & Air EPCs'!$D$7:$E$9,2,FALSE)),VLOOKUP(E179,'Tab 5-7a Soil & Air EPCs'!$D$7:$E$9,2,FALSE),"--") -> -- | I179: -- | J179: -- | K179: -- | L179: -- | M179: =IF(ISNUMBER(VLOOKUP(E179,'Tab 5-7a Soil & Air EPCs'!$D$7:$H$9,5,FALSE)),VLOOKUP(E179,'Tab 5-7a Soil & Air EPCs'!$D$7:$H$9,5,FALSE),"--") -> -- | N179: -- | O179: -- | P179: =IF(ISNUMBER(VLOOKUP(E179,'Tab 5-7a Soil & Air EPCs'!$D$7:$F$9,3,FALSE)),VLOOKUP(E179,'Tab 5-7a Soil & Air EPCs'!$D$7:$F$9,3,FALSE),"--") -> -- | Q179: -- | R179: -- | S179: -- | T179: --
A180: 0 | B180: 0 | C180: 0 | D180: 0 | E180: 0 | F180: -- | G180: -- | H180: =IF(ISNUMBER(VLOOKUP(E180,'Tab 5-7a Soil & Air EPCs'!$D$7:$E$9,2,FALSE)),VLOOKUP(E180,'Tab 5-7a Soil & Air EPCs'!$D$7:$E$9,2,FALSE),"--") -> -- | I180: -- | J180: -- | K180: -- | L180: -- | M180: =IF(ISNUMBER(VLOOKUP(E180,'Tab 5-7a Soil & Air EPCs'!$D$7:$H$9,5,FALSE)),VLOOKUP(E180,'Tab 5-7a Soil & Air EPCs'!$D$7:$H$9,5,FALSE),"--") -> -- | N180: -- | O180: -- | P180: =IF(ISNUMBER(VLOOKUP(E180,'Tab 5-7a Soil & Air EPCs'!$D$7:$F$9,3,FALSE)),VLOOKUP(E180,'Tab 5-7a Soil & Air EPCs'!$D$7:$F$9,3,FALSE),"--") -> -- | Q180: -- | R180: -- | S180: -- | T180: --
A181: 0 | B181: 0 | C181: 0 | D181: 0 | E181: 0 | F181: -- | G181: -- | H181: =IF(ISNUMBER(VLOOKUP(E181,'Tab 5-7a Soil & Air EPCs'!$D$7:$E$9,2,FALSE)),VLOOKUP(E181,'Tab 5-7a Soil & Air EPCs'!$D$7:$E$9,2,FALSE),"--") -> -- | I181: -- | J181: -- | K181: -- | L181: -- | M181: =IF(ISNUMBER(VLOOKUP(E181,'Tab 5-7a Soil & Air EPCs'!$D$7:$H$9,5,FALSE)),VLOOKUP(E181,'Tab 5-7a Soil & Air EPCs'!$D$7:$H$9,5,FALSE),"--") -> -- | N181: -- | O181: -- | P181: =IF(ISNUMBER(VLOOKUP(E181,'Tab 5-7a Soil & Air EPCs'!$D$7:$F$9,3,FALSE)),VLOOKUP(E181,'Tab 5-7a Soil & Air EPCs'!$D$7:$F$9,3,FALSE),"--") -> -- | Q181: -- | R181: -- | S181: -- | T181: --
A182: 0 | B182: 0 | C182: 0 | D182: 0 | E182: 0 | F182: -- | G182: -- | H182: =IF(ISNUMBER(VLOOKUP(E182,'Tab 5-7a Soil & Air EPCs'!$D$7:$E$9,2,FALSE)),VLOOKUP(E182,'Tab 5-7a Soil & Air EPCs'!$D$7:$E$9,2,FALSE),"--") -> -- | I182: -- | J182: -- | K182: -- | L182: -- | M182: =IF(ISNUMBER(VLOOKUP(E182,'Tab 5-7a Soil & Air EPCs'!$D$7:$H$9,5,FALSE)),VLOOKUP(E182,'Tab 5-7a Soil & Air EPCs'!$D$7:$H$9,5,FALSE),"--") -> -- | N182: -- | O182: -- | P182: =IF(ISNUMBER(VLOOKUP(E182,'Tab 5-7a Soil & Air EPCs'!$D$7:$F$9,3,FALSE)),VLOOKUP(E182,'Tab 5-7a Soil & Air EPCs'!$D$7:$F$9,3,FALSE),"--") -> -- | Q182: -- | R182: -- | S182: -- | T182: --
A183: 0 | B183: 0 | C183: 0 | D183: 0 | E183: 0 | F183: -- | G183: -- | H183: =IF(ISNUMBER(VLOOKUP(E183,'Tab 5-7a Soil & Air EPCs'!$D$7:$E$9,2,FALSE)),VLOOKUP(E183,'Tab 5-7a Soil & Air EPCs'!$D$7:$E$9,2,FALSE),"--") -> -- | I183: -- | J183: -- | K183: -- | L183: -- | M183: =IF(ISNUMBER(VLOOKUP(E183,'Tab 5-7a Soil & Air EPCs'!$D$7:$H$9,5,FALSE)),VLOOKUP(E183,'Tab 5-7a Soil & Air EPCs'!$D$7:$H$9,5,FALSE),"--") -> -- | N183: -- | O183: -- | P183: =IF(ISNUMBER(VLOOKUP(E183,'Tab 5-7a Soil & Air EPCs'!$D$7:$F$9,3,FALSE)),VLOOKUP(E183,'Tab 5-7a Soil & Air EPCs'!$D$7:$F$9,3,FALSE),"--") -> -- | Q183: -- | R183: -- | S183: -- | T183: --
A184: 0 | B184: 0 | C184: 0 | D184: 0 | E184: 0 | F184: -- | G184: -- | H184: =IF(ISNUMBER(VLOOKUP(E184,'Tab 5-7a Soil & Air EPCs'!$D$7:$E$9,2,FALSE)),VLOOKUP(E184,'Tab 5-7a Soil & Air EPCs'!$D$7:$E$9,2,FALSE),"--") -> -- | I184: -- | J184: -- | K184: -- | L184: -- | M184: =IF(ISNUMBER(VLOOKUP(E184,'Tab 5-7a Soil & Air EPCs'!$D$7:$H$9,5,FALSE)),VLOOKUP(E184,'Tab 5-7a Soil & Air EPCs'!$D$7:$H$9,5,FALSE),"--") -> -- | N184: -- | O184: -- | P184: =IF(ISNUMBER(VLOOKUP(E184,'Tab 5-7a Soil & Air EPCs'!$D$7:$F$9,3,FALSE)),VLOOKUP(E184,'Tab 5-7a Soil & Air EPCs'!$D$7:$F$9,3,FALSE),"--") -> -- | Q184: -- | R184: -- | S184: -- | T184: --
A185: 0 | B185: 0 | C185: 0 | D185: 0 | E185: 0 | F185: -- | G185: -- | H185: =IF(ISNUMBER(VLOOKUP(E185,'Tab 5-7a Soil & Air EPCs'!$D$7:$E$9,2,FALSE)),VLOOKUP(E185,'Tab 5-7a Soil & Air EPCs'!$D$7:$E$9,2,FALSE),"--") -> -- | I185: -- | J185: -- | K185: -- | L185: -- | M185: =IF(ISNUMBER(VLOOKUP(E185,'Tab 5-7a Soil & Air EPCs'!$D$7:$H$9,5,FALSE)),VLOOKUP(E185,'Tab 5-7a Soil & Air EPCs'!$D$7:$H$9,5,FALSE),"--") -> -- | N185: -- | O185: -- | P185: =IF(ISNUMBER(VLOOKUP(E185,'Tab 5-7a Soil & Air EPCs'!$D$7:$F$9,3,FALSE)),VLOOKUP(E185,'Tab 5-7a Soil & Air EPCs'!$D$7:$F$9,3,FALSE),"--") -> -- | Q185: -- | R185: -- | S185: -- | T185: --
A186: 0 | B186: 0 | C186: 0 | D186: 0 | E186: 0 | F186: -- | G186: -- | H186: =IF(ISNUMBER(VLOOKUP(E186,'Tab 5-7a Soil & Air EPCs'!$D$7:$E$9,2,FALSE)),VLOOKUP(E186,'Tab 5-7a Soil & Air EPCs'!$D$7:$E$9,2,FALSE),"--") -> -- | I186: -- | J186: -- | K186: -- | L186: -- | M186: =IF(ISNUMBER(VLOOKUP(E186,'Tab 5-7a Soil & Air EPCs'!$D$7:$H$9,5,FALSE)),VLOOKUP(E186,'Tab 5-7a Soil & Air EPCs'!$D$7:$H$9,5,FALSE),"--") -> -- | N186: -- | O186: -- | P186: =IF(ISNUMBER(VLOOKUP(E186,'Tab 5-7a Soil & Air EPCs'!$D$7:$F$9,3,FALSE)),VLOOKUP(E186,'Tab 5-7a Soil & Air EPCs'!$D$7:$F$9,3,FALSE),"--") -> -- | Q186: -- | R186: -- | S186: -- | T186: --
A187: 0 | B187: 0 | C187: 0 | D187: 0 | E187: 0 | F187: -- | G187: -- | H187: =IF(ISNUMBER(VLOOKUP(E187,'Tab 5-7a Soil & Air EPCs'!$D$7:$E$9,2,FALSE)),VLOOKUP(E187,'Tab 5-7a Soil & Air EPCs'!$D$7:$E$9,2,FALSE),"--") -> -- | I187: -- | J187: -- | K187: -- | L187: -- | M187: =IF(ISNUMBER(VLOOKUP(E187,'Tab 5-7a Soil & Air EPCs'!$D$7:$H$9,5,FALSE)),VLOOKUP(E187,'Tab 5-7a Soil & Air EPCs'!$D$7:$H$9,5,FALSE),"--") -> -- | N187: -- | O187: -- | P187: =IF(ISNUMBER(VLOOKUP(E187,'Tab 5-7a Soil & Air EPCs'!$D$7:$F$9,3,FALSE)),VLOOKUP(E187,'Tab 5-7a Soil & Air EPCs'!$D$7:$F$9,3,FALSE),"--") -> -- | Q187: -- | R187: -- | S187: -- | T187: --
A188: 0 | B188: 0 | C188: 0 | D188: 0 | E188: 0 | F188: -- | G188: -- | H188: =IF(ISNUMBER(VLOOKUP(E188,'Tab 5-7a Soil & Air EPCs'!$D$7:$E$9,2,FALSE)),VLOOKUP(E188,'Tab 5-7a Soil & Air EPCs'!$D$7:$E$9,2,FALSE),"--") -> -- | I188: -- | J188: -- | K188: -- | L188: -- | M188: =IF(ISNUMBER(VLOOKUP(E188,'Tab 5-7a Soil & Air EPCs'!$D$7:$H$9,5,FALSE)),VLOOKUP(E188,'Tab 5-7a Soil & Air EPCs'!$D$7:$H$9,5,FALSE),"--") -> -- | N188: -- | O188: -- | P188: =IF(ISNUMBER(VLOOKUP(E188,'Tab 5-7a Soil & Air EPCs'!$D$7:$F$9,3,FALSE)),VLOOKUP(E188,'Tab 5-7a Soil & Air EPCs'!$D$7:$F$9,3,FALSE),"--") -> -- | Q188: -- | R188: -- | S188: -- | T188: --
A189: 0 | B189: 0 | C189: 0 | D189: 0 | E189: 0 | F189: -- | G189: -- | H189: =IF(ISNUMBER(VLOOKUP(E189,'Tab 5-7a Soil & Air EPCs'!$D$7:$E$9,2,FALSE)),VLOOKUP(E189,'Tab 5-7a Soil & Air EPCs'!$D$7:$E$9,2,FALSE),"--") -> -- | I189: -- | J189: -- | K189: -- | L189: -- | M189: =IF(ISNUMBER(VLOOKUP(E189,'Tab 5-7a Soil & Air EPCs'!$D$7:$H$9,5,FALSE)),VLOOKUP(E189,'Tab 5-7a Soil & Air EPCs'!$D$7:$H$9,5,FALSE),"--") -> -- | N189: -- | O189: -- | P189: =IF(ISNUMBER(VLOOKUP(E189,'Tab 5-7a Soil & Air EPCs'!$D$7:$F$9,3,FALSE)),VLOOKUP(E189,'Tab 5-7a Soil & Air EPCs'!$D$7:$F$9,3,FALSE),"--") -> -- | Q189: -- | R189: -- | S189: -- | T189: --
A190: 0 | B190: 0 | C190: 0 | D190: 0 | E190: 0 | F190: -- | G190: -- | H190: =IF(ISNUMBER(VLOOKUP(E190,'Tab 5-7a Soil & Air EPCs'!$D$7:$E$9,2,FALSE)),VLOOKUP(E190,'Tab 5-7a Soil & Air EPCs'!$D$7:$E$9,2,FALSE),"--") -> -- | I190: -- | J190: -- | K190: -- | L190: -- | M190: =IF(ISNUMBER(VLOOKUP(E190,'Tab 5-7a Soil & Air EPCs'!$D$7:$H$9,5,FALSE)),VLOOKUP(E190,'Tab 5-7a Soil & Air EPCs'!$D$7:$H$9,5,FALSE),"--") -> -- | N190: -- | O190: -- | P190: =IF(ISNUMBER(VLOOKUP(E190,'Tab 5-7a Soil & Air EPCs'!$D$7:$F$9,3,FALSE)),VLOOKUP(E190,'Tab 5-7a Soil & Air EPCs'!$D$7:$F$9,3,FALSE),"--") -> -- | Q190: -- | R190: -- | S190: -- | T190: --
A191: 0 | B191: 0 | C191: 0 | D191: 0 | E191: 0 | F191: -- | G191: -- | H191: =IF(ISNUMBER(VLOOKUP(E191,'Tab 5-7a Soil & Air EPCs'!$D$7:$E$9,2,FALSE)),VLOOKUP(E191,'Tab 5-7a Soil & Air EPCs'!$D$7:$E$9,2,FALSE),"--") -> -- | I191: -- | J191: -- | K191: -- | L191: -- | M191: =IF(ISNUMBER(VLOOKUP(E191,'Tab 5-7a Soil & Air EPCs'!$D$7:$H$9,5,FALSE)),VLOOKUP(E191,'Tab 5-7a Soil & Air EPCs'!$D$7:$H$9,5,FALSE),"--") -> -- | N191: -- | O191: -- | P191: =IF(ISNUMBER(VLOOKUP(E191,'Tab 5-7a Soil & Air EPCs'!$D$7:$F$9,3,FALSE)),VLOOKUP(E191,'Tab 5-7a Soil & Air EPCs'!$D$7:$F$9,3,FALSE),"--") -> -- | Q191: -- | R191: -- | S191: -- | T191: --
A192: 0 | B192: 0 | C192: 0 | D192: 0 | E192: 0 | F192: -- | G192: -- | H192: =IF(ISNUMBER(VLOOKUP(E192,'Tab 5-7a Soil & Air EPCs'!$D$7:$E$9,2,FALSE)),VLOOKUP(E192,'Tab 5-7a Soil & Air EPCs'!$D$7:$E$9,2,FALSE),"--") -> -- | I192: -- | J192: -- | K192: -- | L192: -- | M192: =IF(ISNUMBER(VLOOKUP(E192,'Tab 5-7a Soil & Air EPCs'!$D$7:$H$9,5,FALSE)),VLOOKUP(E192,'Tab 5-7a Soil & Air EPCs'!$D$7:$H$9,5,FALSE),"--") -> -- | N192: -- | O192: -- | P192: =IF(ISNUMBER(VLOOKUP(E192,'Tab 5-7a Soil & Air EPCs'!$D$7:$F$9,3,FALSE)),VLOOKUP(E192,'Tab 5-7a Soil & Air EPCs'!$D$7:$F$9,3,FALSE),"--") -> -- | Q192: -- | R192: -- | S192: -- | T192: --
A193: 0 | B193: 0 | C193: 0 | D193: 0 | E193: 0 | F193: -- | G193: -- | H193: =IF(ISNUMBER(VLOOKUP(E193,'Tab 5-7a Soil & Air EPCs'!$D$7:$E$9,2,FALSE)),VLOOKUP(E193,'Tab 5-7a Soil & Air EPCs'!$D$7:$E$9,2,FALSE),"--") -> -- | I193: -- | J193: -- | K193: -- | L193: -- | M193: =IF(ISNUMBER(VLOOKUP(E193,'Tab 5-7a Soil & Air EPCs'!$D$7:$H$9,5,FALSE)),VLOOKUP(E193,'Tab 5-7a Soil & Air EPCs'!$D$7:$H$9,5,FALSE),"--") -> -- | N193: -- | O193: -- | P193: =IF(ISNUMBER(VLOOKUP(E193,'Tab 5-7a Soil & Air EPCs'!$D$7:$F$9,3,FALSE)),VLOOKUP(E193,'Tab 5-7a Soil & Air EPCs'!$D$7:$F$9,3,FALSE),"--") -> -- | Q193: -- | R193: -- | S193: -- | T193: --
A194: 0 | B194: 0 | C194: 0 | D194: 0 | E194: 0 | F194: -- | G194: -- | H194: =IF(ISNUMBER(VLOOKUP(E194,'Tab 5-7a Soil & Air EPCs'!$D$7:$E$9,2,FALSE)),VLOOKUP(E194,'Tab 5-7a Soil & Air EPCs'!$D$7:$E$9,2,FALSE),"--") -> -- | I194: -- | J194: -- | K194: -- | L194: -- | M194: =IF(ISNUMBER(VLOOKUP(E194,'Tab 5-7a Soil & Air EPCs'!$D$7:$H$9,5,FALSE)),VLOOKUP(E194,'Tab 5-7a Soil & Air EPCs'!$D$7:$H$9,5,FALSE),"--") -> -- | N194: -- | O194: -- | P194: =IF(ISNUMBER(VLOOKUP(E194,'Tab 5-7a Soil & Air EPCs'!$D$7:$F$9,3,FALSE)),VLOOKUP(E194,'Tab 5-7a Soil & Air EPCs'!$D$7:$F$9,3,FALSE),"--") -> -- | Q194: -- | R194: -- | S194: -- | T194: --
A195: 0 | B195: 0 | C195: 0 | D195: 0 | E195: 0 | F195: -- | G195: -- | H195: =IF(ISNUMBER(VLOOKUP(E195,'Tab 5-7a Soil & Air EPCs'!$D$7:$E$9,2,FALSE)),VLOOKUP(E195,'Tab 5-7a Soil & Air EPCs'!$D$7:$E$9,2,FALSE),"--") -> -- | I195: -- | J195: -- | K195: -- | L195: -- | M195: =IF(ISNUMBER(VLOOKUP(E195,'Tab 5-7a Soil & Air EPCs'!$D$7:$H$9,5,FALSE)),VLOOKUP(E195,'Tab 5-7a Soil & Air EPCs'!$D$7:$H$9,5,FALSE),"--") -> -- | N195: -- | O195: -- | P195: =IF(ISNUMBER(VLOOKUP(E195,'Tab 5-7a Soil & Air EPCs'!$D$7:$F$9,3,FALSE)),VLOOKUP(E195,'Tab 5-7a Soil & Air EPCs'!$D$7:$F$9,3,FALSE),"--") -> -- | Q195: -- | R195: -- | S195: -- | T195: --
A196: 0 | B196: 0 | C196: 0 | D196: 0 | E196: 0 | F196: -- | G196: -- | H196: =IF(ISNUMBER(VLOOKUP(E196,'Tab 5-7a Soil & Air EPCs'!$D$7:$E$9,2,FALSE)),VLOOKUP(E196,'Tab 5-7a Soil & Air EPCs'!$D$7:$E$9,2,FALSE),"--") -> -- | I196: -- | J196: -- | K196: -- | L196: -- | M196: =IF(ISNUMBER(VLOOKUP(E196,'Tab 5-7a Soil & Air EPCs'!$D$7:$H$9,5,FALSE)),VLOOKUP(E196,'Tab 5-7a Soil & Air EPCs'!$D$7:$H$9,5,FALSE),"--") -> -- | N196: -- | O196: -- | P196: =IF(ISNUMBER(VLOOKUP(E196,'Tab 5-7a Soil & Air EPCs'!$D$7:$F$9,3,FALSE)),VLOOKUP(E196,'Tab 5-7a Soil & Air EPCs'!$D$7:$F$9,3,FALSE),"--") -> -- | Q196: -- | R196: -- | S196: -- | T196: --
A197: 0 | B197: 0 | C197: 0 | D197: 0 | E197: 0 | F197: -- | G197: -- | H197: =IF(ISNUMBER(VLOOKUP(E197,'Tab 5-7a Soil & Air EPCs'!$D$7:$E$9,2,FALSE)),VLOOKUP(E197,'Tab 5-7a Soil & Air EPCs'!$D$7:$E$9,2,FALSE),"--") -> -- | I197: -- | J197: -- | K197: -- | L197: -- | M197: =IF(ISNUMBER(VLOOKUP(E197,'Tab 5-7a Soil & Air EPCs'!$D$7:$H$9,5,FALSE)),VLOOKUP(E197,'Tab 5-7a Soil & Air EPCs'!$D$7:$H$9,5,FALSE),"--") -> -- | N197: -- | O197: -- | P197: =IF(ISNUMBER(VLOOKUP(E197,'Tab 5-7a Soil & Air EPCs'!$D$7:$F$9,3,FALSE)),VLOOKUP(E197,'Tab 5-7a Soil & Air EPCs'!$D$7:$F$9,3,FALSE),"--") -> -- | Q197: -- | R197: -- | S197: -- | T197: --
A198: 0 | B198: 0 | C198: 0 | D198: 0 | E198: 0 | F198: -- | G198: -- | H198: =IF(ISNUMBER(VLOOKUP(E198,'Tab 5-7a Soil & Air EPCs'!$D$7:$E$9,2,FALSE)),VLOOKUP(E198,'Tab 5-7a Soil & Air EPCs'!$D$7:$E$9,2,FALSE),"--") -> -- | I198: -- | J198: -- | K198: -- | L198: -- | M198: =IF(ISNUMBER(VLOOKUP(E198,'Tab 5-7a Soil & Air EPCs'!$D$7:$H$9,5,FALSE)),VLOOKUP(E198,'Tab 5-7a Soil & Air EPCs'!$D$7:$H$9,5,FALSE),"--") -> -- | N198: -- | O198: -- | P198: =IF(ISNUMBER(VLOOKUP(E198,'Tab 5-7a Soil & Air EPCs'!$D$7:$F$9,3,FALSE)),VLOOKUP(E198,'Tab 5-7a Soil & Air EPCs'!$D$7:$F$9,3,FALSE),"--") -> -- | Q198: -- | R198: -- | S198: -- | T198: --
A199: 0 | B199: 0 | C199: 0 | D199: 0 | E199: 0 | F199: -- | G199: -- | H199: =IF(ISNUMBER(VLOOKUP(E199,'Tab 5-7a Soil & Air EPCs'!$D$7:$E$9,2,FALSE)),VLOOKUP(E199,'Tab 5-7a Soil & Air EPCs'!$D$7:$E$9,2,FALSE),"--") -> -- | I199: -- | J199: -- | K199: -- | L199: -- | M199: =IF(ISNUMBER(VLOOKUP(E199,'Tab 5-7a Soil & Air EPCs'!$D$7:$H$9,5,FALSE)),VLOOKUP(E199,'Tab 5-7a Soil & Air EPCs'!$D$7:$H$9,5,FALSE),"--") -> -- | N199: -- | O199: -- | P199: =IF(ISNUMBER(VLOOKUP(E199,'Tab 5-7a Soil & Air EPCs'!$D$7:$F$9,3,FALSE)),VLOOKUP(E199,'Tab 5-7a Soil & Air EPCs'!$D$7:$F$9,3,FALSE),"--") -> -- | Q199: -- | R199: -- | S199: -- | T199: --
A200: 0 | B200: 0 | C200: 0 | D200: 0 | E200: 0 | F200: -- | G200: -- | H200: =IF(ISNUMBER(VLOOKUP(E200,'Tab 5-7a Soil & Air EPCs'!$D$7:$E$9,2,FALSE)),VLOOKUP(E200,'Tab 5-7a Soil & Air EPCs'!$D$7:$E$9,2,FALSE),"--") -> -- | I200: -- | J200: -- | K200: -- | L200: -- | M200: =IF(ISNUMBER(VLOOKUP(E200,'Tab 5-7a Soil & Air EPCs'!$D$7:$H$9,5,FALSE)),VLOOKUP(E200,'Tab 5-7a Soil & Air EPCs'!$D$7:$H$9,5,FALSE),"--") -> -- | N200: -- | O200: -- | P200: =IF(ISNUMBER(VLOOKUP(E200,'Tab 5-7a Soil & Air EPCs'!$D$7:$F$9,3,FALSE)),VLOOKUP(E200,'Tab 5-7a Soil & Air EPCs'!$D$7:$F$9,3,FALSE),"--") -> -- | Q200: -- | R200: -- | S200: -- | T200: --
A201: 0 | B201: 0 | C201: 0 | D201: 0 | E201: 0 | F201: -- | G201: -- | H201: =IF(ISNUMBER(VLOOKUP(E201,'Tab 5-7a Soil & Air EPCs'!$D$7:$E$9,2,FALSE)),VLOOKUP(E201,'Tab 5-7a Soil & Air EPCs'!$D$7:$E$9,2,FALSE),"--") -> -- | I201: -- | J201: -- | K201: -- | L201: -- | M201: =IF(ISNUMBER(VLOOKUP(E201,'Tab 5-7a Soil & Air EPCs'!$D$7:$H$9,5,FALSE)),VLOOKUP(E201,'Tab 5-7a Soil & Air EPCs'!$D$7:$H$9,5,FALSE),"--") -> -- | N201: -- | O201: -- | P201: =IF(ISNUMBER(VLOOKUP(E201,'Tab 5-7a Soil & Air EPCs'!$D$7:$F$9,3,FALSE)),VLOOKUP(E201,'Tab 5-7a Soil & Air EPCs'!$D$7:$F$9,3,FALSE),"--") -> -- | Q201: -- | R201: -- | S201: -- | T201: --
A202: 0 | B202: 0 | C202: 0 | D202: 0 | E202: 0 | F202: -- | G202: -- | H202: =IF(ISNUMBER(VLOOKUP(E202,'Tab 5-7a Soil & Air EPCs'!$D$7:$E$9,2,FALSE)),VLOOKUP(E202,'Tab 5-7a Soil & Air EPCs'!$D$7:$E$9,2,FALSE),"--") -> -- | I202: -- | J202: -- | K202: -- | L202: -- | M202: =IF(ISNUMBER(VLOOKUP(E202,'Tab 5-7a Soil & Air EPCs'!$D$7:$H$9,5,FALSE)),VLOOKUP(E202,'Tab 5-7a Soil & Air EPCs'!$D$7:$H$9,5,FALSE),"--") -> -- | N202: -- | O202: -- | P202: =IF(ISNUMBER(VLOOKUP(E202,'Tab 5-7a Soil & Air EPCs'!$D$7:$F$9,3,FALSE)),VLOOKUP(E202,'Tab 5-7a Soil & Air EPCs'!$D$7:$F$9,3,FALSE),"--") -> -- | Q202: -- | R202: -- | S202: -- | T202: --
A203: 0 | B203: 0 | C203: 0 | D203: 0 | E203: 0 | F203: -- | G203: -- | H203: =IF(ISNUMBER(VLOOKUP(E203,'Tab 5-7a Soil & Air EPCs'!$D$7:$E$9,2,FALSE)),VLOOKUP(E203,'Tab 5-7a Soil & Air EPCs'!$D$7:$E$9,2,FALSE),"--") -> -- | I203: -- | J203: -- | K203: -- | L203: -- | M203: =IF(ISNUMBER(VLOOKUP(E203,'Tab 5-7a Soil & Air EPCs'!$D$7:$H$9,5,FALSE)),VLOOKUP(E203,'Tab 5-7a Soil & Air EPCs'!$D$7:$H$9,5,FALSE),"--") -> -- | N203: -- | O203: -- | P203: =IF(ISNUMBER(VLOOKUP(E203,'Tab 5-7a Soil & Air EPCs'!$D$7:$F$9,3,FALSE)),VLOOKUP(E203,'Tab 5-7a Soil & Air EPCs'!$D$7:$F$9,3,FALSE),"--") -> -- | Q203: -- | R203: -- | S203: -- | T203: --
... 85 more rows

Sheet Tab Q-2a OutdoorWorker Parcel H
B1: =TOC!A4&". "&TOC!B4 -> TABLE Q-1-2A. Estimated Cancer Risks and Non-Cancer Hazard Indices for Outdoor Commercial/Industrial Workers Exposed to Soil (0-2 feet bgs) in Parcel H
B2: =Tracking!B2 -> Nevada Environmental Response Trust Site
B3: =Tracking!C2 -> Henderson, Nevada
A7: Parcel C COPC | B7: Chemical Group | D7: Chemical | E7: CASRN | I7: Soil Ingestion | L7: Dermal Contact | Q7: Vapor Inhalation | T7: Airborne Particulate Inhalation | V7: Cancer Risk_All Pathways | W7: Non-Cancer HQ_All Pathways
I8: Cancer IF | J8: Noncancer IF | L8: Cancer IF | M8: Noncancer IF | Q8: Cancer IF | R8: Noncancer IF | T8: Cancer IF | U8: Noncancer IF
I9: ='Tab 5-15 Exposure Assumption'!F20 -> 2.751956947e-07 | J9: ='Tab 5-15 Exposure Assumption'!F21 -> 7.705479452e-07 | L9: ='Tab 5-15 Exposure Assumption'!F26 -> 1.164738258e-06 | M9: ='Tab 5-15 Exposure Assumption'!F27 -> 3.261267123e-06 | Q9: ='Tab 5-15 Exposure Assumption'!F34 -> 0.07338551859 | R9: ='Tab 5-15 Exposure Assumption'!F35 -> 0.2054794521 | T9: ='Tab 5-15 Exposure Assumption'!F30 -> 0.07338551859 | U9: ='Tab 5-15 Exposure Assumption'!F31 -> 0.2054794521
C10: Sort Name | F10: SForal (mg/kg/d)-1 | G10: RfDoral (mg/kg/d) | H10: Soil EPC (mg/kg) | I10: Cancer Risk | J10: Non-Cancer HQ | K10: ABSderm (unitless) | L10: Cancer Risk | M10: Non-Cancer HQ | N10: IUR (ug/m3)-1 | O10: RfC (ug/m3) | P10: Vapor EPC (ug/m3) | Q10: Cancer Risk | R10: Non-Cancer HQ | S10: Airborne Particulate EPC (ug/m3) | T10: Cancer Risk | U10: Non-Cancer HQ
A11: ='Tab 5-16 Tox'!X11:X280 -> X | B11: ='Tab 5-16 Tox'!B11:E280 -> Metal | C11: 0 | D11: Palladium | E11: 7440-05-3 | F11: =IF(ISNUMBER('Tab 5-16 Tox'!$F11:$F280),'Tab 5-16 Tox'!$F11:$F280,"--") -> -- | G11: =IF(ISNUMBER('Tab 5-16 Tox'!$K11:$K280),'Tab 5-16 Tox'!$K11:$K280,"--") -> -- | H11: =IF(ISNUMBER(VLOOKUP(E11,'Tab 5-7a Soil & Air EPCs'!$D$7:$E$9,2,FALSE)),VLOOKUP(E11,'Tab 5-7a Soil & Air EPCs'!$D$7:$E$9,2,FALSE),"--") -> 0.47 | I11: =IF(F11:F280<>"--",IF(H11:H280<>"--",H11:H280*I9*F11:F280,"--"),"--") -> -- | J11: =IF(G11:G280<>"--",IF(H11:H280<>"--",H11:H280*J9/G11:G280,"--"),"--") -> -- | K11: ='Tab 5-16 Tox'!S11:S280 -> -- | L11: =IF(F11:F280<>"--",IF(H11:H280<>"--",IF(K11:K280<>"--",H11:H280*L9*F11:F280*K11:K280,"--"),"--"),"--") -> -- | M11: =IF(G11:G280<>"--",IF(H11:H280<>"--",IF(K11:K280<>"--",H11:H280*M9*K11:K280/G11:G280,"--"),"--"),"--") -> -- | N11: =IF(ISNUMBER('Tab 5-16 Tox'!$H11:$H280),'Tab 5-16 Tox'!$H11:$H280,"--") -> -- | O11: =IF(ISNUMBER('Tab 5-16 Tox'!$M11:$M280),'Tab 5-16 Tox'!$M11:$M280,"--") -> -- | P11: =IF(ISNUMBER(VLOOKUP(E11,'Tab 5-7a Soil & Air EPCs'!$D$7:$H$9,5,FALSE)),VLOOKUP(E11,'Tab 5-7a Soil & Air EPCs'!$D$7:$H$9,5,FALSE),"--") -> -- | Q11: =IF(N11:N280<>"--",IF(P11:P280<>"--",P11:P280*Q9*N11:N280,"--"),"--") -> -- | R11: =IF(O11:O280<>"--",IF(P11:P280<>"--",P11:P280*R9/O11:O280,"--"),"--") -> -- | S11: =IF(ISNUMBER(VLOOKUP(E11,'Tab 5-7a Soil & Air EPCs'!$D$7:$F$9,3,FALSE)),VLOOKUP(E11,'Tab 5-7a Soil & Air EPCs'!$D$7:$F$9,3,FALSE),"--") -> 4.92253066e-07 | T11: =IF(N11:N280<>"--",IF(S11:S280<>"--",S11:S280*T9*N11:N280,"--"),"--") -> -- | U11: =IF(O11:O280<>"--",IF(S11:S280<>"--",S11:S280*U9/O11:O280,"--"),"--") -> -- | V11: =IF(SUM(I11,L11,Q11,T11)>0,SUM(I11,L11,Q11,T11),"--") -> -- | W11: =IF(SUM(J11,M11,R11,U11)>0,SUM(J11,M11,R11,U11),"--") -> --
A12: X | B12: Metal | C12: 0 | D12: Zirconium | E12: 7440-67-7 | F12: -- | G12: 8e-05 | H12: =IF(ISNUMBER(VLOOKUP(E12,'Tab 5-7a Soil & Air EPCs'!$D$7:$E$9,2,FALSE)),VLOOKUP(E12,'Tab 5-7a Soil & Air EPCs'!$D$7:$E$9,2,FALSE),"--") -> 24.9 | I12: -- | J12: 0.2398330479 | K12: -- | L12: -- | M12: -- | N12: -- | O12: -- | P12: =IF(ISNUMBER(VLOOKUP(E12,'Tab 5-7a Soil & Air EPCs'!$D$7:$H$9,5,FALSE)),VLOOKUP(E12,'Tab 5-7a Soil & Air EPCs'!$D$7:$H$9,5,FALSE),"--") -> -- | Q12: -- | R12: -- | S12: =IF(ISNUMBER(VLOOKUP(E12,'Tab 5-7a Soil & Air EPCs'!$D$7:$F$9,3,FALSE)),VLOOKUP(E12,'Tab 5-7a Soil & Air EPCs'!$D$7:$F$9,3,FALSE),"--") -> 2.607893903e-05 | T12: -- | U12: -- | V12: =IF(SUM(I12,L12,Q12,T12)>0,SUM(I12,L12,Q12,T12),"--") -> -- | W12: =IF(SUM(J12,M12,R12,U12)>0,SUM(J12,M12,R12,U12),"--") -> 0.2398330479
A13: X | B13: Pesticide - OCP | C13: 0 | D13: Hexachlorobenzene | E13: 118-74-1 | F13: 1.6 | G13: 0.0008 | H13: =IF(ISNUMBER(VLOOKUP(E13,'Tab 5-7a Soil & Air EPCs'!$D$7:$E$9,2,FALSE)),VLOOKUP(E13,'Tab 5-7a Soil & Air EPCs'!$D$7:$E$9,2,FALSE),"--") -> 0.21 | I13: 9.246575342e-08 | J13: 0.0002022688356 | K13: -- | L13: -- | M13: -- | N13: 0.00046 | O13: -- | P13: =IF(ISNUMBER(VLOOKUP(E13,'Tab 5-7a Soil & Air EPCs'!$D$7:$H$9,5,FALSE)),VLOOKUP(E13,'Tab 5-7a Soil & Air EPCs'!$D$7:$H$9,5,FALSE),"--") -> 0.009239308443 | Q13: 3.118944631e-07 | R13: -- | S13: =IF(ISNUMBER(VLOOKUP(E13,'Tab 5-7a Soil & Air EPCs'!$D$7:$F$9,3,FALSE)),VLOOKUP(E13,'Tab 5-7a Soil & Air EPCs'!$D$7:$F$9,3,FALSE),"--") -> 2.199428593e-07 | T13: 7.424685562e-12 | U13: -- | V13: 4.043676412e-07 | W13: 0.0002022688356
A14: 0 | B14: 0 | C14: 0 | D14: 0 | E14: 0 | F14: -- | G14: -- | H14: =IF(ISNUMBER(VLOOKUP(E14,'Tab 5-7a Soil & Air EPCs'!$D$7:$E$9,2,FALSE)),VLOOKUP(E14,'Tab 5-7a Soil & Air EPCs'!$D$7:$E$9,2,FALSE),"--") -> -- | I14: -- | J14: -- | K14: 0 | L14: -- | M14: -- | N14: -- | O14: -- | P14: =IF(ISNUMBER(VLOOKUP(E14,'Tab 5-7a Soil & Air EPCs'!$D$7:$H$9,5,FALSE)),VLOOKUP(E14,'Tab 5-7a Soil & Air EPCs'!$D$7:$H$9,5,FALSE),"--") -> -- | Q14: -- | R14: -- | S14: =IF(ISNUMBER(VLOOKUP(E14,'Tab 5-7a Soil & Air EPCs'!$D$7:$F$9,3,FALSE)),VLOOKUP(E14,'Tab 5-7a Soil & Air EPCs'!$D$7:$F$9,3,FALSE),"--") -> -- | T14: -- | U14: -- | V14: -- | W14: --
A15: 0 | B15: 0 | C15: 0 | D15: 0 | E15: 0 | F15: -- | G15: -- | H15: =IF(ISNUMBER(VLOOKUP(E15,'Tab 5-7a Soil & Air EPCs'!$D$7:$E$9,2,FALSE)),VLOOKUP(E15,'Tab 5-7a Soil & Air EPCs'!$D$7:$E$9,2,FALSE),"--") -> -- | I15: -- | J15: -- | K15: 0 | L15: -- | M15: -- | N15: -- | O15: -- | P15: =IF(ISNUMBER(VLOOKUP(E15,'Tab 5-7a Soil & Air EPCs'!$D$7:$H$9,5,FALSE)),VLOOKUP(E15,'Tab 5-7a Soil & Air EPCs'!$D$7:$H$9,5,FALSE),"--") -> -- | Q15: -- | R15: -- | S15: =IF(ISNUMBER(VLOOKUP(E15,'Tab 5-7a Soil & Air EPCs'!$D$7:$F$9,3,FALSE)),VLOOKUP(E15,'Tab 5-7a Soil & Air EPCs'!$D$7:$F$9,3,FALSE),"--") -> -- | T15: -- | U15: -- | V15: -- | W15: --
A16: 0 | B16: 0 | C16: 0 | D16: 0 | E16: 0 | F16: -- | G16: -- | H16: =IF(ISNUMBER(VLOOKUP(E16,'Tab 5-7a Soil & Air EPCs'!$D$7:$E$9,2,FALSE)),VLOOKUP(E16,'Tab 5-7a Soil & Air EPCs'!$D$7:$E$9,2,FALSE),"--") -> -- | I16: -- | J16: -- | K16: 0 | L16: -- | M16: -- | N16: -- | O16: -- | P16: =IF(ISNUMBER(VLOOKUP(E16,'Tab 5-7a Soil & Air EPCs'!$D$7:$H$9,5,FALSE)),VLOOKUP(E16,'Tab 5-7a Soil & Air EPCs'!$D$7:$H$9,5,FALSE),"--") -> -- | Q16: -- | R16: -- | S16: =IF(ISNUMBER(VLOOKUP(E16,'Tab 5-7a Soil & Air EPCs'!$D$7:$F$9,3,FALSE)),VLOOKUP(E16,'Tab 5-7a Soil & Air EPCs'!$D$7:$F$9,3,FALSE),"--") -> -- | T16: -- | U16: -- | V16: -- | W16: --
A17: 0 | B17: 0 | C17: 0 | D17: 0 | E17: 0 | F17: -- | G17: -- | H17: =IF(ISNUMBER(VLOOKUP(E17,'Tab 5-7a Soil & Air EPCs'!$D$7:$E$9,2,FALSE)),VLOOKUP(E17,'Tab 5-7a Soil & Air EPCs'!$D$7:$E$9,2,FALSE),"--") -> -- | I17: -- | J17: -- | K17: 0 | L17: -- | M17: -- | N17: -- | O17: -- | P17: =IF(ISNUMBER(VLOOKUP(E17,'Tab 5-7a Soil & Air EPCs'!$D$7:$H$9,5,FALSE)),VLOOKUP(E17,'Tab 5-7a Soil & Air EPCs'!$D$7:$H$9,5,FALSE),"--") -> -- | Q17: -- | R17: -- | S17: =IF(ISNUMBER(VLOOKUP(E17,'Tab 5-7a Soil & Air EPCs'!$D$7:$F$9,3,FALSE)),VLOOKUP(E17,'Tab 5-7a Soil & Air EPCs'!$D$7:$F$9,3,FALSE),"--") -> -- | T17: -- | U17: -- | V17: -- | W17: --
A18: 0 | B18: 0 | C18: 0 | D18: 0 | E18: 0 | F18: -- | G18: -- | H18: =IF(ISNUMBER(VLOOKUP(E18,'Tab 5-7a Soil & Air EPCs'!$D$7:$E$9,2,FALSE)),VLOOKUP(E18,'Tab 5-7a Soil & Air EPCs'!$D$7:$E$9,2,FALSE),"--") -> -- | I18: -- | J18: -- | K18: 0 | L18: -- | M18: -- | N18: -- | O18: -- | P18: =IF(ISNUMBER(VLOOKUP(E18,'Tab 5-7a Soil & Air EPCs'!$D$7:$H$9,5,FALSE)),VLOOKUP(E18,'Tab 5-7a Soil & Air EPCs'!$D$7:$H$9,5,FALSE),"--") -> -- | Q18: -- | R18: -- | S18: =IF(ISNUMBER(VLOOKUP(E18,'Tab 5-7a Soil & Air EPCs'!$D$7:$F$9,3,FALSE)),VLOOKUP(E18,'Tab 5-7a Soil & Air EPCs'!$D$7:$F$9,3,FALSE),"--") -> -- | T18: -- | U18: -- | V18: -- | W18: --
A19: 0 | B19: 0 | C19: 0 | D19: 0 | E19: 0 | F19: -- | G19: -- | H19: =IF(ISNUMBER(VLOOKUP(E19,'Tab 5-7a Soil & Air EPCs'!$D$7:$E$9,2,FALSE)),VLOOKUP(E19,'Tab 5-7a Soil & Air EPCs'!$D$7:$E$9,2,FALSE),"--") -> -- | I19: -- | J19: -- | K19: 0 | L19: -- | M19: -- | N19: -- | O19: -- | P19: =IF(ISNUMBER(VLOOKUP(E19,'Tab 5-7a Soil & Air EPCs'!$D$7:$H$9,5,FALSE)),VLOOKUP(E19,'Tab 5-7a Soil & Air EPCs'!$D$7:$H$9,5,FALSE),"--") -> -- | Q19: -- | R19: -- | S19: =IF(ISNUMBER(VLOOKUP(E19,'Tab 5-7a Soil & Air EPCs'!$D$7:$F$9,3,FALSE)),VLOOKUP(E19,'Tab 5-7a Soil & Air EPCs'!$D$7:$F$9,3,FALSE),"--") -> -- | T19: -- | U19: -- | V19: -- | W19: --
A20: 0 | B20: 0 | C20: 0 | D20: 0 | E20: 0 | F20: -- | G20: -- | H20: =IF(ISNUMBER(VLOOKUP(E20,'Tab 5-7a Soil & Air EPCs'!$D$7:$E$9,2,FALSE)),VLOOKUP(E20,'Tab 5-7a Soil & Air EPCs'!$D$7:$E$9,2,FALSE),"--") -> -- | I20: -- | J20: -- | K20: 0 | L20: -- | M20: -- | N20: -- | O20: -- | P20: =IF(ISNUMBER(VLOOKUP(E20,'Tab 5-7a Soil & Air EPCs'!$D$7:$H$9,5,FALSE)),VLOOKUP(E20,'Tab 5-7a Soil & Air EPCs'!$D$7:$H$9,5,FALSE),"--") -> -- | Q20: -- | R20: -- | S20: =IF(ISNUMBER(VLOOKUP(E20,'Tab 5-7a Soil & Air EPCs'!$D$7:$F$9,3,FALSE)),VLOOKUP(E20,'Tab 5-7a Soil & Air EPCs'!$D$7:$F$9,3,FALSE),"--") -> -- | T20: -- | U20: -- | V20: -- | W20: --
A21: 0 | B21: 0 | C21: 0 | D21: 0 | E21: 0 | F21: -- | G21: -- | H21: =IF(ISNUMBER(VLOOKUP(E21,'Tab 5-7a Soil & Air EPCs'!$D$7:$E$9,2,FALSE)),VLOOKUP(E21,'Tab 5-7a Soil & Air EPCs'!$D$7:$E$9,2,FALSE),"--") -> -- | I21: -- | J21: -- | K21: 0 | L21: -- | M21: -- | N21: -- | O21: -- | P21: =IF(ISNUMBER(VLOOKUP(E21,'Tab 5-7a Soil & Air EPCs'!$D$7:$H$9,5,FALSE)),VLOOKUP(E21,'Tab 5-7a Soil & Air EPCs'!$D$7:$H$9,5,FALSE),"--") -> -- | Q21: -- | R21: -- | S21: =IF(ISNUMBER(VLOOKUP(E21,'Tab 5-7a Soil & Air EPCs'!$D$7:$F$9,3,FALSE)),VLOOKUP(E21,'Tab 5-7a Soil & Air EPCs'!$D$7:$F$9,3,FALSE),"--") -> -- | T21: -- | U21: -- | V21: -- | W21: --
A22: 0 | B22: 0 | C22: 0 | D22: 0 | E22: 0 | F22: -- | G22: -- | H22: =IF(ISNUMBER(VLOOKUP(E22,'Tab 5-7a Soil & Air EPCs'!$D$7:$E$9,2,FALSE)),VLOOKUP(E22,'Tab 5-7a Soil & Air EPCs'!$D$7:$E$9,2,FALSE),"--") -> -- | I22: -- | J22: -- | K22: 0 | L22: -- | M22: -- | N22: -- | O22: -- | P22: =IF(ISNUMBER(VLOOKUP(E22,'Tab 5-7a Soil & Air EPCs'!$D$7:$H$9,5,FALSE)),VLOOKUP(E22,'Tab 5-7a Soil & Air EPCs'!$D$7:$H$9,5,FALSE),"--") -> -- | Q22: -- | R22: -- | S22: =IF(ISNUMBER(VLOOKUP(E22,'Tab 5-7a Soil & Air EPCs'!$D$7:$F$9,3,FALSE)),VLOOKUP(E22,'Tab 5-7a Soil & Air EPCs'!$D$7:$F$9,3,FALSE),"--") -> -- | T22: -- | U22: -- | V22: -- | W22: --
A23: 0 | B23: 0 | C23: 0 | D23: 0 | E23: 0 | F23: -- | G23: -- | H23: =IF(ISNUMBER(VLOOKUP(E23,'Tab 5-7a Soil & Air EPCs'!$D$7:$E$9,2,FALSE)),VLOOKUP(E23,'Tab 5-7a Soil & Air EPCs'!$D$7:$E$9,2,FALSE),"--") -> -- | I23: -- | J23: -- | K23: 0 | L23: -- | M23: -- | N23: -- | O23: -- | P23: =IF(ISNUMBER(VLOOKUP(E23,'Tab 5-7a Soil & Air EPCs'!$D$7:$H$9,5,FALSE)),VLOOKUP(E23,'Tab 5-7a Soil & Air EPCs'!$D$7:$H$9,5,FALSE),"--") -> -- | Q23: -- | R23: -- | S23: =IF(ISNUMBER(VLOOKUP(E23,'Tab 5-7a Soil & Air EPCs'!$D$7:$F$9,3,FALSE)),VLOOKUP(E23,'Tab 5-7a Soil & Air EPCs'!$D$7:$F$9,3,FALSE),"--") -> -- | T23: -- | U23: -- | V23: -- | W23: --
A24: 0 | B24: 0 | C24: 0 | D24: 0 | E24: 0 | F24: -- | G24: -- | H24: =IF(ISNUMBER(VLOOKUP(E24,'Tab 5-7a Soil & Air EPCs'!$D$7:$E$9,2,FALSE)),VLOOKUP(E24,'Tab 5-7a Soil & Air EPCs'!$D$7:$E$9,2,FALSE),"--") -> -- | I24: -- | J24: -- | K24: 0 | L24: -- | M24: -- | N24: -- | O24: -- | P24: =IF(ISNUMBER(VLOOKUP(E24,'Tab 5-7a Soil & Air EPCs'!$D$7:$H$9,5,FALSE)),VLOOKUP(E24,'Tab 5-7a Soil & Air EPCs'!$D$7:$H$9,5,FALSE),"--") -> -- | Q24: -- | R24: -- | S24: =IF(ISNUMBER(VLOOKUP(E24,'Tab 5-7a Soil & Air EPCs'!$D$7:$F$9,3,FALSE)),VLOOKUP(E24,'Tab 5-7a Soil & Air EPCs'!$D$7:$F$9,3,FALSE),"--") -> -- | T24: -- | U24: -- | V24: -- | W24: --
A25: 0 | B25: 0 | C25: 0 | D25: 0 | E25: 0 | F25: -- | G25: -- | H25: =IF(ISNUMBER(VLOOKUP(E25,'Tab 5-7a Soil & Air EPCs'!$D$7:$E$9,2,FALSE)),VLOOKUP(E25,'Tab 5-7a Soil & Air EPCs'!$D$7:$E$9,2,FALSE),"--") -> -- | I25: -- | J25: -- | K25: 0 | L25: -- | M25: -- | N25: -- | O25: -- | P25: =IF(ISNUMBER(VLOOKUP(E25,'Tab 5-7a Soil & Air EPCs'!$D$7:$H$9,5,FALSE)),VLOOKUP(E25,'Tab 5-7a Soil & Air EPCs'!$D$7:$H$9,5,FALSE),"--") -> -- | Q25: -- | R25: -- | S25: =IF(ISNUMBER(VLOOKUP(E25,'Tab 5-7a Soil & Air EPCs'!$D$7:$F$9,3,FALSE)),VLOOKUP(E25,'Tab 5-7a Soil & Air EPCs'!$D$7:$F$9,3,FALSE),"--") -> -- | T25: -- | U25: -- | V25: -- | W25: --
A26: 0 | B26: 0 | C26: 0 | D26: 0 | E26: 0 | F26: -- | G26: -- | H26: =IF(ISNUMBER(VLOOKUP(E26,'Tab 5-7a Soil & Air EPCs'!$D$7:$E$9,2,FALSE)),VLOOKUP(E26,'Tab 5-7a Soil & Air EPCs'!$D$7:$E$9,2,FALSE),"--") -> -- | I26: -- | J26: -- | K26: 0 | L26: -- | M26: -- | N26: -- | O26: -- | P26: =IF(ISNUMBER(VLOOKUP(E26,'Tab 5-7a Soil & Air EPCs'!$D$7:$H$9,5,FALSE)),VLOOKUP(E26,'Tab 5-7a Soil & Air EPCs'!$D$7:$H$9,5,FALSE),"--") -> -- | Q26: -- | R26: -- | S26: =IF(ISNUMBER(VLOOKUP(E26,'Tab 5-7a Soil & Air EPCs'!$D$7:$F$9,3,FALSE)),VLOOKUP(E26,'Tab 5-7a Soil & Air EPCs'!$D$7:$F$9,3,FALSE),"--") -> -- | T26: -- | U26: -- | V26: -- | W26: --
A27: 0 | B27: 0 | C27: 0 | D27: 0 | E27: 0 | F27: -- | G27: -- | H27: =IF(ISNUMBER(VLOOKUP(E27,'Tab 5-7a Soil & Air EPCs'!$D$7:$E$9,2,FALSE)),VLOOKUP(E27,'Tab 5-7a Soil & Air EPCs'!$D$7:$E$9,2,FALSE),"--") -> -- | I27: -- | J27: -- | K27: 0 | L27: -- | M27: -- | N27: -- | O27: -- | P27: =IF(ISNUMBER(VLOOKUP(E27,'Tab 5-7a Soil & Air EPCs'!$D$7:$H$9,5,FALSE)),VLOOKUP(E27,'Tab 5-7a Soil & Air EPCs'!$D$7:$H$9,5,FALSE),"--") -> -- | Q27: -- | R27: -- | S27: =IF(ISNUMBER(VLOOKUP(E27,'Tab 5-7a Soil & Air EPCs'!$D$7:$F$9,3,FALSE)),VLOOKUP(E27,'Tab 5-7a Soil & Air EPCs'!$D$7:$F$9,3,FALSE),"--") -> -- | T27: -- | U27: -- | V27: -- | W27: --
A28: 0 | B28: 0 | C28: 0 | D28: 0 | E28: 0 | F28: -- | G28: -- | H28: =IF(ISNUMBER(VLOOKUP(E28,'Tab 5-7a Soil & Air EPCs'!$D$7:$E$9,2,FALSE)),VLOOKUP(E28,'Tab 5-7a Soil & Air EPCs'!$D$7:$E$9,2,FALSE),"--") -> -- | I28: -- | J28: -- | K28: 0 | L28: -- | M28: -- | N28: -- | O28: -- | P28: =IF(ISNUMBER(VLOOKUP(E28,'Tab 5-7a Soil & Air EPCs'!$D$7:$H$9,5,FALSE)),VLOOKUP(E28,'Tab 5-7a Soil & Air EPCs'!$D$7:$H$9,5,FALSE),"--") -> -- | Q28: -- | R28: -- | S28: =IF(ISNUMBER(VLOOKUP(E28,'Tab 5-7a Soil & Air EPCs'!$D$7:$F$9,3,FALSE)),VLOOKUP(E28,'Tab 5-7a Soil & Air EPCs'!$D$7:$F$9,3,FALSE),"--") -> -- | T28: -- | U28: -- | V28: -- | W28: --
A29: 0 | B29: 0 | C29: 0 | D29: 0 | E29: 0 | F29: -- | G29: -- | H29: =IF(ISNUMBER(VLOOKUP(E29,'Tab 5-7a Soil & Air EPCs'!$D$7:$E$9,2,FALSE)),VLOOKUP(E29,'Tab 5-7a Soil & Air EPCs'!$D$7:$E$9,2,FALSE),"--") -> -- | I29: -- | J29: -- | K29: 0 | L29: -- | M29: -- | N29: -- | O29: -- | P29: =IF(ISNUMBER(VLOOKUP(E29,'Tab 5-7a Soil & Air EPCs'!$D$7:$H$9,5,FALSE)),VLOOKUP(E29,'Tab 5-7a Soil & Air EPCs'!$D$7:$H$9,5,FALSE),"--") -> -- | Q29: -- | R29: -- | S29: =IF(ISNUMBER(VLOOKUP(E29,'Tab 5-7a Soil & Air EPCs'!$D$7:$F$9,3,FALSE)),VLOOKUP(E29,'Tab 5-7a Soil & Air EPCs'!$D$7:$F$9,3,FALSE),"--") -> -- | T29: -- | U29: -- | V29: -- | W29: --
A30: 0 | B30: 0 | C30: 0 | D30: 0 | E30: 0 | F30: -- | G30: -- | H30: =IF(ISNUMBER(VLOOKUP(E30,'Tab 5-7a Soil & Air EPCs'!$D$7:$E$9,2,FALSE)),VLOOKUP(E30,'Tab 5-7a Soil & Air EPCs'!$D$7:$E$9,2,FALSE),"--") -> -- | I30: -- | J30: -- | K30: 0 | L30: -- | M30: -- | N30: -- | O30: -- | P30: =IF(ISNUMBER(VLOOKUP(E30,'Tab 5-7a Soil & Air EPCs'!$D$7:$H$9,5,FALSE)),VLOOKUP(E30,'Tab 5-7a Soil & Air EPCs'!$D$7:$H$9,5,FALSE),"--") -> -- | Q30: -- | R30: -- | S30: =IF(ISNUMBER(VLOOKUP(E30,'Tab 5-7a Soil & Air EPCs'!$D$7:$F$9,3,FALSE)),VLOOKUP(E30,'Tab 5-7a Soil & Air EPCs'!$D$7:$F$9,3,FALSE),"--") -> -- | T30: -- | U30: -- | V30: -- | W30: --
A31: 0 | B31: 0 | C31: 0 | D31: 0 | E31: 0 | F31: -- | G31: -- | H31: =IF(ISNUMBER(VLOOKUP(E31,'Tab 5-7a Soil & Air EPCs'!$D$7:$E$9,2,FALSE)),VLOOKUP(E31,'Tab 5-7a Soil & Air EPCs'!$D$7:$E$9,2,FALSE),"--") -> -- | I31: -- | J31: -- | K31: 0 | L31: -- | M31: -- | N31: -- | O31: -- | P31: =IF(ISNUMBER(VLOOKUP(E31,'Tab 5-7a Soil & Air EPCs'!$D$7:$H$9,5,FALSE)),VLOOKUP(E31,'Tab 5-7a Soil & Air EPCs'!$D$7:$H$9,5,FALSE),"--") -> -- | Q31: -- | R31: -- | S31: =IF(ISNUMBER(VLOOKUP(E31,'Tab 5-7a Soil & Air EPCs'!$D$7:$F$9,3,FALSE)),VLOOKUP(E31,'Tab 5-7a Soil & Air EPCs'!$D$7:$F$9,3,FALSE),"--") -> -- | T31: -- | U31: -- | V31: -- | W31: --
A32: 0 | B32: 0 | C32: 0 | D32: 0 | E32: 0 | F32: -- | G32: -- | H32: =IF(ISNUMBER(VLOOKUP(E32,'Tab 5-7a Soil & Air EPCs'!$D$7:$E$9,2,FALSE)),VLOOKUP(E32,'Tab 5-7a Soil & Air EPCs'!$D$7:$E$9,2,FALSE),"--") -> -- | I32: -- | J32: -- | K32: 0 | L32: -- | M32: -- | N32: -- | O32: -- | P32: =IF(ISNUMBER(VLOOKUP(E32,'Tab 5-7a Soil & Air EPCs'!$D$7:$H$9,5,FALSE)),VLOOKUP(E32,'Tab 5-7a Soil & Air EPCs'!$D$7:$H$9,5,FALSE),"--") -> -- | Q32: -- | R32: -- | S32: =IF(ISNUMBER(VLOOKUP(E32,'Tab 5-7a Soil & Air EPCs'!$D$7:$F$9,3,FALSE)),VLOOKUP(E32,'Tab 5-7a Soil & Air EPCs'!$D$7:$F$9,3,FALSE),"--") -> -- | T32: -- | U32: -- | V32: -- | W32: --
A33: 0 | B33: 0 | C33: 0 | D33: 0 | E33: 0 | F33: -- | G33: -- | H33: =IF(ISNUMBER(VLOOKUP(E33,'Tab 5-7a Soil & Air EPCs'!$D$7:$E$9,2,FALSE)),VLOOKUP(E33,'Tab 5-7a Soil & Air EPCs'!$D$7:$E$9,2,FALSE),"--") -> -- | I33: -- | J33: -- | K33: 0 | L33: -- | M33: -- | N33: -- | O33: -- | P33: =IF(ISNUMBER(VLOOKUP(E33,'Tab 5-7a Soil & Air EPCs'!$D$7:$H$9,5,FALSE)),VLOOKUP(E33,'Tab 5-7a Soil & Air EPCs'!$D$7:$H$9,5,FALSE),"--") -> -- | Q33: -- | R33: -- | S33: =IF(ISNUMBER(VLOOKUP(E33,'Tab 5-7a Soil & Air EPCs'!$D$7:$F$9,3,FALSE)),VLOOKUP(E33,'Tab 5-7a Soil & Air EPCs'!$D$7:$F$9,3,FALSE),"--") -> -- | T33: -- | U33: -- | V33: -- | W33: --
A34: 0 | B34: 0 | C34: 0 | D34: 0 | E34: 0 | F34: -- | G34: -- | H34: =IF(ISNUMBER(VLOOKUP(E34,'Tab 5-7a Soil & Air EPCs'!$D$7:$E$9,2,FALSE)),VLOOKUP(E34,'Tab 5-7a Soil & Air EPCs'!$D$7:$E$9,2,FALSE),"--") -> -- | I34: -- | J34: -- | K34: 0 | L34: -- | M34: -- | N34: -- | O34: -- | P34: =IF(ISNUMBER(VLOOKUP(E34,'Tab 5-7a Soil & Air EPCs'!$D$7:$H$9,5,FALSE)),VLOOKUP(E34,'Tab 5-7a Soil & Air EPCs'!$D$7:$H$9,5,FALSE),"--") -> -- | Q34: -- | R34: -- | S34: =IF(ISNUMBER(VLOOKUP(E34,'Tab 5-7a Soil & Air EPCs'!$D$7:$F$9,3,FALSE)),VLOOKUP(E34,'Tab 5-7a Soil & Air EPCs'!$D$7:$F$9,3,FALSE),"--") -> -- | T34: -- | U34: -- | V34: -- | W34: --
A35: 0 | B35: 0 | C35: 0 | D35: 0 | E35: 0 | F35: -- | G35: -- | H35: =IF(ISNUMBER(VLOOKUP(E35,'Tab 5-7a Soil & Air EPCs'!$D$7:$E$9,2,FALSE)),VLOOKUP(E35,'Tab 5-7a Soil & Air EPCs'!$D$7:$E$9,2,FALSE),"--") -> -- | I35: -- | J35: -- | K35: 0 | L35: -- | M35: -- | N35: -- | O35: -- | P35: =IF(ISNUMBER(VLOOKUP(E35,'Tab 5-7a Soil & Air EPCs'!$D$7:$H$9,5,FALSE)),VLOOKUP(E35,'Tab 5-7a Soil & Air EPCs'!$D$7:$H$9,5,FALSE),"--") -> -- | Q35: -- | R35: -- | S35: =IF(ISNUMBER(VLOOKUP(E35,'Tab 5-7a Soil & Air EPCs'!$D$7:$F$9,3,FALSE)),VLOOKUP(E35,'Tab 5-7a Soil & Air EPCs'!$D$7:$F$9,3,FALSE),"--") -> -- | T35: -- | U35: -- | V35: -- | W35: --
A36: 0 | B36: 0 | C36: 0 | D36: 0 | E36: 0 | F36: -- | G36: -- | H36: =IF(ISNUMBER(VLOOKUP(E36,'Tab 5-7a Soil & Air EPCs'!$D$7:$E$9,2,FALSE)),VLOOKUP(E36,'Tab 5-7a Soil & Air EPCs'!$D$7:$E$9,2,FALSE),"--") -> -- | I36: -- | J36: -- | K36: 0 | L36: -- | M36: -- | N36: -- | O36: -- | P36: =IF(ISNUMBER(VLOOKUP(E36,'Tab 5-7a Soil & Air EPCs'!$D$7:$H$9,5,FALSE)),VLOOKUP(E36,'Tab 5-7a Soil & Air EPCs'!$D$7:$H$9,5,FALSE),"--") -> -- | Q36: -- | R36: -- | S36: =IF(ISNUMBER(VLOOKUP(E36,'Tab 5-7a Soil & Air EPCs'!$D$7:$F$9,3,FALSE)),VLOOKUP(E36,'Tab 5-7a Soil & Air EPCs'!$D$7:$F$9,3,FALSE),"--") -> -- | T36: -- | U36: -- | V36: -- | W36: --
A37: 0 | B37: 0 | C37: 0 | D37: 0 | E37: 0 | F37: -- | G37: -- | H37: =IF(ISNUMBER(VLOOKUP(E37,'Tab 5-7a Soil & Air EPCs'!$D$7:$E$9,2,FALSE)),VLOOKUP(E37,'Tab 5-7a Soil & Air EPCs'!$D$7:$E$9,2,FALSE),"--") -> -- | I37: -- | J37: -- | K37: 0 | L37: -- | M37: -- | N37: -- | O37: -- | P37: =IF(ISNUMBER(VLOOKUP(E37,'Tab 5-7a Soil & Air EPCs'!$D$7:$H$9,5,FALSE)),VLOOKUP(E37,'Tab 5-7a Soil & Air EPCs'!$D$7:$H$9,5,FALSE),"--") -> -- | Q37: -- | R37: -- | S37: =IF(ISNUMBER(VLOOKUP(E37,'Tab 5-7a Soil & Air EPCs'!$D$7:$F$9,3,FALSE)),VLOOKUP(E37,'Tab 5-7a Soil & Air EPCs'!$D$7:$F$9,3,FALSE),"--") -> -- | T37: -- | U37: -- | V37: -- | W37: --
A38: 0 | B38: 0 | C38: 0 | D38: 0 | E38: 0 | F38: -- | G38: -- | H38: =IF(ISNUMBER(VLOOKUP(E38,'Tab 5-7a Soil & Air EPCs'!$D$7:$E$9,2,FALSE)),VLOOKUP(E38,'Tab 5-7a Soil & Air EPCs'!$D$7:$E$9,2,FALSE),"--") -> -- | I38: -- | J38: -- | K38: 0 | L38: -- | M38: -- | N38: -- | O38: -- | P38: =IF(ISNUMBER(VLOOKUP(E38,'Tab 5-7a Soil & Air EPCs'!$D$7:$H$9,5,FALSE)),VLOOKUP(E38,'Tab 5-7a Soil & Air EPCs'!$D$7:$H$9,5,FALSE),"--") -> -- | Q38: -- | R38: -- | S38: =IF(ISNUMBER(VLOOKUP(E38,'Tab 5-7a Soil & Air EPCs'!$D$7:$F$9,3,FALSE)),VLOOKUP(E38,'Tab 5-7a Soil & Air EPCs'!$D$7:$F$9,3,FALSE),"--") -> -- | T38: -- | U38: -- | V38: -- | W38: --
A39: 0 | B39: 0 | C39: 0 | D39: 0 | E39: 0 | F39: -- | G39: -- | H39: =IF(ISNUMBER(VLOOKUP(E39,'Tab 5-7a Soil & Air EPCs'!$D$7:$E$9,2,FALSE)),VLOOKUP(E39,'Tab 5-7a Soil & Air EPCs'!$D$7:$E$9,2,FALSE),"--") -> -- | I39: -- | J39: -- | K39: 0 | L39: -- | M39: -- | N39: -- | O39: -- | P39: =IF(ISNUMBER(VLOOKUP(E39,'Tab 5-7a Soil & Air EPCs'!$D$7:$H$9,5,FALSE)),VLOOKUP(E39,'Tab 5-7a Soil & Air EPCs'!$D$7:$H$9,5,FALSE),"--") -> -- | Q39: -- | R39: -- | S39: =IF(ISNUMBER(VLOOKUP(E39,'Tab 5-7a Soil & Air EPCs'!$D$7:$F$9,3,FALSE)),VLOOKUP(E39,'Tab 5-7a Soil & Air EPCs'!$D$7:$F$9,3,FALSE),"--") -> -- | T39: -- | U39: -- | V39: -- | W39: --
A40: 0 | B40: 0 | C40: 0 | D40: 0 | E40: 0 | F40: -- | G40: -- | H40: =IF(ISNUMBER(VLOOKUP(E40,'Tab 5-7a Soil & Air EPCs'!$D$7:$E$9,2,FALSE)),VLOOKUP(E40,'Tab 5-7a Soil & Air EPCs'!$D$7:$E$9,2,FALSE),"--") -> -- | I40: -- | J40: -- | K40: 0 | L40: -- | M40: -- | N40: -- | O40: -- | P40: =IF(ISNUMBER(VLOOKUP(E40,'Tab 5-7a Soil & Air EPCs'!$D$7:$H$9,5,FALSE)),VLOOKUP(E40,'Tab 5-7a Soil & Air EPCs'!$D$7:$H$9,5,FALSE),"--") -> -- | Q40: -- | R40: -- | S40: =IF(ISNUMBER(VLOOKUP(E40,'Tab 5-7a Soil & Air EPCs'!$D$7:$F$9,3,FALSE)),VLOOKUP(E40,'Tab 5-7a Soil & Air EPCs'!$D$7:$F$9,3,FALSE),"--") -> -- | T40: -- | U40: -- | V40: -- | W40: --
A41: 0 | B41: 0 | C41: 0 | D41: 0 | E41: 0 | F41: -- | G41: -- | H41: =IF(ISNUMBER(VLOOKUP(E41,'Tab 5-7a Soil & Air EPCs'!$D$7:$E$9,2,FALSE)),VLOOKUP(E41,'Tab 5-7a Soil & Air EPCs'!$D$7:$E$9,2,FALSE),"--") -> -- | I41: -- | J41: -- | K41: 0 | L41: -- | M41: -- | N41: -- | O41: -- | P41: =IF(ISNUMBER(VLOOKUP(E41,'Tab 5-7a Soil & Air EPCs'!$D$7:$H$9,5,FALSE)),VLOOKUP(E41,'Tab 5-7a Soil & Air EPCs'!$D$7:$H$9,5,FALSE),"--") -> -- | Q41: -- | R41: -- | S41: =IF(ISNUMBER(VLOOKUP(E41,'Tab 5-7a Soil & Air EPCs'!$D$7:$F$9,3,FALSE)),VLOOKUP(E41,'Tab 5-7a Soil & Air EPCs'!$D$7:$F$9,3,FALSE),"--") -> -- | T41: -- | U41: -- | V41: -- | W41: --
A42: 0 | B42: 0 | C42: 0 | D42: 0 | E42: 0 | F42: -- | G42: -- | H42: =IF(ISNUMBER(VLOOKUP(E42,'Tab 5-7a Soil & Air EPCs'!$D$7:$E$9,2,FALSE)),VLOOKUP(E42,'Tab 5-7a Soil & Air EPCs'!$D$7:$E$9,2,FALSE),"--") -> -- | I42: -- | J42: -- | K42: 0 | L42: -- | M42: -- | N42: -- | O42: -- | P42: =IF(ISNUMBER(VLOOKUP(E42,'Tab 5-7a Soil & Air EPCs'!$D$7:$H$9,5,FALSE)),VLOOKUP(E42,'Tab 5-7a Soil & Air EPCs'!$D$7:$H$9,5,FALSE),"--") -> -- | Q42: -- | R42: -- | S42: =IF(ISNUMBER(VLOOKUP(E42,'Tab 5-7a Soil & Air EPCs'!$D$7:$F$9,3,FALSE)),VLOOKUP(E42,'Tab 5-7a Soil & Air EPCs'!$D$7:$F$9,3,FALSE),"--") -> -- | T42: -- | U42: -- | V42: -- | W42: --
A43: 0 | B43: 0 | C43: 0 | D43: 0 | E43: 0 | F43: -- | G43: -- | H43: =IF(ISNUMBER(VLOOKUP(E43,'Tab 5-7a Soil & Air EPCs'!$D$7:$E$9,2,FALSE)),VLOOKUP(E43,'Tab 5-7a Soil & Air EPCs'!$D$7:$E$9,2,FALSE),"--") -> -- | I43: -- | J43: -- | K43: 0 | L43: -- | M43: -- | N43: -- | O43: -- | P43: =IF(ISNUMBER(VLOOKUP(E43,'Tab 5-7a Soil & Air EPCs'!$D$7:$H$9,5,FALSE)),VLOOKUP(E43,'Tab 5-7a Soil & Air EPCs'!$D$7:$H$9,5,FALSE),"--") -> -- | Q43: -- | R43: -- | S43: =IF(ISNUMBER(VLOOKUP(E43,'Tab 5-7a Soil & Air EPCs'!$D$7:$F$9,3,FALSE)),VLOOKUP(E43,'Tab 5-7a Soil & Air EPCs'!$D$7:$F$9,3,FALSE),"--") -> -- | T43: -- | U43: -- | V43: -- | W43: --
A44: 0 | B44: 0 | C44: 0 | D44: 0 | E44: 0 | F44: -- | G44: -- | H44: =IF(ISNUMBER(VLOOKUP(E44,'Tab 5-7a Soil & Air EPCs'!$D$7:$E$9,2,FALSE)),VLOOKUP(E44,'Tab 5-7a Soil & Air EPCs'!$D$7:$E$9,2,FALSE),"--") -> -- | I44: -- | J44: -- | K44: 0 | L44: -- | M44: -- | N44: -- | O44: -- | P44: =IF(ISNUMBER(VLOOKUP(E44,'Tab 5-7a Soil & Air EPCs'!$D$7:$H$9,5,FALSE)),VLOOKUP(E44,'Tab 5-7a Soil & Air EPCs'!$D$7:$H$9,5,FALSE),"--") -> -- | Q44: -- | R44: -- | S44: =IF(ISNUMBER(VLOOKUP(E44,'Tab 5-7a Soil & Air EPCs'!$D$7:$F$9,3,FALSE)),VLOOKUP(E44,'Tab 5-7a Soil & Air EPCs'!$D$7:$F$9,3,FALSE),"--") -> -- | T44: -- | U44: -- | V44: -- | W44: --
A45: 0 | B45: 0 | C45: 0 | D45: 0 | E45: 0 | F45: -- | G45: -- | H45: =IF(ISNUMBER(VLOOKUP(E45,'Tab 5-7a Soil & Air EPCs'!$D$7:$E$9,2,FALSE)),VLOOKUP(E45,'Tab 5-7a Soil & Air EPCs'!$D$7:$E$9,2,FALSE),"--") -> -- | I45: -- | J45: -- | K45: 0 | L45: -- | M45: -- | N45: -- | O45: -- | P45: =IF(ISNUMBER(VLOOKUP(E45,'Tab 5-7a Soil & Air EPCs'!$D$7:$H$9,5,FALSE)),VLOOKUP(E45,'Tab 5-7a Soil & Air EPCs'!$D$7:$H$9,5,FALSE),"--") -> -- | Q45: -- | R45: -- | S45: =IF(ISNUMBER(VLOOKUP(E45,'Tab 5-7a Soil & Air EPCs'!$D$7:$F$9,3,FALSE)),VLOOKUP(E45,'Tab 5-7a Soil & Air EPCs'!$D$7:$F$9,3,FALSE),"--") -> -- | T45: -- | U45: -- | V45: -- | W45: --
A46: 0 | B46: 0 | C46: 0 | D46: 0 | E46: 0 | F46: -- | G46: -- | H46: =IF(ISNUMBER(VLOOKUP(E46,'Tab 5-7a Soil & Air EPCs'!$D$7:$E$9,2,FALSE)),VLOOKUP(E46,'Tab 5-7a Soil & Air EPCs'!$D$7:$E$9,2,FALSE),"--") -> -- | I46: -- | J46: -- | K46: 0 | L46: -- | M46: -- | N46: -- | O46: -- | P46: =IF(ISNUMBER(VLOOKUP(E46,'Tab 5-7a Soil & Air EPCs'!$D$7:$H$9,5,FALSE)),VLOOKUP(E46,'Tab 5-7a Soil & Air EPCs'!$D$7:$H$9,5,FALSE),"--") -> -- | Q46: -- | R46: -- | S46: =IF(ISNUMBER(VLOOKUP(E46,'Tab 5-7a Soil & Air EPCs'!$D$7:$F$9,3,FALSE)),VLOOKUP(E46,'Tab 5-7a Soil & Air EPCs'!$D$7:$F$9,3,FALSE),"--") -> -- | T46: -- | U46: -- | V46: -- | W46: --
A47: 0 | B47: 0 | C47: 0 | D47: 0 | E47: 0 | F47: -- | G47: -- | H47: =IF(ISNUMBER(VLOOKUP(E47,'Tab 5-7a Soil & Air EPCs'!$D$7:$E$9,2,FALSE)),VLOOKUP(E47,'Tab 5-7a Soil & Air EPCs'!$D$7:$E$9,2,FALSE),"--") -> -- | I47: -- | J47: -- | K47: 0 | L47: -- | M47: -- | N47: -- | O47: -- | P47: =IF(ISNUMBER(VLOOKUP(E47,'Tab 5-7a Soil & Air EPCs'!$D$7:$H$9,5,FALSE)),VLOOKUP(E47,'Tab 5-7a Soil & Air EPCs'!$D$7:$H$9,5,FALSE),"--") -> -- | Q47: -- | R47: -- | S47: =IF(ISNUMBER(VLOOKUP(E47,'Tab 5-7a Soil & Air EPCs'!$D$7:$F$9,3,FALSE)),VLOOKUP(E47,'Tab 5-7a Soil & Air EPCs'!$D$7:$F$9,3,FALSE),"--") -> -- | T47: -- | U47: -- | V47: -- | W47: --
A48: 0 | B48: 0 | C48: 0 | D48: 0 | E48: 0 | F48: -- | G48: -- | H48: =IF(ISNUMBER(VLOOKUP(E48,'Tab 5-7a Soil & Air EPCs'!$D$7:$E$9,2,FALSE)),VLOOKUP(E48,'Tab 5-7a Soil & Air EPCs'!$D$7:$E$9,2,FALSE),"--") -> -- | I48: -- | J48: -- | K48: 0 | L48: -- | M48: -- | N48: -- | O48: -- | P48: =IF(ISNUMBER(VLOOKUP(E48,'Tab 5-7a Soil & Air EPCs'!$D$7:$H$9,5,FALSE)),VLOOKUP(E48,'Tab 5-7a Soil & Air EPCs'!$D$7:$H$9,5,FALSE),"--") -> -- | Q48: -- | R48: -- | S48: =IF(ISNUMBER(VLOOKUP(E48,'Tab 5-7a Soil & Air EPCs'!$D$7:$F$9,3,FALSE)),VLOOKUP(E48,'Tab 5-7a Soil & Air EPCs'!$D$7:$F$9,3,FALSE),"--") -> -- | T48: -- | U48: -- | V48: -- | W48: --
A49: 0 | B49: 0 | C49: 0 | D49: 0 | E49: 0 | F49: -- | G49: -- | H49: =IF(ISNUMBER(VLOOKUP(E49,'Tab 5-7a Soil & Air EPCs'!$D$7:$E$9,2,FALSE)),VLOOKUP(E49,'Tab 5-7a Soil & Air EPCs'!$D$7:$E$9,2,FALSE),"--") -> -- | I49: -- | J49: -- | K49: 0 | L49: -- | M49: -- | N49: -- | O49: -- | P49: =IF(ISNUMBER(VLOOKUP(E49,'Tab 5-7a Soil & Air EPCs'!$D$7:$H$9,5,FALSE)),VLOOKUP(E49,'Tab 5-7a Soil & Air EPCs'!$D$7:$H$9,5,FALSE),"--") -> -- | Q49: -- | R49: -- | S49: =IF(ISNUMBER(VLOOKUP(E49,'Tab 5-7a Soil & Air EPCs'!$D$7:$F$9,3,FALSE)),VLOOKUP(E49,'Tab 5-7a Soil & Air EPCs'!$D$7:$F$9,3,FALSE),"--") -> -- | T49: -- | U49: -- | V49: -- | W49: --
A50: 0 | B50: 0 | C50: 0 | D50: 0 | E50: 0 | F50: -- | G50: -- | H50: =IF(ISNUMBER(VLOOKUP(E50,'Tab 5-7a Soil & Air EPCs'!$D$7:$E$9,2,FALSE)),VLOOKUP(E50,'Tab 5-7a Soil & Air EPCs'!$D$7:$E$9,2,FALSE),"--") -> -- | I50: -- | J50: -- | K50: 0 | L50: -- | M50: -- | N50: -- | O50: -- | P50: =IF(ISNUMBER(VLOOKUP(E50,'Tab 5-7a Soil & Air EPCs'!$D$7:$H$9,5,FALSE)),VLOOKUP(E50,'Tab 5-7a Soil & Air EPCs'!$D$7:$H$9,5,FALSE),"--") -> -- | Q50: -- | R50: -- | S50: =IF(ISNUMBER(VLOOKUP(E50,'Tab 5-7a Soil & Air EPCs'!$D$7:$F$9,3,FALSE)),VLOOKUP(E50,'Tab 5-7a Soil & Air EPCs'!$D$7:$F$9,3,FALSE),"--") -> -- | T50: -- | U50: -- | V50: -- | W50: --
A51: 0 | B51: 0 | C51: 0 | D51: 0 | E51: 0 | F51: -- | G51: -- | H51: =IF(ISNUMBER(VLOOKUP(E51,'Tab 5-7a Soil & Air EPCs'!$D$7:$E$9,2,FALSE)),VLOOKUP(E51,'Tab 5-7a Soil & Air EPCs'!$D$7:$E$9,2,FALSE),"--") -> -- | I51: -- | J51: -- | K51: 0 | L51: -- | M51: -- | N51: -- | O51: -- | P51: =IF(ISNUMBER(VLOOKUP(E51,'Tab 5-7a Soil & Air EPCs'!$D$7:$H$9,5,FALSE)),VLOOKUP(E51,'Tab 5-7a Soil & Air EPCs'!$D$7:$H$9,5,FALSE),"--") -> -- | Q51: -- | R51: -- | S51: =IF(ISNUMBER(VLOOKUP(E51,'Tab 5-7a Soil & Air EPCs'!$D$7:$F$9,3,FALSE)),VLOOKUP(E51,'Tab 5-7a Soil & Air EPCs'!$D$7:$F$9,3,FALSE),"--") -> -- | T51: -- | U51: -- | V51: -- | W51: --
A52: 0 | B52: 0 | C52: 0 | D52: 0 | E52: 0 | F52: -- | G52: -- | H52: =IF(ISNUMBER(VLOOKUP(E52,'Tab 5-7a Soil & Air EPCs'!$D$7:$E$9,2,FALSE)),VLOOKUP(E52,'Tab 5-7a Soil & Air EPCs'!$D$7:$E$9,2,FALSE),"--") -> -- | I52: -- | J52: -- | K52: 0 | L52: -- | M52: -- | N52: -- | O52: -- | P52: =IF(ISNUMBER(VLOOKUP(E52,'Tab 5-7a Soil & Air EPCs'!$D$7:$H$9,5,FALSE)),VLOOKUP(E52,'Tab 5-7a Soil & Air EPCs'!$D$7:$H$9,5,FALSE),"--") -> -- | Q52: -- | R52: -- | S52: =IF(ISNUMBER(VLOOKUP(E52,'Tab 5-7a Soil & Air EPCs'!$D$7:$F$9,3,FALSE)),VLOOKUP(E52,'Tab 5-7a Soil & Air EPCs'!$D$7:$F$9,3,FALSE),"--") -> -- | T52: -- | U52: -- | V52: -- | W52: --
A53: 0 | B53: 0 | C53: 0 | D53: 0 | E53: 0 | F53: -- | G53: -- | H53: =IF(ISNUMBER(VLOOKUP(E53,'Tab 5-7a Soil & Air EPCs'!$D$7:$E$9,2,FALSE)),VLOOKUP(E53,'Tab 5-7a Soil & Air EPCs'!$D$7:$E$9,2,FALSE),"--") -> -- | I53: -- | J53: -- | K53: 0 | L53: -- | M53: -- | N53: -- | O53: -- | P53: =IF(ISNUMBER(VLOOKUP(E53,'Tab 5-7a Soil & Air EPCs'!$D$7:$H$9,5,FALSE)),VLOOKUP(E53,'Tab 5-7a Soil & Air EPCs'!$D$7:$H$9,5,FALSE),"--") -> -- | Q53: -- | R53: -- | S53: =IF(ISNUMBER(VLOOKUP(E53,'Tab 5-7a Soil & Air EPCs'!$D$7:$F$9,3,FALSE)),VLOOKUP(E53,'Tab 5-7a Soil & Air EPCs'!$D$7:$F$9,3,FALSE),"--") -> -- | T53: -- | U53: -- | V53: -- | W53: --
A54: 0 | B54: 0 | C54: 0 | D54: 0 | E54: 0 | F54: -- | G54: -- | H54: =IF(ISNUMBER(VLOOKUP(E54,'Tab 5-7a Soil & Air EPCs'!$D$7:$E$9,2,FALSE)),VLOOKUP(E54,'Tab 5-7a Soil & Air EPCs'!$D$7:$E$9,2,FALSE),"--") -> -- | I54: -- | J54: -- | K54: 0 | L54: -- | M54: -- | N54: -- | O54: -- | P54: =IF(ISNUMBER(VLOOKUP(E54,'Tab 5-7a Soil & Air EPCs'!$D$7:$H$9,5,FALSE)),VLOOKUP(E54,'Tab 5-7a Soil & Air EPCs'!$D$7:$H$9,5,FALSE),"--") -> -- | Q54: -- | R54: -- | S54: =IF(ISNUMBER(VLOOKUP(E54,'Tab 5-7a Soil & Air EPCs'!$D$7:$F$9,3,FALSE)),VLOOKUP(E54,'Tab 5-7a Soil & Air EPCs'!$D$7:$F$9,3,FALSE),"--") -> -- | T54: -- | U54: -- | V54: -- | W54: --
A55: 0 | B55: 0 | C55: 0 | D55: 0 | E55: 0 | F55: -- | G55: -- | H55: =IF(ISNUMBER(VLOOKUP(E55,'Tab 5-7a Soil & Air EPCs'!$D$7:$E$9,2,FALSE)),VLOOKUP(E55,'Tab 5-7a Soil & Air EPCs'!$D$7:$E$9,2,FALSE),"--") -> -- | I55: -- | J55: -- | K55: 0 | L55: -- | M55: -- | N55: -- | O55: -- | P55: =IF(ISNUMBER(VLOOKUP(E55,'Tab 5-7a Soil & Air EPCs'!$D$7:$H$9,5,FALSE)),VLOOKUP(E55,'Tab 5-7a Soil & Air EPCs'!$D$7:$H$9,5,FALSE),"--") -> -- | Q55: -- | R55: -- | S55: =IF(ISNUMBER(VLOOKUP(E55,'Tab 5-7a Soil & Air EPCs'!$D$7:$F$9,3,FALSE)),VLOOKUP(E55,'Tab 5-7a Soil & Air EPCs'!$D$7:$F$9,3,FALSE),"--") -> -- | T55: -- | U55: -- | V55: -- | W55: --
A56: 0 | B56: 0 | C56: 0 | D56: 0 | E56: 0 | F56: -- | G56: -- | H56: =IF(ISNUMBER(VLOOKUP(E56,'Tab 5-7a Soil & Air EPCs'!$D$7:$E$9,2,FALSE)),VLOOKUP(E56,'Tab 5-7a Soil & Air EPCs'!$D$7:$E$9,2,FALSE),"--") -> -- | I56: -- | J56: -- | K56: 0 | L56: -- | M56: -- | N56: -- | O56: -- | P56: =IF(ISNUMBER(VLOOKUP(E56,'Tab 5-7a Soil & Air EPCs'!$D$7:$H$9,5,FALSE)),VLOOKUP(E56,'Tab 5-7a Soil & Air EPCs'!$D$7:$H$9,5,FALSE),"--") -> -- | Q56: -- | R56: -- | S56: =IF(ISNUMBER(VLOOKUP(E56,'Tab 5-7a Soil & Air EPCs'!$D$7:$F$9,3,FALSE)),VLOOKUP(E56,'Tab 5-7a Soil & Air EPCs'!$D$7:$F$9,3,FALSE),"--") -> -- | T56: -- | U56: -- | V56: -- | W56: --
A57: 0 | B57: 0 | C57: 0 | D57: 0 | E57: 0 | F57: -- | G57: -- | H57: =IF(ISNUMBER(VLOOKUP(E57,'Tab 5-7a Soil & Air EPCs'!$D$7:$E$9,2,FALSE)),VLOOKUP(E57,'Tab 5-7a Soil & Air EPCs'!$D$7:$E$9,2,FALSE),"--") -> -- | I57: -- | J57: -- | K57: 0 | L57: -- | M57: -- | N57: -- | O57: -- | P57: =IF(ISNUMBER(VLOOKUP(E57,'Tab 5-7a Soil & Air EPCs'!$D$7:$H$9,5,FALSE)),VLOOKUP(E57,'Tab 5-7a Soil & Air EPCs'!$D$7:$H$9,5,FALSE),"--") -> -- | Q57: -- | R57: -- | S57: =IF(ISNUMBER(VLOOKUP(E57,'Tab 5-7a Soil & Air EPCs'!$D$7:$F$9,3,FALSE)),VLOOKUP(E57,'Tab 5-7a Soil & Air EPCs'!$D$7:$F$9,3,FALSE),"--") -> -- | T57: -- | U57: -- | V57: -- | W57: --
A58: 0 | B58: 0 | C58: 0 | D58: 0 | E58: 0 | F58: -- | G58: -- | H58: =IF(ISNUMBER(VLOOKUP(E58,'Tab 5-7a Soil & Air EPCs'!$D$7:$E$9,2,FALSE)),VLOOKUP(E58,'Tab 5-7a Soil & Air EPCs'!$D$7:$E$9,2,FALSE),"--") -> -- | I58: -- | J58: -- | K58: 0 | L58: -- | M58: -- | N58: -- | O58: -- | P58: =IF(ISNUMBER(VLOOKUP(E58,'Tab 5-7a Soil & Air EPCs'!$D$7:$H$9,5,FALSE)),VLOOKUP(E58,'Tab 5-7a Soil & Air EPCs'!$D$7:$H$9,5,FALSE),"--") -> -- | Q58: -- | R58: -- | S58: =IF(ISNUMBER(VLOOKUP(E58,'Tab 5-7a Soil & Air EPCs'!$D$7:$F$9,3,FALSE)),VLOOKUP(E58,'Tab 5-7a Soil & Air EPCs'!$D$7:$F$9,3,FALSE),"--") -> -- | T58: -- | U58: -- | V58: -- | W58: --
A59: 0 | B59: 0 | C59: 0 | D59: 0 | E59: 0 | F59: -- | G59: -- | H59: =IF(ISNUMBER(VLOOKUP(E59,'Tab 5-7a Soil & Air EPCs'!$D$7:$E$9,2,FALSE)),VLOOKUP(E59,'Tab 5-7a Soil & Air EPCs'!$D$7:$E$9,2,FALSE),"--") -> -- | I59: -- | J59: -- | K59: 0 | L59: -- | M59: -- | N59: -- | O59: -- | P59: =IF(ISNUMBER(VLOOKUP(E59,'Tab 5-7a Soil & Air EPCs'!$D$7:$H$9,5,FALSE)),VLOOKUP(E59,'Tab 5-7a Soil & Air EPCs'!$D$7:$H$9,5,FALSE),"--") -> -- | Q59: -- | R59: -- | S59: =IF(ISNUMBER(VLOOKUP(E59,'Tab 5-7a Soil & Air EPCs'!$D$7:$F$9,3,FALSE)),VLOOKUP(E59,'Tab 5-7a Soil & Air EPCs'!$D$7:$F$9,3,FALSE),"--") -> -- | T59: -- | U59: -- | V59: -- | W59: --
A60: 0 | B60: 0 | C60: 0 | D60: 0 | E60: 0 | F60: -- | G60: -- | H60: =IF(ISNUMBER(VLOOKUP(E60,'Tab 5-7a Soil & Air EPCs'!$D$7:$E$9,2,FALSE)),VLOOKUP(E60,'Tab 5-7a Soil & Air EPCs'!$D$7:$E$9,2,FALSE),"--") -> -- | I60: -- | J60: -- | K60: 0 | L60: -- | M60: -- | N60: -- | O60: -- | P60: =IF(ISNUMBER(VLOOKUP(E60,'Tab 5-7a Soil & Air EPCs'!$D$7:$H$9,5,FALSE)),VLOOKUP(E60,'Tab 5-7a Soil & Air EPCs'!$D$7:$H$9,5,FALSE),"--") -> -- | Q60: -- | R60: -- | S60: =IF(ISNUMBER(VLOOKUP(E60,'Tab 5-7a Soil & Air EPCs'!$D$7:$F$9,3,FALSE)),VLOOKUP(E60,'Tab 5-7a Soil & Air EPCs'!$D$7:$F$9,3,FALSE),"--") -> -- | T60: -- | U60: -- | V60: -- | W60: --
A61: 0 | B61: 0 | C61: 0 | D61: 0 | E61: 0 | F61: -- | G61: -- | H61: =IF(ISNUMBER(VLOOKUP(E61,'Tab 5-7a Soil & Air EPCs'!$D$7:$E$9,2,FALSE)),VLOOKUP(E61,'Tab 5-7a Soil & Air EPCs'!$D$7:$E$9,2,FALSE),"--") -> -- | I61: -- | J61: -- | K61: 0 | L61: -- | M61: -- | N61: -- | O61: -- | P61: =IF(ISNUMBER(VLOOKUP(E61,'Tab 5-7a Soil & Air EPCs'!$D$7:$H$9,5,FALSE)),VLOOKUP(E61,'Tab 5-7a Soil & Air EPCs'!$D$7:$H$9,5,FALSE),"--") -> -- | Q61: -- | R61: -- | S61: =IF(ISNUMBER(VLOOKUP(E61,'Tab 5-7a Soil & Air EPCs'!$D$7:$F$9,3,FALSE)),VLOOKUP(E61,'Tab 5-7a Soil & Air EPCs'!$D$7:$F$9,3,FALSE),"--") -> -- | T61: -- | U61: -- | V61: -- | W61: --
A62: 0 | B62: 0 | C62: 0 | D62: 0 | E62: 0 | F62: -- | G62: -- | H62: =IF(ISNUMBER(VLOOKUP(E62,'Tab 5-7a Soil & Air EPCs'!$D$7:$E$9,2,FALSE)),VLOOKUP(E62,'Tab 5-7a Soil & Air EPCs'!$D$7:$E$9,2,FALSE),"--") -> -- | I62: -- | J62: -- | K62: 0 | L62: -- | M62: -- | N62: -- | O62: -- | P62: =IF(ISNUMBER(VLOOKUP(E62,'Tab 5-7a Soil & Air EPCs'!$D$7:$H$9,5,FALSE)),VLOOKUP(E62,'Tab 5-7a Soil & Air EPCs'!$D$7:$H$9,5,FALSE),"--") -> -- | Q62: -- | R62: -- | S62: =IF(ISNUMBER(VLOOKUP(E62,'Tab 5-7a Soil & Air EPCs'!$D$7:$F$9,3,FALSE)),VLOOKUP(E62,'Tab 5-7a Soil & Air EPCs'!$D$7:$F$9,3,FALSE),"--") -> -- | T62: -- | U62: -- | V62: -- | W62: --
A63: 0 | B63: 0 | C63: 0 | D63: 0 | E63: 0 | F63: -- | G63: -- | H63: =IF(ISNUMBER(VLOOKUP(E63,'Tab 5-7a Soil & Air EPCs'!$D$7:$E$9,2,FALSE)),VLOOKUP(E63,'Tab 5-7a Soil & Air EPCs'!$D$7:$E$9,2,FALSE),"--") -> -- | I63: -- | J63: -- | K63: 0 | L63: -- | M63: -- | N63: -- | O63: -- | P63: =IF(ISNUMBER(VLOOKUP(E63,'Tab 5-7a Soil & Air EPCs'!$D$7:$H$9,5,FALSE)),VLOOKUP(E63,'Tab 5-7a Soil & Air EPCs'!$D$7:$H$9,5,FALSE),"--") -> -- | Q63: -- | R63: -- | S63: =IF(ISNUMBER(VLOOKUP(E63,'Tab 5-7a Soil & Air EPCs'!$D$7:$F$9,3,FALSE)),VLOOKUP(E63,'Tab 5-7a Soil & Air EPCs'!$D$7:$F$9,3,FALSE),"--") -> -- | T63: -- | U63: -- | V63: -- | W63: --
A64: 0 | B64: 0 | C64: 0 | D64: 0 | E64: 0 | F64: -- | G64: -- | H64: =IF(ISNUMBER(VLOOKUP(E64,'Tab 5-7a Soil & Air EPCs'!$D$7:$E$9,2,FALSE)),VLOOKUP(E64,'Tab 5-7a Soil & Air EPCs'!$D$7:$E$9,2,FALSE),"--") -> -- | I64: -- | J64: -- | K64: 0 | L64: -- | M64: -- | N64: -- | O64: -- | P64: =IF(ISNUMBER(VLOOKUP(E64,'Tab 5-7a Soil & Air EPCs'!$D$7:$H$9,5,FALSE)),VLOOKUP(E64,'Tab 5-7a Soil & Air EPCs'!$D$7:$H$9,5,FALSE),"--") -> -- | Q64: -- | R64: -- | S64: =IF(ISNUMBER(VLOOKUP(E64,'Tab 5-7a Soil & Air EPCs'!$D$7:$F$9,3,FALSE)),VLOOKUP(E64,'Tab 5-7a Soil & Air EPCs'!$D$7:$F$9,3,FALSE),"--") -> -- | T64: -- | U64: -- | V64: -- | W64: --
A65: 0 | B65: 0 | C65: 0 | D65: 0 | E65: 0 | F65: -- | G65: -- | H65: =IF(ISNUMBER(VLOOKUP(E65,'Tab 5-7a Soil & Air EPCs'!$D$7:$E$9,2,FALSE)),VLOOKUP(E65,'Tab 5-7a Soil & Air EPCs'!$D$7:$E$9,2,FALSE),"--") -> -- | I65: -- | J65: -- | K65: 0 | L65: -- | M65: -- | N65: -- | O65: -- | P65: =IF(ISNUMBER(VLOOKUP(E65,'Tab 5-7a Soil & Air EPCs'!$D$7:$H$9,5,FALSE)),VLOOKUP(E65,'Tab 5-7a Soil & Air EPCs'!$D$7:$H$9,5,FALSE),"--") -> -- | Q65: -- | R65: -- | S65: =IF(ISNUMBER(VLOOKUP(E65,'Tab 5-7a Soil & Air EPCs'!$D$7:$F$9,3,FALSE)),VLOOKUP(E65,'Tab 5-7a Soil & Air EPCs'!$D$7:$F$9,3,FALSE),"--") -> -- | T65: -- | U65: -- | V65: -- | W65: --
A66: 0 | B66: 0 | C66: 0 | D66: 0 | E66: 0 | F66: -- | G66: -- | H66: =IF(ISNUMBER(VLOOKUP(E66,'Tab 5-7a Soil & Air EPCs'!$D$7:$E$9,2,FALSE)),VLOOKUP(E66,'Tab 5-7a Soil & Air EPCs'!$D$7:$E$9,2,FALSE),"--") -> -- | I66: -- | J66: -- | K66: 0 | L66: -- | M66: -- | N66: -- | O66: -- | P66: =IF(ISNUMBER(VLOOKUP(E66,'Tab 5-7a Soil & Air EPCs'!$D$7:$H$9,5,FALSE)),VLOOKUP(E66,'Tab 5-7a Soil & Air EPCs'!$D$7:$H$9,5,FALSE),"--") -> -- | Q66: -- | R66: -- | S66: =IF(ISNUMBER(VLOOKUP(E66,'Tab 5-7a Soil & Air EPCs'!$D$7:$F$9,3,FALSE)),VLOOKUP(E66,'Tab 5-7a Soil & Air EPCs'!$D$7:$F$9,3,FALSE),"--") -> -- | T66: -- | U66: -- | V66: -- | W66: --
A67: 0 | B67: 0 | C67: 0 | D67: 0 | E67: 0 | F67: -- | G67: -- | H67: =IF(ISNUMBER(VLOOKUP(E67,'Tab 5-7a Soil & Air EPCs'!$D$7:$E$9,2,FALSE)),VLOOKUP(E67,'Tab 5-7a Soil & Air EPCs'!$D$7:$E$9,2,FALSE),"--") -> -- | I67: -- | J67: -- | K67: 0 | L67: -- | M67: -- | N67: -- | O67: -- | P67: =IF(ISNUMBER(VLOOKUP(E67,'Tab 5-7a Soil & Air EPCs'!$D$7:$H$9,5,FALSE)),VLOOKUP(E67,'Tab 5-7a Soil & Air EPCs'!$D$7:$H$9,5,FALSE),"--") -> -- | Q67: -- | R67: -- | S67: =IF(ISNUMBER(VLOOKUP(E67,'Tab 5-7a Soil & Air EPCs'!$D$7:$F$9,3,FALSE)),VLOOKUP(E67,'Tab 5-7a Soil & Air EPCs'!$D$7:$F$9,3,FALSE),"--") -> -- | T67: -- | U67: -- | V67: -- | W67: --
A68: 0 | B68: 0 | C68: 0 | D68: 0 | E68: 0 | F68: -- | G68: -- | H68: =IF(ISNUMBER(VLOOKUP(E68,'Tab 5-7a Soil & Air EPCs'!$D$7:$E$9,2,FALSE)),VLOOKUP(E68,'Tab 5-7a Soil & Air EPCs'!$D$7:$E$9,2,FALSE),"--") -> -- | I68: -- | J68: -- | K68: 0 | L68: -- | M68: -- | N68: -- | O68: -- | P68: =IF(ISNUMBER(VLOOKUP(E68,'Tab 5-7a Soil & Air EPCs'!$D$7:$H$9,5,FALSE)),VLOOKUP(E68,'Tab 5-7a Soil & Air EPCs'!$D$7:$H$9,5,FALSE),"--") -> -- | Q68: -- | R68: -- | S68: =IF(ISNUMBER(VLOOKUP(E68,'Tab 5-7a Soil & Air EPCs'!$D$7:$F$9,3,FALSE)),VLOOKUP(E68,'Tab 5-7a Soil & Air EPCs'!$D$7:$F$9,3,FALSE),"--") -> -- | T68: -- | U68: -- | V68: -- | W68: --
A69: 0 | B69: 0 | C69: 0 | D69: 0 | E69: 0 | F69: -- | G69: -- | H69: =IF(ISNUMBER(VLOOKUP(E69,'Tab 5-7a Soil & Air EPCs'!$D$7:$E$9,2,FALSE)),VLOOKUP(E69,'Tab 5-7a Soil & Air EPCs'!$D$7:$E$9,2,FALSE),"--") -> -- | I69: -- | J69: -- | K69: 0 | L69: -- | M69: -- | N69: -- | O69: -- | P69: =IF(ISNUMBER(VLOOKUP(E69,'Tab 5-7a Soil & Air EPCs'!$D$7:$H$9,5,FALSE)),VLOOKUP(E69,'Tab 5-7a Soil & Air EPCs'!$D$7:$H$9,5,FALSE),"--") -> -- | Q69: -- | R69: -- | S69: =IF(ISNUMBER(VLOOKUP(E69,'Tab 5-7a Soil & Air EPCs'!$D$7:$F$9,3,FALSE)),VLOOKUP(E69,'Tab 5-7a Soil & Air EPCs'!$D$7:$F$9,3,FALSE),"--") -> -- | T69: -- | U69: -- | V69: -- | W69: --
A70: 0 | B70: 0 | C70: 0 | D70: 0 | E70: 0 | F70: -- | G70: -- | H70: =IF(ISNUMBER(VLOOKUP(E70,'Tab 5-7a Soil & Air EPCs'!$D$7:$E$9,2,FALSE)),VLOOKUP(E70,'Tab 5-7a Soil & Air EPCs'!$D$7:$E$9,2,FALSE),"--") -> -- | I70: -- | J70: -- | K70: 0 | L70: -- | M70: -- | N70: -- | O70: -- | P70: =IF(ISNUMBER(VLOOKUP(E70,'Tab 5-7a Soil & Air EPCs'!$D$7:$H$9,5,FALSE)),VLOOKUP(E70,'Tab 5-7a Soil & Air EPCs'!$D$7:$H$9,5,FALSE),"--") -> -- | Q70: -- | R70: -- | S70: =IF(ISNUMBER(VLOOKUP(E70,'Tab 5-7a Soil & Air EPCs'!$D$7:$F$9,3,FALSE)),VLOOKUP(E70,'Tab 5-7a Soil & Air EPCs'!$D$7:$F$9,3,FALSE),"--") -> -- | T70: -- | U70: -- | V70: -- | W70: --
A71: 0 | B71: 0 | C71: 0 | D71: 0 | E71: 0 | F71: -- | G71: -- | H71: =IF(ISNUMBER(VLOOKUP(E71,'Tab 5-7a Soil & Air EPCs'!$D$7:$E$9,2,FALSE)),VLOOKUP(E71,'Tab 5-7a Soil & Air EPCs'!$D$7:$E$9,2,FALSE),"--") -> -- | I71: -- | J71: -- | K71: 0 | L71: -- | M71: -- | N71: -- | O71: -- | P71: =IF(ISNUMBER(VLOOKUP(E71,'Tab 5-7a Soil & Air EPCs'!$D$7:$H$9,5,FALSE)),VLOOKUP(E71,'Tab 5-7a Soil & Air EPCs'!$D$7:$H$9,5,FALSE),"--") -> -- | Q71: -- | R71: -- | S71: =IF(ISNUMBER(VLOOKUP(E71,'Tab 5-7a Soil & Air EPCs'!$D$7:$F$9,3,FALSE)),VLOOKUP(E71,'Tab 5-7a Soil & Air EPCs'!$D$7:$F$9,3,FALSE),"--") -> -- | T71: -- | U71: -- | V71: -- | W71: --
A72: 0 | B72: 0 | C72: 0 | D72: 0 | E72: 0 | F72: -- | G72: -- | H72: =IF(ISNUMBER(VLOOKUP(E72,'Tab 5-7a Soil & Air EPCs'!$D$7:$E$9,2,FALSE)),VLOOKUP(E72,'Tab 5-7a Soil & Air EPCs'!$D$7:$E$9,2,FALSE),"--") -> -- | I72: -- | J72: -- | K72: 0 | L72: -- | M72: -- | N72: -- | O72: -- | P72: =IF(ISNUMBER(VLOOKUP(E72,'Tab 5-7a Soil & Air EPCs'!$D$7:$H$9,5,FALSE)),VLOOKUP(E72,'Tab 5-7a Soil & Air EPCs'!$D$7:$H$9,5,FALSE),"--") -> -- | Q72: -- | R72: -- | S72: =IF(ISNUMBER(VLOOKUP(E72,'Tab 5-7a Soil & Air EPCs'!$D$7:$F$9,3,FALSE)),VLOOKUP(E72,'Tab 5-7a Soil & Air EPCs'!$D$7:$F$9,3,FALSE),"--") -> -- | T72: -- | U72: -- | V72: -- | W72: --
A73: 0 | B73: 0 | C73: 0 | D73: 0 | E73: 0 | F73: -- | G73: -- | H73: =IF(ISNUMBER(VLOOKUP(E73,'Tab 5-7a Soil & Air EPCs'!$D$7:$E$9,2,FALSE)),VLOOKUP(E73,'Tab 5-7a Soil & Air EPCs'!$D$7:$E$9,2,FALSE),"--") -> -- | I73: -- | J73: -- | K73: 0 | L73: -- | M73: -- | N73: -- | O73: -- | P73: =IF(ISNUMBER(VLOOKUP(E73,'Tab 5-7a Soil & Air EPCs'!$D$7:$H$9,5,FALSE)),VLOOKUP(E73,'Tab 5-7a Soil & Air EPCs'!$D$7:$H$9,5,FALSE),"--") -> -- | Q73: -- | R73: -- | S73: =IF(ISNUMBER(VLOOKUP(E73,'Tab 5-7a Soil & Air EPCs'!$D$7:$F$9,3,FALSE)),VLOOKUP(E73,'Tab 5-7a Soil & Air EPCs'!$D$7:$F$9,3,FALSE),"--") -> -- | T73: -- | U73: -- | V73: -- | W73: --
A74: 0 | B74: 0 | C74: 0 | D74: 0 | E74: 0 | F74: -- | G74: -- | H74: =IF(ISNUMBER(VLOOKUP(E74,'Tab 5-7a Soil & Air EPCs'!$D$7:$E$9,2,FALSE)),VLOOKUP(E74,'Tab 5-7a Soil & Air EPCs'!$D$7:$E$9,2,FALSE),"--") -> -- | I74: -- | J74: -- | K74: 0 | L74: -- | M74: -- | N74: -- | O74: -- | P74: =IF(ISNUMBER(VLOOKUP(E74,'Tab 5-7a Soil & Air EPCs'!$D$7:$H$9,5,FALSE)),VLOOKUP(E74,'Tab 5-7a Soil & Air EPCs'!$D$7:$H$9,5,FALSE),"--") -> -- | Q74: -- | R74: -- | S74: =IF(ISNUMBER(VLOOKUP(E74,'Tab 5-7a Soil & Air EPCs'!$D$7:$F$9,3,FALSE)),VLOOKUP(E74,'Tab 5-7a Soil & Air EPCs'!$D$7:$F$9,3,FALSE),"--") -> -- | T74: -- | U74: -- | V74: -- | W74: --
A75: 0 | B75: 0 | C75: 0 | D75: 0 | E75: 0 | F75: -- | G75: -- | H75: =IF(ISNUMBER(VLOOKUP(E75,'Tab 5-7a Soil & Air EPCs'!$D$7:$E$9,2,FALSE)),VLOOKUP(E75,'Tab 5-7a Soil & Air EPCs'!$D$7:$E$9,2,FALSE),"--") -> -- | I75: -- | J75: -- | K75: 0 | L75: -- | M75: -- | N75: -- | O75: -- | P75: =IF(ISNUMBER(VLOOKUP(E75,'Tab 5-7a Soil & Air EPCs'!$D$7:$H$9,5,FALSE)),VLOOKUP(E75,'Tab 5-7a Soil & Air EPCs'!$D$7:$H$9,5,FALSE),"--") -> -- | Q75: -- | R75: -- | S75: =IF(ISNUMBER(VLOOKUP(E75,'Tab 5-7a Soil & Air EPCs'!$D$7:$F$9,3,FALSE)),VLOOKUP(E75,'Tab 5-7a Soil & Air EPCs'!$D$7:$F$9,3,FALSE),"--") -> -- | T75: -- | U75: -- | V75: -- | W75: --
A76: 0 | B76: 0 | C76: 0 | D76: 0 | E76: 0 | F76: -- | G76: -- | H76: =IF(ISNUMBER(VLOOKUP(E76,'Tab 5-7a Soil & Air EPCs'!$D$7:$E$9,2,FALSE)),VLOOKUP(E76,'Tab 5-7a Soil & Air EPCs'!$D$7:$E$9,2,FALSE),"--") -> -- | I76: -- | J76: -- | K76: 0 | L76: -- | M76: -- | N76: -- | O76: -- | P76: =IF(ISNUMBER(VLOOKUP(E76,'Tab 5-7a Soil & Air EPCs'!$D$7:$H$9,5,FALSE)),VLOOKUP(E76,'Tab 5-7a Soil & Air EPCs'!$D$7:$H$9,5,FALSE),"--") -> -- | Q76: -- | R76: -- | S76: =IF(ISNUMBER(VLOOKUP(E76,'Tab 5-7a Soil & Air EPCs'!$D$7:$F$9,3,FALSE)),VLOOKUP(E76,'Tab 5-7a Soil & Air EPCs'!$D$7:$F$9,3,FALSE),"--") -> -- | T76: -- | U76: -- | V76: =IF(SUM(I76,L76,Q76,T76)>0,SUM(I76,L76,Q76,T76),"--") -> -- | W76: =IF(SUM(J76,M76,R76,U76)>0,SUM(J76,M76,R76,U76),"--") -> --
A77: 0 | B77: 0 | C77: 0 | D77: 0 | E77: 0 | F77: -- | G77: -- | H77: =IF(ISNUMBER(VLOOKUP(E77,'Tab 5-7a Soil & Air EPCs'!$D$7:$E$9,2,FALSE)),VLOOKUP(E77,'Tab 5-7a Soil & Air EPCs'!$D$7:$E$9,2,FALSE),"--") -> -- | I77: -- | J77: -- | K77: 0 | L77: -- | M77: -- | N77: -- | O77: -- | P77: =IF(ISNUMBER(VLOOKUP(E77,'Tab 5-7a Soil & Air EPCs'!$D$7:$H$9,5,FALSE)),VLOOKUP(E77,'Tab 5-7a Soil & Air EPCs'!$D$7:$H$9,5,FALSE),"--") -> -- | Q77: -- | R77: -- | S77: =IF(ISNUMBER(VLOOKUP(E77,'Tab 5-7a Soil & Air EPCs'!$D$7:$F$9,3,FALSE)),VLOOKUP(E77,'Tab 5-7a Soil & Air EPCs'!$D$7:$F$9,3,FALSE),"--") -> -- | T77: -- | U77: -- | V77: -- | W77: --
A78: 0 | B78: 0 | C78: 0 | D78: 0 | E78: 0 | F78: -- | G78: -- | H78: =IF(ISNUMBER(VLOOKUP(E78,'Tab 5-7a Soil & Air EPCs'!$D$7:$E$9,2,FALSE)),VLOOKUP(E78,'Tab 5-7a Soil & Air EPCs'!$D$7:$E$9,2,FALSE),"--") -> -- | I78: -- | J78: -- | K78: 0 | L78: -- | M78: -- | N78: -- | O78: -- | P78: =IF(ISNUMBER(VLOOKUP(E78,'Tab 5-7a Soil & Air EPCs'!$D$7:$H$9,5,FALSE)),VLOOKUP(E78,'Tab 5-7a Soil & Air EPCs'!$D$7:$H$9,5,FALSE),"--") -> -- | Q78: -- | R78: -- | S78: =IF(ISNUMBER(VLOOKUP(E78,'Tab 5-7a Soil & Air EPCs'!$D$7:$F$9,3,FALSE)),VLOOKUP(E78,'Tab 5-7a Soil & Air EPCs'!$D$7:$F$9,3,FALSE),"--") -> -- | T78: -- | U78: -- | V78: -- | W78: --
A79: 0 | B79: 0 | C79: 0 | D79: 0 | E79: 0 | F79: -- | G79: -- | H79: =IF(ISNUMBER(VLOOKUP(E79,'Tab 5-7a Soil & Air EPCs'!$D$7:$E$9,2,FALSE)),VLOOKUP(E79,'Tab 5-7a Soil & Air EPCs'!$D$7:$E$9,2,FALSE),"--") -> -- | I79: -- | J79: -- | K79: 0 | L79: -- | M79: -- | N79: -- | O79: -- | P79: =IF(ISNUMBER(VLOOKUP(E79,'Tab 5-7a Soil & Air EPCs'!$D$7:$H$9,5,FALSE)),VLOOKUP(E79,'Tab 5-7a Soil & Air EPCs'!$D$7:$H$9,5,FALSE),"--") -> -- | Q79: -- | R79: -- | S79: =IF(ISNUMBER(VLOOKUP(E79,'Tab 5-7a Soil & Air EPCs'!$D$7:$F$9,3,FALSE)),VLOOKUP(E79,'Tab 5-7a Soil & Air EPCs'!$D$7:$F$9,3,FALSE),"--") -> -- | T79: -- | U79: -- | V79: -- | W79: --
A80: 0 | B80: 0 | C80: 0 | D80: 0 | E80: 0 | F80: -- | G80: -- | H80: =IF(ISNUMBER(VLOOKUP(E80,'Tab 5-7a Soil & Air EPCs'!$D$7:$E$9,2,FALSE)),VLOOKUP(E80,'Tab 5-7a Soil & Air EPCs'!$D$7:$E$9,2,FALSE),"--") -> -- | I80: -- | J80: -- | K80: 0 | L80: -- | M80: -- | N80: -- | O80: -- | P80: =IF(ISNUMBER(VLOOKUP(E80,'Tab 5-7a Soil & Air EPCs'!$D$7:$H$9,5,FALSE)),VLOOKUP(E80,'Tab 5-7a Soil & Air EPCs'!$D$7:$H$9,5,FALSE),"--") -> -- | Q80: -- | R80: -- | S80: =IF(ISNUMBER(VLOOKUP(E80,'Tab 5-7a Soil & Air EPCs'!$D$7:$F$9,3,FALSE)),VLOOKUP(E80,'Tab 5-7a Soil & Air EPCs'!$D$7:$F$9,3,FALSE),"--") -> -- | T80: -- | U80: -- | V80: -- | W80: --
A81: 0 | B81: 0 | C81: 0 | D81: 0 | E81: 0 | F81: -- | G81: -- | H81: =IF(ISNUMBER(VLOOKUP(E81,'Tab 5-7a Soil & Air EPCs'!$D$7:$E$9,2,FALSE)),VLOOKUP(E81,'Tab 5-7a Soil & Air EPCs'!$D$7:$E$9,2,FALSE),"--") -> -- | I81: -- | J81: -- | K81: 0 | L81: -- | M81: -- | N81: -- | O81: -- | P81: =IF(ISNUMBER(VLOOKUP(E81,'Tab 5-7a Soil & Air EPCs'!$D$7:$H$9,5,FALSE)),VLOOKUP(E81,'Tab 5-7a Soil & Air EPCs'!$D$7:$H$9,5,FALSE),"--") -> -- | Q81: -- | R81: -- | S81: =IF(ISNUMBER(VLOOKUP(E81,'Tab 5-7a Soil & Air EPCs'!$D$7:$F$9,3,FALSE)),VLOOKUP(E81,'Tab 5-7a Soil & Air EPCs'!$D$7:$F$9,3,FALSE),"--") -> -- | T81: -- | U81: -- | V81: -- | W81: --
A82: 0 | B82: 0 | C82: 0 | D82: 0 | E82: 0 | F82: -- | G82: -- | H82: =IF(ISNUMBER(VLOOKUP(E82,'Tab 5-7a Soil & Air EPCs'!$D$7:$E$9,2,FALSE)),VLOOKUP(E82,'Tab 5-7a Soil & Air EPCs'!$D$7:$E$9,2,FALSE),"--") -> -- | I82: -- | J82: -- | K82: 0 | L82: -- | M82: -- | N82: -- | O82: -- | P82: =IF(ISNUMBER(VLOOKUP(E82,'Tab 5-7a Soil & Air EPCs'!$D$7:$H$9,5,FALSE)),VLOOKUP(E82,'Tab 5-7a Soil & Air EPCs'!$D$7:$H$9,5,FALSE),"--") -> -- | Q82: -- | R82: -- | S82: =IF(ISNUMBER(VLOOKUP(E82,'Tab 5-7a Soil & Air EPCs'!$D$7:$F$9,3,FALSE)),VLOOKUP(E82,'Tab 5-7a Soil & Air EPCs'!$D$7:$F$9,3,FALSE),"--") -> -- | T82: -- | U82: -- | V82: -- | W82: --
A83: 0 | B83: 0 | C83: 0 | D83: 0 | E83: 0 | F83: -- | G83: -- | H83: =IF(ISNUMBER(VLOOKUP(E83,'Tab 5-7a Soil & Air EPCs'!$D$7:$E$9,2,FALSE)),VLOOKUP(E83,'Tab 5-7a Soil & Air EPCs'!$D$7:$E$9,2,FALSE),"--") -> -- | I83: -- | J83: -- | K83: 0 | L83: -- | M83: -- | N83: -- | O83: -- | P83: =IF(ISNUMBER(VLOOKUP(E83,'Tab 5-7a Soil & Air EPCs'!$D$7:$H$9,5,FALSE)),VLOOKUP(E83,'Tab 5-7a Soil & Air EPCs'!$D$7:$H$9,5,FALSE),"--") -> -- | Q83: -- | R83: -- | S83: =IF(ISNUMBER(VLOOKUP(E83,'Tab 5-7a Soil & Air EPCs'!$D$7:$F$9,3,FALSE)),VLOOKUP(E83,'Tab 5-7a Soil & Air EPCs'!$D$7:$F$9,3,FALSE),"--") -> -- | T83: -- | U83: -- | V83: -- | W83: --
A84: 0 | B84: 0 | C84: 0 | D84: 0 | E84: 0 | F84: -- | G84: -- | H84: =IF(ISNUMBER(VLOOKUP(E84,'Tab 5-7a Soil & Air EPCs'!$D$7:$E$9,2,FALSE)),VLOOKUP(E84,'Tab 5-7a Soil & Air EPCs'!$D$7:$E$9,2,FALSE),"--") -> -- | I84: -- | J84: -- | K84: 0 | L84: -- | M84: -- | N84: -- | O84: -- | P84: =IF(ISNUMBER(VLOOKUP(E84,'Tab 5-7a Soil & Air EPCs'!$D$7:$H$9,5,FALSE)),VLOOKUP(E84,'Tab 5-7a Soil & Air EPCs'!$D$7:$H$9,5,FALSE),"--") -> -- | Q84: -- | R84: -- | S84: =IF(ISNUMBER(VLOOKUP(E84,'Tab 5-7a Soil & Air EPCs'!$D$7:$F$9,3,FALSE)),VLOOKUP(E84,'Tab 5-7a Soil & Air EPCs'!$D$7:$F$9,3,FALSE),"--") -> -- | T84: -- | U84: -- | V84: -- | W84: --
A85: 0 | B85: 0 | C85: 0 | D85: 0 | E85: 0 | F85: -- | G85: -- | H85: =IF(ISNUMBER(VLOOKUP(E85,'Tab 5-7a Soil & Air EPCs'!$D$7:$E$9,2,FALSE)),VLOOKUP(E85,'Tab 5-7a Soil & Air EPCs'!$D$7:$E$9,2,FALSE),"--") -> -- | I85: -- | J85: -- | K85: 0 | L85: -- | M85: -- | N85: -- | O85: -- | P85: =IF(ISNUMBER(VLOOKUP(E85,'Tab 5-7a Soil & Air EPCs'!$D$7:$H$9,5,FALSE)),VLOOKUP(E85,'Tab 5-7a Soil & Air EPCs'!$D$7:$H$9,5,FALSE),"--") -> -- | Q85: -- | R85: -- | S85: =IF(ISNUMBER(VLOOKUP(E85,'Tab 5-7a Soil & Air EPCs'!$D$7:$F$9,3,FALSE)),VLOOKUP(E85,'Tab 5-7a Soil & Air EPCs'!$D$7:$F$9,3,FALSE),"--") -> -- | T85: -- | U85: -- | V85: -- | W85: --
A86: 0 | B86: 0 | C86: 0 | D86: 0 | E86: 0 | F86: -- | G86: -- | H86: =IF(ISNUMBER(VLOOKUP(E86,'Tab 5-7a Soil & Air EPCs'!$D$7:$E$9,2,FALSE)),VLOOKUP(E86,'Tab 5-7a Soil & Air EPCs'!$D$7:$E$9,2,FALSE),"--") -> -- | I86: -- | J86: -- | K86: 0 | L86: -- | M86: -- | N86: -- | O86: -- | P86: =IF(ISNUMBER(VLOOKUP(E86,'Tab 5-7a Soil & Air EPCs'!$D$7:$H$9,5,FALSE)),VLOOKUP(E86,'Tab 5-7a Soil & Air EPCs'!$D$7:$H$9,5,FALSE),"--") -> -- | Q86: -- | R86: -- | S86: =IF(ISNUMBER(VLOOKUP(E86,'Tab 5-7a Soil & Air EPCs'!$D$7:$F$9,3,FALSE)),VLOOKUP(E86,'Tab 5-7a Soil & Air EPCs'!$D$7:$F$9,3,FALSE),"--") -> -- | T86: -- | U86: -- | V86: -- | W86: --
A87: 0 | B87: 0 | C87: 0 | D87: 0 | E87: 0 | F87: -- | G87: -- | H87: =IF(ISNUMBER(VLOOKUP(E87,'Tab 5-7a Soil & Air EPCs'!$D$7:$E$9,2,FALSE)),VLOOKUP(E87,'Tab 5-7a Soil & Air EPCs'!$D$7:$E$9,2,FALSE),"--") -> -- | I87: -- | J87: -- | K87: 0 | L87: -- | M87: -- | N87: -- | O87: -- | P87: =IF(ISNUMBER(VLOOKUP(E87,'Tab 5-7a Soil & Air EPCs'!$D$7:$H$9,5,FALSE)),VLOOKUP(E87,'Tab 5-7a Soil & Air EPCs'!$D$7:$H$9,5,FALSE),"--") -> -- | Q87: -- | R87: -- | S87: =IF(ISNUMBER(VLOOKUP(E87,'Tab 5-7a Soil & Air EPCs'!$D$7:$F$9,3,FALSE)),VLOOKUP(E87,'Tab 5-7a Soil & Air EPCs'!$D$7:$F$9,3,FALSE),"--") -> -- | T87: -- | U87: -- | V87: -- | W87: --
A88: 0 | B88: 0 | C88: 0 | D88: 0 | E88: 0 | F88: -- | G88: -- | H88: =IF(ISNUMBER(VLOOKUP(E88,'Tab 5-7a Soil & Air EPCs'!$D$7:$E$9,2,FALSE)),VLOOKUP(E88,'Tab 5-7a Soil & Air EPCs'!$D$7:$E$9,2,FALSE),"--") -> -- | I88: -- | J88: -- | K88: 0 | L88: -- | M88: -- | N88: -- | O88: -- | P88: =IF(ISNUMBER(VLOOKUP(E88,'Tab 5-7a Soil & Air EPCs'!$D$7:$H$9,5,FALSE)),VLOOKUP(E88,'Tab 5-7a Soil & Air EPCs'!$D$7:$H$9,5,FALSE),"--") -> -- | Q88: -- | R88: -- | S88: =IF(ISNUMBER(VLOOKUP(E88,'Tab 5-7a Soil & Air EPCs'!$D$7:$F$9,3,FALSE)),VLOOKUP(E88,'Tab 5-7a Soil & Air EPCs'!$D$7:$F$9,3,FALSE),"--") -> -- | T88: -- | U88: -- | V88: -- | W88: --
A89: 0 | B89: 0 | C89: 0 | D89: 0 | E89: 0 | F89: -- | G89: -- | H89: =IF(ISNUMBER(VLOOKUP(E89,'Tab 5-7a Soil & Air EPCs'!$D$7:$E$9,2,FALSE)),VLOOKUP(E89,'Tab 5-7a Soil & Air EPCs'!$D$7:$E$9,2,FALSE),"--") -> -- | I89: -- | J89: -- | K89: 0 | L89: -- | M89: -- | N89: -- | O89: -- | P89: =IF(ISNUMBER(VLOOKUP(E89,'Tab 5-7a Soil & Air EPCs'!$D$7:$H$9,5,FALSE)),VLOOKUP(E89,'Tab 5-7a Soil & Air EPCs'!$D$7:$H$9,5,FALSE),"--") -> -- | Q89: -- | R89: -- | S89: =IF(ISNUMBER(VLOOKUP(E89,'Tab 5-7a Soil & Air EPCs'!$D$7:$F$9,3,FALSE)),VLOOKUP(E89,'Tab 5-7a Soil & Air EPCs'!$D$7:$F$9,3,FALSE),"--") -> -- | T89: -- | U89: -- | V89: -- | W89: --
A90: 0 | B90: 0 | C90: 0 | D90: 0 | E90: 0 | F90: -- | G90: -- | H90: =IF(ISNUMBER(VLOOKUP(E90,'Tab 5-7a Soil & Air EPCs'!$D$7:$E$9,2,FALSE)),VLOOKUP(E90,'Tab 5-7a Soil & Air EPCs'!$D$7:$E$9,2,FALSE),"--") -> -- | I90: -- | J90: -- | K90: 0 | L90: -- | M90: -- | N90: -- | O90: -- | P90: =IF(ISNUMBER(VLOOKUP(E90,'Tab 5-7a Soil & Air EPCs'!$D$7:$H$9,5,FALSE)),VLOOKUP(E90,'Tab 5-7a Soil & Air EPCs'!$D$7:$H$9,5,FALSE),"--") -> -- | Q90: -- | R90: -- | S90: =IF(ISNUMBER(VLOOKUP(E90,'Tab 5-7a Soil & Air EPCs'!$D$7:$F$9,3,FALSE)),VLOOKUP(E90,'Tab 5-7a Soil & Air EPCs'!$D$7:$F$9,3,FALSE),"--") -> -- | T90: -- | U90: -- | V90: -- | W90: --
A91: 0 | B91: 0 | C91: 0 | D91: 0 | E91: 0 | F91: -- | G91: -- | H91: =IF(ISNUMBER(VLOOKUP(E91,'Tab 5-7a Soil & Air EPCs'!$D$7:$E$9,2,FALSE)),VLOOKUP(E91,'Tab 5-7a Soil & Air EPCs'!$D$7:$E$9,2,FALSE),"--") -> -- | I91: -- | J91: -- | K91: 0 | L91: -- | M91: -- | N91: -- | O91: -- | P91: =IF(ISNUMBER(VLOOKUP(E91,'Tab 5-7a Soil & Air EPCs'!$D$7:$H$9,5,FALSE)),VLOOKUP(E91,'Tab 5-7a Soil & Air EPCs'!$D$7:$H$9,5,FALSE),"--") -> -- | Q91: -- | R91: -- | S91: =IF(ISNUMBER(VLOOKUP(E91,'Tab 5-7a Soil & Air EPCs'!$D$7:$F$9,3,FALSE)),VLOOKUP(E91,'Tab 5-7a Soil & Air EPCs'!$D$7:$F$9,3,FALSE),"--") -> -- | T91: -- | U91: -- | V91: -- | W91: --
A92: 0 | B92: 0 | C92: 0 | D92: 0 | E92: 0 | F92: -- | G92: -- | H92: =IF(ISNUMBER(VLOOKUP(E92,'Tab 5-7a Soil & Air EPCs'!$D$7:$E$9,2,FALSE)),VLOOKUP(E92,'Tab 5-7a Soil & Air EPCs'!$D$7:$E$9,2,FALSE),"--") -> -- | I92: -- | J92: -- | K92: 0 | L92: -- | M92: -- | N92: -- | O92: -- | P92: =IF(ISNUMBER(VLOOKUP(E92,'Tab 5-7a Soil & Air EPCs'!$D$7:$H$9,5,FALSE)),VLOOKUP(E92,'Tab 5-7a Soil & Air EPCs'!$D$7:$H$9,5,FALSE),"--") -> -- | Q92: -- | R92: -- | S92: =IF(ISNUMBER(VLOOKUP(E92,'Tab 5-7a Soil & Air EPCs'!$D$7:$F$9,3,FALSE)),VLOOKUP(E92,'Tab 5-7a Soil & Air EPCs'!$D$7:$F$9,3,FALSE),"--") -> -- | T92: -- | U92: -- | V92: -- | W92: --
A93: 0 | B93: 0 | C93: 0 | D93: 0 | E93: 0 | F93: -- | G93: -- | H93: =IF(ISNUMBER(VLOOKUP(E93,'Tab 5-7a Soil & Air EPCs'!$D$7:$E$9,2,FALSE)),VLOOKUP(E93,'Tab 5-7a Soil & Air EPCs'!$D$7:$E$9,2,FALSE),"--") -> -- | I93: -- | J93: -- | K93: 0 | L93: -- | M93: -- | N93: -- | O93: -- | P93: =IF(ISNUMBER(VLOOKUP(E93,'Tab 5-7a Soil & Air EPCs'!$D$7:$H$9,5,FALSE)),VLOOKUP(E93,'Tab 5-7a Soil & Air EPCs'!$D$7:$H$9,5,FALSE),"--") -> -- | Q93: -- | R93: -- | S93: =IF(ISNUMBER(VLOOKUP(E93,'Tab 5-7a Soil & Air EPCs'!$D$7:$F$9,3,FALSE)),VLOOKUP(E93,'Tab 5-7a Soil & Air EPCs'!$D$7:$F$9,3,FALSE),"--") -> -- | T93: -- | U93: -- | V93: -- | W93: --
A94: 0 | B94: 0 | C94: 0 | D94: 0 | E94: 0 | F94: -- | G94: -- | H94: =IF(ISNUMBER(VLOOKUP(E94,'Tab 5-7a Soil & Air EPCs'!$D$7:$E$9,2,FALSE)),VLOOKUP(E94,'Tab 5-7a Soil & Air EPCs'!$D$7:$E$9,2,FALSE),"--") -> -- | I94: -- | J94: -- | K94: 0 | L94: -- | M94: -- | N94: -- | O94: -- | P94: =IF(ISNUMBER(VLOOKUP(E94,'Tab 5-7a Soil & Air EPCs'!$D$7:$H$9,5,FALSE)),VLOOKUP(E94,'Tab 5-7a Soil & Air EPCs'!$D$7:$H$9,5,FALSE),"--") -> -- | Q94: -- | R94: -- | S94: =IF(ISNUMBER(VLOOKUP(E94,'Tab 5-7a Soil & Air EPCs'!$D$7:$F$9,3,FALSE)),VLOOKUP(E94,'Tab 5-7a Soil & Air EPCs'!$D$7:$F$9,3,FALSE),"--") -> -- | T94: -- | U94: -- | V94: -- | W94: --
A95: 0 | B95: 0 | C95: 0 | D95: 0 | E95: 0 | F95: -- | G95: -- | H95: =IF(ISNUMBER(VLOOKUP(E95,'Tab 5-7a Soil & Air EPCs'!$D$7:$E$9,2,FALSE)),VLOOKUP(E95,'Tab 5-7a Soil & Air EPCs'!$D$7:$E$9,2,FALSE),"--") -> -- | I95: -- | J95: -- | K95: 0 | L95: -- | M95: -- | N95: -- | O95: -- | P95: =IF(ISNUMBER(VLOOKUP(E95,'Tab 5-7a Soil & Air EPCs'!$D$7:$H$9,5,FALSE)),VLOOKUP(E95,'Tab 5-7a Soil & Air EPCs'!$D$7:$H$9,5,FALSE),"--") -> -- | Q95: -- | R95: -- | S95: =IF(ISNUMBER(VLOOKUP(E95,'Tab 5-7a Soil & Air EPCs'!$D$7:$F$9,3,FALSE)),VLOOKUP(E95,'Tab 5-7a Soil & Air EPCs'!$D$7:$F$9,3,FALSE),"--") -> -- | T95: -- | U95: -- | V95: -- | W95: --
A96: 0 | B96: 0 | C96: 0 | D96: 0 | E96: 0 | F96: -- | G96: -- | H96: =IF(ISNUMBER(VLOOKUP(E96,'Tab 5-7a Soil & Air EPCs'!$D$7:$E$9,2,FALSE)),VLOOKUP(E96,'Tab 5-7a Soil & Air EPCs'!$D$7:$E$9,2,FALSE),"--") -> -- | I96: -- | J96: -- | K96: 0 | L96: -- | M96: -- | N96: -- | O96: -- | P96: =IF(ISNUMBER(VLOOKUP(E96,'Tab 5-7a Soil & Air EPCs'!$D$7:$H$9,5,FALSE)),VLOOKUP(E96,'Tab 5-7a Soil & Air EPCs'!$D$7:$H$9,5,FALSE),"--") -> -- | Q96: -- | R96: -- | S96: =IF(ISNUMBER(VLOOKUP(E96,'Tab 5-7a Soil & Air EPCs'!$D$7:$F$9,3,FALSE)),VLOOKUP(E96,'Tab 5-7a Soil & Air EPCs'!$D$7:$F$9,3,FALSE),"--") -> -- | T96: -- | U96: -- | V96: -- | W96: --
A97: 0 | B97: 0 | C97: 0 | D97: 0 | E97: 0 | F97: -- | G97: -- | H97: =IF(ISNUMBER(VLOOKUP(E97,'Tab 5-7a Soil & Air EPCs'!$D$7:$E$9,2,FALSE)),VLOOKUP(E97,'Tab 5-7a Soil & Air EPCs'!$D$7:$E$9,2,FALSE),"--") -> -- | I97: -- | J97: -- | K97: 0 | L97: -- | M97: -- | N97: -- | O97: -- | P97: =IF(ISNUMBER(VLOOKUP(E97,'Tab 5-7a Soil & Air EPCs'!$D$7:$H$9,5,FALSE)),VLOOKUP(E97,'Tab 5-7a Soil & Air EPCs'!$D$7:$H$9,5,FALSE),"--") -> -- | Q97: -- | R97: -- | S97: =IF(ISNUMBER(VLOOKUP(E97,'Tab 5-7a Soil & Air EPCs'!$D$7:$F$9,3,FALSE)),VLOOKUP(E97,'Tab 5-7a Soil & Air EPCs'!$D$7:$F$9,3,FALSE),"--") -> -- | T97: -- | U97: -- | V97: -- | W97: --
A98: 0 | B98: 0 | C98: 0 | D98: 0 | E98: 0 | F98: -- | G98: -- | H98: =IF(ISNUMBER(VLOOKUP(E98,'Tab 5-7a Soil & Air EPCs'!$D$7:$E$9,2,FALSE)),VLOOKUP(E98,'Tab 5-7a Soil & Air EPCs'!$D$7:$E$9,2,FALSE),"--") -> -- | I98: -- | J98: -- | K98: 0 | L98: -- | M98: -- | N98: -- | O98: -- | P98: =IF(ISNUMBER(VLOOKUP(E98,'Tab 5-7a Soil & Air EPCs'!$D$7:$H$9,5,FALSE)),VLOOKUP(E98,'Tab 5-7a Soil & Air EPCs'!$D$7:$H$9,5,FALSE),"--") -> -- | Q98: -- | R98: -- | S98: =IF(ISNUMBER(VLOOKUP(E98,'Tab 5-7a Soil & Air EPCs'!$D$7:$F$9,3,FALSE)),VLOOKUP(E98,'Tab 5-7a Soil & Air EPCs'!$D$7:$F$9,3,FALSE),"--") -> -- | T98: -- | U98: -- | V98: -- | W98: --
A99: 0 | B99: 0 | C99: 0 | D99: 0 | E99: 0 | F99: -- | G99: -- | H99: =IF(ISNUMBER(VLOOKUP(E99,'Tab 5-7a Soil & Air EPCs'!$D$7:$E$9,2,FALSE)),VLOOKUP(E99,'Tab 5-7a Soil & Air EPCs'!$D$7:$E$9,2,FALSE),"--") -> -- | I99: -- | J99: -- | K99: 0 | L99: -- | M99: -- | N99: -- | O99: -- | P99: =IF(ISNUMBER(VLOOKUP(E99,'Tab 5-7a Soil & Air EPCs'!$D$7:$H$9,5,FALSE)),VLOOKUP(E99,'Tab 5-7a Soil & Air EPCs'!$D$7:$H$9,5,FALSE),"--") -> -- | Q99: -- | R99: -- | S99: =IF(ISNUMBER(VLOOKUP(E99,'Tab 5-7a Soil & Air EPCs'!$D$7:$F$9,3,FALSE)),VLOOKUP(E99,'Tab 5-7a Soil & Air EPCs'!$D$7:$F$9,3,FALSE),"--") -> -- | T99: -- | U99: -- | V99: -- | W99: --
A100: 0 | B100: 0 | C100: 0 | D100: 0 | E100: 0 | F100: -- | G100: -- | H100: =IF(ISNUMBER(VLOOKUP(E100,'Tab 5-7a Soil & Air EPCs'!$D$7:$E$9,2,FALSE)),VLOOKUP(E100,'Tab 5-7a Soil & Air EPCs'!$D$7:$E$9,2,FALSE),"--") -> -- | I100: -- | J100: -- | K100: 0 | L100: -- | M100: -- | N100: -- | O100: -- | P100: =IF(ISNUMBER(VLOOKUP(E100,'Tab 5-7a Soil & Air EPCs'!$D$7:$H$9,5,FALSE)),VLOOKUP(E100,'Tab 5-7a Soil & Air EPCs'!$D$7:$H$9,5,FALSE),"--") -> -- | Q100: -- | R100: -- | S100: =IF(ISNUMBER(VLOOKUP(E100,'Tab 5-7a Soil & Air EPCs'!$D$7:$F$9,3,FALSE)),VLOOKUP(E100,'Tab 5-7a Soil & Air EPCs'!$D$7:$F$9,3,FALSE),"--") -> -- | T100: -- | U100: -- | V100: -- | W100: --
A101: 0 | B101: 0 | C101: 0 | D101: 0 | E101: 0 | F101: -- | G101: -- | H101: =IF(ISNUMBER(VLOOKUP(E101,'Tab 5-7a Soil & Air EPCs'!$D$7:$E$9,2,FALSE)),VLOOKUP(E101,'Tab 5-7a Soil & Air EPCs'!$D$7:$E$9,2,FALSE),"--") -> -- | I101: -- | J101: -- | K101: 0 | L101: -- | M101: -- | N101: -- | O101: -- | P101: =IF(ISNUMBER(VLOOKUP(E101,'Tab 5-7a Soil & Air EPCs'!$D$7:$H$9,5,FALSE)),VLOOKUP(E101,'Tab 5-7a Soil & Air EPCs'!$D$7:$H$9,5,FALSE),"--") -> -- | Q101: -- | R101: -- | S101: =IF(ISNUMBER(VLOOKUP(E101,'Tab 5-7a Soil & Air EPCs'!$D$7:$F$9,3,FALSE)),VLOOKUP(E101,'Tab 5-7a Soil & Air EPCs'!$D$7:$F$9,3,FALSE),"--") -> -- | T101: -- | U101: -- | V101: -- | W101: --
A102: 0 | B102: 0 | C102: 0 | D102: 0 | E102: 0 | F102: -- | G102: -- | H102: =IF(ISNUMBER(VLOOKUP(E102,'Tab 5-7a Soil & Air EPCs'!$D$7:$E$9,2,FALSE)),VLOOKUP(E102,'Tab 5-7a Soil & Air EPCs'!$D$7:$E$9,2,FALSE),"--") -> -- | I102: -- | J102: -- | K102: 0 | L102: -- | M102: -- | N102: -- | O102: -- | P102: =IF(ISNUMBER(VLOOKUP(E102,'Tab 5-7a Soil & Air EPCs'!$D$7:$H$9,5,FALSE)),VLOOKUP(E102,'Tab 5-7a Soil & Air EPCs'!$D$7:$H$9,5,FALSE),"--") -> -- | Q102: -- | R102: -- | S102: =IF(ISNUMBER(VLOOKUP(E102,'Tab 5-7a Soil & Air EPCs'!$D$7:$F$9,3,FALSE)),VLOOKUP(E102,'Tab 5-7a Soil & Air EPCs'!$D$7:$F$9,3,FALSE),"--") -> -- | T102: -- | U102: -- | V102: -- | W102: --
A103: 0 | B103: 0 | C103: 0 | D103: 0 | E103: 0 | F103: -- | G103: -- | H103: =IF(ISNUMBER(VLOOKUP(E103,'Tab 5-7a Soil & Air EPCs'!$D$7:$E$9,2,FALSE)),VLOOKUP(E103,'Tab 5-7a Soil & Air EPCs'!$D$7:$E$9,2,FALSE),"--") -> -- | I103: -- | J103: -- | K103: 0 | L103: -- | M103: -- | N103: -- | O103: -- | P103: =IF(ISNUMBER(VLOOKUP(E103,'Tab 5-7a Soil & Air EPCs'!$D$7:$H$9,5,FALSE)),VLOOKUP(E103,'Tab 5-7a Soil & Air EPCs'!$D$7:$H$9,5,FALSE),"--") -> -- | Q103: -- | R103: -- | S103: =IF(ISNUMBER(VLOOKUP(E103,'Tab 5-7a Soil & Air EPCs'!$D$7:$F$9,3,FALSE)),VLOOKUP(E103,'Tab 5-7a Soil & Air EPCs'!$D$7:$F$9,3,FALSE),"--") -> -- | T103: -- | U103: -- | V103: -- | W103: --
A104: 0 | B104: 0 | C104: 0 | D104: 0 | E104: 0 | F104: -- | G104: -- | H104: =IF(ISNUMBER(VLOOKUP(E104,'Tab 5-7a Soil & Air EPCs'!$D$7:$E$9,2,FALSE)),VLOOKUP(E104,'Tab 5-7a Soil & Air EPCs'!$D$7:$E$9,2,FALSE),"--") -> -- | I104: -- | J104: -- | K104: 0 | L104: -- | M104: -- | N104: -- | O104: -- | P104: =IF(ISNUMBER(VLOOKUP(E104,'Tab 5-7a Soil & Air EPCs'!$D$7:$H$9,5,FALSE)),VLOOKUP(E104,'Tab 5-7a Soil & Air EPCs'!$D$7:$H$9,5,FALSE),"--") -> -- | Q104: -- | R104: -- | S104: =IF(ISNUMBER(VLOOKUP(E104,'Tab 5-7a Soil & Air EPCs'!$D$7:$F$9,3,FALSE)),VLOOKUP(E104,'Tab 5-7a Soil & Air EPCs'!$D$7:$F$9,3,FALSE),"--") -> -- | T104: -- | U104: -- | V104: -- | W104: --
A105: 0 | B105: 0 | C105: 0 | D105: 0 | E105: 0 | F105: -- | G105: -- | H105: =IF(ISNUMBER(VLOOKUP(E105,'Tab 5-7a Soil & Air EPCs'!$D$7:$E$9,2,FALSE)),VLOOKUP(E105,'Tab 5-7a Soil & Air EPCs'!$D$7:$E$9,2,FALSE),"--") -> -- | I105: -- | J105: -- | K105: 0 | L105: -- | M105: -- | N105: -- | O105: -- | P105: =IF(ISNUMBER(VLOOKUP(E105,'Tab 5-7a Soil & Air EPCs'!$D$7:$H$9,5,FALSE)),VLOOKUP(E105,'Tab 5-7a Soil & Air EPCs'!$D$7:$H$9,5,FALSE),"--") -> -- | Q105: -- | R105: -- | S105: =IF(ISNUMBER(VLOOKUP(E105,'Tab 5-7a Soil & Air EPCs'!$D$7:$F$9,3,FALSE)),VLOOKUP(E105,'Tab 5-7a Soil & Air EPCs'!$D$7:$F$9,3,FALSE),"--") -> -- | T105: -- | U105: -- | V105: -- | W105: --
A106: 0 | B106: 0 | C106: 0 | D106: 0 | E106: 0 | F106: -- | G106: -- | H106: =IF(ISNUMBER(VLOOKUP(E106,'Tab 5-7a Soil & Air EPCs'!$D$7:$E$9,2,FALSE)),VLOOKUP(E106,'Tab 5-7a Soil & Air EPCs'!$D$7:$E$9,2,FALSE),"--") -> -- | I106: -- | J106: -- | K106: 0 | L106: -- | M106: -- | N106: -- | O106: -- | P106: =IF(ISNUMBER(VLOOKUP(E106,'Tab 5-7a Soil & Air EPCs'!$D$7:$H$9,5,FALSE)),VLOOKUP(E106,'Tab 5-7a Soil & Air EPCs'!$D$7:$H$9,5,FALSE),"--") -> -- | Q106: -- | R106: -- | S106: =IF(ISNUMBER(VLOOKUP(E106,'Tab 5-7a Soil & Air EPCs'!$D$7:$F$9,3,FALSE)),VLOOKUP(E106,'Tab 5-7a Soil & Air EPCs'!$D$7:$F$9,3,FALSE),"--") -> -- | T106: -- | U106: -- | V106: -- | W106: --
A107: 0 | B107: 0 | C107: 0 | D107: 0 | E107: 0 | F107: -- | G107: -- | H107: =IF(ISNUMBER(VLOOKUP(E107,'Tab 5-7a Soil & Air EPCs'!$D$7:$E$9,2,FALSE)),VLOOKUP(E107,'Tab 5-7a Soil & Air EPCs'!$D$7:$E$9,2,FALSE),"--") -> -- | I107: -- | J107: -- | K107: 0 | L107: -- | M107: -- | N107: -- | O107: -- | P107: =IF(ISNUMBER(VLOOKUP(E107,'Tab 5-7a Soil & Air EPCs'!$D$7:$H$9,5,FALSE)),VLOOKUP(E107,'Tab 5-7a Soil & Air EPCs'!$D$7:$H$9,5,FALSE),"--") -> -- | Q107: -- | R107: -- | S107: =IF(ISNUMBER(VLOOKUP(E107,'Tab 5-7a Soil & Air EPCs'!$D$7:$F$9,3,FALSE)),VLOOKUP(E107,'Tab 5-7a Soil & Air EPCs'!$D$7:$F$9,3,FALSE),"--") -> -- | T107: -- | U107: -- | V107: -- | W107: --
A108: 0 | B108: 0 | C108: 0 | D108: 0 | E108: 0 | F108: -- | G108: -- | H108: =IF(ISNUMBER(VLOOKUP(E108,'Tab 5-7a Soil & Air EPCs'!$D$7:$E$9,2,FALSE)),VLOOKUP(E108,'Tab 5-7a Soil & Air EPCs'!$D$7:$E$9,2,FALSE),"--") -> -- | I108: -- | J108: -- | K108: 0 | L108: -- | M108: -- | N108: -- | O108: -- | P108: =IF(ISNUMBER(VLOOKUP(E108,'Tab 5-7a Soil & Air EPCs'!$D$7:$H$9,5,FALSE)),VLOOKUP(E108,'Tab 5-7a Soil & Air EPCs'!$D$7:$H$9,5,FALSE),"--") -> -- | Q108: -- | R108: -- | S108: =IF(ISNUMBER(VLOOKUP(E108,'Tab 5-7a Soil & Air EPCs'!$D$7:$F$9,3,FALSE)),VLOOKUP(E108,'Tab 5-7a Soil & Air EPCs'!$D$7:$F$9,3,FALSE),"--") -> -- | T108: -- | U108: -- | V108: -- | W108: --
A109: 0 | B109: 0 | C109: 0 | D109: 0 | E109: 0 | F109: -- | G109: -- | H109: =IF(ISNUMBER(VLOOKUP(E109,'Tab 5-7a Soil & Air EPCs'!$D$7:$E$9,2,FALSE)),VLOOKUP(E109,'Tab 5-7a Soil & Air EPCs'!$D$7:$E$9,2,FALSE),"--") -> -- | I109: -- | J109: -- | K109: 0 | L109: -- | M109: -- | N109: -- | O109: -- | P109: =IF(ISNUMBER(VLOOKUP(E109,'Tab 5-7a Soil & Air EPCs'!$D$7:$H$9,5,FALSE)),VLOOKUP(E109,'Tab 5-7a Soil & Air EPCs'!$D$7:$H$9,5,FALSE),"--") -> -- | Q109: -- | R109: -- | S109: =IF(ISNUMBER(VLOOKUP(E109,'Tab 5-7a Soil & Air EPCs'!$D$7:$F$9,3,FALSE)),VLOOKUP(E109,'Tab 5-7a Soil & Air EPCs'!$D$7:$F$9,3,FALSE),"--") -> -- | T109: -- | U109: -- | V109: -- | W109: --
A110: 0 | B110: 0 | C110: 0 | D110: 0 | E110: 0 | F110: -- | G110: -- | H110: =IF(ISNUMBER(VLOOKUP(E110,'Tab 5-7a Soil & Air EPCs'!$D$7:$E$9,2,FALSE)),VLOOKUP(E110,'Tab 5-7a Soil & Air EPCs'!$D$7:$E$9,2,FALSE),"--") -> -- | I110: -- | J110: -- | K110: 0 | L110: -- | M110: -- | N110: -- | O110: -- | P110: =IF(ISNUMBER(VLOOKUP(E110,'Tab 5-7a Soil & Air EPCs'!$D$7:$H$9,5,FALSE)),VLOOKUP(E110,'Tab 5-7a Soil & Air EPCs'!$D$7:$H$9,5,FALSE),"--") -> -- | Q110: -- | R110: -- | S110: =IF(ISNUMBER(VLOOKUP(E110,'Tab 5-7a Soil & Air EPCs'!$D$7:$F$9,3,FALSE)),VLOOKUP(E110,'Tab 5-7a Soil & Air EPCs'!$D$7:$F$9,3,FALSE),"--") -> -- | T110: -- | U110: -- | V110: -- | W110: --
A111: 0 | B111: 0 | C111: 0 | D111: 0 | E111: 0 | F111: -- | G111: -- | H111: =IF(ISNUMBER(VLOOKUP(E111,'Tab 5-7a Soil & Air EPCs'!$D$7:$E$9,2,FALSE)),VLOOKUP(E111,'Tab 5-7a Soil & Air EPCs'!$D$7:$E$9,2,FALSE),"--") -> -- | I111: -- | J111: -- | K111: 0 | L111: -- | M111: -- | N111: -- | O111: -- | P111: =IF(ISNUMBER(VLOOKUP(E111,'Tab 5-7a Soil & Air EPCs'!$D$7:$H$9,5,FALSE)),VLOOKUP(E111,'Tab 5-7a Soil & Air EPCs'!$D$7:$H$9,5,FALSE),"--") -> -- | Q111: -- | R111: -- | S111: =IF(ISNUMBER(VLOOKUP(E111,'Tab 5-7a Soil & Air EPCs'!$D$7:$F$9,3,FALSE)),VLOOKUP(E111,'Tab 5-7a Soil & Air EPCs'!$D$7:$F$9,3,FALSE),"--") -> -- | T111: -- | U111: -- | V111: -- | W111: --
A112: 0 | B112: 0 | C112: 0 | D112: 0 | E112: 0 | F112: -- | G112: -- | H112: =IF(ISNUMBER(VLOOKUP(E112,'Tab 5-7a Soil & Air EPCs'!$D$7:$E$9,2,FALSE)),VLOOKUP(E112,'Tab 5-7a Soil & Air EPCs'!$D$7:$E$9,2,FALSE),"--") -> -- | I112: -- | J112: -- | K112: 0 | L112: -- | M112: -- | N112: -- | O112: -- | P112: =IF(ISNUMBER(VLOOKUP(E112,'Tab 5-7a Soil & Air EPCs'!$D$7:$H$9,5,FALSE)),VLOOKUP(E112,'Tab 5-7a Soil & Air EPCs'!$D$7:$H$9,5,FALSE),"--") -> -- | Q112: -- | R112: -- | S112: =IF(ISNUMBER(VLOOKUP(E112,'Tab 5-7a Soil & Air EPCs'!$D$7:$F$9,3,FALSE)),VLOOKUP(E112,'Tab 5-7a Soil & Air EPCs'!$D$7:$F$9,3,FALSE),"--") -> -- | T112: -- | U112: -- | V112: -- | W112: --
A113: 0 | B113: 0 | C113: 0 | D113: 0 | E113: 0 | F113: -- | G113: -- | H113: =IF(ISNUMBER(VLOOKUP(E113,'Tab 5-7a Soil & Air EPCs'!$D$7:$E$9,2,FALSE)),VLOOKUP(E113,'Tab 5-7a Soil & Air EPCs'!$D$7:$E$9,2,FALSE),"--") -> -- | I113: -- | J113: -- | K113: 0 | L113: -- | M113: -- | N113: -- | O113: -- | P113: =IF(ISNUMBER(VLOOKUP(E113,'Tab 5-7a Soil & Air EPCs'!$D$7:$H$9,5,FALSE)),VLOOKUP(E113,'Tab 5-7a Soil & Air EPCs'!$D$7:$H$9,5,FALSE),"--") -> -- | Q113: -- | R113: -- | S113: =IF(ISNUMBER(VLOOKUP(E113,'Tab 5-7a Soil & Air EPCs'!$D$7:$F$9,3,FALSE)),VLOOKUP(E113,'Tab 5-7a Soil & Air EPCs'!$D$7:$F$9,3,FALSE),"--") -> -- | T113: -- | U113: -- | V113: -- | W113: --
A114: 0 | B114: 0 | C114: 0 | D114: 0 | E114: 0 | F114: -- | G114: -- | H114: =IF(ISNUMBER(VLOOKUP(E114,'Tab 5-7a Soil & Air EPCs'!$D$7:$E$9,2,FALSE)),VLOOKUP(E114,'Tab 5-7a Soil & Air EPCs'!$D$7:$E$9,2,FALSE),"--") -> -- | I114: -- | J114: -- | K114: 0 | L114: -- | M114: -- | N114: -- | O114: -- | P114: =IF(ISNUMBER(VLOOKUP(E114,'Tab 5-7a Soil & Air EPCs'!$D$7:$H$9,5,FALSE)),VLOOKUP(E114,'Tab 5-7a Soil & Air EPCs'!$D$7:$H$9,5,FALSE),"--") -> -- | Q114: -- | R114: -- | S114: =IF(ISNUMBER(VLOOKUP(E114,'Tab 5-7a Soil & Air EPCs'!$D$7:$F$9,3,FALSE)),VLOOKUP(E114,'Tab 5-7a Soil & Air EPCs'!$D$7:$F$9,3,FALSE),"--") -> -- | T114: -- | U114: -- | V114: -- | W114: --
A115: 0 | B115: 0 | C115: 0 | D115: 0 | E115: 0 | F115: -- | G115: -- | H115: =IF(ISNUMBER(VLOOKUP(E115,'Tab 5-7a Soil & Air EPCs'!$D$7:$E$9,2,FALSE)),VLOOKUP(E115,'Tab 5-7a Soil & Air EPCs'!$D$7:$E$9,2,FALSE),"--") -> -- | I115: -- | J115: -- | K115: 0 | L115: -- | M115: -- | N115: -- | O115: -- | P115: =IF(ISNUMBER(VLOOKUP(E115,'Tab 5-7a Soil & Air EPCs'!$D$7:$H$9,5,FALSE)),VLOOKUP(E115,'Tab 5-7a Soil & Air EPCs'!$D$7:$H$9,5,FALSE),"--") -> -- | Q115: -- | R115: -- | S115: =IF(ISNUMBER(VLOOKUP(E115,'Tab 5-7a Soil & Air EPCs'!$D$7:$F$9,3,FALSE)),VLOOKUP(E115,'Tab 5-7a Soil & Air EPCs'!$D$7:$F$9,3,FALSE),"--") -> -- | T115: -- | U115: -- | V115: -- | W115: --
A116: 0 | B116: 0 | C116: 0 | D116: 0 | E116: 0 | F116: -- | G116: -- | H116: =IF(ISNUMBER(VLOOKUP(E116,'Tab 5-7a Soil & Air EPCs'!$D$7:$E$9,2,FALSE)),VLOOKUP(E116,'Tab 5-7a Soil & Air EPCs'!$D$7:$E$9,2,FALSE),"--") -> -- | I116: -- | J116: -- | K116: 0 | L116: -- | M116: -- | N116: -- | O116: -- | P116: =IF(ISNUMBER(VLOOKUP(E116,'Tab 5-7a Soil & Air EPCs'!$D$7:$H$9,5,FALSE)),VLOOKUP(E116,'Tab 5-7a Soil & Air EPCs'!$D$7:$H$9,5,FALSE),"--") -> -- | Q116: -- | R116: -- | S116: =IF(ISNUMBER(VLOOKUP(E116,'Tab 5-7a Soil & Air EPCs'!$D$7:$F$9,3,FALSE)),VLOOKUP(E116,'Tab 5-7a Soil & Air EPCs'!$D$7:$F$9,3,FALSE),"--") -> -- | T116: -- | U116: -- | V116: -- | W116: --
A117: 0 | B117: 0 | C117: 0 | D117: 0 | E117: 0 | F117: -- | G117: -- | H117: =IF(ISNUMBER(VLOOKUP(E117,'Tab 5-7a Soil & Air EPCs'!$D$7:$E$9,2,FALSE)),VLOOKUP(E117,'Tab 5-7a Soil & Air EPCs'!$D$7:$E$9,2,FALSE),"--") -> -- | I117: -- | J117: -- | K117: 0 | L117: -- | M117: -- | N117: -- | O117: -- | P117: =IF(ISNUMBER(VLOOKUP(E117,'Tab 5-7a Soil & Air EPCs'!$D$7:$H$9,5,FALSE)),VLOOKUP(E117,'Tab 5-7a Soil & Air EPCs'!$D$7:$H$9,5,FALSE),"--") -> -- | Q117: -- | R117: -- | S117: =IF(ISNUMBER(VLOOKUP(E117,'Tab 5-7a Soil & Air EPCs'!$D$7:$F$9,3,FALSE)),VLOOKUP(E117,'Tab 5-7a Soil & Air EPCs'!$D$7:$F$9,3,FALSE),"--") -> -- | T117: -- | U117: -- | V117: -- | W117: --
A118: 0 | B118: 0 | C118: 0 | D118: 0 | E118: 0 | F118: -- | G118: -- | H118: =IF(ISNUMBER(VLOOKUP(E118,'Tab 5-7a Soil & Air EPCs'!$D$7:$E$9,2,FALSE)),VLOOKUP(E118,'Tab 5-7a Soil & Air EPCs'!$D$7:$E$9,2,FALSE),"--") -> -- | I118: -- | J118: -- | K118: 0 | L118: -- | M118: -- | N118: -- | O118: -- | P118: =IF(ISNUMBER(VLOOKUP(E118,'Tab 5-7a Soil & Air EPCs'!$D$7:$H$9,5,FALSE)),VLOOKUP(E118,'Tab 5-7a Soil & Air EPCs'!$D$7:$H$9,5,FALSE),"--") -> -- | Q118: -- | R118: -- | S118: =IF(ISNUMBER(VLOOKUP(E118,'Tab 5-7a Soil & Air EPCs'!$D$7:$F$9,3,FALSE)),VLOOKUP(E118,'Tab 5-7a Soil & Air EPCs'!$D$7:$F$9,3,FALSE),"--") -> -- | T118: -- | U118: -- | V118: -- | W118: --
A119: 0 | B119: 0 | C119: 0 | D119: 0 | E119: 0 | F119: -- | G119: -- | H119: =IF(ISNUMBER(VLOOKUP(E119,'Tab 5-7a Soil & Air EPCs'!$D$7:$E$9,2,FALSE)),VLOOKUP(E119,'Tab 5-7a Soil & Air EPCs'!$D$7:$E$9,2,FALSE),"--") -> -- | I119: -- | J119: -- | K119: 0 | L119: -- | M119: -- | N119: -- | O119: -- | P119: =IF(ISNUMBER(VLOOKUP(E119,'Tab 5-7a Soil & Air EPCs'!$D$7:$H$9,5,FALSE)),VLOOKUP(E119,'Tab 5-7a Soil & Air EPCs'!$D$7:$H$9,5,FALSE),"--") -> -- | Q119: -- | R119: -- | S119: =IF(ISNUMBER(VLOOKUP(E119,'Tab 5-7a Soil & Air EPCs'!$D$7:$F$9,3,FALSE)),VLOOKUP(E119,'Tab 5-7a Soil & Air EPCs'!$D$7:$F$9,3,FALSE),"--") -> -- | T119: -- | U119: -- | V119: -- | W119: --
A120: 0 | B120: 0 | C120: 0 | D120: 0 | E120: 0 | F120: -- | G120: -- | H120: =IF(ISNUMBER(VLOOKUP(E120,'Tab 5-7a Soil & Air EPCs'!$D$7:$E$9,2,FALSE)),VLOOKUP(E120,'Tab 5-7a Soil & Air EPCs'!$D$7:$E$9,2,FALSE),"--") -> -- | I120: -- | J120: -- | K120: 0 | L120: -- | M120: -- | N120: -- | O120: -- | P120: =IF(ISNUMBER(VLOOKUP(E120,'Tab 5-7a Soil & Air EPCs'!$D$7:$H$9,5,FALSE)),VLOOKUP(E120,'Tab 5-7a Soil & Air EPCs'!$D$7:$H$9,5,FALSE),"--") -> -- | Q120: -- | R120: -- | S120: =IF(ISNUMBER(VLOOKUP(E120,'Tab 5-7a Soil & Air EPCs'!$D$7:$F$9,3,FALSE)),VLOOKUP(E120,'Tab 5-7a Soil & Air EPCs'!$D$7:$F$9,3,FALSE),"--") -> -- | T120: -- | U120: -- | V120: -- | W120: --
A121: 0 | B121: 0 | C121: 0 | D121: 0 | E121: 0 | F121: -- | G121: -- | H121: =IF(ISNUMBER(VLOOKUP(E121,'Tab 5-7a Soil & Air EPCs'!$D$7:$E$9,2,FALSE)),VLOOKUP(E121,'Tab 5-7a Soil & Air EPCs'!$D$7:$E$9,2,FALSE),"--") -> -- | I121: -- | J121: -- | K121: 0 | L121: -- | M121: -- | N121: -- | O121: -- | P121: =IF(ISNUMBER(VLOOKUP(E121,'Tab 5-7a Soil & Air EPCs'!$D$7:$H$9,5,FALSE)),VLOOKUP(E121,'Tab 5-7a Soil & Air EPCs'!$D$7:$H$9,5,FALSE),"--") -> -- | Q121: -- | R121: -- | S121: =IF(ISNUMBER(VLOOKUP(E121,'Tab 5-7a Soil & Air EPCs'!$D$7:$F$9,3,FALSE)),VLOOKUP(E121,'Tab 5-7a Soil & Air EPCs'!$D$7:$F$9,3,FALSE),"--") -> -- | T121: -- | U121: -- | V121: -- | W121: --
A122: 0 | B122: 0 | C122: 0 | D122: 0 | E122: 0 | F122: -- | G122: -- | H122: =IF(ISNUMBER(VLOOKUP(E122,'Tab 5-7a Soil & Air EPCs'!$D$7:$E$9,2,FALSE)),VLOOKUP(E122,'Tab 5-7a Soil & Air EPCs'!$D$7:$E$9,2,FALSE),"--") -> -- | I122: -- | J122: -- | K122: 0 | L122: -- | M122: -- | N122: -- | O122: -- | P122: =IF(ISNUMBER(VLOOKUP(E122,'Tab 5-7a Soil & Air EPCs'!$D$7:$H$9,5,FALSE)),VLOOKUP(E122,'Tab 5-7a Soil & Air EPCs'!$D$7:$H$9,5,FALSE),"--") -> -- | Q122: -- | R122: -- | S122: =IF(ISNUMBER(VLOOKUP(E122,'Tab 5-7a Soil & Air EPCs'!$D$7:$F$9,3,FALSE)),VLOOKUP(E122,'Tab 5-7a Soil & Air EPCs'!$D$7:$F$9,3,FALSE),"--") -> -- | T122: -- | U122: -- | V122: -- | W122: --
A123: 0 | B123: 0 | C123: 0 | D123: 0 | E123: 0 | F123: -- | G123: -- | H123: =IF(ISNUMBER(VLOOKUP(E123,'Tab 5-7a Soil & Air EPCs'!$D$7:$E$9,2,FALSE)),VLOOKUP(E123,'Tab 5-7a Soil & Air EPCs'!$D$7:$E$9,2,FALSE),"--") -> -- | I123: -- | J123: -- | K123: 0 | L123: -- | M123: -- | N123: -- | O123: -- | P123: =IF(ISNUMBER(VLOOKUP(E123,'Tab 5-7a Soil & Air EPCs'!$D$7:$H$9,5,FALSE)),VLOOKUP(E123,'Tab 5-7a Soil & Air EPCs'!$D$7:$H$9,5,FALSE),"--") -> -- | Q123: -- | R123: -- | S123: =IF(ISNUMBER(VLOOKUP(E123,'Tab 5-7a Soil & Air EPCs'!$D$7:$F$9,3,FALSE)),VLOOKUP(E123,'Tab 5-7a Soil & Air EPCs'!$D$7:$F$9,3,FALSE),"--") -> -- | T123: -- | U123: -- | V123: -- | W123: --
A124: 0 | B124: 0 | C124: 0 | D124: 0 | E124: 0 | F124: -- | G124: -- | H124: =IF(ISNUMBER(VLOOKUP(E124,'Tab 5-7a Soil & Air EPCs'!$D$7:$E$9,2,FALSE)),VLOOKUP(E124,'Tab 5-7a Soil & Air EPCs'!$D$7:$E$9,2,FALSE),"--") -> -- | I124: -- | J124: -- | K124: 0 | L124: -- | M124: -- | N124: -- | O124: -- | P124: =IF(ISNUMBER(VLOOKUP(E124,'Tab 5-7a Soil & Air EPCs'!$D$7:$H$9,5,FALSE)),VLOOKUP(E124,'Tab 5-7a Soil & Air EPCs'!$D$7:$H$9,5,FALSE),"--") -> -- | Q124: -- | R124: -- | S124: =IF(ISNUMBER(VLOOKUP(E124,'Tab 5-7a Soil & Air EPCs'!$D$7:$F$9,3,FALSE)),VLOOKUP(E124,'Tab 5-7a Soil & Air EPCs'!$D$7:$F$9,3,FALSE),"--") -> -- | T124: -- | U124: -- | V124: -- | W124: --
A125: 0 | B125: 0 | C125: 0 | D125: 0 | E125: 0 | F125: -- | G125: -- | H125: =IF(ISNUMBER(VLOOKUP(E125,'Tab 5-7a Soil & Air EPCs'!$D$7:$E$9,2,FALSE)),VLOOKUP(E125,'Tab 5-7a Soil & Air EPCs'!$D$7:$E$9,2,FALSE),"--") -> -- | I125: -- | J125: -- | K125: 0 | L125: -- | M125: -- | N125: -- | O125: -- | P125: =IF(ISNUMBER(VLOOKUP(E125,'Tab 5-7a Soil & Air EPCs'!$D$7:$H$9,5,FALSE)),VLOOKUP(E125,'Tab 5-7a Soil & Air EPCs'!$D$7:$H$9,5,FALSE),"--") -> -- | Q125: -- | R125: -- | S125: =IF(ISNUMBER(VLOOKUP(E125,'Tab 5-7a Soil & Air EPCs'!$D$7:$F$9,3,FALSE)),VLOOKUP(E125,'Tab 5-7a Soil & Air EPCs'!$D$7:$F$9,3,FALSE),"--") -> -- | T125: -- | U125: -- | V125: -- | W125: --
A126: 0 | B126: 0 | C126: 0 | D126: 0 | E126: 0 | F126: -- | G126: -- | H126: =IF(ISNUMBER(VLOOKUP(E126,'Tab 5-7a Soil & Air EPCs'!$D$7:$E$9,2,FALSE)),VLOOKUP(E126,'Tab 5-7a Soil & Air EPCs'!$D$7:$E$9,2,FALSE),"--") -> -- | I126: -- | J126: -- | K126: 0 | L126: -- | M126: -- | N126: -- | O126: -- | P126: =IF(ISNUMBER(VLOOKUP(E126,'Tab 5-7a Soil & Air EPCs'!$D$7:$H$9,5,FALSE)),VLOOKUP(E126,'Tab 5-7a Soil & Air EPCs'!$D$7:$H$9,5,FALSE),"--") -> -- | Q126: -- | R126: -- | S126: =IF(ISNUMBER(VLOOKUP(E126,'Tab 5-7a Soil & Air EPCs'!$D$7:$F$9,3,FALSE)),VLOOKUP(E126,'Tab 5-7a Soil & Air EPCs'!$D$7:$F$9,3,FALSE),"--") -> -- | T126: -- | U126: -- | V126: -- | W126: --
A127: 0 | B127: 0 | C127: 0 | D127: 0 | E127: 0 | F127: -- | G127: -- | H127: =IF(ISNUMBER(VLOOKUP(E127,'Tab 5-7a Soil & Air EPCs'!$D$7:$E$9,2,FALSE)),VLOOKUP(E127,'Tab 5-7a Soil & Air EPCs'!$D$7:$E$9,2,FALSE),"--") -> -- | I127: -- | J127: -- | K127: 0 | L127: -- | M127: -- | N127: -- | O127: -- | P127: =IF(ISNUMBER(VLOOKUP(E127,'Tab 5-7a Soil & Air EPCs'!$D$7:$H$9,5,FALSE)),VLOOKUP(E127,'Tab 5-7a Soil & Air EPCs'!$D$7:$H$9,5,FALSE),"--") -> -- | Q127: -- | R127: -- | S127: =IF(ISNUMBER(VLOOKUP(E127,'Tab 5-7a Soil & Air EPCs'!$D$7:$F$9,3,FALSE)),VLOOKUP(E127,'Tab 5-7a Soil & Air EPCs'!$D$7:$F$9,3,FALSE),"--") -> -- | T127: -- | U127: -- | V127: -- | W127: --
A128: 0 | B128: 0 | C128: 0 | D128: 0 | E128: 0 | F128: -- | G128: -- | H128: =IF(ISNUMBER(VLOOKUP(E128,'Tab 5-7a Soil & Air EPCs'!$D$7:$E$9,2,FALSE)),VLOOKUP(E128,'Tab 5-7a Soil & Air EPCs'!$D$7:$E$9,2,FALSE),"--") -> -- | I128: -- | J128: -- | K128: 0 | L128: -- | M128: -- | N128: -- | O128: -- | P128: =IF(ISNUMBER(VLOOKUP(E128,'Tab 5-7a Soil & Air EPCs'!$D$7:$H$9,5,FALSE)),VLOOKUP(E128,'Tab 5-7a Soil & Air EPCs'!$D$7:$H$9,5,FALSE),"--") -> -- | Q128: -- | R128: -- | S128: =IF(ISNUMBER(VLOOKUP(E128,'Tab 5-7a Soil & Air EPCs'!$D$7:$F$9,3,FALSE)),VLOOKUP(E128,'Tab 5-7a Soil & Air EPCs'!$D$7:$F$9,3,FALSE),"--") -> -- | T128: -- | U128: -- | V128: -- | W128: --
A129: 0 | B129: 0 | C129: 0 | D129: 0 | E129: 0 | F129: -- | G129: -- | H129: =IF(ISNUMBER(VLOOKUP(E129,'Tab 5-7a Soil & Air EPCs'!$D$7:$E$9,2,FALSE)),VLOOKUP(E129,'Tab 5-7a Soil & Air EPCs'!$D$7:$E$9,2,FALSE),"--") -> -- | I129: -- | J129: -- | K129: 0 | L129: -- | M129: -- | N129: -- | O129: -- | P129: =IF(ISNUMBER(VLOOKUP(E129,'Tab 5-7a Soil & Air EPCs'!$D$7:$H$9,5,FALSE)),VLOOKUP(E129,'Tab 5-7a Soil & Air EPCs'!$D$7:$H$9,5,FALSE),"--") -> -- | Q129: -- | R129: -- | S129: =IF(ISNUMBER(VLOOKUP(E129,'Tab 5-7a Soil & Air EPCs'!$D$7:$F$9,3,FALSE)),VLOOKUP(E129,'Tab 5-7a Soil & Air EPCs'!$D$7:$F$9,3,FALSE),"--") -> -- | T129: -- | U129: -- | V129: -- | W129: --
A130: 0 | B130: 0 | C130: 0 | D130: 0 | E130: 0 | F130: -- | G130: -- | H130: =IF(ISNUMBER(VLOOKUP(E130,'Tab 5-7a Soil & Air EPCs'!$D$7:$E$9,2,FALSE)),VLOOKUP(E130,'Tab 5-7a Soil & Air EPCs'!$D$7:$E$9,2,FALSE),"--") -> -- | I130: -- | J130: -- | K130: 0 | L130: -- | M130: -- | N130: -- | O130: -- | P130: =IF(ISNUMBER(VLOOKUP(E130,'Tab 5-7a Soil & Air EPCs'!$D$7:$H$9,5,FALSE)),VLOOKUP(E130,'Tab 5-7a Soil & Air EPCs'!$D$7:$H$9,5,FALSE),"--") -> -- | Q130: -- | R130: -- | S130: =IF(ISNUMBER(VLOOKUP(E130,'Tab 5-7a Soil & Air EPCs'!$D$7:$F$9,3,FALSE)),VLOOKUP(E130,'Tab 5-7a Soil & Air EPCs'!$D$7:$F$9,3,FALSE),"--") -> -- | T130: -- | U130: -- | V130: -- | W130: --
A131: 0 | B131: 0 | C131: 0 | D131: 0 | E131: 0 | F131: -- | G131: -- | H131: =IF(ISNUMBER(VLOOKUP(E131,'Tab 5-7a Soil & Air EPCs'!$D$7:$E$9,2,FALSE)),VLOOKUP(E131,'Tab 5-7a Soil & Air EPCs'!$D$7:$E$9,2,FALSE),"--") -> -- | I131: -- | J131: -- | K131: 0 | L131: -- | M131: -- | N131: -- | O131: -- | P131: =IF(ISNUMBER(VLOOKUP(E131,'Tab 5-7a Soil & Air EPCs'!$D$7:$H$9,5,FALSE)),VLOOKUP(E131,'Tab 5-7a Soil & Air EPCs'!$D$7:$H$9,5,FALSE),"--") -> -- | Q131: -- | R131: -- | S131: =IF(ISNUMBER(VLOOKUP(E131,'Tab 5-7a Soil & Air EPCs'!$D$7:$F$9,3,FALSE)),VLOOKUP(E131,'Tab 5-7a Soil & Air EPCs'!$D$7:$F$9,3,FALSE),"--") -> -- | T131: -- | U131: -- | V131: -- | W131: --
A132: 0 | B132: 0 | C132: 0 | D132: 0 | E132: 0 | F132: -- | G132: -- | H132: =IF(ISNUMBER(VLOOKUP(E132,'Tab 5-7a Soil & Air EPCs'!$D$7:$E$9,2,FALSE)),VLOOKUP(E132,'Tab 5-7a Soil & Air EPCs'!$D$7:$E$9,2,FALSE),"--") -> -- | I132: -- | J132: -- | K132: 0 | L132: -- | M132: -- | N132: -- | O132: -- | P132: =IF(ISNUMBER(VLOOKUP(E132,'Tab 5-7a Soil & Air EPCs'!$D$7:$H$9,5,FALSE)),VLOOKUP(E132,'Tab 5-7a Soil & Air EPCs'!$D$7:$H$9,5,FALSE),"--") -> -- | Q132: -- | R132: -- | S132: =IF(ISNUMBER(VLOOKUP(E132,'Tab 5-7a Soil & Air EPCs'!$D$7:$F$9,3,FALSE)),VLOOKUP(E132,'Tab 5-7a Soil & Air EPCs'!$D$7:$F$9,3,FALSE),"--") -> -- | T132: -- | U132: -- | V132: -- | W132: --
A133: 0 | B133: 0 | C133: 0 | D133: 0 | E133: 0 | F133: -- | G133: -- | H133: =IF(ISNUMBER(VLOOKUP(E133,'Tab 5-7a Soil & Air EPCs'!$D$7:$E$9,2,FALSE)),VLOOKUP(E133,'Tab 5-7a Soil & Air EPCs'!$D$7:$E$9,2,FALSE),"--") -> -- | I133: -- | J133: -- | K133: 0 | L133: -- | M133: -- | N133: -- | O133: -- | P133: =IF(ISNUMBER(VLOOKUP(E133,'Tab 5-7a Soil & Air EPCs'!$D$7:$H$9,5,FALSE)),VLOOKUP(E133,'Tab 5-7a Soil & Air EPCs'!$D$7:$H$9,5,FALSE),"--") -> -- | Q133: -- | R133: -- | S133: =IF(ISNUMBER(VLOOKUP(E133,'Tab 5-7a Soil & Air EPCs'!$D$7:$F$9,3,FALSE)),VLOOKUP(E133,'Tab 5-7a Soil & Air EPCs'!$D$7:$F$9,3,FALSE),"--") -> -- | T133: -- | U133: -- | V133: -- | W133: --
A134: 0 | B134: 0 | C134: 0 | D134: 0 | E134: 0 | F134: -- | G134: -- | H134: =IF(ISNUMBER(VLOOKUP(E134,'Tab 5-7a Soil & Air EPCs'!$D$7:$E$9,2,FALSE)),VLOOKUP(E134,'Tab 5-7a Soil & Air EPCs'!$D$7:$E$9,2,FALSE),"--") -> -- | I134: -- | J134: -- | K134: 0 | L134: -- | M134: -- | N134: -- | O134: -- | P134: =IF(ISNUMBER(VLOOKUP(E134,'Tab 5-7a Soil & Air EPCs'!$D$7:$H$9,5,FALSE)),VLOOKUP(E134,'Tab 5-7a Soil & Air EPCs'!$D$7:$H$9,5,FALSE),"--") -> -- | Q134: -- | R134: -- | S134: =IF(ISNUMBER(VLOOKUP(E134,'Tab 5-7a Soil & Air EPCs'!$D$7:$F$9,3,FALSE)),VLOOKUP(E134,'Tab 5-7a Soil & Air EPCs'!$D$7:$F$9,3,FALSE),"--") -> -- | T134: -- | U134: -- | V134: -- | W134: --
A135: 0 | B135: 0 | C135: 0 | D135: 0 | E135: 0 | F135: -- | G135: -- | H135: =IF(ISNUMBER(VLOOKUP(E135,'Tab 5-7a Soil & Air EPCs'!$D$7:$E$9,2,FALSE)),VLOOKUP(E135,'Tab 5-7a Soil & Air EPCs'!$D$7:$E$9,2,FALSE),"--") -> -- | I135: -- | J135: -- | K135: 0 | L135: -- | M135: -- | N135: -- | O135: -- | P135: =IF(ISNUMBER(VLOOKUP(E135,'Tab 5-7a Soil & Air EPCs'!$D$7:$H$9,5,FALSE)),VLOOKUP(E135,'Tab 5-7a Soil & Air EPCs'!$D$7:$H$9,5,FALSE),"--") -> -- | Q135: -- | R135: -- | S135: =IF(ISNUMBER(VLOOKUP(E135,'Tab 5-7a Soil & Air EPCs'!$D$7:$F$9,3,FALSE)),VLOOKUP(E135,'Tab 5-7a Soil & Air EPCs'!$D$7:$F$9,3,FALSE),"--") -> -- | T135: -- | U135: -- | V135: -- | W135: --
A136: 0 | B136: 0 | C136: 0 | D136: 0 | E136: 0 | F136: -- | G136: -- | H136: =IF(ISNUMBER(VLOOKUP(E136,'Tab 5-7a Soil & Air EPCs'!$D$7:$E$9,2,FALSE)),VLOOKUP(E136,'Tab 5-7a Soil & Air EPCs'!$D$7:$E$9,2,FALSE),"--") -> -- | I136: -- | J136: -- | K136: 0 | L136: -- | M136: -- | N136: -- | O136: -- | P136: =IF(ISNUMBER(VLOOKUP(E136,'Tab 5-7a Soil & Air EPCs'!$D$7:$H$9,5,FALSE)),VLOOKUP(E136,'Tab 5-7a Soil & Air EPCs'!$D$7:$H$9,5,FALSE),"--") -> -- | Q136: -- | R136: -- | S136: =IF(ISNUMBER(VLOOKUP(E136,'Tab 5-7a Soil & Air EPCs'!$D$7:$F$9,3,FALSE)),VLOOKUP(E136,'Tab 5-7a Soil & Air EPCs'!$D$7:$F$9,3,FALSE),"--") -> -- | T136: -- | U136: -- | V136: -- | W136: --
A137: 0 | B137: 0 | C137: 0 | D137: 0 | E137: 0 | F137: -- | G137: -- | H137: =IF(ISNUMBER(VLOOKUP(E137,'Tab 5-7a Soil & Air EPCs'!$D$7:$E$9,2,FALSE)),VLOOKUP(E137,'Tab 5-7a Soil & Air EPCs'!$D$7:$E$9,2,FALSE),"--") -> -- | I137: -- | J137: -- | K137: 0 | L137: -- | M137: -- | N137: -- | O137: -- | P137: =IF(ISNUMBER(VLOOKUP(E137,'Tab 5-7a Soil & Air EPCs'!$D$7:$H$9,5,FALSE)),VLOOKUP(E137,'Tab 5-7a Soil & Air EPCs'!$D$7:$H$9,5,FALSE),"--") -> -- | Q137: -- | R137: -- | S137: =IF(ISNUMBER(VLOOKUP(E137,'Tab 5-7a Soil & Air EPCs'!$D$7:$F$9,3,FALSE)),VLOOKUP(E137,'Tab 5-7a Soil & Air EPCs'!$D$7:$F$9,3,FALSE),"--") -> -- | T137: -- | U137: -- | V137: -- | W137: --
A138: 0 | B138: 0 | C138: 0 | D138: 0 | E138: 0 | F138: -- | G138: -- | H138: =IF(ISNUMBER(VLOOKUP(E138,'Tab 5-7a Soil & Air EPCs'!$D$7:$E$9,2,FALSE)),VLOOKUP(E138,'Tab 5-7a Soil & Air EPCs'!$D$7:$E$9,2,FALSE),"--") -> -- | I138: -- | J138: -- | K138: 0 | L138: -- | M138: -- | N138: -- | O138: -- | P138: =IF(ISNUMBER(VLOOKUP(E138,'Tab 5-7a Soil & Air EPCs'!$D$7:$H$9,5,FALSE)),VLOOKUP(E138,'Tab 5-7a Soil & Air EPCs'!$D$7:$H$9,5,FALSE),"--") -> -- | Q138: -- | R138: -- | S138: =IF(ISNUMBER(VLOOKUP(E138,'Tab 5-7a Soil & Air EPCs'!$D$7:$F$9,3,FALSE)),VLOOKUP(E138,'Tab 5-7a Soil & Air EPCs'!$D$7:$F$9,3,FALSE),"--") -> -- | T138: -- | U138: -- | V138: -- | W138: --
A139: 0 | B139: 0 | C139: 0 | D139: 0 | E139: 0 | F139: -- | G139: -- | H139: =IF(ISNUMBER(VLOOKUP(E139,'Tab 5-7a Soil & Air EPCs'!$D$7:$E$9,2,FALSE)),VLOOKUP(E139,'Tab 5-7a Soil & Air EPCs'!$D$7:$E$9,2,FALSE),"--") -> -- | I139: -- | J139: -- | K139: 0 | L139: -- | M139: -- | N139: -- | O139: -- | P139: =IF(ISNUMBER(VLOOKUP(E139,'Tab 5-7a Soil & Air EPCs'!$D$7:$H$9,5,FALSE)),VLOOKUP(E139,'Tab 5-7a Soil & Air EPCs'!$D$7:$H$9,5,FALSE),"--") -> -- | Q139: -- | R139: -- | S139: =IF(ISNUMBER(VLOOKUP(E139,'Tab 5-7a Soil & Air EPCs'!$D$7:$F$9,3,FALSE)),VLOOKUP(E139,'Tab 5-7a Soil & Air EPCs'!$D$7:$F$9,3,FALSE),"--") -> -- | T139: -- | U139: -- | V139: -- | W139: --
A140: 0 | B140: 0 | C140: 0 | D140: 0 | E140: 0 | F140: -- | G140: -- | H140: =IF(ISNUMBER(VLOOKUP(E140,'Tab 5-7a Soil & Air EPCs'!$D$7:$E$9,2,FALSE)),VLOOKUP(E140,'Tab 5-7a Soil & Air EPCs'!$D$7:$E$9,2,FALSE),"--") -> -- | I140: -- | J140: -- | K140: 0 | L140: -- | M140: -- | N140: -- | O140: -- | P140: =IF(ISNUMBER(VLOOKUP(E140,'Tab 5-7a Soil & Air EPCs'!$D$7:$H$9,5,FALSE)),VLOOKUP(E140,'Tab 5-7a Soil & Air EPCs'!$D$7:$H$9,5,FALSE),"--") -> -- | Q140: -- | R140: -- | S140: =IF(ISNUMBER(VLOOKUP(E140,'Tab 5-7a Soil & Air EPCs'!$D$7:$F$9,3,FALSE)),VLOOKUP(E140,'Tab 5-7a Soil & Air EPCs'!$D$7:$F$9,3,FALSE),"--") -> -- | T140: -- | U140: -- | V140: =IF(SUM(I140,L140,Q140,T140)>0,SUM(I140,L140,Q140,T140),"--") -> -- | W140: =IF(SUM(J140,M140,R140,U140)>0,SUM(J140,M140,R140,U140),"--") -> --
A141: 0 | B141: 0 | C141: 0 | D141: 0 | E141: 0 | F141: -- | G141: -- | H141: =IF(ISNUMBER(VLOOKUP(E141,'Tab 5-7a Soil & Air EPCs'!$D$7:$E$9,2,FALSE)),VLOOKUP(E141,'Tab 5-7a Soil & Air EPCs'!$D$7:$E$9,2,FALSE),"--") -> -- | I141: -- | J141: -- | K141: 0 | L141: -- | M141: -- | N141: -- | O141: -- | P141: =IF(ISNUMBER(VLOOKUP(E141,'Tab 5-7a Soil & Air EPCs'!$D$7:$H$9,5,FALSE)),VLOOKUP(E141,'Tab 5-7a Soil & Air EPCs'!$D$7:$H$9,5,FALSE),"--") -> -- | Q141: -- | R141: -- | S141: =IF(ISNUMBER(VLOOKUP(E141,'Tab 5-7a Soil & Air EPCs'!$D$7:$F$9,3,FALSE)),VLOOKUP(E141,'Tab 5-7a Soil & Air EPCs'!$D$7:$F$9,3,FALSE),"--") -> -- | T141: -- | U141: -- | V141: -- | W141: --
A142: 0 | B142: 0 | C142: 0 | D142: 0 | E142: 0 | F142: -- | G142: -- | H142: =IF(ISNUMBER(VLOOKUP(E142,'Tab 5-7a Soil & Air EPCs'!$D$7:$E$9,2,FALSE)),VLOOKUP(E142,'Tab 5-7a Soil & Air EPCs'!$D$7:$E$9,2,FALSE),"--") -> -- | I142: -- | J142: -- | K142: 0 | L142: -- | M142: -- | N142: -- | O142: -- | P142: =IF(ISNUMBER(VLOOKUP(E142,'Tab 5-7a Soil & Air EPCs'!$D$7:$H$9,5,FALSE)),VLOOKUP(E142,'Tab 5-7a Soil & Air EPCs'!$D$7:$H$9,5,FALSE),"--") -> -- | Q142: -- | R142: -- | S142: =IF(ISNUMBER(VLOOKUP(E142,'Tab 5-7a Soil & Air EPCs'!$D$7:$F$9,3,FALSE)),VLOOKUP(E142,'Tab 5-7a Soil & Air EPCs'!$D$7:$F$9,3,FALSE),"--") -> -- | T142: -- | U142: -- | V142: -- | W142: --
A143: 0 | B143: 0 | C143: 0 | D143: 0 | E143: 0 | F143: -- | G143: -- | H143: =IF(ISNUMBER(VLOOKUP(E143,'Tab 5-7a Soil & Air EPCs'!$D$7:$E$9,2,FALSE)),VLOOKUP(E143,'Tab 5-7a Soil & Air EPCs'!$D$7:$E$9,2,FALSE),"--") -> -- | I143: -- | J143: -- | K143: 0 | L143: -- | M143: -- | N143: -- | O143: -- | P143: =IF(ISNUMBER(VLOOKUP(E143,'Tab 5-7a Soil & Air EPCs'!$D$7:$H$9,5,FALSE)),VLOOKUP(E143,'Tab 5-7a Soil & Air EPCs'!$D$7:$H$9,5,FALSE),"--") -> -- | Q143: -- | R143: -- | S143: =IF(ISNUMBER(VLOOKUP(E143,'Tab 5-7a Soil & Air EPCs'!$D$7:$F$9,3,FALSE)),VLOOKUP(E143,'Tab 5-7a Soil & Air EPCs'!$D$7:$F$9,3,FALSE),"--") -> -- | T143: -- | U143: -- | V143: -- | W143: --
A144: 0 | B144: 0 | C144: 0 | D144: 0 | E144: 0 | F144: -- | G144: -- | H144: =IF(ISNUMBER(VLOOKUP(E144,'Tab 5-7a Soil & Air EPCs'!$D$7:$E$9,2,FALSE)),VLOOKUP(E144,'Tab 5-7a Soil & Air EPCs'!$D$7:$E$9,2,FALSE),"--") -> -- | I144: -- | J144: -- | K144: 0 | L144: -- | M144: -- | N144: -- | O144: -- | P144: =IF(ISNUMBER(VLOOKUP(E144,'Tab 5-7a Soil & Air EPCs'!$D$7:$H$9,5,FALSE)),VLOOKUP(E144,'Tab 5-7a Soil & Air EPCs'!$D$7:$H$9,5,FALSE),"--") -> -- | Q144: -- | R144: -- | S144: =IF(ISNUMBER(VLOOKUP(E144,'Tab 5-7a Soil & Air EPCs'!$D$7:$F$9,3,FALSE)),VLOOKUP(E144,'Tab 5-7a Soil & Air EPCs'!$D$7:$F$9,3,FALSE),"--") -> -- | T144: -- | U144: -- | V144: -- | W144: --
A145: 0 | B145: 0 | C145: 0 | D145: 0 | E145: 0 | F145: -- | G145: -- | H145: =IF(ISNUMBER(VLOOKUP(E145,'Tab 5-7a Soil & Air EPCs'!$D$7:$E$9,2,FALSE)),VLOOKUP(E145,'Tab 5-7a Soil & Air EPCs'!$D$7:$E$9,2,FALSE),"--") -> -- | I145: -- | J145: -- | K145: 0 | L145: -- | M145: -- | N145: -- | O145: -- | P145: =IF(ISNUMBER(VLOOKUP(E145,'Tab 5-7a Soil & Air EPCs'!$D$7:$H$9,5,FALSE)),VLOOKUP(E145,'Tab 5-7a Soil & Air EPCs'!$D$7:$H$9,5,FALSE),"--") -> -- | Q145: -- | R145: -- | S145: =IF(ISNUMBER(VLOOKUP(E145,'Tab 5-7a Soil & Air EPCs'!$D$7:$F$9,3,FALSE)),VLOOKUP(E145,'Tab 5-7a Soil & Air EPCs'!$D$7:$F$9,3,FALSE),"--") -> -- | T145: -- | U145: -- | V145: -- | W145: --
A146: 0 | B146: 0 | C146: 0 | D146: 0 | E146: 0 | F146: -- | G146: -- | H146: =IF(ISNUMBER(VLOOKUP(E146,'Tab 5-7a Soil & Air EPCs'!$D$7:$E$9,2,FALSE)),VLOOKUP(E146,'Tab 5-7a Soil & Air EPCs'!$D$7:$E$9,2,FALSE),"--") -> -- | I146: -- | J146: -- | K146: 0 | L146: -- | M146: -- | N146: -- | O146: -- | P146: =IF(ISNUMBER(VLOOKUP(E146,'Tab 5-7a Soil & Air EPCs'!$D$7:$H$9,5,FALSE)),VLOOKUP(E146,'Tab 5-7a Soil & Air EPCs'!$D$7:$H$9,5,FALSE),"--") -> -- | Q146: -- | R146: -- | S146: =IF(ISNUMBER(VLOOKUP(E146,'Tab 5-7a Soil & Air EPCs'!$D$7:$F$9,3,FALSE)),VLOOKUP(E146,'Tab 5-7a Soil & Air EPCs'!$D$7:$F$9,3,FALSE),"--") -> -- | T146: -- | U146: -- | V146: -- | W146: --
A147: 0 | B147: 0 | C147: 0 | D147: 0 | E147: 0 | F147: -- | G147: -- | H147: =IF(ISNUMBER(VLOOKUP(E147,'Tab 5-7a Soil & Air EPCs'!$D$7:$E$9,2,FALSE)),VLOOKUP(E147,'Tab 5-7a Soil & Air EPCs'!$D$7:$E$9,2,FALSE),"--") -> -- | I147: -- | J147: -- | K147: 0 | L147: -- | M147: -- | N147: -- | O147: -- | P147: =IF(ISNUMBER(VLOOKUP(E147,'Tab 5-7a Soil & Air EPCs'!$D$7:$H$9,5,FALSE)),VLOOKUP(E147,'Tab 5-7a Soil & Air EPCs'!$D$7:$H$9,5,FALSE),"--") -> -- | Q147: -- | R147: -- | S147: =IF(ISNUMBER(VLOOKUP(E147,'Tab 5-7a Soil & Air EPCs'!$D$7:$F$9,3,FALSE)),VLOOKUP(E147,'Tab 5-7a Soil & Air EPCs'!$D$7:$F$9,3,FALSE),"--") -> -- | T147: -- | U147: -- | V147: -- | W147: --
A148: 0 | B148: 0 | C148: 0 | D148: 0 | E148: 0 | F148: -- | G148: -- | H148: =IF(ISNUMBER(VLOOKUP(E148,'Tab 5-7a Soil & Air EPCs'!$D$7:$E$9,2,FALSE)),VLOOKUP(E148,'Tab 5-7a Soil & Air EPCs'!$D$7:$E$9,2,FALSE),"--") -> -- | I148: -- | J148: -- | K148: 0 | L148: -- | M148: -- | N148: -- | O148: -- | P148: =IF(ISNUMBER(VLOOKUP(E148,'Tab 5-7a Soil & Air EPCs'!$D$7:$H$9,5,FALSE)),VLOOKUP(E148,'Tab 5-7a Soil & Air EPCs'!$D$7:$H$9,5,FALSE),"--") -> -- | Q148: -- | R148: -- | S148: =IF(ISNUMBER(VLOOKUP(E148,'Tab 5-7a Soil & Air EPCs'!$D$7:$F$9,3,FALSE)),VLOOKUP(E148,'Tab 5-7a Soil & Air EPCs'!$D$7:$F$9,3,FALSE),"--") -> -- | T148: -- | U148: -- | V148: -- | W148: --
A149: 0 | B149: 0 | C149: 0 | D149: 0 | E149: 0 | F149: -- | G149: -- | H149: =IF(ISNUMBER(VLOOKUP(E149,'Tab 5-7a Soil & Air EPCs'!$D$7:$E$9,2,FALSE)),VLOOKUP(E149,'Tab 5-7a Soil & Air EPCs'!$D$7:$E$9,2,FALSE),"--") -> -- | I149: -- | J149: -- | K149: 0 | L149: -- | M149: -- | N149: -- | O149: -- | P149: =IF(ISNUMBER(VLOOKUP(E149,'Tab 5-7a Soil & Air EPCs'!$D$7:$H$9,5,FALSE)),VLOOKUP(E149,'Tab 5-7a Soil & Air EPCs'!$D$7:$H$9,5,FALSE),"--") -> -- | Q149: -- | R149: -- | S149: =IF(ISNUMBER(VLOOKUP(E149,'Tab 5-7a Soil & Air EPCs'!$D$7:$F$9,3,FALSE)),VLOOKUP(E149,'Tab 5-7a Soil & Air EPCs'!$D$7:$F$9,3,FALSE),"--") -> -- | T149: -- | U149: -- | V149: -- | W149: --
A150: 0 | B150: 0 | C150: 0 | D150: 0 | E150: 0 | F150: -- | G150: -- | H150: =IF(ISNUMBER(VLOOKUP(E150,'Tab 5-7a Soil & Air EPCs'!$D$7:$E$9,2,FALSE)),VLOOKUP(E150,'Tab 5-7a Soil & Air EPCs'!$D$7:$E$9,2,FALSE),"--") -> -- | I150: -- | J150: -- | K150: 0 | L150: -- | M150: -- | N150: -- | O150: -- | P150: =IF(ISNUMBER(VLOOKUP(E150,'Tab 5-7a Soil & Air EPCs'!$D$7:$H$9,5,FALSE)),VLOOKUP(E150,'Tab 5-7a Soil & Air EPCs'!$D$7:$H$9,5,FALSE),"--") -> -- | Q150: -- | R150: -- | S150: =IF(ISNUMBER(VLOOKUP(E150,'Tab 5-7a Soil & Air EPCs'!$D$7:$F$9,3,FALSE)),VLOOKUP(E150,'Tab 5-7a Soil & Air EPCs'!$D$7:$F$9,3,FALSE),"--") -> -- | T150: -- | U150: -- | V150: -- | W150: --
A151: 0 | B151: 0 | C151: 0 | D151: 0 | E151: 0 | F151: -- | G151: -- | H151: =IF(ISNUMBER(VLOOKUP(E151,'Tab 5-7a Soil & Air EPCs'!$D$7:$E$9,2,FALSE)),VLOOKUP(E151,'Tab 5-7a Soil & Air EPCs'!$D$7:$E$9,2,FALSE),"--") -> -- | I151: -- | J151: -- | K151: 0 | L151: -- | M151: -- | N151: -- | O151: -- | P151: =IF(ISNUMBER(VLOOKUP(E151,'Tab 5-7a Soil & Air EPCs'!$D$7:$H$9,5,FALSE)),VLOOKUP(E151,'Tab 5-7a Soil & Air EPCs'!$D$7:$H$9,5,FALSE),"--") -> -- | Q151: -- | R151: -- | S151: =IF(ISNUMBER(VLOOKUP(E151,'Tab 5-7a Soil & Air EPCs'!$D$7:$F$9,3,FALSE)),VLOOKUP(E151,'Tab 5-7a Soil & Air EPCs'!$D$7:$F$9,3,FALSE),"--") -> -- | T151: -- | U151: -- | V151: -- | W151: --
A152: 0 | B152: 0 | C152: 0 | D152: 0 | E152: 0 | F152: -- | G152: -- | H152: =IF(ISNUMBER(VLOOKUP(E152,'Tab 5-7a Soil & Air EPCs'!$D$7:$E$9,2,FALSE)),VLOOKUP(E152,'Tab 5-7a Soil & Air EPCs'!$D$7:$E$9,2,FALSE),"--") -> -- | I152: -- | J152: -- | K152: 0 | L152: -- | M152: -- | N152: -- | O152: -- | P152: =IF(ISNUMBER(VLOOKUP(E152,'Tab 5-7a Soil & Air EPCs'!$D$7:$H$9,5,FALSE)),VLOOKUP(E152,'Tab 5-7a Soil & Air EPCs'!$D$7:$H$9,5,FALSE),"--") -> -- | Q152: -- | R152: -- | S152: =IF(ISNUMBER(VLOOKUP(E152,'Tab 5-7a Soil & Air EPCs'!$D$7:$F$9,3,FALSE)),VLOOKUP(E152,'Tab 5-7a Soil & Air EPCs'!$D$7:$F$9,3,FALSE),"--") -> -- | T152: -- | U152: -- | V152: -- | W152: --
A153: 0 | B153: 0 | C153: 0 | D153: 0 | E153: 0 | F153: -- | G153: -- | H153: =IF(ISNUMBER(VLOOKUP(E153,'Tab 5-7a Soil & Air EPCs'!$D$7:$E$9,2,FALSE)),VLOOKUP(E153,'Tab 5-7a Soil & Air EPCs'!$D$7:$E$9,2,FALSE),"--") -> -- | I153: -- | J153: -- | K153: 0 | L153: -- | M153: -- | N153: -- | O153: -- | P153: =IF(ISNUMBER(VLOOKUP(E153,'Tab 5-7a Soil & Air EPCs'!$D$7:$H$9,5,FALSE)),VLOOKUP(E153,'Tab 5-7a Soil & Air EPCs'!$D$7:$H$9,5,FALSE),"--") -> -- | Q153: -- | R153: -- | S153: =IF(ISNUMBER(VLOOKUP(E153,'Tab 5-7a Soil & Air EPCs'!$D$7:$F$9,3,FALSE)),VLOOKUP(E153,'Tab 5-7a Soil & Air EPCs'!$D$7:$F$9,3,FALSE),"--") -> -- | T153: -- | U153: -- | V153: -- | W153: --
A154: 0 | B154: 0 | C154: 0 | D154: 0 | E154: 0 | F154: -- | G154: -- | H154: =IF(ISNUMBER(VLOOKUP(E154,'Tab 5-7a Soil & Air EPCs'!$D$7:$E$9,2,FALSE)),VLOOKUP(E154,'Tab 5-7a Soil & Air EPCs'!$D$7:$E$9,2,FALSE),"--") -> -- | I154: -- | J154: -- | K154: 0 | L154: -- | M154: -- | N154: -- | O154: -- | P154: =IF(ISNUMBER(VLOOKUP(E154,'Tab 5-7a Soil & Air EPCs'!$D$7:$H$9,5,FALSE)),VLOOKUP(E154,'Tab 5-7a Soil & Air EPCs'!$D$7:$H$9,5,FALSE),"--") -> -- | Q154: -- | R154: -- | S154: =IF(ISNUMBER(VLOOKUP(E154,'Tab 5-7a Soil & Air EPCs'!$D$7:$F$9,3,FALSE)),VLOOKUP(E154,'Tab 5-7a Soil & Air EPCs'!$D$7:$F$9,3,FALSE),"--") -> -- | T154: -- | U154: -- | V154: -- | W154: --
A155: 0 | B155: 0 | C155: 0 | D155: 0 | E155: 0 | F155: -- | G155: -- | H155: =IF(ISNUMBER(VLOOKUP(E155,'Tab 5-7a Soil & Air EPCs'!$D$7:$E$9,2,FALSE)),VLOOKUP(E155,'Tab 5-7a Soil & Air EPCs'!$D$7:$E$9,2,FALSE),"--") -> -- | I155: -- | J155: -- | K155: 0 | L155: -- | M155: -- | N155: -- | O155: -- | P155: =IF(ISNUMBER(VLOOKUP(E155,'Tab 5-7a Soil & Air EPCs'!$D$7:$H$9,5,FALSE)),VLOOKUP(E155,'Tab 5-7a Soil & Air EPCs'!$D$7:$H$9,5,FALSE),"--") -> -- | Q155: -- | R155: -- | S155: =IF(ISNUMBER(VLOOKUP(E155,'Tab 5-7a Soil & Air EPCs'!$D$7:$F$9,3,FALSE)),VLOOKUP(E155,'Tab 5-7a Soil & Air EPCs'!$D$7:$F$9,3,FALSE),"--") -> -- | T155: -- | U155: -- | V155: -- | W155: --
A156: 0 | B156: 0 | C156: 0 | D156: 0 | E156: 0 | F156: -- | G156: -- | H156: =IF(ISNUMBER(VLOOKUP(E156,'Tab 5-7a Soil & Air EPCs'!$D$7:$E$9,2,FALSE)),VLOOKUP(E156,'Tab 5-7a Soil & Air EPCs'!$D$7:$E$9,2,FALSE),"--") -> -- | I156: -- | J156: -- | K156: 0 | L156: -- | M156: -- | N156: -- | O156: -- | P156: =IF(ISNUMBER(VLOOKUP(E156,'Tab 5-7a Soil & Air EPCs'!$D$7:$H$9,5,FALSE)),VLOOKUP(E156,'Tab 5-7a Soil & Air EPCs'!$D$7:$H$9,5,FALSE),"--") -> -- | Q156: -- | R156: -- | S156: =IF(ISNUMBER(VLOOKUP(E156,'Tab 5-7a Soil & Air EPCs'!$D$7:$F$9,3,FALSE)),VLOOKUP(E156,'Tab 5-7a Soil & Air EPCs'!$D$7:$F$9,3,FALSE),"--") -> -- | T156: -- | U156: -- | V156: -- | W156: --
A157: 0 | B157: 0 | C157: 0 | D157: 0 | E157: 0 | F157: -- | G157: -- | H157: =IF(ISNUMBER(VLOOKUP(E157,'Tab 5-7a Soil & Air EPCs'!$D$7:$E$9,2,FALSE)),VLOOKUP(E157,'Tab 5-7a Soil & Air EPCs'!$D$7:$E$9,2,FALSE),"--") -> -- | I157: -- | J157: -- | K157: 0 | L157: -- | M157: -- | N157: -- | O157: -- | P157: =IF(ISNUMBER(VLOOKUP(E157,'Tab 5-7a Soil & Air EPCs'!$D$7:$H$9,5,FALSE)),VLOOKUP(E157,'Tab 5-7a Soil & Air EPCs'!$D$7:$H$9,5,FALSE),"--") -> -- | Q157: -- | R157: -- | S157: =IF(ISNUMBER(VLOOKUP(E157,'Tab 5-7a Soil & Air EPCs'!$D$7:$F$9,3,FALSE)),VLOOKUP(E157,'Tab 5-7a Soil & Air EPCs'!$D$7:$F$9,3,FALSE),"--") -> -- | T157: -- | U157: -- | V157: -- | W157: --
A158: 0 | B158: 0 | C158: 0 | D158: 0 | E158: 0 | F158: -- | G158: -- | H158: =IF(ISNUMBER(VLOOKUP(E158,'Tab 5-7a Soil & Air EPCs'!$D$7:$E$9,2,FALSE)),VLOOKUP(E158,'Tab 5-7a Soil & Air EPCs'!$D$7:$E$9,2,FALSE),"--") -> -- | I158: -- | J158: -- | K158: 0 | L158: -- | M158: -- | N158: -- | O158: -- | P158: =IF(ISNUMBER(VLOOKUP(E158,'Tab 5-7a Soil & Air EPCs'!$D$7:$H$9,5,FALSE)),VLOOKUP(E158,'Tab 5-7a Soil & Air EPCs'!$D$7:$H$9,5,FALSE),"--") -> -- | Q158: -- | R158: -- | S158: =IF(ISNUMBER(VLOOKUP(E158,'Tab 5-7a Soil & Air EPCs'!$D$7:$F$9,3,FALSE)),VLOOKUP(E158,'Tab 5-7a Soil & Air EPCs'!$D$7:$F$9,3,FALSE),"--") -> -- | T158: -- | U158: -- | V158: -- | W158: --
A159: 0 | B159: 0 | C159: 0 | D159: 0 | E159: 0 | F159: -- | G159: -- | H159: =IF(ISNUMBER(VLOOKUP(E159,'Tab 5-7a Soil & Air EPCs'!$D$7:$E$9,2,FALSE)),VLOOKUP(E159,'Tab 5-7a Soil & Air EPCs'!$D$7:$E$9,2,FALSE),"--") -> -- | I159: -- | J159: -- | K159: -- | L159: -- | M159: -- | N159: -- | O159: -- | P159: =IF(ISNUMBER(VLOOKUP(E159,'Tab 5-7a Soil & Air EPCs'!$D$7:$H$9,5,FALSE)),VLOOKUP(E159,'Tab 5-7a Soil & Air EPCs'!$D$7:$H$9,5,FALSE),"--") -> -- | Q159: -- | R159: -- | S159: =IF(ISNUMBER(VLOOKUP(E159,'Tab 5-7a Soil & Air EPCs'!$D$7:$F$9,3,FALSE)),VLOOKUP(E159,'Tab 5-7a Soil & Air EPCs'!$D$7:$F$9,3,FALSE),"--") -> -- | T159: -- | U159: -- | V159: -- | W159: --
A160: 0 | B160: 0 | C160: 0 | D160: 0 | E160: 0 | F160: -- | G160: -- | H160: =IF(ISNUMBER(VLOOKUP(E160,'Tab 5-7a Soil & Air EPCs'!$D$7:$E$9,2,FALSE)),VLOOKUP(E160,'Tab 5-7a Soil & Air EPCs'!$D$7:$E$9,2,FALSE),"--") -> -- | I160: -- | J160: -- | K160: -- | L160: -- | M160: -- | N160: -- | O160: -- | P160: =IF(ISNUMBER(VLOOKUP(E160,'Tab 5-7a Soil & Air EPCs'!$D$7:$H$9,5,FALSE)),VLOOKUP(E160,'Tab 5-7a Soil & Air EPCs'!$D$7:$H$9,5,FALSE),"--") -> -- | Q160: -- | R160: -- | S160: =IF(ISNUMBER(VLOOKUP(E160,'Tab 5-7a Soil & Air EPCs'!$D$7:$F$9,3,FALSE)),VLOOKUP(E160,'Tab 5-7a Soil & Air EPCs'!$D$7:$F$9,3,FALSE),"--") -> -- | T160: -- | U160: -- | V160: -- | W160: --
A161: 0 | B161: 0 | C161: 0 | D161: 0 | E161: 0 | F161: -- | G161: -- | H161: =IF(ISNUMBER(VLOOKUP(E161,'Tab 5-7a Soil & Air EPCs'!$D$7:$E$9,2,FALSE)),VLOOKUP(E161,'Tab 5-7a Soil & Air EPCs'!$D$7:$E$9,2,FALSE),"--") -> -- | I161: -- | J161: -- | K161: -- | L161: -- | M161: -- | N161: -- | O161: -- | P161: =IF(ISNUMBER(VLOOKUP(E161,'Tab 5-7a Soil & Air EPCs'!$D$7:$H$9,5,FALSE)),VLOOKUP(E161,'Tab 5-7a Soil & Air EPCs'!$D$7:$H$9,5,FALSE),"--") -> -- | Q161: -- | R161: -- | S161: =IF(ISNUMBER(VLOOKUP(E161,'Tab 5-7a Soil & Air EPCs'!$D$7:$F$9,3,FALSE)),VLOOKUP(E161,'Tab 5-7a Soil & Air EPCs'!$D$7:$F$9,3,FALSE),"--") -> -- | T161: -- | U161: -- | V161: -- | W161: --
A162: 0 | B162: 0 | C162: 0 | D162: 0 | E162: 0 | F162: -- | G162: -- | H162: =IF(ISNUMBER(VLOOKUP(E162,'Tab 5-7a Soil & Air EPCs'!$D$7:$E$9,2,FALSE)),VLOOKUP(E162,'Tab 5-7a Soil & Air EPCs'!$D$7:$E$9,2,FALSE),"--") -> -- | I162: -- | J162: -- | K162: -- | L162: -- | M162: -- | N162: -- | O162: -- | P162: =IF(ISNUMBER(VLOOKUP(E162,'Tab 5-7a Soil & Air EPCs'!$D$7:$H$9,5,FALSE)),VLOOKUP(E162,'Tab 5-7a Soil & Air EPCs'!$D$7:$H$9,5,FALSE),"--") -> -- | Q162: -- | R162: -- | S162: =IF(ISNUMBER(VLOOKUP(E162,'Tab 5-7a Soil & Air EPCs'!$D$7:$F$9,3,FALSE)),VLOOKUP(E162,'Tab 5-7a Soil & Air EPCs'!$D$7:$F$9,3,FALSE),"--") -> -- | T162: -- | U162: -- | V162: -- | W162: --
A163: 0 | B163: 0 | C163: 0 | D163: 0 | E163: 0 | F163: -- | G163: -- | H163: =IF(ISNUMBER(VLOOKUP(E163,'Tab 5-7a Soil & Air EPCs'!$D$7:$E$9,2,FALSE)),VLOOKUP(E163,'Tab 5-7a Soil & Air EPCs'!$D$7:$E$9,2,FALSE),"--") -> -- | I163: -- | J163: -- | K163: -- | L163: -- | M163: -- | N163: -- | O163: -- | P163: =IF(ISNUMBER(VLOOKUP(E163,'Tab 5-7a Soil & Air EPCs'!$D$7:$H$9,5,FALSE)),VLOOKUP(E163,'Tab 5-7a Soil & Air EPCs'!$D$7:$H$9,5,FALSE),"--") -> -- | Q163: -- | R163: -- | S163: =IF(ISNUMBER(VLOOKUP(E163,'Tab 5-7a Soil & Air EPCs'!$D$7:$F$9,3,FALSE)),VLOOKUP(E163,'Tab 5-7a Soil & Air EPCs'!$D$7:$F$9,3,FALSE),"--") -> -- | T163: -- | U163: -- | V163: -- | W163: --
A164: 0 | B164: 0 | C164: 0 | D164: 0 | E164: 0 | F164: -- | G164: -- | H164: =IF(ISNUMBER(VLOOKUP(E164,'Tab 5-7a Soil & Air EPCs'!$D$7:$E$9,2,FALSE)),VLOOKUP(E164,'Tab 5-7a Soil & Air EPCs'!$D$7:$E$9,2,FALSE),"--") -> -- | I164: -- | J164: -- | K164: -- | L164: -- | M164: -- | N164: -- | O164: -- | P164: =IF(ISNUMBER(VLOOKUP(E164,'Tab 5-7a Soil & Air EPCs'!$D$7:$H$9,5,FALSE)),VLOOKUP(E164,'Tab 5-7a Soil & Air EPCs'!$D$7:$H$9,5,FALSE),"--") -> -- | Q164: -- | R164: -- | S164: =IF(ISNUMBER(VLOOKUP(E164,'Tab 5-7a Soil & Air EPCs'!$D$7:$F$9,3,FALSE)),VLOOKUP(E164,'Tab 5-7a Soil & Air EPCs'!$D$7:$F$9,3,FALSE),"--") -> -- | T164: -- | U164: -- | V164: -- | W164: --
A165: 0 | B165: 0 | C165: 0 | D165: 0 | E165: 0 | F165: -- | G165: -- | H165: =IF(ISNUMBER(VLOOKUP(E165,'Tab 5-7a Soil & Air EPCs'!$D$7:$E$9,2,FALSE)),VLOOKUP(E165,'Tab 5-7a Soil & Air EPCs'!$D$7:$E$9,2,FALSE),"--") -> -- | I165: -- | J165: -- | K165: -- | L165: -- | M165: -- | N165: -- | O165: -- | P165: =IF(ISNUMBER(VLOOKUP(E165,'Tab 5-7a Soil & Air EPCs'!$D$7:$H$9,5,FALSE)),VLOOKUP(E165,'Tab 5-7a Soil & Air EPCs'!$D$7:$H$9,5,FALSE),"--") -> -- | Q165: -- | R165: -- | S165: =IF(ISNUMBER(VLOOKUP(E165,'Tab 5-7a Soil & Air EPCs'!$D$7:$F$9,3,FALSE)),VLOOKUP(E165,'Tab 5-7a Soil & Air EPCs'!$D$7:$F$9,3,FALSE),"--") -> -- | T165: -- | U165: -- | V165: -- | W165: --
A166: 0 | B166: 0 | C166: 0 | D166: 0 | E166: 0 | F166: -- | G166: -- | H166: =IF(ISNUMBER(VLOOKUP(E166,'Tab 5-7a Soil & Air EPCs'!$D$7:$E$9,2,FALSE)),VLOOKUP(E166,'Tab 5-7a Soil & Air EPCs'!$D$7:$E$9,2,FALSE),"--") -> -- | I166: -- | J166: -- | K166: -- | L166: -- | M166: -- | N166: -- | O166: -- | P166: =IF(ISNUMBER(VLOOKUP(E166,'Tab 5-7a Soil & Air EPCs'!$D$7:$H$9,5,FALSE)),VLOOKUP(E166,'Tab 5-7a Soil & Air EPCs'!$D$7:$H$9,5,FALSE),"--") -> -- | Q166: -- | R166: -- | S166: =IF(ISNUMBER(VLOOKUP(E166,'Tab 5-7a Soil & Air EPCs'!$D$7:$F$9,3,FALSE)),VLOOKUP(E166,'Tab 5-7a Soil & Air EPCs'!$D$7:$F$9,3,FALSE),"--") -> -- | T166: -- | U166: -- | V166: -- | W166: --
A167: 0 | B167: 0 | C167: 0 | D167: 0 | E167: 0 | F167: -- | G167: -- | H167: =IF(ISNUMBER(VLOOKUP(E167,'Tab 5-7a Soil & Air EPCs'!$D$7:$E$9,2,FALSE)),VLOOKUP(E167,'Tab 5-7a Soil & Air EPCs'!$D$7:$E$9,2,FALSE),"--") -> -- | I167: -- | J167: -- | K167: -- | L167: -- | M167: -- | N167: -- | O167: -- | P167: =IF(ISNUMBER(VLOOKUP(E167,'Tab 5-7a Soil & Air EPCs'!$D$7:$H$9,5,FALSE)),VLOOKUP(E167,'Tab 5-7a Soil & Air EPCs'!$D$7:$H$9,5,FALSE),"--") -> -- | Q167: -- | R167: -- | S167: =IF(ISNUMBER(VLOOKUP(E167,'Tab 5-7a Soil & Air EPCs'!$D$7:$F$9,3,FALSE)),VLOOKUP(E167,'Tab 5-7a Soil & Air EPCs'!$D$7:$F$9,3,FALSE),"--") -> -- | T167: -- | U167: -- | V167: -- | W167: --
A168: 0 | B168: 0 | C168: 0 | D168: 0 | E168: 0 | F168: -- | G168: -- | H168: =IF(ISNUMBER(VLOOKUP(E168,'Tab 5-7a Soil & Air EPCs'!$D$7:$E$9,2,FALSE)),VLOOKUP(E168,'Tab 5-7a Soil & Air EPCs'!$D$7:$E$9,2,FALSE),"--") -> -- | I168: -- | J168: -- | K168: -- | L168: -- | M168: -- | N168: -- | O168: -- | P168: =IF(ISNUMBER(VLOOKUP(E168,'Tab 5-7a Soil & Air EPCs'!$D$7:$H$9,5,FALSE)),VLOOKUP(E168,'Tab 5-7a Soil & Air EPCs'!$D$7:$H$9,5,FALSE),"--") -> -- | Q168: -- | R168: -- | S168: =IF(ISNUMBER(VLOOKUP(E168,'Tab 5-7a Soil & Air EPCs'!$D$7:$F$9,3,FALSE)),VLOOKUP(E168,'Tab 5-7a Soil & Air EPCs'!$D$7:$F$9,3,FALSE),"--") -> -- | T168: -- | U168: -- | V168: -- | W168: --
A169: 0 | B169: 0 | C169: 0 | D169: 0 | E169: 0 | F169: -- | G169: -- | H169: =IF(ISNUMBER(VLOOKUP(E169,'Tab 5-7a Soil & Air EPCs'!$D$7:$E$9,2,FALSE)),VLOOKUP(E169,'Tab 5-7a Soil & Air EPCs'!$D$7:$E$9,2,FALSE),"--") -> -- | I169: -- | J169: -- | K169: -- | L169: -- | M169: -- | N169: -- | O169: -- | P169: =IF(ISNUMBER(VLOOKUP(E169,'Tab 5-7a Soil & Air EPCs'!$D$7:$H$9,5,FALSE)),VLOOKUP(E169,'Tab 5-7a Soil & Air EPCs'!$D$7:$H$9,5,FALSE),"--") -> -- | Q169: -- | R169: -- | S169: =IF(ISNUMBER(VLOOKUP(E169,'Tab 5-7a Soil & Air EPCs'!$D$7:$F$9,3,FALSE)),VLOOKUP(E169,'Tab 5-7a Soil & Air EPCs'!$D$7:$F$9,3,FALSE),"--") -> -- | T169: -- | U169: -- | V169: -- | W169: --
A170: 0 | B170: 0 | C170: 0 | D170: 0 | E170: 0 | F170: -- | G170: -- | H170: =IF(ISNUMBER(VLOOKUP(E170,'Tab 5-7a Soil & Air EPCs'!$D$7:$E$9,2,FALSE)),VLOOKUP(E170,'Tab 5-7a Soil & Air EPCs'!$D$7:$E$9,2,FALSE),"--") -> -- | I170: -- | J170: -- | K170: -- | L170: -- | M170: -- | N170: -- | O170: -- | P170: =IF(ISNUMBER(VLOOKUP(E170,'Tab 5-7a Soil & Air EPCs'!$D$7:$H$9,5,FALSE)),VLOOKUP(E170,'Tab 5-7a Soil & Air EPCs'!$D$7:$H$9,5,FALSE),"--") -> -- | Q170: -- | R170: -- | S170: =IF(ISNUMBER(VLOOKUP(E170,'Tab 5-7a Soil & Air EPCs'!$D$7:$F$9,3,FALSE)),VLOOKUP(E170,'Tab 5-7a Soil & Air EPCs'!$D$7:$F$9,3,FALSE),"--") -> -- | T170: -- | U170: -- | V170: -- | W170: --
A171: 0 | B171: 0 | C171: 0 | D171: 0 | E171: 0 | F171: -- | G171: -- | H171: =IF(ISNUMBER(VLOOKUP(E171,'Tab 5-7a Soil & Air EPCs'!$D$7:$E$9,2,FALSE)),VLOOKUP(E171,'Tab 5-7a Soil & Air EPCs'!$D$7:$E$9,2,FALSE),"--") -> -- | I171: -- | J171: -- | K171: -- | L171: -- | M171: -- | N171: -- | O171: -- | P171: =IF(ISNUMBER(VLOOKUP(E171,'Tab 5-7a Soil & Air EPCs'!$D$7:$H$9,5,FALSE)),VLOOKUP(E171,'Tab 5-7a Soil & Air EPCs'!$D$7:$H$9,5,FALSE),"--") -> -- | Q171: -- | R171: -- | S171: =IF(ISNUMBER(VLOOKUP(E171,'Tab 5-7a Soil & Air EPCs'!$D$7:$F$9,3,FALSE)),VLOOKUP(E171,'Tab 5-7a Soil & Air EPCs'!$D$7:$F$9,3,FALSE),"--") -> -- | T171: -- | U171: -- | V171: -- | W171: --
A172: 0 | B172: 0 | C172: 0 | D172: 0 | E172: 0 | F172: -- | G172: -- | H172: =IF(ISNUMBER(VLOOKUP(E172,'Tab 5-7a Soil & Air EPCs'!$D$7:$E$9,2,FALSE)),VLOOKUP(E172,'Tab 5-7a Soil & Air EPCs'!$D$7:$E$9,2,FALSE),"--") -> -- | I172: -- | J172: -- | K172: -- | L172: -- | M172: -- | N172: -- | O172: -- | P172: =IF(ISNUMBER(VLOOKUP(E172,'Tab 5-7a Soil & Air EPCs'!$D$7:$H$9,5,FALSE)),VLOOKUP(E172,'Tab 5-7a Soil & Air EPCs'!$D$7:$H$9,5,FALSE),"--") -> -- | Q172: -- | R172: -- | S172: =IF(ISNUMBER(VLOOKUP(E172,'Tab 5-7a Soil & Air EPCs'!$D$7:$F$9,3,FALSE)),VLOOKUP(E172,'Tab 5-7a Soil & Air EPCs'!$D$7:$F$9,3,FALSE),"--") -> -- | T172: -- | U172: -- | V172: -- | W172: --
A173: 0 | B173: 0 | C173: 0 | D173: 0 | E173: 0 | F173: -- | G173: -- | H173: =IF(ISNUMBER(VLOOKUP(E173,'Tab 5-7a Soil & Air EPCs'!$D$7:$E$9,2,FALSE)),VLOOKUP(E173,'Tab 5-7a Soil & Air EPCs'!$D$7:$E$9,2,FALSE),"--") -> -- | I173: -- | J173: -- | K173: -- | L173: -- | M173: -- | N173: -- | O173: -- | P173: =IF(ISNUMBER(VLOOKUP(E173,'Tab 5-7a Soil & Air EPCs'!$D$7:$H$9,5,FALSE)),VLOOKUP(E173,'Tab 5-7a Soil & Air EPCs'!$D$7:$H$9,5,FALSE),"--") -> -- | Q173: -- | R173: -- | S173: =IF(ISNUMBER(VLOOKUP(E173,'Tab 5-7a Soil & Air EPCs'!$D$7:$F$9,3,FALSE)),VLOOKUP(E173,'Tab 5-7a Soil & Air EPCs'!$D$7:$F$9,3,FALSE),"--") -> -- | T173: -- | U173: -- | V173: -- | W173: --
A174: 0 | B174: 0 | C174: 0 | D174: 0 | E174: 0 | F174: -- | G174: -- | H174: =IF(ISNUMBER(VLOOKUP(E174,'Tab 5-7a Soil & Air EPCs'!$D$7:$E$9,2,FALSE)),VLOOKUP(E174,'Tab 5-7a Soil & Air EPCs'!$D$7:$E$9,2,FALSE),"--") -> -- | I174: -- | J174: -- | K174: -- | L174: -- | M174: -- | N174: -- | O174: -- | P174: =IF(ISNUMBER(VLOOKUP(E174,'Tab 5-7a Soil & Air EPCs'!$D$7:$H$9,5,FALSE)),VLOOKUP(E174,'Tab 5-7a Soil & Air EPCs'!$D$7:$H$9,5,FALSE),"--") -> -- | Q174: -- | R174: -- | S174: =IF(ISNUMBER(VLOOKUP(E174,'Tab 5-7a Soil & Air EPCs'!$D$7:$F$9,3,FALSE)),VLOOKUP(E174,'Tab 5-7a Soil & Air EPCs'!$D$7:$F$9,3,FALSE),"--") -> -- | T174: -- | U174: -- | V174: -- | W174: --
A175: 0 | B175: 0 | C175: 0 | D175: 0 | E175: 0 | F175: -- | G175: -- | H175: =IF(ISNUMBER(VLOOKUP(E175,'Tab 5-7a Soil & Air EPCs'!$D$7:$E$9,2,FALSE)),VLOOKUP(E175,'Tab 5-7a Soil & Air EPCs'!$D$7:$E$9,2,FALSE),"--") -> -- | I175: -- | J175: -- | K175: -- | L175: -- | M175: -- | N175: -- | O175: -- | P175: =IF(ISNUMBER(VLOOKUP(E175,'Tab 5-7a Soil & Air EPCs'!$D$7:$H$9,5,FALSE)),VLOOKUP(E175,'Tab 5-7a Soil & Air EPCs'!$D$7:$H$9,5,FALSE),"--") -> -- | Q175: -- | R175: -- | S175: =IF(ISNUMBER(VLOOKUP(E175,'Tab 5-7a Soil & Air EPCs'!$D$7:$F$9,3,FALSE)),VLOOKUP(E175,'Tab 5-7a Soil & Air EPCs'!$D$7:$F$9,3,FALSE),"--") -> -- | T175: -- | U175: -- | V175: -- | W175: --
A176: 0 | B176: 0 | C176: 0 | D176: 0 | E176: 0 | F176: -- | G176: -- | H176: =IF(ISNUMBER(VLOOKUP(E176,'Tab 5-7a Soil & Air EPCs'!$D$7:$E$9,2,FALSE)),VLOOKUP(E176,'Tab 5-7a Soil & Air EPCs'!$D$7:$E$9,2,FALSE),"--") -> -- | I176: -- | J176: -- | K176: -- | L176: -- | M176: -- | N176: -- | O176: -- | P176: =IF(ISNUMBER(VLOOKUP(E176,'Tab 5-7a Soil & Air EPCs'!$D$7:$H$9,5,FALSE)),VLOOKUP(E176,'Tab 5-7a Soil & Air EPCs'!$D$7:$H$9,5,FALSE),"--") -> -- | Q176: -- | R176: -- | S176: =IF(ISNUMBER(VLOOKUP(E176,'Tab 5-7a Soil & Air EPCs'!$D$7:$F$9,3,FALSE)),VLOOKUP(E176,'Tab 5-7a Soil & Air EPCs'!$D$7:$F$9,3,FALSE),"--") -> -- | T176: -- | U176: -- | V176: -- | W176: --
A177: 0 | B177: 0 | C177: 0 | D177: 0 | E177: 0 | F177: -- | G177: -- | H177: =IF(ISNUMBER(VLOOKUP(E177,'Tab 5-7a Soil & Air EPCs'!$D$7:$E$9,2,FALSE)),VLOOKUP(E177,'Tab 5-7a Soil & Air EPCs'!$D$7:$E$9,2,FALSE),"--") -> -- | I177: -- | J177: -- | K177: -- | L177: -- | M177: -- | N177: -- | O177: -- | P177: =IF(ISNUMBER(VLOOKUP(E177,'Tab 5-7a Soil & Air EPCs'!$D$7:$H$9,5,FALSE)),VLOOKUP(E177,'Tab 5-7a Soil & Air EPCs'!$D$7:$H$9,5,FALSE),"--") -> -- | Q177: -- | R177: -- | S177: =IF(ISNUMBER(VLOOKUP(E177,'Tab 5-7a Soil & Air EPCs'!$D$7:$F$9,3,FALSE)),VLOOKUP(E177,'Tab 5-7a Soil & Air EPCs'!$D$7:$F$9,3,FALSE),"--") -> -- | T177: -- | U177: -- | V177: -- | W177: --
A178: 0 | B178: 0 | C178: 0 | D178: 0 | E178: 0 | F178: -- | G178: -- | H178: =IF(ISNUMBER(VLOOKUP(E178,'Tab 5-7a Soil & Air EPCs'!$D$7:$E$9,2,FALSE)),VLOOKUP(E178,'Tab 5-7a Soil & Air EPCs'!$D$7:$E$9,2,FALSE),"--") -> -- | I178: -- | J178: -- | K178: -- | L178: -- | M178: -- | N178: -- | O178: -- | P178: =IF(ISNUMBER(VLOOKUP(E178,'Tab 5-7a Soil & Air EPCs'!$D$7:$H$9,5,FALSE)),VLOOKUP(E178,'Tab 5-7a Soil & Air EPCs'!$D$7:$H$9,5,FALSE),"--") -> -- | Q178: -- | R178: -- | S178: =IF(ISNUMBER(VLOOKUP(E178,'Tab 5-7a Soil & Air EPCs'!$D$7:$F$9,3,FALSE)),VLOOKUP(E178,'Tab 5-7a Soil & Air EPCs'!$D$7:$F$9,3,FALSE),"--") -> -- | T178: -- | U178: -- | V178: -- | W178: --
A179: 0 | B179: 0 | C179: 0 | D179: 0 | E179: 0 | F179: -- | G179: -- | H179: =IF(ISNUMBER(VLOOKUP(E179,'Tab 5-7a Soil & Air EPCs'!$D$7:$E$9,2,FALSE)),VLOOKUP(E179,'Tab 5-7a Soil & Air EPCs'!$D$7:$E$9,2,FALSE),"--") -> -- | I179: -- | J179: -- | K179: -- | L179: -- | M179: -- | N179: -- | O179: -- | P179: =IF(ISNUMBER(VLOOKUP(E179,'Tab 5-7a Soil & Air EPCs'!$D$7:$H$9,5,FALSE)),VLOOKUP(E179,'Tab 5-7a Soil & Air EPCs'!$D$7:$H$9,5,FALSE),"--") -> -- | Q179: -- | R179: -- | S179: =IF(ISNUMBER(VLOOKUP(E179,'Tab 5-7a Soil & Air EPCs'!$D$7:$F$9,3,FALSE)),VLOOKUP(E179,'Tab 5-7a Soil & Air EPCs'!$D$7:$F$9,3,FALSE),"--") -> -- | T179: -- | U179: -- | V179: -- | W179: --
A180: 0 | B180: 0 | C180: 0 | D180: 0 | E180: 0 | F180: -- | G180: -- | H180: =IF(ISNUMBER(VLOOKUP(E180,'Tab 5-7a Soil & Air EPCs'!$D$7:$E$9,2,FALSE)),VLOOKUP(E180,'Tab 5-7a Soil & Air EPCs'!$D$7:$E$9,2,FALSE),"--") -> -- | I180: -- | J180: -- | K180: -- | L180: -- | M180: -- | N180: -- | O180: -- | P180: =IF(ISNUMBER(VLOOKUP(E180,'Tab 5-7a Soil & Air EPCs'!$D$7:$H$9,5,FALSE)),VLOOKUP(E180,'Tab 5-7a Soil & Air EPCs'!$D$7:$H$9,5,FALSE),"--") -> -- | Q180: -- | R180: -- | S180: =IF(ISNUMBER(VLOOKUP(E180,'Tab 5-7a Soil & Air EPCs'!$D$7:$F$9,3,FALSE)),VLOOKUP(E180,'Tab 5-7a Soil & Air EPCs'!$D$7:$F$9,3,FALSE),"--") -> -- | T180: -- | U180: -- | V180: -- | W180: --
A181: 0 | B181: 0 | C181: 0 | D181: 0 | E181: 0 | F181: -- | G181: -- | H181: =IF(ISNUMBER(VLOOKUP(E181,'Tab 5-7a Soil & Air EPCs'!$D$7:$E$9,2,FALSE)),VLOOKUP(E181,'Tab 5-7a Soil & Air EPCs'!$D$7:$E$9,2,FALSE),"--") -> -- | I181: -- | J181: -- | K181: -- | L181: -- | M181: -- | N181: -- | O181: -- | P181: =IF(ISNUMBER(VLOOKUP(E181,'Tab 5-7a Soil & Air EPCs'!$D$7:$H$9,5,FALSE)),VLOOKUP(E181,'Tab 5-7a Soil & Air EPCs'!$D$7:$H$9,5,FALSE),"--") -> -- | Q181: -- | R181: -- | S181: =IF(ISNUMBER(VLOOKUP(E181,'Tab 5-7a Soil & Air EPCs'!$D$7:$F$9,3,FALSE)),VLOOKUP(E181,'Tab 5-7a Soil & Air EPCs'!$D$7:$F$9,3,FALSE),"--") -> -- | T181: -- | U181: -- | V181: -- | W181: --
A182: 0 | B182: 0 | C182: 0 | D182: 0 | E182: 0 | F182: -- | G182: -- | H182: =IF(ISNUMBER(VLOOKUP(E182,'Tab 5-7a Soil & Air EPCs'!$D$7:$E$9,2,FALSE)),VLOOKUP(E182,'Tab 5-7a Soil & Air EPCs'!$D$7:$E$9,2,FALSE),"--") -> -- | I182: -- | J182: -- | K182: -- | L182: -- | M182: -- | N182: -- | O182: -- | P182: =IF(ISNUMBER(VLOOKUP(E182,'Tab 5-7a Soil & Air EPCs'!$D$7:$H$9,5,FALSE)),VLOOKUP(E182,'Tab 5-7a Soil & Air EPCs'!$D$7:$H$9,5,FALSE),"--") -> -- | Q182: -- | R182: -- | S182: =IF(ISNUMBER(VLOOKUP(E182,'Tab 5-7a Soil & Air EPCs'!$D$7:$F$9,3,FALSE)),VLOOKUP(E182,'Tab 5-7a Soil & Air EPCs'!$D$7:$F$9,3,FALSE),"--") -> -- | T182: -- | U182: -- | V182: -- | W182: --
A183: 0 | B183: 0 | C183: 0 | D183: 0 | E183: 0 | F183: -- | G183: -- | H183: =IF(ISNUMBER(VLOOKUP(E183,'Tab 5-7a Soil & Air EPCs'!$D$7:$E$9,2,FALSE)),VLOOKUP(E183,'Tab 5-7a Soil & Air EPCs'!$D$7:$E$9,2,FALSE),"--") -> -- | I183: -- | J183: -- | K183: -- | L183: -- | M183: -- | N183: -- | O183: -- | P183: =IF(ISNUMBER(VLOOKUP(E183,'Tab 5-7a Soil & Air EPCs'!$D$7:$H$9,5,FALSE)),VLOOKUP(E183,'Tab 5-7a Soil & Air EPCs'!$D$7:$H$9,5,FALSE),"--") -> -- | Q183: -- | R183: -- | S183: =IF(ISNUMBER(VLOOKUP(E183,'Tab 5-7a Soil & Air EPCs'!$D$7:$F$9,3,FALSE)),VLOOKUP(E183,'Tab 5-7a Soil & Air EPCs'!$D$7:$F$9,3,FALSE),"--") -> -- | T183: -- | U183: -- | V183: -- | W183: --
A184: 0 | B184: 0 | C184: 0 | D184: 0 | E184: 0 | F184: -- | G184: -- | H184: =IF(ISNUMBER(VLOOKUP(E184,'Tab 5-7a Soil & Air EPCs'!$D$7:$E$9,2,FALSE)),VLOOKUP(E184,'Tab 5-7a Soil & Air EPCs'!$D$7:$E$9,2,FALSE),"--") -> -- | I184: -- | J184: -- | K184: -- | L184: -- | M184: -- | N184: -- | O184: -- | P184: =IF(ISNUMBER(VLOOKUP(E184,'Tab 5-7a Soil & Air EPCs'!$D$7:$H$9,5,FALSE)),VLOOKUP(E184,'Tab 5-7a Soil & Air EPCs'!$D$7:$H$9,5,FALSE),"--") -> -- | Q184: -- | R184: -- | S184: =IF(ISNUMBER(VLOOKUP(E184,'Tab 5-7a Soil & Air EPCs'!$D$7:$F$9,3,FALSE)),VLOOKUP(E184,'Tab 5-7a Soil & Air EPCs'!$D$7:$F$9,3,FALSE),"--") -> -- | T184: -- | U184: -- | V184: -- | W184: --
A185: 0 | B185: 0 | C185: 0 | D185: 0 | E185: 0 | F185: -- | G185: -- | H185: =IF(ISNUMBER(VLOOKUP(E185,'Tab 5-7a Soil & Air EPCs'!$D$7:$E$9,2,FALSE)),VLOOKUP(E185,'Tab 5-7a Soil & Air EPCs'!$D$7:$E$9,2,FALSE),"--") -> -- | I185: -- | J185: -- | K185: -- | L185: -- | M185: -- | N185: -- | O185: -- | P185: =IF(ISNUMBER(VLOOKUP(E185,'Tab 5-7a Soil & Air EPCs'!$D$7:$H$9,5,FALSE)),VLOOKUP(E185,'Tab 5-7a Soil & Air EPCs'!$D$7:$H$9,5,FALSE),"--") -> -- | Q185: -- | R185: -- | S185: =IF(ISNUMBER(VLOOKUP(E185,'Tab 5-7a Soil & Air EPCs'!$D$7:$F$9,3,FALSE)),VLOOKUP(E185,'Tab 5-7a Soil & Air EPCs'!$D$7:$F$9,3,FALSE),"--") -> -- | T185: -- | U185: -- | V185: -- | W185: --
A186: 0 | B186: 0 | C186: 0 | D186: 0 | E186: 0 | F186: -- | G186: -- | H186: =IF(ISNUMBER(VLOOKUP(E186,'Tab 5-7a Soil & Air EPCs'!$D$7:$E$9,2,FALSE)),VLOOKUP(E186,'Tab 5-7a Soil & Air EPCs'!$D$7:$E$9,2,FALSE),"--") -> -- | I186: -- | J186: -- | K186: -- | L186: -- | M186: -- | N186: -- | O186: -- | P186: =IF(ISNUMBER(VLOOKUP(E186,'Tab 5-7a Soil & Air EPCs'!$D$7:$H$9,5,FALSE)),VLOOKUP(E186,'Tab 5-7a Soil & Air EPCs'!$D$7:$H$9,5,FALSE),"--") -> -- | Q186: -- | R186: -- | S186: =IF(ISNUMBER(VLOOKUP(E186,'Tab 5-7a Soil & Air EPCs'!$D$7:$F$9,3,FALSE)),VLOOKUP(E186,'Tab 5-7a Soil & Air EPCs'!$D$7:$F$9,3,FALSE),"--") -> -- | T186: -- | U186: -- | V186: -- | W186: --
A187: 0 | B187: 0 | C187: 0 | D187: 0 | E187: 0 | F187: -- | G187: -- | H187: =IF(ISNUMBER(VLOOKUP(E187,'Tab 5-7a Soil & Air EPCs'!$D$7:$E$9,2,FALSE)),VLOOKUP(E187,'Tab 5-7a Soil & Air EPCs'!$D$7:$E$9,2,FALSE),"--") -> -- | I187: -- | J187: -- | K187: -- | L187: -- | M187: -- | N187: -- | O187: -- | P187: =IF(ISNUMBER(VLOOKUP(E187,'Tab 5-7a Soil & Air EPCs'!$D$7:$H$9,5,FALSE)),VLOOKUP(E187,'Tab 5-7a Soil & Air EPCs'!$D$7:$H$9,5,FALSE),"--") -> -- | Q187: -- | R187: -- | S187: =IF(ISNUMBER(VLOOKUP(E187,'Tab 5-7a Soil & Air EPCs'!$D$7:$F$9,3,FALSE)),VLOOKUP(E187,'Tab 5-7a Soil & Air EPCs'!$D$7:$F$9,3,FALSE),"--") -> -- | T187: -- | U187: -- | V187: -- | W187: --
A188: 0 | B188: 0 | C188: 0 | D188: 0 | E188: 0 | F188: -- | G188: -- | H188: =IF(ISNUMBER(VLOOKUP(E188,'Tab 5-7a Soil & Air EPCs'!$D$7:$E$9,2,FALSE)),VLOOKUP(E188,'Tab 5-7a Soil & Air EPCs'!$D$7:$E$9,2,FALSE),"--") -> -- | I188: -- | J188: -- | K188: -- | L188: -- | M188: -- | N188: -- | O188: -- | P188: =IF(ISNUMBER(VLOOKUP(E188,'Tab 5-7a Soil & Air EPCs'!$D$7:$H$9,5,FALSE)),VLOOKUP(E188,'Tab 5-7a Soil & Air EPCs'!$D$7:$H$9,5,FALSE),"--") -> -- | Q188: -- | R188: -- | S188: =IF(ISNUMBER(VLOOKUP(E188,'Tab 5-7a Soil & Air EPCs'!$D$7:$F$9,3,FALSE)),VLOOKUP(E188,'Tab 5-7a Soil & Air EPCs'!$D$7:$F$9,3,FALSE),"--") -> -- | T188: -- | U188: -- | V188: -- | W188: --
A189: 0 | B189: 0 | C189: 0 | D189: 0 | E189: 0 | F189: -- | G189: -- | H189: =IF(ISNUMBER(VLOOKUP(E189,'Tab 5-7a Soil & Air EPCs'!$D$7:$E$9,2,FALSE)),VLOOKUP(E189,'Tab 5-7a Soil & Air EPCs'!$D$7:$E$9,2,FALSE),"--") -> -- | I189: -- | J189: -- | K189: -- | L189: -- | M189: -- | N189: -- | O189: -- | P189: =IF(ISNUMBER(VLOOKUP(E189,'Tab 5-7a Soil & Air EPCs'!$D$7:$H$9,5,FALSE)),VLOOKUP(E189,'Tab 5-7a Soil & Air EPCs'!$D$7:$H$9,5,FALSE),"--") -> -- | Q189: -- | R189: -- | S189: =IF(ISNUMBER(VLOOKUP(E189,'Tab 5-7a Soil & Air EPCs'!$D$7:$F$9,3,FALSE)),VLOOKUP(E189,'Tab 5-7a Soil & Air EPCs'!$D$7:$F$9,3,FALSE),"--") -> -- | T189: -- | U189: -- | V189: -- | W189: --
A190: 0 | B190: 0 | C190: 0 | D190: 0 | E190: 0 | F190: -- | G190: -- | H190: =IF(ISNUMBER(VLOOKUP(E190,'Tab 5-7a Soil & Air EPCs'!$D$7:$E$9,2,FALSE)),VLOOKUP(E190,'Tab 5-7a Soil & Air EPCs'!$D$7:$E$9,2,FALSE),"--") -> -- | I190: -- | J190: -- | K190: -- | L190: -- | M190: -- | N190: -- | O190: -- | P190: =IF(ISNUMBER(VLOOKUP(E190,'Tab 5-7a Soil & Air EPCs'!$D$7:$H$9,5,FALSE)),VLOOKUP(E190,'Tab 5-7a Soil & Air EPCs'!$D$7:$H$9,5,FALSE),"--") -> -- | Q190: -- | R190: -- | S190: =IF(ISNUMBER(VLOOKUP(E190,'Tab 5-7a Soil & Air EPCs'!$D$7:$F$9,3,FALSE)),VLOOKUP(E190,'Tab 5-7a Soil & Air EPCs'!$D$7:$F$9,3,FALSE),"--") -> -- | T190: -- | U190: -- | V190: -- | W190: --
A191: 0 | B191: 0 | C191: 0 | D191: 0 | E191: 0 | F191: -- | G191: -- | H191: =IF(ISNUMBER(VLOOKUP(E191,'Tab 5-7a Soil & Air EPCs'!$D$7:$E$9,2,FALSE)),VLOOKUP(E191,'Tab 5-7a Soil & Air EPCs'!$D$7:$E$9,2,FALSE),"--") -> -- | I191: -- | J191: -- | K191: -- | L191: -- | M191: -- | N191: -- | O191: -- | P191: =IF(ISNUMBER(VLOOKUP(E191,'Tab 5-7a Soil & Air EPCs'!$D$7:$H$9,5,FALSE)),VLOOKUP(E191,'Tab 5-7a Soil & Air EPCs'!$D$7:$H$9,5,FALSE),"--") -> -- | Q191: -- | R191: -- | S191: =IF(ISNUMBER(VLOOKUP(E191,'Tab 5-7a Soil & Air EPCs'!$D$7:$F$9,3,FALSE)),VLOOKUP(E191,'Tab 5-7a Soil & Air EPCs'!$D$7:$F$9,3,FALSE),"--") -> -- | T191: -- | U191: -- | V191: -- | W191: --
A192: 0 | B192: 0 | C192: 0 | D192: 0 | E192: 0 | F192: -- | G192: -- | H192: =IF(ISNUMBER(VLOOKUP(E192,'Tab 5-7a Soil & Air EPCs'!$D$7:$E$9,2,FALSE)),VLOOKUP(E192,'Tab 5-7a Soil & Air EPCs'!$D$7:$E$9,2,FALSE),"--") -> -- | I192: -- | J192: -- | K192: -- | L192: -- | M192: -- | N192: -- | O192: -- | P192: =IF(ISNUMBER(VLOOKUP(E192,'Tab 5-7a Soil & Air EPCs'!$D$7:$H$9,5,FALSE)),VLOOKUP(E192,'Tab 5-7a Soil & Air EPCs'!$D$7:$H$9,5,FALSE),"--") -> -- | Q192: -- | R192: -- | S192: =IF(ISNUMBER(VLOOKUP(E192,'Tab 5-7a Soil & Air EPCs'!$D$7:$F$9,3,FALSE)),VLOOKUP(E192,'Tab 5-7a Soil & Air EPCs'!$D$7:$F$9,3,FALSE),"--") -> -- | T192: -- | U192: -- | V192: -- | W192: --
A193: 0 | B193: 0 | C193: 0 | D193: 0 | E193: 0 | F193: -- | G193: -- | H193: =IF(ISNUMBER(VLOOKUP(E193,'Tab 5-7a Soil & Air EPCs'!$D$7:$E$9,2,FALSE)),VLOOKUP(E193,'Tab 5-7a Soil & Air EPCs'!$D$7:$E$9,2,FALSE),"--") -> -- | I193: -- | J193: -- | K193: -- | L193: -- | M193: -- | N193: -- | O193: -- | P193: =IF(ISNUMBER(VLOOKUP(E193,'Tab 5-7a Soil & Air EPCs'!$D$7:$H$9,5,FALSE)),VLOOKUP(E193,'Tab 5-7a Soil & Air EPCs'!$D$7:$H$9,5,FALSE),"--") -> -- | Q193: -- | R193: -- | S193: =IF(ISNUMBER(VLOOKUP(E193,'Tab 5-7a Soil & Air EPCs'!$D$7:$F$9,3,FALSE)),VLOOKUP(E193,'Tab 5-7a Soil & Air EPCs'!$D$7:$F$9,3,FALSE),"--") -> -- | T193: -- | U193: -- | V193: -- | W193: --
A194: 0 | B194: 0 | C194: 0 | D194: 0 | E194: 0 | F194: -- | G194: -- | H194: =IF(ISNUMBER(VLOOKUP(E194,'Tab 5-7a Soil & Air EPCs'!$D$7:$E$9,2,FALSE)),VLOOKUP(E194,'Tab 5-7a Soil & Air EPCs'!$D$7:$E$9,2,FALSE),"--") -> -- | I194: -- | J194: -- | K194: -- | L194: -- | M194: -- | N194: -- | O194: -- | P194: =IF(ISNUMBER(VLOOKUP(E194,'Tab 5-7a Soil & Air EPCs'!$D$7:$H$9,5,FALSE)),VLOOKUP(E194,'Tab 5-7a Soil & Air EPCs'!$D$7:$H$9,5,FALSE),"--") -> -- | Q194: -- | R194: -- | S194: =IF(ISNUMBER(VLOOKUP(E194,'Tab 5-7a Soil & Air EPCs'!$D$7:$F$9,3,FALSE)),VLOOKUP(E194,'Tab 5-7a Soil & Air EPCs'!$D$7:$F$9,3,FALSE),"--") -> -- | T194: -- | U194: -- | V194: -- | W194: --
A195: 0 | B195: 0 | C195: 0 | D195: 0 | E195: 0 | F195: -- | G195: -- | H195: =IF(ISNUMBER(VLOOKUP(E195,'Tab 5-7a Soil & Air EPCs'!$D$7:$E$9,2,FALSE)),VLOOKUP(E195,'Tab 5-7a Soil & Air EPCs'!$D$7:$E$9,2,FALSE),"--") -> -- | I195: -- | J195: -- | K195: -- | L195: -- | M195: -- | N195: -- | O195: -- | P195: =IF(ISNUMBER(VLOOKUP(E195,'Tab 5-7a Soil & Air EPCs'!$D$7:$H$9,5,FALSE)),VLOOKUP(E195,'Tab 5-7a Soil & Air EPCs'!$D$7:$H$9,5,FALSE),"--") -> -- | Q195: -- | R195: -- | S195: =IF(ISNUMBER(VLOOKUP(E195,'Tab 5-7a Soil & Air EPCs'!$D$7:$F$9,3,FALSE)),VLOOKUP(E195,'Tab 5-7a Soil & Air EPCs'!$D$7:$F$9,3,FALSE),"--") -> -- | T195: -- | U195: -- | V195: -- | W195: --
A196: 0 | B196: 0 | C196: 0 | D196: 0 | E196: 0 | F196: -- | G196: -- | H196: =IF(ISNUMBER(VLOOKUP(E196,'Tab 5-7a Soil & Air EPCs'!$D$7:$E$9,2,FALSE)),VLOOKUP(E196,'Tab 5-7a Soil & Air EPCs'!$D$7:$E$9,2,FALSE),"--") -> -- | I196: -- | J196: -- | K196: -- | L196: -- | M196: -- | N196: -- | O196: -- | P196: =IF(ISNUMBER(VLOOKUP(E196,'Tab 5-7a Soil & Air EPCs'!$D$7:$H$9,5,FALSE)),VLOOKUP(E196,'Tab 5-7a Soil & Air EPCs'!$D$7:$H$9,5,FALSE),"--") -> -- | Q196: -- | R196: -- | S196: =IF(ISNUMBER(VLOOKUP(E196,'Tab 5-7a Soil & Air EPCs'!$D$7:$F$9,3,FALSE)),VLOOKUP(E196,'Tab 5-7a Soil & Air EPCs'!$D$7:$F$9,3,FALSE),"--") -> -- | T196: -- | U196: -- | V196: -- | W196: --
A197: 0 | B197: 0 | C197: 0 | D197: 0 | E197: 0 | F197: -- | G197: -- | H197: =IF(ISNUMBER(VLOOKUP(E197,'Tab 5-7a Soil & Air EPCs'!$D$7:$E$9,2,FALSE)),VLOOKUP(E197,'Tab 5-7a Soil & Air EPCs'!$D$7:$E$9,2,FALSE),"--") -> -- | I197: -- | J197: -- | K197: -- | L197: -- | M197: -- | N197: -- | O197: -- | P197: =IF(ISNUMBER(VLOOKUP(E197,'Tab 5-7a Soil & Air EPCs'!$D$7:$H$9,5,FALSE)),VLOOKUP(E197,'Tab 5-7a Soil & Air EPCs'!$D$7:$H$9,5,FALSE),"--") -> -- | Q197: -- | R197: -- | S197: =IF(ISNUMBER(VLOOKUP(E197,'Tab 5-7a Soil & Air EPCs'!$D$7:$F$9,3,FALSE)),VLOOKUP(E197,'Tab 5-7a Soil & Air EPCs'!$D$7:$F$9,3,FALSE),"--") -> -- | T197: -- | U197: -- | V197: -- | W197: --
A198: 0 | B198: 0 | C198: 0 | D198: 0 | E198: 0 | F198: -- | G198: -- | H198: =IF(ISNUMBER(VLOOKUP(E198,'Tab 5-7a Soil & Air EPCs'!$D$7:$E$9,2,FALSE)),VLOOKUP(E198,'Tab 5-7a Soil & Air EPCs'!$D$7:$E$9,2,FALSE),"--") -> -- | I198: -- | J198: -- | K198: -- | L198: -- | M198: -- | N198: -- | O198: -- | P198: =IF(ISNUMBER(VLOOKUP(E198,'Tab 5-7a Soil & Air EPCs'!$D$7:$H$9,5,FALSE)),VLOOKUP(E198,'Tab 5-7a Soil & Air EPCs'!$D$7:$H$9,5,FALSE),"--") -> -- | Q198: -- | R198: -- | S198: =IF(ISNUMBER(VLOOKUP(E198,'Tab 5-7a Soil & Air EPCs'!$D$7:$F$9,3,FALSE)),VLOOKUP(E198,'Tab 5-7a Soil & Air EPCs'!$D$7:$F$9,3,FALSE),"--") -> -- | T198: -- | U198: -- | V198: -- | W198: --
A199: 0 | B199: 0 | C199: 0 | D199: 0 | E199: 0 | F199: -- | G199: -- | H199: =IF(ISNUMBER(VLOOKUP(E199,'Tab 5-7a Soil & Air EPCs'!$D$7:$E$9,2,FALSE)),VLOOKUP(E199,'Tab 5-7a Soil & Air EPCs'!$D$7:$E$9,2,FALSE),"--") -> -- | I199: -- | J199: -- | K199: -- | L199: -- | M199: -- | N199: -- | O199: -- | P199: =IF(ISNUMBER(VLOOKUP(E199,'Tab 5-7a Soil & Air EPCs'!$D$7:$H$9,5,FALSE)),VLOOKUP(E199,'Tab 5-7a Soil & Air EPCs'!$D$7:$H$9,5,FALSE),"--") -> -- | Q199: -- | R199: -- | S199: =IF(ISNUMBER(VLOOKUP(E199,'Tab 5-7a Soil & Air EPCs'!$D$7:$F$9,3,FALSE)),VLOOKUP(E199,'Tab 5-7a Soil & Air EPCs'!$D$7:$F$9,3,FALSE),"--") -> -- | T199: -- | U199: -- | V199: -- | W199: --
A200: 0 | B200: 0 | C200: 0 | D200: 0 | E200: 0 | F200: -- | G200: -- | H200: =IF(ISNUMBER(VLOOKUP(E200,'Tab 5-7a Soil & Air EPCs'!$D$7:$E$9,2,FALSE)),VLOOKUP(E200,'Tab 5-7a Soil & Air EPCs'!$D$7:$E$9,2,FALSE),"--") -> -- | I200: -- | J200: -- | K200: -- | L200: -- | M200: -- | N200: -- | O200: -- | P200: =IF(ISNUMBER(VLOOKUP(E200,'Tab 5-7a Soil & Air EPCs'!$D$7:$H$9,5,FALSE)),VLOOKUP(E200,'Tab 5-7a Soil & Air EPCs'!$D$7:$H$9,5,FALSE),"--") -> -- | Q200: -- | R200: -- | S200: =IF(ISNUMBER(VLOOKUP(E200,'Tab 5-7a Soil & Air EPCs'!$D$7:$F$9,3,FALSE)),VLOOKUP(E200,'Tab 5-7a Soil & Air EPCs'!$D$7:$F$9,3,FALSE),"--") -> -- | T200: -- | U200: -- | V200: -- | W200: --
A201: 0 | B201: 0 | C201: 0 | D201: 0 | E201: 0 | F201: -- | G201: -- | H201: =IF(ISNUMBER(VLOOKUP(E201,'Tab 5-7a Soil & Air EPCs'!$D$7:$E$9,2,FALSE)),VLOOKUP(E201,'Tab 5-7a Soil & Air EPCs'!$D$7:$E$9,2,FALSE),"--") -> -- | I201: -- | J201: -- | K201: -- | L201: -- | M201: -- | N201: -- | O201: -- | P201: =IF(ISNUMBER(VLOOKUP(E201,'Tab 5-7a Soil & Air EPCs'!$D$7:$H$9,5,FALSE)),VLOOKUP(E201,'Tab 5-7a Soil & Air EPCs'!$D$7:$H$9,5,FALSE),"--") -> -- | Q201: -- | R201: -- | S201: =IF(ISNUMBER(VLOOKUP(E201,'Tab 5-7a Soil & Air EPCs'!$D$7:$F$9,3,FALSE)),VLOOKUP(E201,'Tab 5-7a Soil & Air EPCs'!$D$7:$F$9,3,FALSE),"--") -> -- | T201: -- | U201: -- | V201: -- | W201: --
A202: 0 | B202: 0 | C202: 0 | D202: 0 | E202: 0 | F202: -- | G202: -- | H202: =IF(ISNUMBER(VLOOKUP(E202,'Tab 5-7a Soil & Air EPCs'!$D$7:$E$9,2,FALSE)),VLOOKUP(E202,'Tab 5-7a Soil & Air EPCs'!$D$7:$E$9,2,FALSE),"--") -> -- | I202: -- | J202: -- | K202: -- | L202: -- | M202: -- | N202: -- | O202: -- | P202: =IF(ISNUMBER(VLOOKUP(E202,'Tab 5-7a Soil & Air EPCs'!$D$7:$H$9,5,FALSE)),VLOOKUP(E202,'Tab 5-7a Soil & Air EPCs'!$D$7:$H$9,5,FALSE),"--") -> -- | Q202: -- | R202: -- | S202: =IF(ISNUMBER(VLOOKUP(E202,'Tab 5-7a Soil & Air EPCs'!$D$7:$F$9,3,FALSE)),VLOOKUP(E202,'Tab 5-7a Soil & Air EPCs'!$D$7:$F$9,3,FALSE),"--") -> -- | T202: -- | U202: -- | V202: -- | W202: --
A203: 0 | B203: 0 | C203: 0 | D203: 0 | E203: 0 | F203: -- | G203: -- | H203: =IF(ISNUMBER(VLOOKUP(E203,'Tab 5-7a Soil & Air EPCs'!$D$7:$E$9,2,FALSE)),VLOOKUP(E203,'Tab 5-7a Soil & Air EPCs'!$D$7:$E$9,2,FALSE),"--") -> -- | I203: -- | J203: -- | K203: -- | L203: -- | M203: -- | N203: -- | O203: -- | P203: =IF(ISNUMBER(VLOOKUP(E203,'Tab 5-7a Soil & Air EPCs'!$D$7:$H$9,5,FALSE)),VLOOKUP(E203,'Tab 5-7a Soil & Air EPCs'!$D$7:$H$9,5,FALSE),"--") -> -- | Q203: -- | R203: -- | S203: =IF(ISNUMBER(VLOOKUP(E203,'Tab 5-7a Soil & Air EPCs'!$D$7:$F$9,3,FALSE)),VLOOKUP(E203,'Tab 5-7a Soil & Air EPCs'!$D$7:$F$9,3,FALSE),"--") -> -- | T203: -- | U203: -- | V203: -- | W203: --
... 85 more rows
